Workbook

Sheet Istruzioni
A1: Istruzione per l’uso dell’applicativo “Fert_Office_v1_19” | G1: Febbraio_2019 | I1: senza logo
A3: Il “Fert_Office_v1_19” è un applicativo in Excel per predisporre il piano di fertilizzazione.
A5: Vengono seguiti i criteri e le norme fissate nei Disciplinari di Produzione dell'Emilia Romagna Versione 2019.
A7: Sono presenti diversi fogli di lavoro, di cui solo alcuni visibili, quelli nascosti non devono essere compilati e contengono i dati di base per effettuare i calcoli. I dati devono essere inseriti solo nelle celle di colore giallo.Per alcune variabili è prevista la selezione da elenchi predefiniti.
A9: Il primo foglio che bisogna utilizzare è “Inserimento” dove devono essere digitate e selezionate le informazioni di base.
A11: L’elenco delle colture, raccolte in ordine alfabetico, è suddiviso in 6 gruppi (prima le arboree, seguite da: erbacee, foraggere, orticole, colture da seme e baby life);Per alcune sono previste diverse dizioni in funzione del tipo di parte asportata dal campo [es. solo granella (grano tenero granella); o granella+paglia (grano tenero pianta intera)]. Per alcune colture esistono divese categorie es. nel grano tenero ci sono le categorie delle varietà "biscottiere", "panificabili :FP/FPS" e di "forza: FF").
A13: Dopo aver scelto la coltura occorre selezionare il periodo stagionale in cui si svolge il ciclo colturale (emergenza raccolta) e la sua durata presunta in giorni.
A15: Nell'inserimento dei dati occorre tenere presente che in relazione alla coltura possono variare le informazioni richieste.
A17: Fare attenzione che la forma chimica del fosforo e potassio selezionata sia quella corretta.
A19: Se i dati di CSC e Mg non sono disponibili lasciare le relative caselle vuote o con valore 0.
A21: Solo per le colture pluriennali in fase di impianto può essere indicata la durata prevista per potere calcolare le future asportazioni complessive di fosforo e potassio.
A23: Nella parte che riguarda eventuali apporti organici alla coltura in precessione nel caso di apporti regolari occorre inserire la quantità annua mediamente apportata di azoto.
A25: Una volta inseriti i dati, per sapere quali siano le quantità di N, P2O5 e K2O da apportare è possibile consultare i foglio “BILANCIO” per il piano analitico o i fogli "Scheda_N", "Scheda_PK" per il modello semplificato a dose Standard.
A28: Il foglio "Distribuz" serve per programmare la distribuzione dei fertilizzanti scegliendo i tipi, le quantità e le epoche
A30: Il piano di distribuzione dei fertilizzanti può essere copiato nel foglio "Registra_Piano" ed essere stampato ed utilizzato anche come scheda di registrazione delle distribuzioni.
A32: Nei fogli "Apporti al terreno" e "Registra Piano" è possibile controllare quale dovrebbe essere la dotazione in P2O5 e K2O nel terreno alla fine del ciclo colturale se si sono apportati i concimi indicati nel foglio distribuzione.
A34: Come carattere per la separazione dei decimali usare la virgola.
A36: Se nella selezione delle finestre a tendina, si verificano degli errori, ripetere la selezione passando dalla prima voce in elenco.
A38: Per eventuali chiarimenti, segnalazione di errori o consigli di miglioramenti contattare il Dr. Giuseppe Carnevali tel. 051 527 4615; giuseppe.carnevali@regione.emilia-romagna.it

Sheet Inserimento
B1: Piano di fertilizzazione | N1: Scheda inserimento dati
B2: Norme di riferimento DPI 2019
B3: Dati aziendali e scelta del metodo di calcolo
B4: Nome azienda | H4: Zona Vunerabile ai Nitrati | N4: Area omogenea | Q4: Appezzamento | T4: Anno | V4: Metodo scelto | W4: =IF(AND(Codici!E2=1,A!G228="no"),"Metodo non previsto per questa coltura",IF(AND(Standard!F233="nd",Codici!E2=2),"Non disponibile"," ")) -> 
B5: Pinco Pallino | N5: A | Q5: 1 | T5: 2019
B7: Dati della coltura e ubicazione
B8: Gruppo | F8: Coltura | N8: Fase / Ciclo | T8: Resa annua (t/ha) | X8: Raccolta
T9: prevista | V9: proposta | X9: n° tagli
T10: 4 | V10: =Standard!E237 -> 4 | X10: 2
B12: Colture pluriennali | H12: Colture leguminose | K12: =IF(AND(J15>0,Coltura!E225=0),"Non valorizzato perché non pertinente (coltura senza azoto fissazione)"," ") ->  | N12: Modalità di coltivazione
B13: Anticipazioni P e K (sì/no) | H13: % di azoto fissazione | R13: =Coltura!G228 ->  | T13: Ubicazione
B14: Durata (anni) | C14: 20 | H14: proposta | J14: considerata
B15: Resa media (t/ha) | C15: 35 | H15: =Coltura!E225 -> 0 | J15: 0
B17: Caratteristiche del suolo
R18: =IF(Gri_K!$K$36="sì"," dotazione di K corretta in funzione del rapporto Mg/K e della CSC"," ") -> 
B19: Sabbia % | C19: 10 | E19: Classe | F19: =Suolo!E27 -> FLA | J19: N (g/kg) | L19: 0.9 | M19: =B!F29 -> Bassa | P19: Potassio | R19: 385 | S19: =Gri_K!G18 -> elevata | V19: Rapporto Mg/K | W19: =IF(Gri_K!R11=0," ",Gri_K!S14) ->  | X19: =Gri_K!T25 -> non calcolato
P20: unità di misura | S20: =IF(OR(AND(Gri_K!M12=2,R19>1.5),(AND(Gri_K!M12=1,R19<30))),"controlla valore e unità"," ") -> 
B21: Argilla % | C21: 35 | E21: Raggr. | F21: =Suolo!F19 -> Argillosi e limosi | J21: S.O. (%) | L21: 1.5 | M21: =B!E19 -> bassa | P21: forma chimica | S21: =IF(AND(Gri_K!M7=1,Gri_K!M12=2),"forma chimica errata"," ") ->  | V21: Rapporto K/CSC | W21: =IF(Gri_K!X10=0," ",Gri_K!O30) ->  | X21: =Gri_K!O39 -> non calcolato
B23: Limo % | C23: =(100-(C19+C21)) -> 55 | E23: pH | F23: 8.3 | G23: =pH!D12 -> alcalino | J23: C/N | L23: =((L21/1.724)/(L19/10)) -> 9.667440062 | M23: =CN!D7 -> equilibrato | P23: Magnesio | S23: =Gri_K!Y22 -> non valorizzato | V23: Dotazione di K2O (ppm) presa a riferimento per il calcolo dei fabbisogni colturali
P24: unità di misura | R24: 2.8 | S24: =IF(S23="non valorizzato"," ",IF(OR(AND(Gri_K!Q7=2,R23>3.5),(AND(Gri_K!Q7=1,R23<30))),"controlla valore e unità"," ")) ->  | X24: =Gri_K!G33 -> 384.99846
B25: Disponibilità | E25: Calcare tot. (%) | G25: 16 | H25: =Calcare!D12 -> Mediamente calcareo
B26: ossigeno | J26: Fosforo (ppm) | L26: 41 | M26: =Gri_P!F10 -> molto elevata | P26: C.S.C. (meq/100 g) | S26: =Gri_K!Y10 -> non valorizzato
E27: Calcare att. (%) | G27: 9 | H27: =Calcare!D26 -> Molto elevato | J27: forma chimica | Q27: Se i dati di CSC e Mg non sono disponibili lasciare le relative caselle vuote o con valore 0.
B29: Pratiche agronomiche
C30: Precessione | H30: Fertilizzazioni organiche alle colture in precessione | S30: Semina su sodo | V30: Irriguo
H31: Tipo fertilizzante | M31: Frequenza | Q31: N (kg/ha) | S31: (sì/no) | V31: (sì/no)
Q32: 0
B34: Andamento meteo | H34: Spazio per eventuali note
B35: Precipitazioni in mm
B36: dal 1/10 al 31/01 | E36: in febbraio
B37: 225.6 | E37: 40

Sheet Coltura (hidden)
A1: ordinato | B1: progressivo di gruppo | C1: ID_Coltura | D1: coltura | E1: N fissazione (%) | F1: ID_Cic | G1: coltivazione usuale | H1: Limite N predefinito | I1: Detrazione x semina su sodo | J1: Genere | K1: specie
A2: 1 | B2: 1 | C2: A2 | D2: Actinidia polpa verde frutti, legno e foglie | E2: 0 | F2: p | G2: pieno campo | H2: 340 | I2: FALSE | J2: Actinidia | K2: chinensis | L2: Conta numero colture X gruppo
A3: 2 | B3: 2 | C3: Ab2 | D3: Actinidia polpa gialla frutti, legno e foglie | E3: 0 | F3: p | G3: pieno campo | H3: 340 | I3: FALSE | J3: Actinidia | K3: chinensis
A4: =(A3+1) -> 3 | B4: =(B3+1) -> 3 | C4: A4 | D4: Albicocco media produzione frutti, legno e foglie | E4: 0 | F4: p | G4: pieno campo | H4: 340 | I4: FALSE | J4: Prunus | K4: armeniaca | L4: Criterio | M4: Numero
A5: =(A4+1) -> 4 | B5: =(B4+1) -> 4 | C5: A5 | D5: Albicocco alta produzione frutti, legno e foglie | E5: 0 | F5: p | G5: pieno campo | H5: 340 | I5: FALSE | J5: Prunus | K5: armeniaca | L5: ID_Coltura
A6: 5 | B6: 5 | C6: A6 | D6: Altri fruttiferi frutti, legno e foglie | E6: 0 | F6: p | G6: pieno campo | H6: 340 | I6: FALSE | J6: Prunus | K6: armeniaca | L6: A* | M6: =DCOUNTA($A$1:$D$221,3,L5:L6) -> 30
A7: 6 | B7: 6 | C7: A8 | D7: Arancio frutti, legno e foglie | E7: 0 | F7: p | G7: pieno campo | H7: 340 | I7: FALSE | J7: Citrus | K7: sinensis | L7: ID_Coltura
A8: 7 | B8: 7 | C8: A10 | D8: Castagno solo frutti | E8: 0 | F8: p | G8: pieno campo | H8: 340 | I8: FALSE | J8: Castanea | K8: sativa | L8: E* | M8: =DCOUNTA($A$1:$D$221,3,L7:L8) -> 57
A9: 8 | B9: 8 | C9: A12 | D9: Ciliegio frutti, legno e foglie | E9: 0 | F9: p | G9: pieno campo | H9: 340 | I9: FALSE | J9: Prunus | K9: avium | L9: ID_Coltura
A10: 9 | B10: 9 | C10: A14 | D10: Clementine frutti, legno e foglie | E10: 0 | F10: p | G10: pieno campo | H10: 340 | I10: FALSE | L10: F* | M10: =DCOUNTA($A$1:$D$1221,3,L9:L10) -> 26
A11: 10 | B11: 10 | C11: A16 | D11: Fico frutti, legno e foglie | E11: 0 | F11: p | G11: pieno campo | H11: 340 | I11: FALSE | L11: ID_Coltura
A12: 11 | B12: 11 | C12: A18 | D12: Kaki frutti, legno e foglie | E12: 0 | F12: p | G12: pieno campo | H12: 340 | I12: FALSE | J12: Diospyros | K12: kaki | L12: O* | M12: =DCOUNTA($A$1:$D$1221,3,L11:L12) -> 74
A13: 12 | B13: 12 | C13: A20 | D13: Limone frutti, legno e foglie | E13: 0 | F13: p | G13: pieno campo | H13: 340 | I13: FALSE | L13: ID_Coltura
A14: 13 | B14: 13 | C14: A22 | D14: Mandarino frutti, legno e foglie | E14: 0 | F14: p | G14: pieno campo | H14: 340 | I14: FALSE | L14: S* | M14: =DCOUNTA($A$1:$D$1221,3,L13:L14) -> 23
A15: 14 | B15: 14 | C15: A24 | D15: Mandorlo frutti, legno e foglie | E15: 0 | F15: p | G15: pieno campo | H15: 340 | I15: FALSE | L15: ID_Coltura
A16: 15 | B16: 15 | C16: A26 | D16: Melo frutti, legno e foglie | E16: 0 | F16: p | G16: pieno campo | H16: 340 | I16: FALSE | J16: Malus | K16: domestica | L16: BL* | M16: =DCOUNTA($A$1:$D$1221,3,L15:L16) -> 12
A17: 16 | B17: 16 | C17: A28 | D17: Nashi frutti, legno e foglie | E17: 0 | F17: p | G17: pieno campo | H17: 340 | I17: FALSE
A18: 17 | B18: 17 | C18: A30 | D18: Nespolo frutti, legno e foglie | E18: 0 | F18: p | G18: pieno campo | H18: 340 | I18: FALSE | L18: Modalità di coltivazione
A19: 18 | B19: 18 | C19: A32 | D19: Nettarine frutti, legno e foglie | E19: 0 | F19: p | G19: pieno campo | H19: 340 | I19: FALSE | L19: 1 | M19: protetta
A20: 19 | B20: 19 | C20: A34 | D20: Nocciolo frutti, legno e foglie | E20: 0 | F20: p | G20: pieno campo | H20: 340 | I20: FALSE | J20: Corylus | K20: avellana | L20: 2 | M20: pieno campo
A21: 20 | B21: 20 | C21: A36 | D21: Noce da frutto frutti, legno e foglie | E21: 0 | F21: p | G21: pieno campo | H21: 340 | I21: FALSE | J21: Junglas | K21: regia
A22: 21 | B22: 21 | C22: A38 | D22: Olivo olive, legno e foglie | E22: 0 | F22: p | G22: pieno campo | H22: 340 | I22: FALSE | J22: Olea | K22: europaea | L22: =Codici!I2 -> 2 | M22: =VLOOKUP(L22,L19:M20,2) -> pieno campo
A23: 22 | B23: 22 | C23: A40 | D23: Pero media produzione frutti, legno e foglie | E23: 0 | F23: p | G23: pieno campo | H23: 340 | I23: FALSE | J23: Pirus | K23: communis
A24: 23 | B24: 23 | C24: A41 | D24: Pero alta produzione frutti, legno e foglie | E24: 0 | F24: p | G24: pieno campo | H24: 340 | I24: FALSE | J24: Pirus | K24: communis
A25: 24 | B25: 24 | C25: A42 | D25: Pesco frutti, legno e foglie | E25: 0 | F25: p | G25: pieno campo | H25: 340 | I25: FALSE | J25: Prunus | K25: persica
A26: 25 | B26: 25 | C26: A43 | D26: Pioppo | E26: 0 | F26: p | G26: pieno campo | H26: 340 | I26: FALSE
A27: 26 | B27: 26 | C27: A44 | D27: Pioppo da energia | E27: 0 | F27: p | G27: pieno campo | H27: 340 | I27: FALSE
A28: 27 | B28: 27 | C28: A46 | D28: Susino frutti, legno e foglie | E28: 0 | F28: p | G28: pieno campo | H28: 340 | I28: FALSE | J28: Prunus | K28: domestica
A29: 28 | B29: 28 | C29: A48 | D29: Uva da tavola grappoli, tralci e foglie | E29: 0 | F29: p | G29: pieno campo | H29: 340 | I29: FALSE
A30: 29 | B30: 29 | C30: A50 | D30: Vite per uva da vino (collina e montagna) grappoli, tralci e foglie | E30: 0 | F30: p | G30: pieno campo | H30: 340 | I30: FALSE | J30: Vitis | K30: vinifera
A31: 30 | B31: 30 | C31: A52 | D31: Vite per uva da vino (pianura) grappoli, legno e foglie | E31: 0 | F31: p | G31: pieno campo | H31: 340 | I31: FALSE | J31: Vitis | K31: vinifera
A32: 31 | B32: 1 | C32: E1 | D32: Altri cereali a paglia (pianta intera) | E32: 0 | F32: m | G32: pieno campo | H32: 340 | I32: TRUE
A33: 32 | B33: 2 | C33: E2 | D33: Avena | E33: 0 | F33: m | G33: pieno campo | H33: 340 | I33: TRUE | J33: Avena | K33: sativa
A34: 33 | B34: 3 | C34: E3 | D34: Avena pianta intera | E34: 0 | F34: m | G34: pieno campo | H34: 340 | I34: TRUE | J34: Avena | K34: sativa
A35: 34 | B35: 4 | C35: E4 | D35: Barbababietola da zucchero (pianta intera) | E35: 0 | F35: m | G35: pieno campo | H35: 340 | I35: FALSE | J35: Beta | K35: vulgaris var. saccarifera
A36: 35 | B36: 5 | C36: E5 | D36: Barbabietola da zucchero (radici) | E36: 0 | F36: m | G36: pieno campo | H36: 340 | I36: FALSE | J36: Beta | K36: vulgaris var. saccarifera
A37: 36 | B37: 6 | C37: E6 | D37: Canapa da fibra | E37: 0 | F37: m | G37: pieno campo | H37: 340 | I37: FALSE
A38: 37 | B38: 7 | C38: E7 | D38: Cavolo abissino | E38: 0 | F38: m | G38: pieno campo | H38: 340 | I38: FALSE
A39: 38 | B39: 8 | C39: E8 | D39: Cece | E39: 50 | F39: m | G39: pieno campo | H39: 70 | I39: FALSE | J39: Cicer | K39: arietinum
A40: 39 | B40: 9 | C40: E9 | D40: Colza | E40: 0 | F40: m | G40: pieno campo | H40: 340 | I40: FALSE | J40: Brassica | K40: napus
A41: 40 | B41: 10 | C41: E10 | D41: Colza pianta intera | E41: 0 | F41: m | G41: pieno campo | H41: 340 | I41: FALSE | J41: Brassica | K41: napus
A42: 41 | B42: 11 | C42: E11 | D42: Farro | E42: 0 | F42: m | G42: pieno campo | H42: 340 | I42: TRUE | J42: Triticum | K42: monococcum, dicoccum, spelta
A43: 42 | B43: 12 | C43: E12 | D43: Farro (pianta intera) | E43: 0 | F43: m | G43: pieno campo | H43: 340 | I43: TRUE | J43: Triticum | K43: monococcum, dicoccum, spelta
A44: 43 | B44: 13 | C44: E13 | D44: Favino da granella | E44: 85 | F44: m | G44: pieno campo | H44: 40 | I44: FALSE | J44: Vicia | K44: faba
A45: 44 | B45: 14 | C45: E14 | D45: Girasole (acheni) | E45: 0 | F45: m | G45: pieno campo | H45: 340 | I45: TRUE | J45: Heliantus | K45: annuus
A46: 45 | B46: 15 | C46: E15 | D46: Girasole (pianta intera) | E46: 0 | F46: m | G46: pieno campo | H46: 340 | I46: TRUE | J46: Heliantus | K46: annuus
A47: 46 | B47: 16 | C47: E16 | D47: Grano duro (granella) | E47: 0 | F47: m | G47: pieno campo | H47: 340 | I47: TRUE | J47: Triticum | K47: durum
A48: 47 | B48: 17 | C48: E17 | D48: Grano duro (pianta intera) | E48: 0 | F48: m | G48: pieno campo | H48: 340 | I48: TRUE | J48: Triticum | K48: durum
A49: 48 | B49: 18 | C49: E18 | D49: Grano tenero FP/FPS (granella) | E49: 0 | F49: m | G49: pieno campo | H49: 340 | I49: TRUE | J49: Triticum | K49: aestivum
A50: 49 | B50: 19 | C50: E19 | D50: Grano tenero FP/FPS (pianta intera) | E50: 0 | F50: m | G50: pieno campo | H50: 340 | I50: TRUE | J50: Triticum | K50: aestivum
A51: 50 | B51: 20 | C51: E20 | D51: Grano tenero biscottiero (granella) | E51: 0 | F51: m | G51: pieno campo | H51: 340 | I51: TRUE | J51: Triticum | K51: aestivum
A52: 51 | B52: 21 | C52: E21 | D52: Grano tenero biscottiero pianta intera | E52: 0 | F52: m | G52: pieno campo | H52: 340 | I52: TRUE | J52: Triticum | K52: aestivum
A53: 52 | B53: 22 | C53: E22 | D53: Grano tenero FF (granella) | E53: 0 | F53: m | G53: pieno campo | H53: 340 | I53: TRUE | J53: Triticum | K53: aestivum
A54: 53 | B54: 23 | C54: E23 | D54: Grano tenero FF (pianta intera) | E54: 0 | F54: m | G54: pieno campo | H54: 340 | I54: TRUE | J54: Triticum | K54: aestivum
A55: 54 | B55: 24 | C55: E24 | D55: Lenticchia | E55: 85 | F55: m | G55: pieno campo | H55: 30 | I55: FALSE
A56: 55 | B56: 25 | C56: E25 | D56: Lino fibra | E56: 0 | F56: m | G56: pieno campo | H56: 340 | I56: FALSE
A57: 56 | B57: 26 | C57: E26 | D57: Lino granella | E57: 0 | F57: m | G57: pieno campo | H57: 340 | I57: FALSE
A58: 57 | B58: 27 | C58: E27 | D58: Lupino | E58: 85 | F58: m | G58: pieno campo | H58: 340 | I58: FALSE
A59: 58 | B59: 28 | C59: E28 | D59: Mais da granella 300-400 (granella) | E59: 0 | F59: m | G59: pieno campo | H59: 340 | I59: TRUE | J59: Zea | K59: mays
A60: 59 | B60: 29 | C60: E29 | D60: Mais da granella 300-400 (pianta intera) | E60: 0 | F60: m | G60: pieno campo | H60: 340 | I60: TRUE | J60: Zea | K60: mays
A61: 60 | B61: 30 | C61: E30 | D61: Mais da granella 500-700 (granella) | E61: 0 | F61: m | G61: pieno campo | H61: 340 | I61: TRUE | J61: Zea | K61: mays
A62: 61 | B62: 31 | C62: E31 | D62: Mais da granella 500-700 (pianta intera) | E62: 0 | F62: m | G62: pieno campo | H62: 340 | I62: TRUE | J62: Zea | K62: mays
A63: 62 | B63: 32 | C63: E32 | D63: Mais dolce (spighe) | E63: 0 | F63: m | G63: pieno campo | H63: 340 | I63: FALSE | J63: Zea | K63: mays
A64: 63 | B64: 33 | C64: E33 | D64: Mais dolce (pianta intera) | E64: 0 | F64: m | G64: pieno campo | H64: 340 | I64: FALSE | J64: Zea | K64: mays
A65: 64 | B65: 34 | C65: E34 | D65: Mais trinciato classe 500 | E65: 0 | F65: m | G65: pieno campo | H65: 340 | I65: TRUE | J65: Zea | K65: mays
A66: 65 | B66: =(B65+1) -> 35 | C66: E35 | D66: Mais trinciato classe 700 | E66: 0 | F66: m | G66: pieno campo | H66: 340 | I66: TRUE | J66: Zea | K66: mays
A67: 66 | B67: =(B66+1) -> 36 | C67: E36 | D67: Orzo (granella) | E67: 0 | F67: m | G67: pieno campo | H67: 340 | I67: TRUE | J67: Hordeum | K67: vulgare
A68: 67 | B68: 37 | C68: E37 | D68: Orzo (pianta intera) | E68: 0 | F68: m | G68: pieno campo | H68: 340 | I68: TRUE | J68: Hordeum | K68: vulgare
A69: =(A68+1) -> 68 | B69: 38 | C69: E38 | D69: Panico | E69: 0 | F69: m | G69: pieno campo | H69: 340 | I69: FALSE
A70: 69 | B70: 39 | C70: E39 | D70: Pisello proteico | E70: 85 | F70: m | G70: pieno campo | H70: 30 | I70: FALSE | J70: Pisum | K70: sativum
A71: 70 | B71: 40 | C71: E40 | D71: Pisello proteico + residui | E71: 85 | F71: m | G71: pieno campo | H71: 30 | I71: FALSE | J71: Pisum | K71: sativum
A72: 71 | B72: 41 | C72: E41 | D72: Rafano (da sovescio) | E72: 0 | F72: m | G72: pieno campo | H72: 340 | I72: FALSE
A73: 72 | B73: 42 | C73: E42 | D73: Riso (granella) | E73: 0 | F73: m | G73: pieno campo | H73: 340 | I73: FALSE | J73: Oryza | K73: sativa
A74: 73 | B74: 43 | C74: E43 | D74: Riso (granella+paglia) | E74: 0 | F74: m | G74: pieno campo | H74: 340 | I74: FALSE | J74: Oryza | K74: sativa
A75: 74 | B75: 44 | C75: E44 | D75: Segale (granella) | E75: 0 | F75: m | G75: pieno campo | H75: 340 | I75: TRUE | J75: Secale | K75: cereale
A76: 75 | B76: 45 | C76: E45 | D76: Segale pianta intera | E76: 0 | F76: m | G76: pieno campo | H76: 340 | I76: TRUE | J76: Secale | K76: cereale
A77: 76 | B77: 46 | C77: E46 | D77: Senape indiana | E77: 0 | F77: m | G77: pieno campo | H77: 340 | I77: FALSE | J77: Brassica | K77: juncea
A78: 77 | B78: 47 | C78: E47 | D78: Soia (granella) | E78: 90 | F78: m | G78: pieno campo | H78: 0 | I78: TRUE | J78: Glicine | K78: max
A79: 78 | B79: 48 | C79: E48 | D79: Soia (pianta intera) | E79: 90 | F79: m | G79: pieno campo | H79: 0 | I79: TRUE | J79: Glicine | K79: max
A80: 79 | B80: 49 | C80: E49 | D80: Sorgo da foraggio | E80: 0 | F80: m | G80: pieno campo | H80: 340 | I80: TRUE | J80: Sorghum | K80: bicolor, ssp. sudanense
A81: 80 | B81: 50 | C81: E50 | D81: Sorgo da granella (solo granella) | E81: 0 | F81: m | G81: pieno campo | H81: 340 | I81: TRUE | J81: Sorghum | K81: bicolor, ssp. bicolor
A82: 81 | B82: 51 | C82: E51 | D82: Sorgo da granella (pianta intera) | E82: 0 | F82: m | G82: pieno campo | H82: 340 | I82: TRUE | J82: Sorghum | K82: bicolor, ssp. bicolor
A83: 82 | B83: 52 | C83: E52 | D83: Tabacco Bright | E83: 0 | F83: m | G83: pieno campo | H83: 340 | I83: FALSE
A84: 83 | B84: 53 | C84: E53 | D84: Tabacco Bright pianta intera | E84: 0 | F84: m | G84: pieno campo | H84: 340 | I84: FALSE
A85: 84 | B85: 54 | C85: E54 | D85: Tabacco Burley | E85: 0 | F85: m | G85: pieno campo | H85: 340 | I85: FALSE
A86: 85 | B86: 55 | C86: E55 | D86: Tabacco Burley pianta intera | E86: 0 | F86: m | G86: pieno campo | H86: 340 | I86: FALSE
A87: 86 | B87: 56 | C87: E56 | D87: Triticale | E87: 0 | F87: m | G87: pieno campo | H87: 340 | I87: TRUE | J87: Triticosecale
A88: 87 | B88: 57 | C88: E57 | D88: Triticale pianta intera | E88: 0 | F88: m | G88: pieno campo | H88: 340 | I88: TRUE | J88: Triticosecale
A89: 88 | B89: 1 | C89: F1 | D89: Avena insilata | E89: 0 | F89: m | G89: pieno campo | H89: 340 | I89: FALSE | J89: Avena | K89: sativa
A90: 89 | B90: 2 | C90: F2 | D90: Colza insilato | E90: 0 | F90: m | G90: pieno campo | H90: 340 | I90: FALSE
A91: 90 | B91: 3 | C91: F3 | D91: Erba mazzolina | E91: 0 | F91: p | G91: pieno campo | H91: 340 | I91: TRUE
A92: 91 | B92: 4 | C92: F4 | D92: Erba medica | E92: 100 | F92: p | G92: pieno campo | H92: 0 | I92: FALSE | J92: Medicago | K92: sativa
A93: 92 | B93: 5 | C93: F5 | D93: Erbai aut prim. Di cer. O cruc. | E93: 0 | F93: m | G93: pieno campo | H93: 340 | I93: TRUE
A94: 93 | B94: 6 | C94: F6 | D94: Erbai aut prim. Di leguminose | E94: 50 | F94: m | G94: pieno campo | H94: 340 | I94: TRUE
A95: 94 | B95: 7 | C95: F7 | D95: Erbai biennali o Prati avv. di Graminacee | E95: 0 | F95: p | G95: pieno campo | H95: 340 | I95: TRUE
A96: 95 | B96: 8 | C96: F8 | D96: Erbai biennali misti o Prati avv. Polifita | E96: 0 | F96: p | G96: pieno campo | H96: 340 | I96: TRUE
A97: 96 | B97: 9 | C97: F9 | D97: Farro insilato | E97: 0 | F97: m | G97: pieno campo | H97: 340 | I97: TRUE
A98: 97 | B98: 10 | C98: F10 | D98: Festuca arundinacea | E98: 0 | F98: p | G98: pieno campo | H98: 340 | I98: TRUE
A99: 98 | B99: 11 | C99: F11 | D99: Fleolo (coda di topo) | E99: 0 | F99: p | G99: pieno campo | H99: 340 | I99: TRUE
A100: 99 | B100: 12 | C100: F12 | D100: Grano duro insilato | E100: 0 | F100: m | G100: pieno campo | H100: 340 | I100: TRUE
A101: 100 | B101: 13 | C101: F13 | D101: Grano tenero insilato | E101: 0 | F101: m | G101: pieno campo | H101: 340 | I101: TRUE
A102: 101 | B102: 14 | C102: F14 | D102: Loglio da insilare | E102: 0 | F102: m | G102: pieno campo | H102: 340 | I102: TRUE
A103: 102 | B103: 15 | C103: F15 | D103: Loiessa | E103: 0 | F103: m | G103: pieno campo | H103: 340 | I103: TRUE
A104: 103 | B104: 16 | C104: F16 | D104: Loietto perenne | E104: 0 | F104: p | G104: pieno campo | H104: 340 | I104: TRUE
A105: 104 | B105: 17 | C105: F17 | D105: Orzo insilato | E105: 0 | F105: m | G105: pieno campo | H105: 340 | I105: TRUE
A106: 105 | B106: 18 | C106: F18 | D106: Prati di graminacee | E106: 0 | F106: p | G106: pieno campo | H106: 340 | I106: FALSE
A107: 106 | B107: 19 | C107: F19 | D107: Prati di trifoglio | E107: 50 | F107: p | G107: pieno campo | H107: 340 | I107: FALSE
A108: 107 | B108: 20 | C108: F20 | D108: Prati pascoli in collina | E108: 0 | F108: p | G108: pieno campo | H108: 340 | I108: FALSE
A109: 108 | B109: 21 | C109: F21 | D109: Prati polifiti >50% leguminose | E109: 30 | F109: p | G109: pieno campo | H109: 340 | I109: FALSE
A110: 109 | B110: 22 | C110: F22 | D110: Prati polifiti | E110: 0 | F110: p | G110: pieno campo | H110: 340 | I110: FALSE
A111: 110 | B111: 23 | C111: F23 | D111: Prati stabili in pianura | E111: 0 | F111: p | G111: pieno campo | H111: 340 | I111: FALSE
A112: 111 | B112: 24 | C112: F24 | D112: Prato misto | E112: 0 | F112: p | G112: pieno campo | H112: 340 | I112: FALSE
A113: 112 | B113: 25 | C113: F25 | D113: Segale insilato | E113: 0 | F113: m | G113: pieno campo | H113: 340 | I113: TRUE
A114: 113 | B114: 26 | C114: F26 | D114: Triticale insilato | E114: 0 | F114: m | G114: pieno campo | H114: 340 | I114: TRUE
A115: 114 | B115: 1 | C115: =_xlfn.CONCAT("O",B115) -> O1 | D115: Aglio | E115: 0 | F115: m | G115: pieno campo | H115: 340 | I115: FALSE | J115: Allium | K115: sativum
A116: 115 | B116: 2 | C116: =_xlfn.CONCAT("O",B116) -> O2 | D116: Asparago verde (pianta intera) | E116: 0 | F116: p | G116: pieno campo | H116: 340 | I116: FALSE | J116: Asparagus | K116: officinalis
A117: 116 | B117: 3 | C117: O3 | D117: Basilico media produzione | E117: 0 | F117: m | G117: pieno campo | H117: 340 | I117: FALSE | J117: Ocimum | K117: basilicum
A118: 117 | B118: 4 | C118: O4 | D118: Basilico alta produzione più tagli | E118: 0 | F118: m | G118: pieno campo | H118: 340 | I118: FALSE | J118: Ocimum | K118: basilicum
A119: 118 | B119: 5 | C119: O5 | D119: Bietola da costa e da foglia m. fresco media produzione | E119: 0 | F119: m | G119: pieno campo | H119: 340 | I119: FALSE | J119: Beta | K119: vulgaris var. cycla
A120: 119 | B120: 6 | C120: O6 | D120: Bietola da costa e da foglia m. fresco alta produzione più tagli | E120: 0 | F120: m | G120: pieno campo | H120: 340 | I120: FALSE | J120: Beta | K120: vulgaris var. cycla
A121: 120 | B121: 7 | C121: O7 | D121: Bietola da foglie per l'industria media produzione più tagli | E121: 0 | F121: m | G121: pieno campo | H121: 340 | I121: FALSE | J121: Beta | K121: vulgaris var. cycla
A122: 121 | B122: 8 | C122: O8 | D122: Bietola da costa per l'industria alta produzione più tagli | E122: 0 | F122: m | G122: pieno campo | H122: 340 | I122: FALSE | J122: Beta | K122: vulgaris var. cycla
A123: 122 | B123: 9 | C123: O9 | D123: Broccoletto - Cime di rapa | E123: 0 | F123: m | G123: pieno campo | H123: 340 | I123: FALSE | J123: Brassica | K123: oleracea var. gongylodes
A124: 123 | B124: 10 | C124: O10 | D124: Broccolo media produzione | E124: 0 | F124: m | G124: pieno campo | H124: 340 | I124: FALSE | J124: Brassica | K124: oleracea var. botrytis
A125: 124 | B125: 11 | C125: O11 | D125: Broccolo alta produzione | E125: 0 | F125: m | G125: pieno campo | H125: 340 | I125: FALSE | J125: Brassica | K125: oleracea var. botrytis
A126: 125 | B126: 12 | C126: O12 | D126: Cappuccio media produzione | E126: 0 | F126: m | G126: pieno campo | H126: 340 | I126: FALSE | J126: Brassica | K126: oleracea var. capitata
A127: 126 | B127: 13 | C127: O13 | D127: Cappuccio alta produzione | E127: 0 | F127: m | G127: pieno campo | H127: 340 | I127: FALSE | J127: Brassica | K127: oleracea var. capitata
A128: 127 | B128: 14 | C128: O14 | D128: Carciofo | E128: 0 | F128: p | G128: pieno campo | H128: 340 | I128: FALSE
A129: 128 | B129: 15 | C129: O15 | D129: Cardo media produzione | E129: 0 | F129: m | G129: pieno campo | H129: 340 | I129: FALSE | J129: Cynara | K129: cardunculus
A130: 129 | B130: 16 | C130: O16 | D130: Cardo alta produzione | E130: 0 | F130: m | G130: pieno campo | H130: 340 | I130: FALSE
A131: 130 | B131: 17 | C131: O17 | D131: Carota | E131: 0 | F131: m | G131: pieno campo | H131: 340 | I131: FALSE | J131: Daucus | K131: carota
A132: 131 | B132: 18 | C132: O18 | D132: Cavolfiore media produzione | E132: 0 | F132: m | G132: pieno campo | H132: 340 | I132: FALSE | J132: Brassica | K132: oleracea
A133: =(A132+1) -> 132 | B133: 19 | C133: O19 | D133: Cavolfiore alta produzione | E133: 0 | F133: m | G133: pieno campo | H133: 340 | I133: FALSE | J133: Brassica | K133: oleracea
A134: 133 | B134: 20 | C134: O20 | D134: Cavolo verza mercato media produzione | E134: 0 | F134: m | G134: pieno campo | H134: 340 | I134: FALSE | J134: Brassica | K134: oleracea
A135: 134 | B135: 21 | C135: O21 | D135: Cavolo verza mercato alta produzione | E135: 0 | F135: m | G135: pieno campo | H135: 340 | I135: FALSE | J135: Brassica | K135: oleracea
A136: 135 | B136: 22 | C136: O22 | D136: Cavolo Riccio, Cavolo nero e Cavolo Rapa | E136: 0 | F136: m | G136: pieno campo | H136: 340 | I136: FALSE | J136: Brassica | K136: oleracea
A137: 136 | B137: 23 | C137: O23 | D137: Cetriolo da mensa media produzione | E137: 0 | F137: m | G137: pieno campo | H137: 340 | I137: FALSE | J137: Cucumis | K137: sativus
A138: 137 | B138: 24 | C138: O24 | D138: Cetriolo da mensa alta produzione | E138: 0 | F138: m | G138: pieno campo | H138: 340 | I138: FALSE | J138: Cucumis | K138: sativus
A139: 138 | B139: 25 | C139: O25 | D139: Cicoria da mercato media produzione | E139: 0 | F139: m | G139: pieno campo | H139: 340 | I139: FALSE | J139: Cichorium | K139: intybus
A140: 139 | B140: 26 | C140: O26 | D140: Cicoria da mercato alta produzione | E140: 0 | F140: m | G140: pieno campo | H140: 340 | I140: FALSE | J140: Cichorium | K140: intybus var. foliosum
A141: 140 | B141: 27 | C141: O27 | D141: Cicoria da industria alta produzione più tagli | E141: 0 | F141: m | G141: pieno campo | H141: 340 | I141: FALSE | J141: Cichorium | K141: intybus var. foliosum
A142: 141 | B142: 28 | C142: O28 | D142: Cipolla | E142: 0 | F142: m | G142: pieno campo | H142: 340 | I142: FALSE | J142: Allium | K142: cepa
A143: 142 | B143: 29 | C143: O29 | D143: Cocomero | E143: 0 | F143: m | G143: pieno campo | H143: 340 | I143: FALSE | J143: Citrullus | K143: lanatus
A144: 143 | B144: 30 | C144: O30 | D144: Endivie (indivie riccia e scarola) media produzione | E144: 0 | F144: m | G144: pieno campo | H144: 340 | I144: FALSE | J144: Cichorium | K144: endivia
A145: 144 | B145: 31 | C145: O31 | D145: Endivie (indivie riccia e scarola) alta produzione | E145: 0 | F145: m | G145: pieno campo | H145: 340 | I145: FALSE | J145: Cichorium | K145: endivia
A146: 145 | B146: 32 | C146: O32 | D146: Fagiolino | E146: 75 | F146: m | G146: pieno campo | H146: 75 | I146: FALSE | J146: Phaseolus | K146: vulgaris
A147: 146 | B147: 33 | C147: O33 | D147: Fagiolo in baccelli da sgranare | E147: 80 | F147: m | G147: pieno campo | H147: 75 | I147: FALSE | J147: Phaseolus | K147: vulgaris
A148: 147 | B148: 34 | C148: O34 | D148: Fagiolo secco | E148: 80 | F148: m | G148: pieno campo | H148: 75 | I148: FALSE | J148: Phaseolus | K148: vulgaris
A149: 148 | B149: 35 | C149: O35 | D149: Fava da consumo fresco | E149: 85 | F149: m | G149: pieno campo | H149: 40 | I149: FALSE | J149: Vicia | K149: faba var. major
A150: 149 | B150: 36 | C150: O36 | D150: Finocchio | E150: 0 | F150: m | G150: pieno campo | H150: 340 | I150: FALSE | J150: Foeniculum | K150: vulgare
A151: 150 | B151: 37 | C151: O37 | D151: Fragola | E151: 0 | F151: m | G151: pieno campo | H151: 340 | I151: FALSE | J151: Fragraria | K151: F. chiloensis x F. virginiana
A152: 151 | B152: 38 | C152: O38 | D152: Lattuga | E152: 0 | F152: m | G152: pieno campo | H152: 340 | I152: FALSE | J152: Lactuca | K152: sativa
A153: 152 | B153: 39 | C153: O39 | D153: Lattuga coltura protetta | E153: 0 | F153: m | G153: protetta | H153: 340 | I153: FALSE | J153: Lactuca | K153: sativa
A154: 153 | B154: 40 | C154: O40 | D154: Melanzana in pieno campo media produzione | E154: 0 | F154: m | G154: protetta | H154: 340 | I154: FALSE | J154: Solanum | K154: melongena
A155: 154 | B155: 41 | C155: O41 | D155: Melanzana coltura protetta alta produzione | E155: 0 | F155: m | G155: protetta | H155: 340 | I155: FALSE | J155: Solanum | K155: melongena
A156: 155 | B156: 42 | C156: O42 | D156: Melone | E156: 0 | F156: m | G156: protetta | H156: 340 | I156: FALSE | J156: Cucumis | K156: melo
A157: 156 | B157: 43 | C157: O43 | D157: Patata | E157: 0 | F157: m | G157: pieno campo | H157: 340 | I157: FALSE | J157: Solanum | K157: tuberosum
A158: 157 | B158: 44 | C158: O44 | D158: Peperone in serra alta produzione | E158: 0 | F158: m | G158: protetta | H158: 340 | I158: FALSE | J158: Capsicum | K158: annuum
A159: 158 | B159: 45 | C159: O45 | D159: Peperone in serra media produzione | E159: 0 | F159: m | G159: pieno campo | H159: 340 | I159: FALSE | J159: Capsicum | K159: annuum
A160: 159 | B160: 46 | C160: O46 | D160: Piccoli frutti | E160: 0 | F160: p | G160: pieno campo | H160: 340 | I160: FALSE
A161: 160 | B161: 47 | C161: O47 | D161: Pisello da industria (grani) | E161: 50 | F161: m | G161: pieno campo | H161: 70 | I161: FALSE | J161: Pisum | K161: sativum
A162: 161 | B162: 48 | C162: O48 | D162: Pisello da mercato fresco (baccelli) | E162: 80 | F162: m | G162: pieno campo | H162: 70 | I162: FALSE | J162: Pisum | K162: sativum
A163: 162 | B163: 49 | C163: O49 | D163: Pomodoro da industria media produzione | E163: 0 | F163: m | G163: pieno campo | H163: 340 | I163: FALSE | J163: Solanum | K163: lycopersicum
A164: 163 | B164: 50 | C164: O50 | D164: Pomodoro da industria alta produzione | E164: 0 | F164: m | G164: pieno campo | H164: 340 | I164: FALSE | J164: Solanum | K164: lycopersicum
A165: 164 | B165: 51 | C165: O51 | D165: Pomodoro da mensa a pieno campo | E165: 0 | F165: m | G165: pieno campo | H165: 340 | I165: FALSE | J165: Solanum | K165: lycopersicum
A166: 165 | B166: 52 | C166: O52 | D166: Pomodoro da mensa in serra | E166: 0 | F166: m | G166: protetta | H166: 340 | I166: FALSE | J166: Solanum | K166: lycopersicum
A167: 166 | B167: 53 | C167: O53 | D167: Porro | E167: 0 | F167: m | G167: pieno campo | H167: 340 | I167: FALSE | J167: Allium | K167: porrum
A168: 167 | B168: 54 | C168: O54 | D168: Prezzemolo media produzione | E168: 0 | F168: m | G168: pieno campo | H168: 340 | I168: FALSE | J168: Petroselinum | K168: crispum
A169: 168 | B169: 55 | C169: O55 | D169: Prezzemolo alta produzione più tagli | E169: 0 | F169: m | G169: pieno campo | H169: 340 | I169: FALSE | J169: Petroselinum | K169: crispum
A170: 169 | B170: 56 | C170: O56 | D170: Radicchio (cicoria a foglie colorate) media produzione | E170: 0 | F170: m | G170: pieno campo | H170: 340 | I170: FALSE | J170: Cichorium | K170: intybus var. foliosum
A171: 170 | B171: 57 | C171: O57 | D171: Radicchio (cicoria a foglie colorate) alta produzione | E171: 0 | F171: m | G171: pieno campo | H171: 340 | I171: FALSE
A172: 171 | B172: 58 | C172: O58 | D172: Rapa | E172: 0 | F172: m | G172: pieno campo | H172: 340 | I172: FALSE | J172: Brassica | K172: rapa
A173: 172 | B173: 59 | C173: O59 | D173: Ravanello | E173: 0 | F173: m | G173: pieno campo | H173: 340 | I173: FALSE | J173: Raphanus | K173: sativus
A174: 173 | B174: 60 | C174: O60 | D174: Rucola media produzione | E174: 0 | F174: m | G174: pieno campo | H174: 340 | I174: FALSE | J174: Eruca | K174: vesicaria - sativa
A175: 174 | B175: 61 | C175: O61 | D175: Rucola alta produzione con più tagli | E175: 0 | F175: m | G175: pieno campo | H175: 340 | I175: FALSE | J175: Eruca | K175: vesicaria - sativa
A176: 175 | B176: 62 | C176: O62 | D176: Scalogno | E176: 0 | F176: m | G176: pieno campo | H176: 340 | I176: FALSE | J176: Allium | K176: ascalonicum
A177: 176 | B177: 63 | C177: O63 | D177: Sedano media produzione | E177: 0 | F177: m | G177: pieno campo | H177: 340 | I177: FALSE | J177: Apium | K177: graveolens
A178: 177 | B178: 64 | C178: O64 | D178: Sedano alta produzione | E178: 0 | F178: m | G178: pieno campo | H178: 340 | I178: FALSE | J178: Apium | K178: graveolens
A179: 178 | B179: 65 | C179: O65 | D179: Spinacio alta produzione con più tagli | E179: 0 | F179: m | G179: pieno campo | H179: 340 | I179: FALSE | J179: Spinacia | K179: oleracea
A180: 179 | B180: 66 | C180: =_xlfn.CONCAT("O",B180) -> O66 | D180: Spinacio media produzione | E180: 0 | F180: m | G180: pieno campo | H180: 340 | I180: FALSE | J180: Spinacia | K180: oleracea
A181: 180 | B181: 67 | C181: O67 | D181: Verza - cavolo da mercato media produzione | E181: 0 | F181: m | G181: pieno campo | H181: 340 | I181: FALSE | J181: Brassica | K181: oleracea var. sabauda
A182: 181 | B182: 68 | C182: O68 | D182: Verza - cavolo da mercato alta produzione | E182: 0 | F182: m | G182: pieno campo | H182: 340 | I182: FALSE | J182: Brassica | K182: oleracea var. sabauda
A183: 182 | B183: 69 | C183: O69 | D183: Verza da industria | E183: 0 | F183: m | G183: pieno campo | H183: 340 | I183: FALSE | J183: Brassica | K183: oleracea var. sabauda
A184: 183 | B184: 70 | C184: O70 | D184: Zucca | E184: 0 | F184: m | G184: pieno campo | H184: 340 | I184: FALSE | J184: Cucurbita | K184: maxima / moschata
A185: 184 | B185: 71 | C185: O71 | D185: Zucchino da industria media produzione | E185: 0 | F185: m | G185: pieno campo | H185: 340 | I185: FALSE | J185: Cucurbita | K185: pepo
A186: 185 | B186: 72 | C186: O72 | D186: Zucchino da industria alta produzione | E186: 0 | F186: m | G186: pieno campo | H186: 340 | I186: FALSE | J186: Cucurbita | K186: pepo
A187: 186 | B187: 73 | C187: O73 | D187: Zucchino da mercato fresco media produzione | E187: 0 | F187: m | G187: protetta | H187: 340 | I187: FALSE | J187: Cucurbita | K187: pepo
A188: 187 | B188: 74 | C188: O74 | D188: Zucchino da mercato fresco alta produzione | E188: 0 | F188: m | G188: protetta | H188: 340 | I188: FALSE | J188: Cucurbita | K188: pepo
A189: 188 | B189: 1 | C189: S1 | D189: Barbabiertola da seme (fase porta seme) | E189: 0 | F189: m | G189: pieno campo | H189: 340 | I189: FALSE
A190: 189 | B190: 2 | C190: S2 | D190: Carota da seme (fase portaseme) | E190: 0 | F190: m | G190: pieno campo | H190: 340 | I190: FALSE
A191: 190 | B191: 3 | C191: S3 | D191: Carota da seme (fase vivaio) | E191: 0 | F191: m | G191: pieno campo | H191: 340 | I191: FALSE
A192: 191 | B192: 4 | C192: S4 | D192: Cavoli da seme | E192: 0 | F192: m | G192: pieno campo | H192: 340 | I192: FALSE
A193: 192 | B193: 5 | C193: S5 | D193: Cetriolo da seme | E193: 0 | F193: m | G193: pieno campo | H193: 340 | I193: FALSE
A194: 193 | B194: 6 | C194: S6 | D194: Cicoria da seme | E194: 0 | F194: m | G194: pieno campo | H194: 340 | I194: FALSE
A195: 194 | B195: 7 | C195: S7 | D195: Cipolla da seme (fase portaseme) | E195: 0 | F195: m | G195: pieno campo | H195: 340 | I195: FALSE
A196: 195 | B196: 8 | C196: S8 | D196: Cipolla da seme (fase vivaio) | E196: 0 | F196: m | G196: pieno campo | H196: 340 | I196: FALSE
A197: =(A196+1) -> 196 | B197: 9 | C197: S9 | D197: Coriandolo da seme | E197: 0 | F197: m | G197: pieno campo | H197: 340 | I197: FALSE | J197: Coriandrum | K197: sativum
A198: 197 | B198: 10 | C198: S10 | D198: Erba medica da seme | E198: 100 | F198: p | G198: pieno campo | H198: 340 | I198: FALSE | J198: Medicago | K198: sativa
A199: 198 | B199: 11 | C199: S11 | D199: Finocchio da seme | E199: 0 | F199: m | G199: pieno campo | H199: 340 | I199: FALSE | J199: Foeniculum | K199: vulgare
A200: 199 | B200: 12 | C200: S12 | D200: Frumento duro da seme (granella) | E200: 0 | F200: m | G200: pieno campo | H200: 340 | I200: FALSE | J200: Triticum | K200: durum
... 27 more rows

Sheet Gruppo (hidden)
A1: Progressivo | B1: ID_Gru | C1: Gruppo | D1: intervallo coltura | E1: numero | F1: ordinato parte dopo | G1: Macro categoria
A2: 1 | B2: A | C2: arboree | D2: D2:D31 | E2: 30 | F2: 0 | G2: arboree
A3: 2 | B3: E | C3: erbacee | D3: D32:D88 | E3: 57 | F3: 30 | G3: erbacee
A4: 3 | B4: F | C4: foraggere | D4: D89:D114 | E4: 26 | F4: 87 | G4: erbacee
A5: 4 | B5: O | C5: orticole | D5: D115:D188 | E5: 74 | F5: 113 | G5: erbacee
A6: 5 | B6: S | C6: da_seme | D6: D189:D210 | E6: 22 | F6: 187 | G6: erbacee
A7: 6 | B7: BL | C7: baby_life | D7: D211:D222 | E7: 12 | F7: 209 | G7: erbacee
A8: Gruppo attualmente selezionato
A9: =Codici!F2 -> 5 | B9: =VLOOKUP($A9,$A$2:$C$7,2) -> S | C9: =VLOOKUP($A9,$A$2:$C$7,3) -> da_seme | D9: =VLOOKUP($A9,$A$2:$D$7,4) -> D189:D210 | E9: =VLOOKUP($A9,$A$2:$H$7,5) -> 22 | F9: =VLOOKUP($A9,$A$2:$H$7,6) -> 187 | G9: =VLOOKUP($A9,$A$2:$H$7,7) -> erbacee
D11: matrice
D12: =CONCATENATE("Coltura","!",D9) -> Coltura!D189:D210

Sheet A (hidden)
A1: A (kg/ha): Fabbisogni colturali | D1: coefficienti unitari | G1: Bilancio | H1: resa (t) | I1: Fabbisogni standard | L1: raccolto e asportato dal campo | M1: Coeff. Stimati (%)
D2: ass. | E2: asp. | F2: asp. | I2: assorbito | J2: asportato
A3: ordinato | B3: ID_Coltura | C3: coltura | D3: N | E3: P2O5 | F3: K2O | G3: (sì/no) | H3: rif | I3: N (kg) | J3: P2O5 (kg) | K3: K2O (kg) | L3: parte | M3: N | N3: P2O5 | O3: K2O
A4: 1 | B4: =Coltura!C2 -> A2 | C4: =Coltura!D2 -> Actinidia polpa verde frutti, legno e foglie | D4: 0.59 | E4: 0.16 | F4: 0.59 | G4: =IF(AND(D4>0,E4>0,F4>0),"sì","no") -> sì | H4: =(Standard!E4) -> 25 | I4: =(D4*$H4)*10 -> 147.5 | J4: =(E4*$H4)*10 -> 40 | K4: =(F4*$H4)*10 -> 147.5 | L4: frutti
A5: 2 | B5: =Coltura!C3 -> Ab2 | C5: =Coltura!D3 -> Actinidia polpa gialla frutti, legno e foglie | D5: 0.59 | E5: 0.16 | F5: 0.59 | G5: =IF(AND(D5>0,E5>0,F5>0),"sì","no") -> sì | H5: =(Standard!E5) -> 30 | I5: =(D5*$H5)*10 -> 177 | J5: =(E5*$H5)*10 -> 48 | K5: =(F5*$H5)*10 -> 177 | L5: frutti
A6: =(A5+1) -> 3 | B6: =Coltura!C4 -> A4 | C6: =Coltura!D4 -> Albicocco media produzione frutti, legno e foglie | D6: 0.55 | E6: 0.13 | F6: 0.53 | G6: =IF(AND(D6>0,E6>0,F6>0),"sì","no") -> sì | H6: =(Standard!E6) -> 13 | I6: 71.5 | J6: 16.9 | K6: 68.9 | L6: frutti
A7: =(A6+1) -> 4 | B7: =Coltura!C5 -> A5 | C7: =Coltura!D5 -> Albicocco alta produzione frutti, legno e foglie | D7: 0.55 | E7: 0.13 | F7: 0.5 | G7: sì | H7: =(Standard!E7) -> 18 | I7: =(D7*$H7)*10 -> 99 | J7: =(E7*$H7)*10 -> 23.4 | K7: =(F7*$H7)*10 -> 90 | L7: frutti
A8: 5 | B8: =Coltura!C6 -> A6 | C8: =Coltura!D6 -> Altri fruttiferi frutti, legno e foglie | D8: 0.33 | E8: =N8 -> 0.3158333333 | F8: =O8 -> 0.7633333333 | G8: sì | H8: =(Standard!E8) -> nd | L8: frutti | N8: =AVERAGE(E4:E6,E9:E18,E21:E27,E30:E33) -> 0.3158333333 | O8: =AVERAGE(F4:F6,F9:F18,F21:F27,F30:F33) -> 0.7633333333
A9: 6 | B9: =Coltura!C7 -> A8 | C9: =Coltura!D7 -> Arancio frutti, legno e foglie | D9: 0.28 | E9: 0.13 | F9: 0.39 | G9: sì | H9: =(Standard!E9) -> 30 | I9: 84 | J9: 39 | K9: 117 | L9: frutti
A10: 7 | B10: =Coltura!C8 -> A10 | C10: =Coltura!D8 -> Castagno solo frutti | D10: 0.84 | E10: 0.33 | F10: 0.86 | G10: sì | H10: =(Standard!E10) -> nd | L10: frutti
A11: 8 | B11: =Coltura!C9 -> A12 | C11: =Coltura!D9 -> Ciliegio frutti, legno e foglie | D11: 0.67 | E11: 0.22 | F11: 0.59 | G11: sì | H11: =(Standard!E11) -> 9 | I11: 60.3 | J11: 19.8 | K11: 53.1 | L11: frutti
A12: 9 | B12: =Coltura!C10 -> A14 | C12: =Coltura!D10 -> Clementine frutti, legno e foglie | D12: 0.28 | E12: 0.13 | F12: 0.43 | G12: sì | H12: =(Standard!E12) -> 25 | I12: 70 | J12: 32.5 | K12: 107.5 | L12: frutti
A13: 10 | B13: =Coltura!C11 -> A16 | C13: =Coltura!D11 -> Fico frutti, legno e foglie | D13: 1.14 | E13: 0.75 | F13: 1 | G13: sì | H13: =(Standard!E13) -> nd | L13: frutti
A14: 11 | B14: =Coltura!C12 -> A18 | C14: =Coltura!D12 -> Kaki frutti, legno e foglie | D14: 0.58 | E14: 0.2 | F14: 0.6 | G14: sì | H14: =(Standard!E14) -> 25 | I14: 145 | J14: 50 | K14: 150 | L14: frutti
A15: 12 | B15: =Coltura!C13 -> A20 | C15: =Coltura!D13 -> Limone frutti, legno e foglie | D15: 0.25 | E15: 0.1 | F15: 0.35 | G15: sì | H15: =(Standard!E15) -> 30 | I15: 75 | J15: 30 | K15: 105 | L15: frutti
A16: 13 | B16: =Coltura!C14 -> A22 | C16: =Coltura!D14 -> Mandarino frutti, legno e foglie | D16: 0.28 | E16: 0.13 | F16: 0.94 | G16: sì | H16: =(Standard!E16) -> 25 | I16: 70 | J16: 32.5 | K16: 235 | L16: frutti
A17: 14 | B17: =Coltura!C15 -> A24 | C17: =Coltura!D15 -> Mandorlo frutti, legno e foglie | D17: 2.97 | E17: 1.06 | F17: 0.79 | G17: sì | H17: =(Standard!E17) -> nd | L17: frutti
A18: 15 | B18: =Coltura!C16 -> A26 | C18: =Coltura!D16 -> Melo frutti, legno e foglie | D18: 0.29 | E18: 0.08 | F18: 0.31 | G18: sì | H18: =(Standard!E18) -> 40 | I18: 116 | J18: 32 | K18: 124 | L18: frutti
A19: 16 | B19: =Coltura!C17 -> A28 | C19: =Coltura!D17 -> Nashi frutti, legno e foglie | D19: 0.6 | G19: no | H19: =(Standard!E19) -> nd | L19: frutti
A20: 17 | B20: =Coltura!C18 -> A30 | C20: =Coltura!D18 -> Nespolo frutti, legno e foglie | D20: 0.8 | G20: no | H20: =(Standard!E20) -> nd | L20: frutti
A21: 18 | B21: =Coltura!C19 -> A32 | C21: =Coltura!D19 -> Nettarine frutti, legno e foglie | D21: 0.64 | E21: 0.14 | F21: 0.53 | G21: sì | H21: =(Standard!E21) -> 25 | I21: 160 | J21: 35 | K21: 132.5 | L21: frutti
A22: 19 | B22: =Coltura!C20 -> A34 | C22: =Coltura!D20 -> Nocciolo frutti, legno e foglie | D22: 3.15 | E22: 1.35 | F22: 2.9 | G22: sì | H22: =(Standard!E22) -> nd | L22: frutti
A23: 20 | B23: =Coltura!C21 -> A36 | C23: =Coltura!D21 -> Noce da frutto frutti, legno e foglie | D23: 3.2 | E23: 1 | F23: 1.3 | G23: sì | H23: =(Standard!E23) -> 4 | I23: 128 | J23: 40 | K23: 52 | L23: frutti
A24: 21 | B24: =Coltura!C22 -> A38 | C24: =Coltura!D22 -> Olivo olive, legno e foglie | D24: 2.48 | E24: 0.48 | F24: 2 | G24: sì | H24: =(Standard!E24) -> 4 | I24: 99.2 | J24: 19.2 | K24: 80 | L24: frutti
A25: 22 | B25: =Coltura!C23 -> A40 | C25: =Coltura!D23 -> Pero media produzione frutti, legno e foglie | D25: 0.33 | E25: 0.08 | F25: 0.33 | G25: sì | H25: =(Standard!E25) -> 30 | I25: 99 | J25: 24 | K25: 99 | L25: frutti
A26: 23 | B26: =Coltura!C24 -> A41 | C26: =Coltura!D24 -> Pero alta produzione frutti, legno e foglie | D26: 0.33 | E26: 0.08 | F26: 0.33 | G26: =IF(AND(D26>0,E26>0,F26>0),"sì","no") -> sì | H26: =(Standard!E26) -> 40 | I26: 132 | J26: 32 | K26: 132 | L26: frutti
A27: 24 | B27: =Coltura!C25 -> A42 | C27: =Coltura!D25 -> Pesco frutti, legno e foglie | D27: 0.58 | E27: 0.17 | F27: 0.58 | G27: sì | H27: =(Standard!E27) -> 25 | I27: 145 | J27: 42.5 | K27: 145 | L27: frutti
A28: 25 | B28: =Coltura!C26 -> A43 | C28: =Coltura!D26 -> Pioppo | D28: 0.55 | G28: no | H28: =(Standard!E28) -> nd | L28: parte aerea legnosa
A29: 26 | B29: =Coltura!C27 -> A44 | C29: =Coltura!D27 -> Pioppo da energia | D29: 0.6 | G29: no | H29: =(Standard!E29) -> nd | L29: parte aerea legnosa
A30: 27 | B30: =Coltura!C28 -> A46 | C30: =Coltura!D28 -> Susino frutti, legno e foglie | D30: 0.49 | E30: 0.1 | F30: 0.49 | G30: sì | H30: =(Standard!E30) -> 25 | I30: 122.5 | J30: 25 | K30: 122.5 | L30: frutti
A31: 28 | B31: =Coltura!C29 -> A48 | C31: =Coltura!D29 -> Uva da tavola grappoli, tralci e foglie | D31: 0.51 | E31: 0.06 | F31: 0.48 | G31: sì | H31: =(Standard!E31) -> 25 | I31: 127.5 | J31: 15 | K31: 120 | L31: grappoli uva
A32: 29 | B32: =Coltura!C30 -> A50 | C32: =Coltura!D30 -> Vite per uva da vino (collina e montagna) grappoli, tralci e foglie | D32: 0.57 | E32: 0.26 | F32: 0.67 | G32: sì | H32: =(Standard!E32) -> 10 | I32: 57 | J32: 26 | K32: 67 | L32: grappoli uva
A33: 30 | B33: =Coltura!C31 -> A52 | C33: =Coltura!D31 -> Vite per uva da vino (pianura) grappoli, legno e foglie | D33: 0.62 | E33: 0.28 | F33: 0.74 | G33: sì | H33: =(Standard!E33) -> 20 | I33: 124 | J33: 56 | K33: 148 | L33: grappoli uva
A34: 31 | B34: =Coltura!C32 -> E1 | C34: =Coltura!D32 -> Altri cereali a paglia (pianta intera) | D34: =AVERAGE(D45,D50,D52,D54,D56,D70,D78,D90)*0.8 -> 2.225 | E34: =AVERAGE(E45,E50,E52,E54,E56,E70,E78,E90)*0.8 -> 0.858 | F34: =AVERAGE(F45,F50,F52,F54,F56,F70,F78,F90)*0.8 -> 1.767 | G34: sì | H34: =(Standard!E34) -> nd | L34: granella + paglia
A35: 32 | B35: =Coltura!C33 -> E2 | C35: =Coltura!D33 -> Avena | D35: 2.24 | E35: 0.67 | F35: 0.51 | G35: sì | H35: =(Standard!E35) -> 3.2 | I35: =(D35*$H35)*10 -> 71.68 | J35: =(E35*$H35)*10 -> 21.44 | K35: 16.32 | L35: granella
A36: 33 | B36: =Coltura!C34 -> E3 | C36: =Coltura!D34 -> Avena pianta intera | D36: 2.24 | E36: 0.93 | F36: 2.19 | G36: sì | H36: =(Standard!E36) -> 3.2 | I36: =(D36*$H36)*10 -> 71.68 | J36: =(E36*$H36)*10 -> 29.76 | K36: =(F36*$H36)*10 -> 70.08 | L36: granella + paglia
A37: 34 | B37: =Coltura!C35 -> E4 | C37: =Coltura!D35 -> Barbababietola da zucchero (pianta intera) | D37: 0.31 | E37: 0.16 | F37: 0.33 | G37: sì | H37: =(Standard!E37) -> 50 | I37: =(D37*$H37)*10 -> 155 | J37: =(E37*$H37)*10 -> 80 | K37: =(F37*$H37)*10 -> 165 | L37: radici + colletti + foglie
A38: 35 | B38: =Coltura!C36 -> E5 | C38: =Coltura!D36 -> Barbabietola da zucchero (radici) | D38: 0.31 | E38: 0.14 | F38: 0.21 | G38: sì | H38: =(Standard!E38) -> 50 | I38: 155 | J38: 70 | K38: 105 | L38: radici + colletti + foglie
A39: 36 | B39: =Coltura!C37 -> E6 | C39: =Coltura!D37 -> Canapa da fibra | D39: 0.43 | E39: 0.2 | F39: 0.6 | G39: sì | H39: =(Standard!E39) -> nd | L39: pianta intera
A40: 37 | B40: =Coltura!C38 -> E7 | C40: =Coltura!D38 -> Cavolo abissino | D40: 6.91 | G40: no | H40: =(Standard!E40) -> nd | L40: parte aerea
A41: 38 | B41: =Coltura!C39 -> E8 | C41: =Coltura!D39 -> Cece | D41: 3.68 | E41: 1.08 | F41: 1.74 | G41: sì | H41: =(Standard!E41) -> 2 | I41: 73.6 | J41: 21.6 | K41: 34.8 | L41: grani
A42: 39 | B42: =Coltura!C40 -> E9 | C42: =Coltura!D40 -> Colza | D42: 6.21 | E42: 1.28 | F42: 0.99 | G42: sì | H42: =(Standard!E42) -> 2.5 | I42: 155.25 | J42: 32 | K42: 24.75 | L42: semi
A43: 40 | B43: =Coltura!C41 -> E10 | C43: =Coltura!D41 -> Colza pianta intera | D43: 6.21 | E43: 2.66 | F43: 7.86 | G43: sì | H43: =(Standard!E43) -> 2.5 | I43: =(D43*$H43)*10 -> 155.25 | J43: =(E43*$H43)*10 -> 66.5 | K43: 196.5 | L43: semi + residui
A44: 41 | B44: =Coltura!C42 -> E11 | C44: =Coltura!D42 -> Farro | D44: 2.7 | E44: 0.87 | F44: 0.52 | G44: sì | H44: =(Standard!E44) -> 2 | I44: =(D44*$H44)*10 -> 54 | J44: =(E44*$H44)*10 -> 17.4 | K44: =(F44*$H44)*10 -> 10.4 | L44: granella
A45: 42 | B45: =Coltura!C43 -> E12 | C45: =Coltura!D43 -> Farro (pianta intera) | D45: 2.7 | E45: 0.98 | F45: 1.53 | G45: sì | H45: =(Standard!E45) -> 2 | I45: =(D45*$H45)*10 -> 54 | J45: =(E45*$H45)*10 -> 19.6 | K45: =(F45*$H45)*10 -> 30.6 | L45: granella + residui
A46: 43 | B46: =Coltura!C44 -> E13 | C46: =Coltura!D44 -> Favino da granella | D46: 4.3 | E46: 1 | F46: 4.4 | G46: sì | H46: =(Standard!E46) -> 2 | I46: =(D46*$H46)*10 -> 86 | J46: =(E46*$H46)*10 -> 20 | K46: =(F46*$H46)*10 -> 88 | L46: granella
A47: 44 | B47: =Coltura!C45 -> E14 | C47: =Coltura!D45 -> Girasole (acheni) | D47: 4.31 | E47: 1.24 | F47: 1.15 | G47: sì | H47: =(Standard!E47) -> 3 | I47: 129.3 | J47: 37.2 | K47: 34.5 | L47: acheni
A48: 45 | B48: =Coltura!C46 -> E15 | C48: =Coltura!D46 -> Girasole (pianta intera) | D48: 4.31 | E48: 1.9 | F48: 8.51 | G48: sì | H48: =(Standard!E48) -> 3 | I48: 129.3 | J48: 57 | K48: 255.3 | L48: acheni + residui
A49: 46 | B49: =Coltura!C47 -> E16 | C49: =Coltura!D47 -> Grano duro (granella) | D49: 3.11 | E49: 0.85 | F49: 0.59 | G49: sì | H49: =(Standard!E49) -> 6 | I49: 186.6 | J49: 51 | K49: 35.4 | L49: granella
A50: 47 | B50: =Coltura!C48 -> E17 | C50: =Coltura!D48 -> Grano duro (pianta intera) | D50: 3.11 | E50: 1.06 | F50: 1.99 | G50: sì | H50: =(Standard!E50) -> 6 | I50: =(D50*$H50)*10 -> 186.6 | J50: =(E50*$H50)*10 -> 63.6 | K50: =(F50*$H50)*10 -> 119.4 | L50: granella + residui
A51: 48 | B51: =Coltura!C49 -> E18 | C51: =Coltura!D49 -> Grano tenero FP/FPS (granella) | D51: 2.96 | E51: 0.78 | F51: 0.5 | G51: sì | H51: =(Standard!E51) -> 6 | I51: =(D51*$H51)*10 -> 177.6 | J51: =(E51*$H51)*10 -> 46.8 | K51: =(F51*$H51)*10 -> 30 | L51: granella
A52: 49 | B52: =Coltura!C50 -> E19 | C52: =Coltura!D50 -> Grano tenero FP/FPS (pianta intera) | D52: 2.96 | E52: 0.98 | F52: 1.87 | G52: sì | H52: =(Standard!E52) -> 6 | I52: 177.6 | J52: 58.8 | K52: 112.2 | L52: granella + residui
A53: 50 | B53: =Coltura!C51 -> E20 | C53: =Coltura!D51 -> Grano tenero biscottiero (granella) | D53: 2.81 | E53: 0.98 | F53: 0.61 | G53: sì | H53: =(Standard!E53) -> 6 | I53: 168.6 | J53: 58.8 | K53: 36.6 | L53: granella
A54: 51 | B54: =Coltura!C52 -> E21 | C54: =Coltura!D52 -> Grano tenero biscottiero pianta intera | D54: 2.81 | E54: 1.19 | F54: 2.29 | G54: sì | H54: =(Standard!E54) -> 6 | I54: =(D54*$H54)*10 -> 168.6 | J54: =(E54*$H54)*10 -> 71.4 | K54: =(F54*$H54)*10 -> 137.4 | L54: granella + residui
A55: 52 | B55: =Coltura!C53 -> E22 | C55: =Coltura!D53 -> Grano tenero FF (granella) | D55: 3.11 | E55: 0.87 | F55: 0.53 | G55: sì | H55: =(Standard!E55) -> 6 | I55: =(D55*$H55)*10 -> 186.6 | J55: =(E55*$H55)*10 -> 52.2 | K55: =(F55*$H55)*10 -> 31.8 | L55: granella
A56: 53 | B56: =Coltura!C54 -> E23 | C56: =Coltura!D54 -> Grano tenero FF (pianta intera) | D56: 3.11 | E56: 1.06 | F56: 1.99 | G56: sì | H56: =(Standard!E56) -> 6 | I56: 186.6 | J56: 63.6 | K56: 119.4 | L56: granella + residui
A57: 54 | B57: =Coltura!C55 -> E24 | C57: =Coltura!D55 -> Lenticchia | D57: 4.21 | E57: 0.95 | F57: 1.22 | G57: sì | H57: =(Standard!E57) -> nd | L57: granella
A58: 55 | B58: =Coltura!C56 -> E25 | C58: =Coltura!D56 -> Lino fibra | D58: 2.59 | E58: 1.8 | F58: 3.2 | G58: sì | H58: =(Standard!E58) -> nd | L58: pianta intera
A59: 56 | B59: =Coltura!C57 -> E26 | C59: =Coltura!D57 -> Lino granella | D59: 3.63 | E59: 1.4 | F59: 1.3 | G59: sì | H59: =(Standard!E59) -> nd | L59: granella
A60: 57 | B60: =Coltura!C58 -> E27 | C60: =Coltura!D58 -> Lupino | D60: 4.3 | E60: 1 | F60: 4.4 | G60: sì | H60: =(Standard!E60) -> nd | L60: granella
A61: 58 | B61: =Coltura!C59 -> E28 | C61: =Coltura!D59 -> Mais da granella 300-400 (granella) | D61: 2.27 | E61: 0.69 | F61: 0.38 | G61: sì | H61: =(Standard!E61) -> 7 | I61: 158.9 | J61: 48.3 | K61: 26.6 | L61: granella
A62: 59 | B62: =Coltura!C60 -> E29 | C62: =Coltura!D60 -> Mais da granella 300-400 (pianta intera) | D62: 2.27 | E62: 1 | F62: 2.23 | G62: sì | H62: =(Standard!E62) -> 7 | I62: 158.9 | J62: 70 | K62: 156.1 | L62: granella + residui
A63: 60 | B63: =Coltura!C61 -> E30 | C63: =Coltura!D61 -> Mais da granella 500-700 (granella) | D63: 2.27 | E63: 0.69 | F63: 0.38 | G63: sì | H63: =(Standard!E63) -> 12 | I63: 272.4 | J63: 82.8 | K63: 45.6 | L63: granella
A64: 61 | B64: =Coltura!C62 -> E31 | C64: =Coltura!D62 -> Mais da granella 500-700 (pianta intera) | D64: 2.27 | E64: 1 | F64: 2.23 | G64: sì | H64: =(Standard!E64) -> 12 | I64: 272.4 | J64: 120 | K64: 267.6 | L64: granella + residui
A65: 62 | B65: =Coltura!C63 -> E32 | C65: =Coltura!D63 -> Mais dolce (spighe) | D65: 1.42 | E65: 0.42 | F65: 0.23 | G65: sì | H65: =(Standard!E65) -> 16 | I65: 227.2 | J65: 67.2 | K65: 36.8 | L65: spighe
A66: 63 | B66: =Coltura!C64 -> E33 | C66: =Coltura!D64 -> Mais dolce (pianta intera) | D66: 1.42 | E66: 0.54 | F66: 0.98 | G66: sì | H66: =(Standard!E66) -> 16 | I66: 227.2 | J66: 86.4 | K66: 156.8 | L66: spighe + residui
A67: 64 | B67: =Coltura!C65 -> E34 | C67: =Coltura!D65 -> Mais trinciato classe 500 | D67: 0.39 | E67: 0.15 | F67: 0.33 | G67: sì | H67: =(Standard!E67) -> 45 | I67: 175.5 | J67: 67.5 | K67: 148.5 | L67: pianta intera
A68: 65 | B68: =Coltura!C66 -> E35 | C68: =Coltura!D66 -> Mais trinciato classe 700 | D68: 0.39 | E68: 0.15 | F68: 0.33 | G68: =IF(AND(D68>0,E68>0,F68>0),"sì","no") -> sì | H68: =(Standard!E68) -> 65 | I68: 253.5 | J68: 97.5 | K68: 214.5 | L68: pianta intera
A69: 66 | B69: =Coltura!C67 -> E36 | C69: =Coltura!D67 -> Orzo (granella) | D69: 2.24 | E69: 0.8 | F69: 0.52 | G69: sì | H69: =(Standard!E69) -> 6.5 | I69: 145.6 | J69: 52 | K69: 33.8 | L69: granella
A70: 67 | B70: =Coltura!C68 -> E37 | C70: =Coltura!D68 -> Orzo (pianta intera) | D70: 2.24 | E70: 0.98 | F70: 1.89 | G70: sì | H70: =(Standard!E70) -> 6.5 | I70: =(D70*$H70)*10 -> 145.6 | J70: =(E70*$H70)*10 -> 63.7 | K70: =(F70*$H70)*10 -> 122.85 | L70: granella + residui
A71: =(A70+1) -> 68 | B71: =Coltura!C69 -> E38 | C71: =Coltura!D69 -> Panico | D71: 1.49 | E71: 0.39 | F71: 1.79 | G71: sì | H71: =(Standard!E71) -> nd | L71: granella
A72: 69 | B72: =Coltura!C70 -> E39 | C72: =Coltura!D70 -> Pisello proteico | D72: 4.55 | E72: 0.88 | F72: 1.28 | G72: sì | H72: =(Standard!E72) -> 5 | I72: =(D72*$H72)*10 -> 227.5 | J72: =(E72*$H72)*10 -> 44 | K72: =(F72*$H72)*10 -> 64 | L72: granella
A73: 70 | B73: =Coltura!C71 -> E40 | C73: =Coltura!D71 -> Pisello proteico + residui | D73: 4.55 | E73: 1.16 | F73: 4.23 | G73: =IF(AND(D73>0,E73>0,F73>0),"sì","no") -> sì | H73: =(Standard!E73) -> 5 | I73: 227.5 | J73: 58 | K73: 211.5 | L73: granellam + residui
A74: 71 | B74: =Coltura!C72 -> E41 | C74: =Coltura!D72 -> Rafano (da sovescio) | D74: 0.13 | E74: 0.09 | F74: 0.44 | G74: sì | H74: =(Standard!E74) -> nd | L74: pianta intera
A75: 72 | B75: =Coltura!C73 -> E42 | C75: =Coltura!D73 -> Riso (granella) | D75: 2.03 | E75: 0.7 | F75: 0.55 | G75: sì | H75: =(Standard!E75) -> 7 | I75: 142.1 | J75: 49 | K75: 38.5 | L75: granella
A76: 73 | B76: =Coltura!C74 -> E43 | C76: =Coltura!D74 -> Riso (granella+paglia) | D76: 2.03 | E76: 0.92 | F76: 2.07 | G76: sì | H76: =(Standard!E76) -> 7 | I76: 142.1 | J76: 64.4 | K76: 144.9 | L76: granella + paglia
A77: 74 | B77: =Coltura!C75 -> E44 | C77: =Coltura!D75 -> Segale (granella) | D77: 2.78 | E77: 0.7 | F77: 0.5 | G77: sì | H77: =(Standard!E77) -> 4 | I77: 111.2 | J77: 28 | K77: 20 | L77: granella
A78: 75 | B78: =Coltura!C76 -> E45 | C78: =Coltura!D76 -> Segale pianta intera | D78: 2.78 | E78: 1.23 | F78: 3.11 | G78: sì | H78: =(Standard!E78) -> 4 | I78: =(D78*$H78)*10 -> 111.2 | J78: =(E78*$H78)*10 -> 49.2 | K78: =(F78*$H78)*10 -> 124.4 | L78: granella + paglia
A79: 76 | B79: =Coltura!C77 -> E46 | C79: =Coltura!D77 -> Senape indiana | D79: 6.91 | G79: no | H79: =(Standard!E79) -> nd | L79: semi
A80: 77 | B80: =Coltura!C78 -> E47 | C80: =Coltura!D78 -> Soia (granella) | D80: 6.3 | E80: 1.36 | F80: 2.01 | G80: sì | H80: =(Standard!E80) -> 3.5 | I80: =(D80*$H80)*10 -> 220.5 | J80: =(E80*$H80)*10 -> 47.6 | K80: =(F80*$H80)*10 -> 70.35 | L80: granella
A81: 78 | B81: =Coltura!C79 -> E48 | C81: =Coltura!D79 -> Soia (pianta intera) | D81: 6.3 | E81: 1.76 | F81: 3.05 | G81: sì | H81: =(Standard!E81) -> 3.5 | I81: 220.5 | J81: 61.6 | K81: 106.75 | L81: granella + residui
A82: 79 | B82: =Coltura!C80 -> E49 | C82: =Coltura!D80 -> Sorgo da foraggio | D82: 0.3 | E82: 0.1 | F82: 0.35 | G82: sì | H82: =(Standard!E82) -> nd | L82: pianta intera trinciata o verde
A83: 80 | B83: =Coltura!C81 -> E50 | C83: =Coltura!D81 -> Sorgo da granella (solo granella) | D83: 2.47 | E83: 0.73 | F83: 0.43 | G83: sì | H83: =(Standard!E83) -> 7.5 | I83: 185.25 | J83: 54.75 | K83: 32.25 | L83: granella
A84: 81 | B84: =Coltura!C82 -> E51 | C84: =Coltura!D82 -> Sorgo da granella (pianta intera) | D84: 2.47 | E84: 0.95 | F84: 1.57 | G84: sì | H84: =(Standard!E84) -> 7.5 | I84: 185.25 | J84: 71.25 | K84: 117.75 | L84: granella + residui
A85: 82 | B85: =Coltura!C83 -> E52 | C85: =Coltura!D83 -> Tabacco Bright | D85: 2.62 | E85: 0.6 | F85: 3.5 | G85: sì | H85: =(Standard!E85) -> nd
A86: 83 | B86: =Coltura!C84 -> E53 | C86: =Coltura!D84 -> Tabacco Bright pianta intera | D86: 2.62 | E86: 1.04 | F86: 4.09 | G86: sì | H86: =(Standard!E86) -> nd
A87: 84 | B87: =Coltura!C85 -> E54 | C87: =Coltura!D85 -> Tabacco Burley | D87: 3.71 | E87: 0.3 | F87: 3.7 | G87: sì | H87: =(Standard!E87) -> nd
A88: 85 | B88: =Coltura!C86 -> E55 | C88: =Coltura!D86 -> Tabacco Burley pianta intera | D88: 3.71 | E88: 0.62 | F88: 5.11 | G88: sì | H88: =(Standard!E88) -> nd
A89: 86 | B89: =Coltura!C87 -> E56 | C89: =Coltura!D87 -> Triticale | D89: 2.54 | E89: 0.7 | F89: 0.5 | G89: sì | H89: =(Standard!E89) -> 7.5 | I89: 190.5 | J89: 52.5 | K89: 37.5 | L89: granella
A90: 87 | B90: =Coltura!C88 -> E57 | C90: =Coltura!D88 -> Triticale pianta intera | D90: 2.54 | E90: 1.1 | F90: 3 | G90: sì | H90: =(Standard!E90) -> 7.5 | I90: =(D90*$H90)*10 -> 190.5 | J90: =(E90*$H90)*10 -> 82.5 | K90: =(F90*$H90)*10 -> 225 | L90: granella + paglia
A91: 88 | B91: =Coltura!C89 -> F1 | C91: =Coltura!D89 -> Avena insilata | D91: 0.46 | E91: =N91 -> 0.2015 | F91: =O91 -> 0.4745 | G91: sì | H91: =(3.2*3)/0.65 -> 14.76923077 | I91: =(D91*$H91)*10 -> 67.93846154 | J91: 29.76 | K91: 70.08 | L91: pianta trinciata | M91: =(I36/H91)/10 -> 0.4853333333 | N91: =(J36/$H91)/10 -> 0.2015 | O91: =(K36/$H91)/10 -> 0.4745
A92: 89 | B92: =Coltura!C90 -> F2 | C92: =Coltura!D90 -> Colza insilato | D92: 0.94 | E92: =N92 -> 0.4020930233 | F92: =O92 -> 1.188139535 | G92: sì | H92: =(2.5*4.3)/0.65 -> 16.53846154 | I92: 155.4615385 | J92: 66.5 | K92: 196.5 | L92: pianta trinciata | M92: =(I43/H92)/10 -> 0.9387209302 | N92: =(J43/$H92)/10 -> 0.4020930233 | O92: =(K43/$H92)/10 -> 1.188139535
A93: 90 | B93: =Coltura!C91 -> F3 | C93: =Coltura!D91 -> Erba mazzolina | D93: 1.89 | E93: 0.47 | F93: 2.81 | G93: sì | H93: =(Standard!E93) -> 12.5 | L93: fieno
A94: 91 | B94: =Coltura!C92 -> F4 | C94: =Coltura!D92 -> Erba medica | D94: 2.06 | E94: 0.53 | F94: 2.03 | G94: sì | H94: =(Standard!E94) -> 12.5 | L94: fieno
A95: 92 | B95: =Coltura!C93 -> F5 | C95: =Coltura!D93 -> Erbai aut prim. Di cer. O cruc. | D95: 1.36 | E95: =(N95) -> 0.65 | F95: =(O95) -> 1.22 | G95: sì | H95: 11 | I95: =(D95*$H95)*10 -> 149.6 | J95: 71.5 | K95: 134.2 | L95: fieno | N95: 0.65 | O95: 1.22
A96: 93 | B96: =Coltura!C94 -> F6 | C96: =Coltura!D94 -> Erbai aut prim. Di leguminose | D96: 0.68 | E96: =(N96) -> 0.27 | F96: =(O96) -> 1.08 | G96: sì | H96: 25 | I96: 170 | J96: 67.5 | K96: 270 | L96: foraggio verde | N96: 0.27 | O96: 1.08
A97: 94 | B97: =Coltura!C95 -> F7 | C97: =Coltura!D95 -> Erbai biennali o Prati avv. di Graminacee | D97: 2.07 | E97: 0.55 | F97: 2.45 | G97: sì | H97: =(Standard!E97) -> nd | L97: fieno
A98: 95 | B98: =Coltura!C96 -> F8 | C98: =Coltura!D96 -> Erbai biennali misti o Prati avv. Polifita | D98: 1.79 | E98: 0.75 | F98: 2.7 | G98: sì | H98: =(Standard!E98) -> nd | L98: fieno
A99: 96 | B99: =Coltura!C97 -> F9 | C99: =Coltura!D97 -> Farro insilato | D99: 0.5 | E99: =N99 -> 0.182 | F99: =O99 -> 0.2841428571 | G99: sì | H99: =(2*3.5)/0.65 -> 10.76923077 | I99: =(D99*$H99)*10 -> 53.84615385 | J99: =(E99*$H99)*10 -> 19.6 | K99: =(F99*$H99)*10 -> 30.6 | L99: pianta trinciata | M99: =(I44/H99)/10 -> 0.5014285714 | N99: =(J45/$H99)/10 -> 0.182 | O99: =(K45/$H99)/10 -> 0.2841428571
A100: 97 | B100: =Coltura!C98 -> F10 | C100: =Coltura!D98 -> Festuca arundinacea | D100: 2.04 | E100: 0.65 | F100: 1.22 | G100: sì | H100: 12.5 | I100: =(D100*$H100)*10 -> 255 | J100: =(E100*$H100)*10 -> 81.25 | K100: =(F100*$H100)*10 -> 152.5 | L100: fieno
A101: 98 | B101: =Coltura!C99 -> F11 | C101: =Coltura!D99 -> Fleolo (coda di topo) | D101: 2.07 | E101: 0.65 | F101: 1.22 | G101: sì | H101: 12.5 | I101: 258.75 | J101: 81.25 | K101: 152.5 | L101: fieno
A102: 99 | B102: =Coltura!C100 -> F12 | C102: =Coltura!D100 -> Grano duro insilato | D102: 0.62 | E102: =N102 -> 0.212 | F102: =O102 -> 0.398 | G102: sì | H102: =(6*3.25)/0.65 -> 30 | I102: =(D102*$H102)*10 -> 186 | J102: =(E102*$H102)*10 -> 63.6 | K102: =(F102*$H102)*10 -> 119.4 | L102: pianta trinciata | M102: =(I50/H102)/10 -> 0.622 | N102: =(J50/$H102)/10 -> 0.212 | O102: =(K50/$H102)/10 -> 0.398
A103: 100 | B103: =Coltura!C101 -> F13 | C103: =Coltura!D101 -> Grano tenero insilato | D103: 0.56 | E103: =N103 -> 0.238 | F103: =O103 -> 0.458 | G103: sì | H103: =(6*3.25)/0.65 -> 30 | I103: =(D103*$H103)*10 -> 168 | J103: =(E103*$H103)*10 -> 71.4 | K103: =(F103*$H103)*10 -> 137.4 | L103: pianta trinciata | M103: =(I54/H103)/10 -> 0.562 | N103: =(J54/$H103)/10 -> 0.238 | O103: =(K54/$H103)/10 -> 0.458
A104: 101 | B104: =Coltura!C102 -> F14 | C104: =Coltura!D102 -> Loglio da insilare | D104: 0.9 | E104: 0.4 | F104: 0.8 | G104: sì | H104: 22 | I104: =(D104*$H104)*10 -> 198 | J104: 88 | K104: 176 | L104: pianta trinciata
A105: 102 | B105: =Coltura!C103 -> F15 | C105: =Coltura!D103 -> Loiessa | D105: 1.53 | E105: 0.69 | F105: 2.25 | G105: sì | H105: 12.5 | I105: =(D105*$H105)*10 -> 191.25 | J105: =(E105*$H105)*10 -> 86.25 | K105: =(F105*$H105)*10 -> 281.25 | L105: fieno
A106: 103 | B106: =Coltura!C104 -> F16 | C106: =Coltura!D104 -> Loietto perenne | D106: 2.07 | E106: 0.69 | F106: 2.25 | G106: sì | H106: 9 | I106: =(D106*$H106)*10 -> 186.3 | J106: =(E106*$H106)*10 -> 62.1 | K106: =(F106*$H106)*10 -> 202.5 | L106: fieno
A107: 104 | B107: =Coltura!C105 -> F17 | C107: =Coltura!D105 -> Orzo insilato | D107: 0.44 | E107: =N107 -> 0.193030303 | F107: =O107 -> 0.3722727273 | G107: sì | H107: 33 | I107: =(D107*$H107)*10 -> 145.2 | J107: 63.7 | K107: 122.85 | L107: pianta trinciata | M107: =(I70/H107)/10 -> 0.4412121212 | N107: =(J70/$H107)/10 -> 0.193030303 | O107: =(K70/$H107)/10 -> 0.3722727273
A108: 105 | B108: =Coltura!C106 -> F18 | C108: =Coltura!D106 -> Prati di graminacee | D108: 1.95 | E108: 0.72 | F108: 1.81 | G108: sì | H108: 10 | I108: =(D108*$H108)*10 -> 195 | J108: 72 | K108: 181 | L108: fieno
A109: 106 | B109: =Coltura!C107 -> F19 | C109: =Coltura!D107 -> Prati di trifoglio | D109: 2.07 | E109: 0.6 | F109: 2.45 | G109: sì | H109: 11 | I109: 227.7 | J109: 66 | K109: 269.5 | L109: fieno
A110: 107 | B110: =Coltura!C108 -> F20 | C110: =Coltura!D108 -> Prati pascoli in collina | D110: 2.27 | E110: 0.39 | F110: 2.3 | G110: sì | H110: =(Standard!E110) -> nd | L110: pascolo + fieno
A111: 108 | B111: =Coltura!C109 -> F21 | C111: =Coltura!D109 -> Prati polifiti >50% leguminose | D111: 2.48 | E111: 0.47 | F111: 2.3 | G111: sì | H111: =(Standard!E111) -> nd | L111: fieno
A112: 109 | B112: =Coltura!C110 -> F22 | C112: =Coltura!D110 -> Prati polifiti | D112: 2.25 | E112: 0.51 | F112: 2.04 | G112: sì | H112: 8.5 | I112: =(D112*$H112)*10 -> 191.25 | J112: =(E112*$H112)*10 -> 43.35 | K112: =(F112*$H112)*10 -> 173.4 | L112: fieno
A113: 110 | B113: =Coltura!C111 -> F23 | C113: =Coltura!D111 -> Prati stabili in pianura | D113: 1.83 | E113: 0.72 | F113: 1.81 | G113: sì | H113: 8.5 | I113: =(D113*$H113)*10 -> 155.55 | J113: =(E113*$H113)*10 -> 61.2 | K113: =(F113*$H113)*10 -> 153.85 | L113: fieno
A114: 111 | B114: =Coltura!C112 -> F24 | C114: =Coltura!D112 -> Prato misto | D114: 1.8 | G114: no | H114: =(Standard!E114) -> nd | L114: fieno
A115: 112 | B115: =Coltura!C113 -> F25 | C115: =Coltura!D113 -> Segale insilato | D115: 0.51 | E115: =N115 -> 0.2236363636 | F115: =O115 -> 0.5654545455 | G115: sì | H115: 22 | I115: =(D115*$H115)*10 -> 112.2 | J115: =(E115*$H115)*10 -> 49.2 | K115: =(F115*$H115)*10 -> 124.4 | L115: pianta trinciata | M115: =(I78/H115)/10 -> 0.5054545455 | N115: =(J78/$H115)/10 -> 0.2236363636 | O115: =(K78/$H115)/10 -> 0.5654545455
A116: 113 | B116: =Coltura!C114 -> F26 | C116: =Coltura!D114 -> Triticale insilato | D116: 0.51 | E116: =N116 -> 0.222972973 | F116: =O116 -> 0.6081081081 | G116: sì | H116: 37 | I116: =(D116*$H116)*10 -> 188.7 | J116: =(E116*$H116)*10 -> 82.5 | K116: =(F116*$H116)*10 -> 225 | L116: pianta trinciata | M116: =(I90/H116)/10 -> 0.5148648649 | N116: =(J90/$H116)/10 -> 0.222972973 | O116: =(K90/$H116)/10 -> 0.6081081081
A117: 114 | B117: =Coltura!C115 -> O1 | C117: =Coltura!D115 -> Aglio | D117: 1.08 | E117: 0.27 | F117: 0.95 | G117: sì | H117: =(Standard!E117) -> 9 | I117: =(D117*$H117)*10 -> 97.2 | J117: =(E117*$H117)*10 -> 24.3 | K117: =(F117*$H117)*10 -> 85.5 | L117: bulbi
A118: 115 | B118: =Coltura!C116 -> O2 | C118: =Coltura!D116 -> Asparago verde (pianta intera) | D118: 2.56 | E118: 0.66 | F118: 2.24 | G118: sì | H118: =(Standard!E118) -> 8 | I118: 204.8 | J118: 52.8 | K118: 179.2 | L118: turrioni + parte aerea asportata a fine estate | P118: modificati il 20/04/2017
A119: 116 | B119: =Coltura!C117 -> O3 | C119: =Coltura!D117 -> Basilico media produzione | D119: 0.37 | E119: 0.13 | F119: 0.39 | G119: sì | H119: =(Standard!E119) -> 20 | I119: 74 | J119: 26 | K119: 78 | L119: foglie
A120: 117 | B120: =Coltura!C118 -> O4 | C120: =Coltura!D118 -> Basilico alta produzione più tagli | D120: 0.37 | E120: 0.13 | F120: 0.39 | G120: sì | H120: =(Standard!E120) -> 55 | I120: 203.5 | J120: 71.5 | K120: 214.5 | L120: foglie
A121: 118 | B121: =Coltura!C119 -> O5 | C121: =Coltura!D119 -> Bietola da costa e da foglia m. fresco media produzione | D121: 0.46 | E121: 0.19 | F121: 0.57 | G121: sì | H121: =(Standard!E121) -> 25 | I121: 115 | J121: 47.5 | K121: 142.5 | L121: foglie
A122: 119 | B122: =Coltura!C120 -> O6 | C122: =Coltura!D120 -> Bietola da costa e da foglia m. fresco alta produzione più tagli | D122: 0.46 | E122: 0.19 | F122: 0.57 | G122: sì | H122: =(Standard!E122) -> 35 | I122: 161 | J122: 66.5 | K122: 199.5 | L122: foglie
A123: 120 | B123: =Coltura!C121 -> O7 | C123: =Coltura!D121 -> Bietola da foglie per l'industria media produzione più tagli | D123: 0.54 | E123: 0.3 | F123: 0.55 | G123: sì | H123: =(Standard!E123) -> 25 | I123: 135 | J123: 75 | K123: 137.5 | L123: foglie
A124: 121 | B124: =Coltura!C122 -> O8 | C124: =Coltura!D122 -> Bietola da costa per l'industria alta produzione più tagli | D124: 0.54 | E124: 0.3 | F124: 0.55 | G124: =IF(AND(D124>0,E124>0,F124>0),"sì","no") -> sì | H124: =(Standard!E124) -> 35 | I124: 189 | J124: 105 | K124: 192.5 | L124: foglie
A125: 122 | B125: =Coltura!C123 -> O9 | C125: =Coltura!D123 -> Broccoletto - Cime di rapa | D125: 0.41 | E125: 0.16 | F125: 0.49 | G125: sì | H125: =(Standard!E125) -> nd | L125: infiorescenze + foglie
A126: 123 | B126: =Coltura!C124 -> O10 | C126: =Coltura!D124 -> Broccolo media produzione | D126: 0.52 | E126: 0.18 | F126: 0.57 | G126: sì | H126: =(Standard!E126) -> 20 | I126: 104 | J126: 36 | K126: 114 | L126: infiorescenze
A127: 124 | B127: =Coltura!C125 -> O11 | C127: =Coltura!D125 -> Broccolo alta produzione | D127: 0.52 | E127: 0.18 | F127: 0.57 | G127: =IF(AND(D127>0,E127>0,F127>0),"sì","no") -> sì | H127: =(Standard!E127) -> 32.5 | I127: 169 | J127: 58.5 | K127: 185.25 | L127: infiorescenze
A128: 125 | B128: =Coltura!C126 -> O12 | C128: =Coltura!D126 -> Cappuccio media produzione | D128: 0.53 | E128: 0.19 | F128: 0.53 | G128: sì | H128: =(Standard!E128) -> 27 | I128: 143.1 | J128: 51.3 | K128: 143.1 | L128: teste
A129: 126 | B129: =Coltura!C127 -> O13 | C129: =Coltura!D127 -> Cappuccio alta produzione | D129: 0.53 | E129: 0.19 | F129: 0.53 | G129: =IF(AND(D129>0,E129>0,F129>0),"sì","no") -> sì | H129: =(Standard!E129) -> 50 | I129: 265 | J129: 95 | K129: 265 | L129: teste
A130: 127 | B130: =Coltura!C128 -> O14 | C130: =Coltura!D128 -> Carciofo | D130: 0.81 | E130: 0.21 | F130: 1.08 | G130: sì | H130: =(Standard!E130) -> 15.5 | I130: 125.55 | J130: 32.55 | K130: 167.4 | L130: capolini (cuore)
A131: 128 | B131: =Coltura!C129 -> O15 | C131: =Coltura!D129 -> Cardo media produzione | D131: 0.59 | E131: 0.11 | F131: 0.53 | G131: sì | H131: =(Standard!E131) -> 25.5 | I131: 150.45 | J131: 28.05 | K131: 135.15 | L131: costole
A132: 129 | B132: =Coltura!C130 -> O16 | C132: =Coltura!D130 -> Cardo alta produzione | D132: 0.59 | E132: 0.11 | F132: 0.53 | G132: =IF(AND(D132>0,E132>0,F132>0),"sì","no") -> sì | H132: =(Standard!E132) -> 32.5 | I132: 191.75 | J132: 35.75 | K132: 172.25 | L132: costole
A133: 130 | B133: =Coltura!C131 -> O17 | C133: =Coltura!D131 -> Carota | D133: 0.41 | E133: 0.16 | F133: 0.69 | G133: sì | H133: =(Standard!E133) -> 50 | I133: 205 | J133: 80 | K133: 345 | L133: radici
A134: 131 | B134: =Coltura!C132 -> O18 | C134: =Coltura!D132 -> Cavolfiore media produzione | D134: 0.47 | E134: 0.15 | F134: 0.56 | G134: sì | H134: =(Standard!E134) -> 35 | I134: 164.5 | J134: 52.5 | K134: 196 | L134: infiorescenze (palle)
A135: =(A134+1) -> 132 | B135: =Coltura!C133 -> O19 | C135: =Coltura!D133 -> Cavolfiore alta produzione | D135: 0.47 | E135: 0.15 | F135: 0.56 | G135: =IF(AND(D135>0,E135>0,F135>0),"sì","no") -> sì | H135: =(Standard!E135) -> 45 | I135: 211.5 | J135: 67.5 | K135: 252 | L135: infiorescenze (palle)
A136: 133 | B136: =Coltura!C134 -> O20 | C136: =Coltura!D134 -> Cavolo verza mercato media produzione | D136: 0.55 | E136: 0.2 | F136: 0.57 | G136: =IF(AND(D136>0,E136>0,F136>0),"sì","no") -> sì | H136: =(Standard!E136) -> 24 | I136: 132 | J136: 48 | K136: 136.8 | L136: teste
A137: 134 | B137: =Coltura!C135 -> O21 | C137: =Coltura!D135 -> Cavolo verza mercato alta produzione | D137: 0.55 | E137: 0.2 | F137: 0.57 | G137: sì | H137: =(Standard!E137) -> 50 | I137: 275 | J137: 100 | K137: 285 | L137: teste
A138: 135 | B138: =Coltura!C136 -> O22 | C138: =Coltura!D136 -> Cavolo Riccio, Cavolo nero e Cavolo Rapa | D138: 0.44 | E138: 0.19 | F138: 0.41 | G138: sì | H138: =(Standard!E138) -> 20 | I138: 88 | J138: 38 | K138: 82 | L138: foglie
A139: 136 | B139: =Coltura!C137 -> O23 | C139: =Coltura!D137 -> Cetriolo da mensa media produzione | D139: 0.18 | E139: 0.08 | F139: 0.25 | G139: sì | H139: =(Standard!E139) -> 120 | I139: 216 | J139: 96 | K139: 300 | L139: frutti (peponidi)
A140: 137 | B140: =Coltura!C138 -> O24 | C140: =Coltura!D138 -> Cetriolo da mensa alta produzione | D140: 0.18 | E140: 0.08 | F140: 0.25 | G140: =IF(AND(D140>0,E140>0,F140>0),"sì","no") -> sì | H140: =(Standard!E140) -> 150 | I140: 270 | J140: 120 | K140: 375 | L140: frutti (peponidi)
A141: 138 | B141: =Coltura!C139 -> O25 | C141: =Coltura!D139 -> Cicoria da mercato media produzione | D141: 0.44 | E141: 0.32 | F141: 0.88 | G141: sì | H141: =(Standard!E141) -> 28 | I141: 123.2 | J141: 89.6 | K141: 246.4 | L141: foglie/cespi
A142: 139 | B142: =Coltura!C140 -> O26 | C142: =Coltura!D140 -> Cicoria da mercato alta produzione | D142: 0.44 | E142: 0.32 | F142: 0.88 | G142: =IF(AND(D142>0,E142>0,F142>0),"sì","no") -> sì | H142: =(Standard!E142) -> 37.5 | I142: 165 | J142: 120 | K142: 330 | L142: foglie/cespi
A143: 140 | B143: =Coltura!C141 -> O27 | C143: =Coltura!D141 -> Cicoria da industria alta produzione più tagli | D143: 0.44 | E143: 0.32 | F143: 0.88 | G143: =IF(AND(D143>0,E143>0,F143>0),"sì","no") -> sì | H143: =(Standard!E143) -> 28 | I143: 123.2 | J143: 89.6 | K143: 246.4 | L143: foglie
A144: 141 | B144: =Coltura!C142 -> O28 | C144: =Coltura!D142 -> Cipolla | D144: 0.31 | E144: 0.12 | F144: 0.32 | G144: sì | H144: =(Standard!E144) -> 45 | I144: 139.5 | J144: 54 | K144: 144 | L144: bulbi
A145: 142 | B145: =Coltura!C143 -> O29 | C145: =Coltura!D143 -> Cocomero | D145: 0.19 | E145: 0.12 | F145: 0.29 | G145: sì | H145: =(Standard!E145) -> 60 | I145: 114 | J145: 72 | K145: 174 | L145: frutti (peponidi)
A146: 143 | B146: =Coltura!C144 -> O30 | C146: =Coltura!D144 -> Endivie (indivie riccia e scarola) media produzione | D146: 0.47 | E146: 0.32 | F146: 0.85 | G146: sì | H146: =(Standard!E146) -> 34 | I146: 159.8 | J146: 108.8 | K146: 289 | L146: cespi
A147: 144 | B147: =Coltura!C145 -> O31 | C147: =Coltura!D145 -> Endivie (indivie riccia e scarola) alta produzione | D147: 0.47 | E147: 0.32 | F147: 0.85 | G147: =IF(AND(D147>0,E147>0,F147>0),"sì","no") -> sì | H147: =(Standard!E147) -> 45 | I147: 211.5 | J147: 144 | K147: 382.5 | L147: cespi
A148: 145 | B148: =Coltura!C146 -> O32 | C148: =Coltura!D146 -> Fagiolino | D148: 0.75 | E148: 0.25 | F148: 0.75 | G148: sì | H148: =(Standard!E148) -> 9 | I148: 67.5 | J148: 22.5 | K148: 67.5 | L148: baccelli
A149: 146 | B149: =Coltura!C147 -> O33 | C149: =Coltura!D147 -> Fagiolo in baccelli da sgranare | D149: 3.84 | E149: 2.06 | F149: 3.46 | G149: =IF(AND(D149>0,E149>0,F149>0),"sì","no") -> sì | H149: =(Standard!E149) -> 5 | I149: 192 | J149: 103 | K149: 173 | L149: baccelli da sgranare | P149: modificati il 14/12/2012
A150: 147 | B150: =Coltura!C148 -> O34 | C150: =Coltura!D148 -> Fagiolo secco | D150: 6.6 | E150: 3.55 | F150: 5.95 | G150: sì | H150: 3 | I150: =(D150*$H150)*10 -> 198 | J150: =(E150*$H150)*10 -> 106.5 | K150: =(F150*$H150)*10 -> 178.5 | L150: granella
A151: 148 | B151: =Coltura!C149 -> O35 | C151: =Coltura!D149 -> Fava da consumo fresco | D151: 0.74 | E151: 0.21 | F151: 0.42 | G151: sì | H151: 25 | I151: =(D151*$H151)*10 -> 185 | J151: =(E151*$H151)*10 -> 52.5 | K151: =(F151*$H151)*10 -> 105 | L151: baccelli
A152: 149 | B152: =Coltura!C150 -> O36 | C152: =Coltura!D150 -> Finocchio | D152: 0.58 | E152: 0.11 | F152: 0.81 | G152: sì | H152: =(Standard!E152) -> 30 | I152: 174 | J152: 33 | K152: 243 | L152: grumoli
A153: 150 | B153: =Coltura!C151 -> O37 | C153: =Coltura!D151 -> Fragola | D153: 0.45 | E153: 0.23 | F153: 0.71 | G153: sì | H153: =(Standard!E153) -> 30 | I153: 135 | J153: 69 | K153: 213 | L153: frutti
A154: 151 | B154: =Coltura!C152 -> O38 | C154: =Coltura!D152 -> Lattuga | D154: 0.31 | E154: 0.09 | F154: 0.5 | G154: sì | H154: =(Standard!E154) -> 32 | I154: 99.2 | J154: 28.8 | K154: 160 | L154: cespi
A155: 152 | B155: =Coltura!C153 -> O39 | C155: =Coltura!D153 -> Lattuga coltura protetta | D155: 0.31 | E155: 0.09 | F155: 0.5 | G155: sì | H155: 32 | I155: =(D155*$H155)*10 -> 99.2 | J155: =(E155*$H155)*10 -> 28.8 | K155: =(F155*$H155)*10 -> 160 | L155: cespi
A156: 153 | B156: =Coltura!C154 -> O40 | C156: =Coltura!D154 -> Melanzana in pieno campo media produzione | D156: 0.52 | E156: 0.19 | F156: 0.62 | G156: =IF(AND(D156>0,E156>0,F156>0),"sì","no") -> sì | H156: =(Standard!E156) -> 80 | I156: 416 | J156: 152 | K156: 496 | L156: frutti (bacche)
A157: 154 | B157: =Coltura!C155 -> O41 | C157: =Coltura!D155 -> Melanzana coltura protetta alta produzione | D157: 0.52 | E157: 0.19 | F157: 0.62 | G157: sì | H157: =(Standard!E157) -> 150 | I157: 780 | J157: 285 | K157: 930 | L157: frutti (bacche)
A158: 155 | B158: =Coltura!C156 -> O42 | C158: =Coltura!D156 -> Melone | D158: 0.39 | E158: 0.17 | F158: 0.57 | G158: sì | H158: =(Standard!E158) -> 40 | I158: 156 | J158: 68 | K158: 228 | L158: frutti (peponidi)
A159: 156 | B159: =Coltura!C157 -> O43 | C159: =Coltura!D157 -> Patata | D159: 0.42 | E159: 0.15 | F159: 0.7 | G159: sì | H159: =(Standard!E159) -> 47.5 | I159: 199.5 | J159: 71.25 | K159: 332.5 | L159: tuberi
A160: 157 | B160: =Coltura!C158 -> O44 | C160: =Coltura!D158 -> Peperone in serra alta produzione | D160: 0.38 | E160: 0.14 | F160: 0.5 | G160: sì | H160: =(Standard!E160) -> 70 | I160: 266 | J160: 98 | K160: 350 | L160: bacche
A161: 158 | B161: =Coltura!C159 -> O45 | C161: =Coltura!D159 -> Peperone in serra media produzione | D161: 0.38 | E161: 0.14 | F161: 0.5 | G161: sì | H161: =(Standard!E161) -> 50 | I161: 190 | J161: 70 | K161: 250 | L161: bacche
A162: 159 | B162: =Coltura!C160 -> O46 | C162: =Coltura!D160 -> Piccoli frutti | D162: 1.5 | G162: no | H162: =(Standard!E162) -> nd
A163: 160 | B163: =Coltura!C161 -> O47 | C163: =Coltura!D161 -> Pisello da industria (grani) | D163: 3.958333333 | E163: 0.6583333333 | F163: 1.875 | G163: sì | H163: 5 | I163: 197.9166667 | J163: 32.91666667 | K163: 93.75 | L163: semi freschi (grani) | P163: modificati il 20/04/2017
A164: 161 | B164: =Coltura!C162 -> O48 | C164: =Coltura!D162 -> Pisello da mercato fresco (baccelli) | D164: 4.75 | E164: 0.79 | F164: 2.25 | G164: sì | H164: =(Standard!E164) -> 6 | I164: 285 | J164: 47.4 | K164: 135 | L164: baccelli | P164: modificati il 20/04/2017
A165: 162 | B165: =Coltura!C163 -> O49 | C165: =Coltura!D163 -> Pomodoro da industria media produzione | D165: 0.26 | E165: 0.11 | F165: 0.37 | G165: sì | H165: =(Standard!E165) -> 70 | I165: 182 | J165: 77 | K165: 259 | L165: bacche
A166: 163 | B166: =Coltura!C164 -> O50 | C166: =Coltura!D164 -> Pomodoro da industria alta produzione | D166: 0.26 | E166: 0.11 | F166: 0.37 | G166: sì | H166: =(Standard!E166) -> 90 | I166: =(D166*$H166)*10 -> 234 | J166: =(E166*$H166)*10 -> 99 | K166: =(F166*$H166)*10 -> 333 | L166: bacche
A167: 164 | B167: =Coltura!C165 -> O51 | C167: =Coltura!D165 -> Pomodoro da mensa a pieno campo | D167: 0.26 | E167: 0.12 | F167: 0.41 | G167: sì | H167: =(Standard!E167) -> 70 | I167: 182 | J167: 84 | K167: 287 | L167: bacche
A168: 165 | B168: =Coltura!C166 -> O52 | C168: =Coltura!D166 -> Pomodoro da mensa in serra | D168: 0.26 | E168: 0.1 | F168: 0.4 | G168: sì | H168: =(Standard!E168) -> 115 | I168: 299 | J168: 115 | K168: 460 | L168: bacche
A169: 166 | B169: =Coltura!C167 -> O53 | C169: =Coltura!D167 -> Porro | D169: 0.38 | E169: 0.14 | F169: 0.36 | G169: sì | H169: =(Standard!E169) -> 40 | I169: =(D169*$H169)*10 -> 152 | J169: =(E169*$H169)*10 -> 56 | K169: =(F169*$H169)*10 -> 144
A170: 167 | B170: =Coltura!C168 -> O54 | C170: =Coltura!D168 -> Prezzemolo media produzione | D170: 0.24 | E170: 0.14 | F170: 0.45 | G170: sì | H170: =(Standard!E170) -> 20 | I170: 48 | J170: 28 | K170: 90
A171: 168 | B171: =Coltura!C169 -> O55 | C171: =Coltura!D169 -> Prezzemolo alta produzione più tagli | D171: 0.24 | E171: 0.14 | F171: 0.45 | G171: =IF(AND(D171>0,E171>0,F171>0),"sì","no") -> sì | H171: =(Standard!E171) -> 43.5 | I171: 104.4 | J171: 60.9 | K171: 195.75
A172: 169 | B172: =Coltura!C170 -> O56 | C172: =Coltura!D170 -> Radicchio (cicoria a foglie colorate) media produzione | D172: 0.46 | E172: 0.3 | F172: 0.45 | G172: sì | H172: =(Standard!E172) -> 20 | I172: 92 | J172: 60 | K172: 90
A173: 170 | B173: =Coltura!C171 -> O57 | C173: =Coltura!D171 -> Radicchio (cicoria a foglie colorate) alta produzione | D173: 0.46 | E173: 0.3 | F173: 0.45 | G173: =IF(AND(D173>0,E173>0,F173>0),"sì","no") -> sì | H173: =(Standard!E173) -> 35 | I173: 161 | J173: 105 | K173: 157.5
A174: 171 | B174: =Coltura!C172 -> O58 | C174: =Coltura!D172 -> Rapa | D174: 0.31 | E174: 0.26 | F174: 1.2 | G174: sì | H174: =(Standard!E174) -> 35 | I174: =(D174*$H174)*10 -> 108.5 | J174: =(E174*$H174)*10 -> 91 | K174: =(F174*$H174)*10 -> 420 | L174: radici
A175: 172 | B175: =Coltura!C173 -> O59 | C175: =Coltura!D173 -> Ravanello | D175: 0.46 | E175: 0.19 | F175: 0.36 | G175: sì | H175: =(Standard!E175) -> 30 | I175: 138 | J175: 57 | K175: 108
A176: 173 | B176: =Coltura!C174 -> O60 | C176: =Coltura!D174 -> Rucola media produzione | D176: 0.49 | E176: 0.14 | F176: 0.53 | G176: sì | H176: =(Standard!E176) -> 18.5 | I176: 90.65 | J176: 25.9 | K176: 98.05
A177: 174 | B177: =Coltura!C175 -> O61 | C177: =Coltura!D175 -> Rucola alta produzione con più tagli | D177: 0.49 | E177: 0.14 | F177: 0.53 | G177: sì | H177: =(Standard!E177) -> 37 | I177: 181.3 | J177: 51.8 | K177: 196.1
A178: 175 | B178: =Coltura!C176 -> O62 | C178: =Coltura!D176 -> Scalogno | D178: 0.27 | E178: 0.13 | F178: 0.27 | G178: sì | H178: =(Standard!E178) -> 8 | I178: 21.6 | J178: 10.4 | K178: 21.6
A179: 176 | B179: =Coltura!C177 -> O63 | C179: =Coltura!D177 -> Sedano media produzione | D179: 0.54 | E179: 0.2 | F179: 0.75 | G179: sì | H179: =(Standard!E179) -> 50 | I179: 270 | J179: 100 | K179: 375
A180: 177 | B180: =Coltura!C178 -> O64 | C180: =Coltura!D178 -> Sedano alta produzione | D180: 0.54 | E180: 0.2 | F180: 0.75 | G180: =IF(AND(D180>0,E180>0,F180>0),"sì","no") -> sì | H180: =(Standard!E180) -> 80 | I180: 432 | J180: 160 | K180: 600
A181: 178 | B181: =Coltura!C179 -> O65 | C181: =Coltura!D179 -> Spinacio alta produzione con più tagli | D181: 0.61 | E181: 0.18 | F181: 0.7 | G181: sì | H181: =(Standard!E181) -> 27.5 | I181: 167.75 | J181: 49.5 | K181: 192.5 | P181: modificati il 20/04/2017
A182: 179 | B182: =Coltura!C180 -> O66 | C182: =Coltura!D180 -> Spinacio media produzione | D182: 0.61 | E182: 0.18 | F182: 0.7 | G182: sì | H182: =(Standard!E182) -> 20 | I182: =(D182*$H182)*10 -> 122 | J182: =(E182*$H182)*10 -> 36 | K182: =(F182*$H182)*10 -> 140 | P182: modificati il 20/04/2017
A183: 180 | B183: =Coltura!C181 -> O67 | C183: =Coltura!D181 -> Verza - cavolo da mercato media produzione | D183: 0.55 | E183: 0.2 | F183: 0.57 | G183: sì | H183: =(Standard!E183) -> 24 | I183: 132 | J183: 48 | K183: 136.8
A184: 181 | B184: =Coltura!C182 -> O68 | C184: =Coltura!D182 -> Verza - cavolo da mercato alta produzione | D184: 0.55 | E184: 0.2 | F184: 0.57 | G184: =IF(AND(D184>0,E184>0,F184>0),"sì","no") -> sì | H184: =(Standard!E184) -> 50 | I184: 275 | J184: 100 | K184: 285
A185: 182 | B185: =Coltura!C183 -> O69 | C185: =Coltura!D183 -> Verza da industria | D185: 0.41 | E185: 0.21 | F185: 0.55 | G185: sì | H185: =(Standard!E185) -> 35 | I185: 143.5 | J185: 73.5 | K185: 192.5
A186: 183 | B186: =Coltura!C184 -> O70 | C186: =Coltura!D184 -> Zucca | D186: 0.39 | E186: 0.1 | F186: 0.7 | G186: sì | H186: =(Standard!E186) -> 35 | I186: 136.5 | J186: 35 | K186: 245
A187: 184 | B187: =Coltura!C185 -> O71 | C187: =Coltura!D185 -> Zucchino da industria media produzione | D187: 0.49 | E187: 0.16 | F187: 0.85 | G187: sì | H187: =(Standard!E187) -> 50 | I187: 245 | J187: 80 | K187: 425
A188: 185 | B188: =Coltura!C186 -> O72 | C188: =Coltura!D186 -> Zucchino da industria alta produzione | D188: 0.49 | E188: 0.16 | F188: 0.85 | G188: =IF(AND(D188>0,E188>0,F188>0),"sì","no") -> sì | H188: =(Standard!E188) -> 65 | I188: 318.5 | J188: 104 | K188: 552.5
A189: 186 | B189: =Coltura!C187 -> O73 | C189: =Coltura!D187 -> Zucchino da mercato fresco media produzione | D189: 0.44 | E189: 0.16 | F189: 0.78 | G189: sì | H189: =(Standard!E189) -> 40 | I189: 176 | J189: 64 | K189: 312
A190: 187 | B190: =Coltura!C188 -> O74 | C190: =Coltura!D188 -> Zucchino da mercato fresco alta produzione | D190: 0.44 | E190: 0.16 | F190: 0.78 | G190: =IF(AND(D190>0,E190>0,F190>0),"sì","no") -> sì | H190: =(Standard!E190) -> 50 | I190: 220 | J190: 80 | K190: 390
A191: 188 | B191: =Coltura!C189 -> S1 | C191: =Coltura!D189 -> Barbabiertola da seme (fase porta seme) | D191: 0 | E191: 0 | F191: 0 | G191: no | H191: =(Standard!E191) -> nd
A192: 189 | B192: =Coltura!C190 -> S2 | C192: =Coltura!D190 -> Carota da seme (fase portaseme) | D192: 0 | E192: 0 | F192: 0 | G192: no | H192: =(Standard!E192) -> nd
A193: 190 | B193: =Coltura!C191 -> S3 | C193: =Coltura!D191 -> Carota da seme (fase vivaio) | D193: 0.41 | E193: 0.16 | F193: 0.69 | G193: sì | H193: =(Standard!E193) -> 50 | I193: 205 | J193: 80 | K193: 345
A194: 191 | B194: =Coltura!C192 -> S4 | C194: =Coltura!D192 -> Cavoli da seme | D194: 0 | E194: 0 | F194: 0 | G194: no | H194: =(Standard!E194) -> nd
A195: 192 | B195: =Coltura!C193 -> S5 | C195: =Coltura!D193 -> Cetriolo da seme | D195: 0 | E195: 0 | F195: 0 | G195: no | H195: =(Standard!E195) -> nd
A196: 193 | B196: =Coltura!C194 -> S6 | C196: =Coltura!D194 -> Cicoria da seme | D196: 0 | E196: 0 | F196: 0 | G196: no | H196: =(Standard!E196) -> nd
A197: 194 | B197: =Coltura!C195 -> S7 | C197: =Coltura!D195 -> Cipolla da seme (fase portaseme) | D197: 0 | E197: 0 | F197: 0 | G197: no | H197: =(Standard!E197) -> nd
A198: 195 | B198: =Coltura!C196 -> S8 | C198: =Coltura!D196 -> Cipolla da seme (fase vivaio) | D198: 0.31 | E198: 0.12 | F198: 0.32 | G198: sì | H198: =(Standard!E198) -> 45 | I198: 139.5 | J198: 54 | K198: 144
A199: =(A198+1) -> 196 | B199: =Coltura!C197 -> S9 | C199: =Coltura!D197 -> Coriandolo da seme | D199: 0 | E199: 0 | F199: 0 | G199: no | H199: =(Standard!E199) -> nd
A200: 197 | B200: =Coltura!C198 -> S10 | C200: =Coltura!D198 -> Erba medica da seme | D200: 2.06 | E200: 0.53 | F200: 2.03 | G200: sì | H200: =(Standard!E200) -> nd
... 31 more rows

Sheet Standard (hidden)
E1: t | F1: N | G1: P | H1: P | I1: P | J1: P | K1: K | L1: K | M1: K | N1: K | O1: t | P1: N | Q1: N | R1: N | S1: N | U1: N | V1: N | W1: N | X1: P | Y1: P | Z1: P | AA1: P | AB1: P | AC1: K | AD1: K | AE1: K | AF1: K | AG1: K | AH1: t | AI1: N | AJ1: N | AK1: N | AL1: N | AM1: N | AN1: N | AO1: N | AP1: N | AQ1: N | AR1: N | AS1: N | AT1: N | AU1: N | AV1: P | AW1: P | AX1: P | AY1: P | AZ1: P | BA1: P | BB1: P | BC1: K | BD1: K | BE1: K | BF1: K | BG1: K | BS1: N per più tagli | BW1: K per più tagli
E2: S | F2: t | G2: a | H2: n | I2: d | J2: a | K2: r | L2: d | O2: R | P2: i | Q2: d | R2: u | S2: z | T2: i | U2: o | V2: n | W2: i | AH2: I | AI2: n | AJ2: c | AK2: r | AL2: e | AM2: m | AN2: e | AO2: n | AP2: t | AQ2: i
A3: ordinato | B3: ID_Coltura | C3: coltura | D3: fase | E3: Resa_Standard | F3: N_Standard | G3: P2O5_X_dot_Normale | H3: P2O5_X_dot_Bassa | I3: P2O5_X_dot_Elevata | J3: P2O5_X_dot_Molto_Bassa | K3: K2O_X_dot_Normale-complessiva | L3: K2O_X_dot_Bassa-complessiva | M3: K2O_X_dot_Elevata-complessiva | N3: K2O_X_dot_Molto_Bassa-complessiva | O3: Resa bassa inferiore a | P3: Rid_N_Resa | Q3: Ammendante nell'anno precedente | R3: Eccessivo rigoglio vegetativo o varietà vigorose | S3: Tenore SO nel suolo elevato | T3: Tenore SO nel suolo molto elevato (>4%) | U3: Dopo medica o prato > 5 anni | V3: Dopo una leguminosa | W3: 3° ciclo in poi | X3: Rid_P2O5_Resa | Y3: Ammendante nell'anno precedente | Z3: Tenore SO nel suolo elevato | AA3: 3° ciclo in poi | AB3: Localizzato | AC3: Rid_K2O_Resa | AD3: Ammendante nell'anno precedente | AE3: Tenore SO nel suolo elevato | AF3: 3° ciclo in poi | AG3: Si prevede l'interramento della paglia | AH3: Resa alta superiore a | AI3: Inc_N_Resa | AJ3: Tenore SO nel suolo basso | AK3: Scarso vigore vegetativo o varietà poco vigorose | AL3: Inc_N_Inerbito | AM3: Lisciviazione x surplus pluviometrico | AN3: Ristoppio o interramento paglie | AO3: Clima avverso, assenza inoculo | AP3: Terreno compattato o semina su sodo | AQ3: Maggiori esigenze x ciclo o epoca | AR3: Alta densità/portinnesto debole | AS3: Prevalenza di graminacee | AT3: Produz. Sia autunnale che primaverile | AU3: N_Inc_Max | AV3: Inc_P2O5_Resa | AW3: Tenore SO nel suolo basso | AX3: Semina precoce | AY3: ristoppio o da 2 anni senza | AZ3: Calcare attivo molto elevato | BA3: Produz. Sia autunnale che primaverile | BB3: Inc_P2O5 Max | BC3: Inc_K2O_Resa | BD3: non concimato l'anno preced. o Cv tardive | BE3: Inc_K2O_SO_bassa | BF3: Produz. Sia autunnale che primaverile | BG3: CV x consercvaz. e/o a destinaz. industriale | BH3: Inc_K2O max | BI3: N_I anno allevamento | BJ3: N_II anno allevamento | BK3: Inc_N_inizio produz | BL3: P2O5_I anno allevamento | BM3: P2O5_II anno allevamento | BN3: Inc_P2O5_inizio produz | BO3: K2O_I anno allevamento | BP3: K2O_II anno allevamento | BQ3: Inc_K2O_inizio produz | BR3: più tagli | BS3: N_Standard base | BT3: nota 1 | BU3: incremento per taglio | BV3: nota 2 | BW3: K2O_X_dot_Normale-base | BX3: K2O_X_dot_Bassa-base | BY3: K2O_X_dot_Elevata-base | BZ3: K2O_X_dot_Molto_Bassa- base | CA3: incremento per taglio dot_Normale | CB3: incremento per taglio dot_Bassa | CC3: incremento per taglio dot_Elevata | CD3: incremento per taglio dot_Molto_Bassa
A4: 1 | B4: =Coltura!C2 -> A2 | C4: =Coltura!D2 -> Actinidia polpa verde frutti, legno e foglie | D4: nd | E4: 25 | F4: 120 | G4: 50 | H4: 100 | I4: 20 | J4: 100 | K4: 130 | L4: 200 | M4: 75 | N4: 200 | O4: 20 | P4: 30 | Q4: 20 | R4: 20 | S4: 20 | T4: 0 | U4: 0 | V4: 0 | W4: 0 | X4: 10 | Y4: 0 | Z4: 0 | AA4: 0 | AB4: 0 | AC4: 30 | AD4: 0 | AE4: 0 | AF4: 0 | AG4: 0 | AH4: 30 | AI4: 30 | AJ4: 20 | AK4: 20 | AL4: 0 | AM4: 15 | AN4: 0 | AO4: 0 | AP4: 0 | AQ4: 0 | AR4: 0 | AS4: 0 | AT4: 0 | AU4: 40 | AV4: 10 | AW4: 20 | AX4: 0 | AY4: 0 | AZ4: 30 | BA4: 0 | BB4: 60 | BC4: 30 | BD4: 0 | BE4: 0 | BF4: 0 | BG4: 0 | BH4: 30 | BI4: 55 | BJ4: 85 | BK4: 0 | BL4: 15 | BM4: 25 | BN4: 0 | BO4: 20 | BP4: 40 | BQ4: 0 | BR4: no
A5: 2 | B5: =Coltura!C3 -> Ab2 | C5: =Coltura!D3 -> Actinidia polpa gialla frutti, legno e foglie | D5: nd | E5: 30 | F5: 150 | G5: 60 | H5: 110 | I5: 30 | J5: 110 | K5: 145 | L5: 215 | M5: 90 | N5: 215 | O5: 25 | P5: 30 | Q5: 20 | R5: 20 | S5: 20 | T5: 0 | U5: 0 | V5: 0 | W5: 0 | X5: 10 | Y5: 0 | Z5: 0 | AA5: 0 | AB5: 0 | AC5: 30 | AD5: 0 | AE5: 0 | AF5: 0 | AG5: 0 | AH5: 35 | AI5: 30 | AJ5: 20 | AK5: 20 | AL5: 0 | AM5: 15 | AN5: 0 | AO5: 0 | AP5: 0 | AQ5: 0 | AR5: 0 | AS5: 0 | AT5: 0 | AU5: 40 | AV5: 10 | AW5: 20 | AX5: 0 | AY5: 0 | AZ5: 30 | BA5: 0 | BB5: 60 | BC5: 30 | BD5: 0 | BE5: 0 | BF5: 0 | BG5: 0 | BH5: 30 | BI5: 55 | BJ5: 85 | BK5: 0 | BL5: 15 | BM5: 25 | BN5: 0 | BO5: 20 | BP5: 40 | BQ5: 0 | BR5: no
A6: =(A5+1) -> 3 | B6: =Coltura!C4 -> A4 | C6: =Coltura!D4 -> Albicocco media produzione frutti, legno e foglie | D6: nd | E6: 13 | F6: 75 | G6: 30 | H6: 40 | I6: 15 | J6: 80 | K6: 90 | L6: 120 | M6: 35 | N6: 120 | O6: 10 | P6: 25 | Q6: 20 | R6: 20 | S6: 20 | T6: 0 | U6: 0 | V6: 0 | W6: 0 | X6: 10 | Y6: 0 | Z6: 0 | AA6: 0 | AB6: 0 | AC6: 30 | AD6: 30 | AE6: 0 | AF6: 0 | AG6: 0 | AH6: 16 | AI6: 25 | AJ6: 20 | AK6: 20 | AL6: 0 | AM6: 15 | AN6: 0 | AO6: 0 | AP6: 0 | AQ6: 0 | AR6: 0 | AS6: 0 | AT6: 0 | AU6: 50 | AV6: 10 | AW6: 10 | AX6: 0 | AY6: 0 | AZ6: 20 | BA6: 0 | BB6: 40 | BC6: 30 | BD6: 0 | BE6: 0 | BF6: 0 | BG6: 0 | BH6: 30 | BI6: 40 | BJ6: 60 | BK6: 0 | BL6: 15 | BM6: 25 | BN6: 0 | BO6: 20 | BP6: 40 | BQ6: 0 | BR6: no
A7: =(A6+1) -> 4 | B7: =Coltura!C5 -> A5 | C7: =Coltura!D5 -> Albicocco alta produzione frutti, legno e foglie | D7: nd | E7: 18 | F7: 100 | G7: 40 | H7: 50 | I7: 25 | J7: 80 | K7: 100 | L7: 130 | M7: 50 | N7: 130 | O7: 16 | P7: 25 | Q7: 20 | R7: 20 | S7: 20 | T7: 0 | U7: 0 | V7: 0 | W7: 0 | X7: 10 | Y7: 0 | Z7: 0 | AA7: 0 | AB7: 0 | AC7: 30 | AD7: 30 | AE7: 0 | AF7: 0 | AG7: 0 | AH7: 20 | AI7: 25 | AJ7: 20 | AK7: 20 | AL7: 0 | AM7: 15 | AN7: 0 | AO7: 0 | AP7: 0 | AQ7: 0 | AR7: 0 | AS7: 0 | AT7: 0 | AU7: 50 | AV7: 10 | AW7: 10 | AX7: 0 | AY7: 0 | AZ7: 20 | BA7: 0 | BB7: 40 | BC7: 30 | BD7: 0 | BE7: 0 | BF7: 0 | BG7: 0 | BH7: 30 | BI7: 40 | BJ7: 60 | BK7: 0 | BL7: 15 | BM7: 25 | BN7: 0 | BO7: 20 | BP7: 40 | BQ7: 0 | BR7: no
A8: 5 | B8: =Coltura!C6 -> A6 | C8: =Coltura!D6 -> Altri fruttiferi frutti, legno e foglie | D8: nd | E8: nd | F8: nd | AH8: nd | BB8: 0 | BH8: 0 | BR8: no
A9: 6 | B9: =Coltura!C7 -> A8 | C9: =Coltura!D7 -> Arancio frutti, legno e foglie | D9: nd | E9: 30 | F9: 120 | G9: 60 | H9: 100 | I9: 20 | J9: 100 | K9: 100 | L9: 120 | M9: 50 | N9: 120 | O9: 24 | P9: 15 | Q9: 20 | R9: 20 | S9: 0 | T9: 0 | U9: 0 | V9: 0 | W9: 0 | X9: 10 | Y9: 10 | Z9: 0 | AA9: 0 | AB9: 0 | AC9: 25 | AD9: 30 | AE9: 0 | AF9: 0 | AG9: 0 | AH9: 36 | AI9: 15 | AJ9: 20 | AK9: 20 | AL9: 0 | AM9: 15 | AN9: 0 | AO9: 0 | AP9: 0 | AQ9: 0 | AR9: 0 | AS9: 0 | AT9: 0 | AU9: 50 | AV9: 10 | AW9: 10 | AX9: 0 | AY9: 0 | AZ9: 20 | BA9: 0 | BB9: 40 | BC9: 25 | BD9: 0 | BE9: 0 | BF9: 0 | BG9: 0 | BH9: 25 | BR9: no
A10: 7 | B10: =Coltura!C8 -> A10 | C10: =Coltura!D8 -> Castagno solo frutti | D10: nd | E10: nd | F10: nd | AH10: nd | BB10: 0 | BH10: 0 | BR10: no
A11: 8 | B11: =Coltura!C9 -> A12 | C11: =Coltura!D9 -> Ciliegio frutti, legno e foglie | D11: nd | E11: 9 | F11: 70 | G11: 30 | H11: 40 | I11: 15 | J11: 60 | K11: 50 | L11: 80 | M11: 20 | N11: 80 | O11: 7 | P11: 15 | Q11: 20 | R11: 20 | S11: 20 | T11: 0 | U11: 0 | V11: 0 | W11: 0 | X11: 10 | Y11: 10 | Z11: 0 | AA11: 0 | AB11: 0 | AC11: 20 | AD11: 30 | AE11: 0 | AF11: 0 | AG11: 0 | AH11: 11 | AI11: 15 | AJ11: 20 | AK11: 20 | AL11: 0 | AM11: 15 | AN11: 0 | AO11: 0 | AP11: 0 | AQ11: 0 | AR11: 0 | AS11: 0 | AT11: 0 | AU11: 50 | AV11: 10 | AW11: 10 | AX11: 0 | AY11: 0 | AZ11: 20 | BA11: 0 | BB11: 40 | BC11: 20 | BD11: 0 | BE11: 0 | BF11: 0 | BG11: 0 | BH11: 20 | BI11: 30 | BJ11: 50 | BK11: 0 | BL11: 15 | BM11: 25 | BN11: 0 | BO11: 20 | BP11: 40 | BQ11: 0 | BR11: no
A12: 9 | B12: =Coltura!C10 -> A14 | C12: =Coltura!D10 -> Clementine frutti, legno e foglie | D12: nd | E12: 25 | F12: 140 | G12: 60 | H12: 100 | I12: 20 | J12: 100 | K12: 100 | L12: 120 | M12: 50 | N12: 120 | O12: 20 | P12: 20 | Q12: 20 | R12: 20 | S12: 0 | T12: 0 | U12: 0 | V12: 0 | W12: 0 | X12: 10 | Y12: 10 | Z12: 0 | AA12: 0 | AB12: 0 | AC12: 50 | AD12: 30 | AE12: 0 | AF12: 0 | AG12: 0 | AH12: 30 | AI12: 20 | AJ12: 20 | AK12: 20 | AL12: 0 | AM12: 15 | AN12: 0 | AO12: 0 | AP12: 0 | AQ12: 0 | AR12: 0 | AS12: 0 | AT12: 0 | AU12: 50 | AV12: 10 | AW12: 10 | AX12: 0 | AY12: 0 | AZ12: 10 | BA12: 0 | BB12: 30 | BC12: 50 | BD12: 0 | BE12: 0 | BF12: 0 | BG12: 0 | BH12: 50 | BR12: no
A13: 10 | B13: =Coltura!C11 -> A16 | C13: =Coltura!D11 -> Fico frutti, legno e foglie | D13: nd | E13: nd | F13: nd | AH13: nd | BB13: 0 | BH13: 0 | BR13: no
A14: 11 | B14: =Coltura!C12 -> A18 | C14: =Coltura!D12 -> Kaki frutti, legno e foglie | D14: nd | E14: 25 | F14: 60 | G14: 30 | H14: 60 | I14: 10 | J14: 60 | K14: 75 | L14: 100 | M14: 30 | N14: 100 | O14: 20 | P14: 30 | Q14: 20 | R14: 20 | S14: 0 | T14: 0 | U14: 0 | V14: 0 | W14: 0 | X14: 10 | Y14: 10 | Z14: 0 | AA14: 0 | AB14: 0 | AC14: 30 | AD14: 30 | AE14: 0 | AF14: 0 | AG14: 0 | AH14: 30 | AI14: 30 | AJ14: 20 | AK14: 20 | AL14: 0 | AM14: 15 | AN14: 0 | AO14: 0 | AP14: 0 | AQ14: 0 | AR14: 0 | AS14: 0 | AT14: 0 | AU14: 40 | AV14: 10 | AW14: 10 | AX14: 0 | AY14: 0 | AZ14: 0 | BA14: 0 | BB14: 20 | BC14: 30 | BD14: 0 | BE14: 0 | BF14: 0 | BG14: 0 | BH14: 30 | BI14: 25 | BJ14: 40 | BK14: 0 | BL14: 15 | BM14: 20 | BN14: 0 | BO14: 20 | BP14: 40 | BQ14: 0 | BR14: no
A15: 12 | B15: =Coltura!C13 -> A20 | C15: =Coltura!D13 -> Limone frutti, legno e foglie | D15: nd | E15: 30 | F15: 120 | G15: 60 | H15: 100 | I15: 20 | J15: 100 | K15: 100 | L15: 120 | M15: 50 | N15: 120 | O15: 24 | P15: 15 | Q15: 20 | R15: 20 | S15: 0 | T15: 0 | U15: 0 | V15: 0 | W15: 0 | X15: 10 | Y15: 10 | Z15: 0 | AA15: 0 | AB15: 0 | AC15: 25 | AD15: 30 | AE15: 0 | AF15: 0 | AG15: 0 | AH15: 36 | AI15: 15 | AJ15: 20 | AK15: 20 | AL15: 0 | AM15: 15 | AN15: 0 | AO15: 0 | AP15: 0 | AQ15: 0 | AR15: 0 | AS15: 0 | AT15: 0 | AU15: 50 | AV15: 10 | AW15: 10 | AX15: 0 | AY15: 0 | AZ15: 20 | BA15: 0 | BB15: 40 | BC15: 25 | BD15: 0 | BE15: 0 | BF15: 0 | BG15: 0 | BH15: 25 | BR15: no
A16: 13 | B16: =Coltura!C14 -> A22 | C16: =Coltura!D14 -> Mandarino frutti, legno e foglie | D16: nd | E16: 25 | F16: 140 | G16: 60 | H16: 100 | I16: 20 | J16: 100 | K16: 100 | L16: 120 | M16: 50 | N16: 120 | O16: 20 | P16: 20 | Q16: 20 | R16: 20 | S16: 0 | T16: 0 | U16: 0 | V16: 0 | W16: 0 | X16: 10 | Y16: 10 | Z16: 0 | AA16: 0 | AB16: 0 | AC16: 50 | AD16: 30 | AE16: 0 | AF16: 0 | AG16: 0 | AH16: 30 | AI16: 20 | AJ16: 20 | AK16: 20 | AL16: 0 | AM16: 15 | AN16: 0 | AO16: 0 | AP16: 0 | AQ16: 0 | AR16: 0 | AS16: 0 | AT16: 0 | AU16: 50 | AV16: 10 | AW16: 10 | AX16: 0 | AY16: 0 | AZ16: 10 | BA16: 0 | BB16: 30 | BC16: 50 | BD16: 0 | BE16: 0 | BF16: 0 | BG16: 0 | BH16: 50 | BR16: no
A17: 14 | B17: =Coltura!C15 -> A24 | C17: =Coltura!D15 -> Mandorlo frutti, legno e foglie | D17: nd | E17: nd | F17: nd | AH17: nd | BB17: 0 | BH17: 0 | BR17: no
A18: 15 | B18: =Coltura!C16 -> A26 | C18: =Coltura!D16 -> Melo frutti, legno e foglie | D18: nd | E18: 40 | F18: 80 | G18: 40 | H18: 55 | I18: 35 | J18: 55 | K18: 90 | L18: 150 | M18: 50 | N18: 150 | O18: 32 | P18: 30 | Q18: 20 | R18: 20 | S18: 20 | T18: 0 | U18: 0 | V18: 0 | W18: 0 | X18: 10 | Y18: 0 | Z18: 0 | AA18: 0 | AB18: 0 | AC18: 35 | AD18: 30 | AE18: 0 | AF18: 0 | AG18: 0 | AH18: 48 | AI18: 30 | AJ18: 20 | AK18: 20 | AL18: 0 | AM18: 15 | AN18: 0 | AO18: 0 | AP18: 0 | AQ18: 0 | AR18: 0 | AS18: 0 | AT18: 0 | AU18: 60 | AV18: 10 | AW18: 10 | AX18: 0 | AY18: 0 | AZ18: 20 | BA18: 0 | BB18: 40 | BC18: 35 | BD18: 0 | BE18: 0 | BF18: 0 | BG18: 0 | BH18: 35 | BI18: 40 | BJ18: 60 | BK18: 20 | BL18: 15 | BM18: 25 | BN18: 15 | BO18: 20 | BP18: 40 | BQ18: 50 | BR18: no
A19: 16 | B19: =Coltura!C17 -> A28 | C19: =Coltura!D17 -> Nashi frutti, legno e foglie | D19: nd | E19: nd | F19: nd | AH19: nd | BB19: 0 | BH19: 0 | BR19: no
A20: 17 | B20: =Coltura!C18 -> A30 | C20: =Coltura!D18 -> Nespolo frutti, legno e foglie | D20: nd | E20: nd | F20: nd | AH20: nd | BB20: 0 | BH20: 0 | BR20: no
A21: 18 | B21: =Coltura!C19 -> A32 | C21: =Coltura!D19 -> Nettarine frutti, legno e foglie | D21: nd | E21: 25 | F21: 100 | G21: 40 | H21: 60 | I21: 20 | J21: 100 | K21: 100 | L21: 150 | M21: 50 | N21: 150 | O21: 20 | P21: 35 | Q21: 20 | R21: 20 | S21: 0 | T21: 0 | U21: 0 | V21: 0 | W21: 0 | X21: 15 | Y21: 10 | Z21: 0 | AA21: 0 | AB21: 0 | AC21: 40 | AD21: 30 | AE21: 0 | AF21: 0 | AG21: 0 | AH21: 30 | AI21: 35 | AJ21: 20 | AK21: 20 | AL21: 0 | AM21: 15 | AN21: 0 | AO21: 0 | AP21: 0 | AQ21: 20 | AR21: 0 | AS21: 0 | AT21: 0 | AU21: 50 | AV21: 15 | AW21: 10 | AX21: 0 | AY21: 0 | AZ21: 20 | BA21: 0 | BB21: 45 | BC21: 40 | BD21: 20 | BE21: 0 | BF21: 0 | BG21: 0 | BH21: 60 | BI21: 40 | BJ21: 60 | BK21: 0 | BL21: 15 | BM21: 25 | BN21: 0 | BO21: 20 | BP21: 40 | BQ21: 0 | BR21: no
A22: 19 | B22: =Coltura!C20 -> A34 | C22: =Coltura!D20 -> Nocciolo frutti, legno e foglie | D22: nd | E22: nd | F22: nd | AH22: nd | BB22: 0 | BH22: 0 | BR22: no
A23: 20 | B23: =Coltura!C21 -> A36 | C23: =Coltura!D21 -> Noce da frutto frutti, legno e foglie | D23: nd | E23: 4 | F23: 90 | G23: 40 | H23: 60 | I23: 20 | J23: 80 | K23: 60 | L23: 100 | M23: 20 | N23: 100 | O23: 3.2 | P23: 15 | Q23: 20 | R23: 20 | S23: 20 | T23: 0 | U23: 0 | V23: 0 | W23: 0 | X23: 10 | Y23: 0 | Z23: 0 | AA23: 0 | AB23: 0 | AC23: 20 | AD23: 0 | AE23: 0 | AF23: 0 | AG23: 0 | AH23: 4.8 | AI23: 15 | AJ23: 20 | AK23: 20 | AL23: 0 | AM23: 15 | AN23: 0 | AO23: 0 | AP23: 0 | AQ23: 0 | AR23: 0 | AS23: 0 | AT23: 0 | AU23: 50 | AV23: 10 | AW23: 10 | AX23: 0 | AY23: 0 | AZ23: 20 | BA23: 0 | BB23: 40 | BC23: 20 | BD23: 0 | BE23: 0 | BF23: 0 | BG23: 0 | BH23: 20 | BI23: 30 | BJ23: 50 | BK23: 0 | BL23: 20 | BM23: 30 | BN23: 0 | BO23: 20 | BP23: 40 | BQ23: 0 | BR23: no
A24: 21 | B24: =Coltura!C22 -> A38 | C24: =Coltura!D22 -> Olivo olive, legno e foglie | D24: nd | E24: 4 | F24: 70 | G24: 40 | H24: 100 | I24: 20 | J24: 130 | K24: 60 | L24: 120 | M24: 40 | N24: 120 | O24: 3 | P24: 20 | Q24: 0 | R24: 20 | S24: 20 | T24: 0 | U24: 0 | V24: 0 | W24: 0 | X24: 10 | Y24: 0 | Z24: 0 | AA24: 0 | AB24: 0 | AC24: 20 | AD24: 30 | AE24: 0 | AF24: 0 | AG24: 0 | AH24: 5 | AI24: 20 | AJ24: 20 | AK24: 20 | AL24: 0 | AM24: 15 | AN24: 0 | AO24: 0 | AP24: 0 | AQ24: 0 | AR24: 0 | AS24: 0 | AT24: 0 | AU24: 30 | AV24: 10 | AW24: 10 | AX24: 0 | AY24: 0 | AZ24: 20 | BA24: 0 | BB24: 40 | BC24: 20 | BD24: 0 | BE24: 0 | BF24: 0 | BG24: 0 | BH24: 20 | BI24: 30 | BJ24: 50 | BK24: 0 | BL24: 15 | BM24: 25 | BN24: 0 | BO24: 20 | BP24: 40 | BQ24: 0 | BR24: no
A25: 22 | B25: =Coltura!C23 -> A40 | C25: =Coltura!D23 -> Pero media produzione frutti, legno e foglie | D25: nd | E25: 30 | F25: 90 | G25: 30 | H25: 60 | I25: 10 | J25: 60 | K25: 100 | L25: 150 | M25: 50 | N25: 150 | O25: 24 | P25: 25 | Q25: 20 | R25: 20 | S25: 20 | T25: 0 | U25: 0 | V25: 0 | W25: 0 | X25: 10 | Y25: 0 | Z25: 0 | AA25: 0 | AB25: 0 | AC25: 25 | AD25: 30 | AE25: 0 | AF25: 0 | AG25: 0 | AH25: 36 | AI25: 25 | AJ25: 20 | AK25: 20 | AL25: 0 | AM25: 15 | AN25: 0 | AO25: 0 | AP25: 0 | AQ25: 0 | AR25: 30 | AS25: 0 | AT25: 0 | AU25: 50 | AV25: 10 | AW25: 10 | AX25: 0 | AY25: 0 | AZ25: 20 | BA25: 0 | BB25: 40 | BC25: 25 | BD25: 0 | BE25: 0 | BF25: 0 | BG25: 0 | BH25: 25 | BI25: 40 | BJ25: 60 | BK25: 20 | BL25: 15 | BM25: 25 | BN25: 0 | BO25: 20 | BP25: 40 | BQ25: 20 | BR25: no
A26: 23 | B26: =Coltura!C24 -> A41 | C26: =Coltura!D24 -> Pero alta produzione frutti, legno e foglie | D26: nd | E26: 40 | F26: 120 | G26: 30 | H26: 60 | I26: 10 | J26: 60 | K26: 120 | L26: 170 | M26: 70 | N26: 170 | O26: 35 | P26: 25 | Q26: 20 | R26: 20 | S26: 20 | T26: 0 | U26: 0 | V26: 0 | W26: 0 | X26: 10 | Y26: 0 | Z26: 0 | AA26: 0 | AB26: 0 | AC26: 25 | AD26: 30 | AE26: 0 | AF26: 0 | AG26: 0 | AH26: 45 | AI26: 25 | AJ26: 20 | AK26: 20 | AL26: 0 | AM26: 15 | AN26: 0 | AO26: 0 | AP26: 0 | AQ26: 0 | AR26: 30 | AS26: 0 | AT26: 0 | AU26: 50 | AV26: 10 | AW26: 10 | AX26: 0 | AY26: 0 | AZ26: 20 | BA26: 0 | BB26: 40 | BC26: 25 | BD26: 0 | BE26: 0 | BF26: 0 | BG26: 0 | BH26: 25 | BI26: 40 | BJ26: 60 | BK26: 20 | BL26: 15 | BM26: 25 | BN26: 0 | BO26: 20 | BP26: 40 | BQ26: 20 | BR26: no
A27: 24 | B27: =Coltura!C25 -> A42 | C27: =Coltura!D25 -> Pesco frutti, legno e foglie | D27: nd | E27: 25 | F27: 100 | G27: 40 | H27: 60 | I27: 20 | J27: 100 | K27: 100 | L27: 150 | M27: 50 | N27: 150 | O27: 20 | P27: 35 | Q27: 20 | R27: 20 | S27: 20 | T27: 0 | U27: 0 | V27: 0 | W27: 0 | X27: 15 | Y27: 0 | Z27: 0 | AA27: 0 | AB27: 0 | AC27: 40 | AD27: 30 | AE27: 0 | AF27: 0 | AG27: 0 | AH27: 30 | AI27: 35 | AJ27: 20 | AK27: 20 | AL27: 0 | AM27: 15 | AN27: 0 | AO27: 0 | AP27: 0 | AQ27: 20 | AR27: 0 | AS27: 0 | AT27: 0 | AU27: 50 | AV27: 15 | AW27: 10 | AX27: 0 | AY27: 0 | AZ27: 20 | BA27: 0 | BB27: 45 | BC27: 40 | BD27: 20 | BE27: 0 | BF27: 0 | BG27: 0 | BH27: 60 | BI27: 40 | BJ27: 60 | BK27: 0 | BL27: 15 | BM27: 25 | BN27: 0 | BO27: 20 | BP27: 40 | BQ27: 0 | BR27: no
A28: 25 | B28: =Coltura!C26 -> A43 | C28: =Coltura!D26 -> Pioppo | D28: nd | E28: nd | F28: nd | AH28: nd | BB28: 0 | BH28: 0 | BR28: no
A29: 26 | B29: =Coltura!C27 -> A44 | C29: =Coltura!D27 -> Pioppo da energia | D29: nd | E29: nd | F29: nd | AH29: nd | BB29: 0 | BH29: 0 | BR29: no
A30: 27 | B30: =Coltura!C28 -> A46 | C30: =Coltura!D28 -> Susino frutti, legno e foglie | D30: nd | E30: 25 | F30: 90 | G30: 40 | H30: 60 | I30: 20 | J30: 60 | K30: 100 | L30: 150 | M30: 50 | N30: 150 | O30: 20 | P30: 25 | Q30: 20 | R30: 20 | S30: 20 | T30: 0 | U30: 0 | V30: 0 | W30: 0 | X30: 10 | Y30: 0 | Z30: 0 | AA30: 0 | AB30: 0 | AC30: 20 | AD30: 30 | AE30: 0 | AF30: 0 | AG30: 0 | AH30: 30 | AI30: 25 | AJ30: 20 | AK30: 20 | AL30: 0 | AM30: 15 | AN30: 0 | AO30: 0 | AP30: 0 | AQ30: 20 | AR30: 0 | AS30: 0 | AT30: 0 | AU30: 50 | AV30: 10 | AW30: 10 | AX30: 0 | AY30: 0 | AZ30: 20 | BA30: 0 | BB30: 40 | BC30: 20 | BD30: 0 | BE30: 0 | BF30: 0 | BG30: 0 | BH30: 20 | BI30: 40 | BJ30: 60 | BK30: 0 | BL30: 15 | BM30: 25 | BN30: 0 | BO30: 20 | BP30: 40 | BQ30: 0 | BR30: no
A31: 28 | B31: =Coltura!C29 -> A48 | C31: =Coltura!D29 -> Uva da tavola grappoli, tralci e foglie | D31: nd | E31: 25 | F31: 90 | G31: 80 | H31: 120 | I31: 40 | J31: 160 | K31: 130 | L31: 160 | M31: 60 | N31: 160 | O31: 20 | P31: 40 | Q31: 20 | R31: 20 | S31: 0 | T31: 0 | U31: 0 | V31: 0 | W31: 0 | X31: 10 | Y31: 10 | Z31: 0 | AA31: 0 | AB31: 0 | AC31: 35 | AD31: 30 | AE31: 0 | AF31: 0 | AG31: 0 | AH31: 30 | AI31: 40 | AJ31: 20 | AK31: 20 | AL31: 0 | AM31: 15 | AN31: 0 | AO31: 0 | AP31: 0 | AQ31: 0 | AR31: 0 | AS31: 0 | AT31: 0 | AU31: 50 | AV31: 10 | AW31: 10 | AX31: 0 | AY31: 0 | AZ31: 20 | BA31: 0 | BB31: 40 | BC31: 35 | BD31: 0 | BE31: 0 | BF31: 0 | BG31: 0 | BH31: 35 | BR31: no
A32: 29 | B32: =Coltura!C30 -> A50 | C32: =Coltura!D30 -> Vite per uva da vino (collina e montagna) grappoli, tralci e foglie | D32: nd | E32: 10 | F32: 50 | G32: 40 | H32: 60 | I32: 20 | J32: 100 | K32: 80 | L32: 150 | M32: 40 | N32: 150 | O32: 8 | P32: 20 | Q32: 20 | R32: 20 | S32: 20 | T32: 0 | U32: 0 | V32: 0 | W32: 0 | X32: 10 | Y32: 10 | Z32: 0 | AA32: 0 | AB32: 0 | AC32: 30 | AD32: 30 | AE32: 0 | AF32: 0 | AG32: 0 | AH32: 12 | AI32: 20 | AJ32: 20 | AK32: 20 | AL32: 0 | AM32: 15 | AN32: 0 | AO32: 0 | AP32: 0 | AQ32: 0 | AR32: 0 | AS32: 0 | AT32: 0 | AU32: 40 | AV32: 10 | AW32: 10 | AX32: 0 | AY32: 0 | AZ32: 20 | BA32: 0 | BB32: 40 | BC32: 30 | BD32: 0 | BE32: 0 | BF32: 0 | BG32: 0 | BH32: 30 | BI32: 30 | BJ32: 50 | BK32: 0 | BL32: 15 | BM32: 25 | BN32: 0 | BO32: 20 | BP32: 40 | BQ32: 0 | BR32: no
A33: 30 | B33: =Coltura!C31 -> A52 | C33: =Coltura!D31 -> Vite per uva da vino (pianura) grappoli, legno e foglie | D33: nd | E33: 20 | F33: 80 | G33: 80 | H33: 100 | I33: 40 | J33: 160 | K33: 120 | L33: 180 | M33: 70 | N33: 180 | O33: 16 | P33: 25 | Q33: 20 | R33: 20 | S33: 20 | T33: 0 | U33: 0 | V33: 0 | W33: 0 | X33: 10 | Y33: 10 | Z33: 0 | AA33: 0 | AB33: 0 | AC33: 50 | AD33: 30 | AE33: 0 | AF33: 0 | AG33: 0 | AH33: 24 | AI33: 25 | AJ33: 20 | AK33: 20 | AL33: 20 | AM33: 15 | AN33: 0 | AO33: 0 | AP33: 0 | AQ33: 20 | AR33: 0 | AS33: 0 | AT33: 0 | AU33: 30 | AV33: 10 | AW33: 10 | AX33: 0 | AY33: 0 | AZ33: 20 | BA33: 0 | BB33: 40 | BC33: 50 | BD33: 0 | BE33: 0 | BF33: 0 | BG33: 0 | BH33: 50 | BI33: 40 | BJ33: 60 | BK33: 0 | BL33: 15 | BM33: 25 | BN33: 0 | BO33: 20 | BP33: 40 | BQ33: 0 | BR33: no
A34: 31 | B34: =Coltura!C32 -> E1 | C34: =Coltura!D32 -> Altri cereali a paglia (pianta intera) | D34: nd | E34: nd | F34: nd | AH34: nd | BB34: 0 | BH34: 0 | BI34: 0 | BJ34: 0 | BL34: 0 | BM34: 0 | BO34: 0 | BP34: 0 | BR34: no
A35: 32 | B35: =Coltura!C33 -> E2 | C35: =Coltura!D33 -> Avena | D35: nd | E35: 3.2 | F35: 60 | G35: 40 | H35: 70 | I35: 0 | J35: 70 | K35: 50 | L35: 70 | M35: 0 | N35: 70 | O35: 2.5 | P35: 20 | Q35: 20 | R35: 0 | S35: 15 | T35: 0 | U35: 80 | V35: 40 | W35: 0 | X35: 12 | Y35: 0 | Z35: 0 | AA35: 0 | AB35: 0 | AC35: 20 | AD35: 0 | AE35: 0 | AF35: 0 | AG35: 0 | AH35: 4 | AI35: 20 | AJ35: 15 | AK35: 0 | AL35: 0 | AM35: 15 | AN35: 30 | AO35: 0 | AP35: 10 | AQ35: 0 | AR35: 0 | AS35: 0 | AT35: 0 | AU35: 40 | AV35: 12 | AW35: 0 | AX35: 0 | AY35: 0 | AZ35: 0 | BA35: 0 | BB35: 12 | BC35: 20 | BD35: 0 | BE35: 0 | BF35: 0 | BG35: 0 | BH35: 20 | BI35: 0 | BJ35: 0 | BL35: 0 | BM35: 0 | BO35: 0 | BP35: 0 | BR35: no
A36: 33 | B36: =Coltura!C34 -> E3 | C36: =Coltura!D34 -> Avena pianta intera | D36: nd | E36: 3.2 | F36: 60 | G36: 40 | H36: 70 | I36: 0 | J36: 70 | K36: 100 | L36: 130 | M36: 0 | N36: 130 | O36: 2.5 | P36: 20 | Q36: 20 | R36: 0 | S36: 15 | T36: 0 | U36: 80 | V36: 40 | W36: 0 | X36: 12 | Y36: 0 | Z36: 0 | AA36: 0 | AB36: 0 | AC36: 20 | AD36: 0 | AE36: 0 | AF36: 0 | AG36: 50 | AH36: 4 | AI36: 20 | AJ36: 15 | AK36: 0 | AL36: 0 | AM36: 15 | AN36: 30 | AO36: 0 | AP36: 10 | AQ36: 0 | AR36: 0 | AS36: 0 | AT36: 0 | AU36: 40 | AV36: 12 | AW36: 0 | AX36: 0 | AY36: 0 | AZ36: 0 | BA36: 0 | BB36: 12 | BC36: 20 | BD36: 0 | BE36: 0 | BF36: 0 | BG36: 0 | BH36: 20 | BI36: 0 | BJ36: 0 | BL36: 0 | BM36: 0 | BO36: 0 | BP36: 0 | BR36: no
A37: 34 | B37: =Coltura!C35 -> E4 | C37: =Coltura!D35 -> Barbababietola da zucchero (pianta intera) | D37: nd | E37: 50 | F37: 120 | G37: 50 | H37: 70 | I37: 30 | J37: 100 | K37: 120 | L37: 200 | M37: 0 | N37: 300 | O37: 40 | P37: 30 | Q37: 20 | R37: 0 | S37: 20 | T37: 0 | U37: 80 | V37: 40 | W37: 0 | X37: 20 | Y37: 20 | Z37: 0 | AA37: 0 | AB37: 0 | AC37: 25 | AD37: 20 | AE37: 0 | AF37: 0 | AG37: 0 | AH37: 60 | AI37: 30 | AJ37: 20 | AK37: 0 | AL37: 0 | AM37: 15 | AN37: 30 | AO37: 0 | AP37: 0 | AQ37: 0 | AR37: 0 | AS37: 0 | AT37: 0 | AU37: 40 | AV37: 20 | AW37: 20 | AX37: 0 | AY37: 0 | AZ37: 20 | BA37: 0 | BB37: 60 | BC37: 25 | BD37: 0 | BE37: 0 | BF37: 0 | BG37: 0 | BH37: 25 | BI37: 0 | BJ37: 0 | BL37: 0 | BM37: 0 | BO37: 0 | BP37: 0 | BR37: no
A38: 35 | B38: =Coltura!C36 -> E5 | C38: =Coltura!D36 -> Barbabietola da zucchero (radici) | D38: nd | E38: 50 | F38: 120 | G38: 50 | H38: 70 | I38: 30 | J38: 100 | K38: 120 | L38: 200 | M38: 0 | N38: 300 | O38: 40 | P38: 30 | Q38: 20 | R38: 0 | S38: 20 | T38: 0 | U38: 80 | V38: 40 | W38: 0 | X38: 20 | Y38: 20 | Z38: 0 | AA38: 0 | AB38: 0 | AC38: 25 | AD38: 20 | AE38: 0 | AF38: 0 | AG38: 0 | AH38: 60 | AI38: 30 | AJ38: 20 | AK38: 0 | AL38: 0 | AM38: 15 | AN38: 30 | AO38: 0 | AP38: 0 | AQ38: 0 | AR38: 0 | AS38: 0 | AT38: 0 | AU38: 40 | AV38: 20 | AW38: 20 | AX38: 0 | AY38: 0 | AZ38: 20 | BA38: 0 | BB38: 60 | BC38: 25 | BD38: 0 | BE38: 0 | BF38: 0 | BG38: 0 | BH38: 25 | BI38: 0 | BJ38: 0 | BL38: 0 | BM38: 0 | BO38: 0 | BP38: 0 | BR38: no
A39: 36 | B39: =Coltura!C37 -> E6 | C39: =Coltura!D37 -> Canapa da fibra | D39: nd | E39: nd | F39: nd | AH39: nd | BB39: 0 | BH39: 0 | BI39: 0 | BJ39: 0 | BL39: 0 | BM39: 0 | BO39: 0 | BP39: 0 | BR39: no
A40: 37 | B40: =Coltura!C38 -> E7 | C40: =Coltura!D38 -> Cavolo abissino | D40: nd | E40: nd | F40: nd | AH40: nd | BB40: 0 | BH40: 0 | BI40: 0 | BJ40: 0 | BL40: 0 | BM40: 0 | BO40: 0 | BP40: 0 | BR40: no
A41: 38 | B41: =Coltura!C39 -> E8 | C41: =Coltura!D39 -> Cece | D41: nd | E41: 2 | F41: 40 | G41: 70 | H41: 90 | I41: 50 | J41: 90 | K41: 80 | L41: 120 | M41: 40 | N41: 120 | O41: 1.6 | P41: 10 | Q41: 20 | R41: 0 | S41: 15 | T41: 0 | U41: 15 | V41: 15 | W41: 0 | X41: 20 | Y41: 10 | Z41: 0 | AA41: 0 | AB41: 0 | AC41: 20 | AD41: 20 | AE41: 0 | AF41: 0 | AG41: 0 | AH41: 2.4 | AI41: 10 | AJ41: 20 | AK41: 0 | AL41: 0 | AM41: 15 | AN41: 30 | AO41: 20 | AP41: 0 | AQ41: 0 | AR41: 0 | AS41: 0 | AT41: 0 | AU41: 30 | AV41: 20 | AW41: 10 | AX41: 0 | AY41: 0 | AZ41: 0 | BA41: 0 | BB41: 30 | BC41: 20 | BD41: 0 | BE41: 0 | BF41: 0 | BG41: 0 | BH41: 20 | BI41: 0 | BJ41: 0 | BL41: 0 | BM41: 0 | BO41: 0 | BP41: 0 | BR41: no
A42: 39 | B42: =Coltura!C40 -> E9 | C42: =Coltura!D40 -> Colza | D42: nd | E42: 2.5 | F42: 135 | G42: 50 | H42: 70 | I42: 0 | J42: 70 | K42: 40 | L42: 80 | M42: 0 | N42: 80 | O42: 1.7 | P42: 20 | Q42: 20 | R42: 0 | S42: 15 | T42: 0 | U42: 80 | V42: 40 | W42: 0 | X42: 10 | Y42: 0 | Z42: 0 | AA42: 0 | AB42: 0 | AC42: 20 | AD42: 0 | AE42: 0 | AF42: 0 | AG42: 0 | AH42: 3.2 | AI42: 20 | AJ42: 15 | AK42: 0 | AL42: 0 | AM42: 20 | AN42: 30 | AO42: 0 | AP42: 0 | AQ42: 0 | AR42: 0 | AS42: 0 | AT42: 0 | AU42: 40 | AV42: 10 | AW42: 0 | AX42: 0 | AY42: 0 | AZ42: 0 | BA42: 0 | BB42: 10 | BC42: 20 | BD42: 0 | BE42: 0 | BF42: 0 | BG42: 0 | BH42: 20 | BI42: 0 | BJ42: 0 | BL42: 0 | BM42: 0 | BO42: 0 | BP42: 0 | BR42: no
A43: 40 | B43: =Coltura!C41 -> E10 | C43: =Coltura!D41 -> Colza pianta intera | D43: nd | E43: 2.5 | F43: 135 | G43: 50 | H43: 70 | I43: 0 | J43: 70 | K43: 40 | L43: 80 | M43: 0 | N43: 80 | O43: 1.7 | P43: 20 | Q43: 20 | R43: 0 | S43: 15 | T43: 0 | U43: 80 | V43: 40 | W43: 0 | X43: 10 | Y43: 0 | Z43: 0 | AA43: 0 | AB43: 0 | AC43: 20 | AD43: 0 | AE43: 0 | AF43: 0 | AG43: 0 | AH43: 3.2 | AI43: 20 | AJ43: 15 | AK43: 0 | AL43: 0 | AM43: 20 | AN43: 30 | AO43: 0 | AP43: 0 | AQ43: 0 | AR43: 0 | AS43: 0 | AT43: 0 | AU43: 40 | AV43: 10 | AW43: 0 | AX43: 0 | AY43: 0 | AZ43: 0 | BA43: 0 | BB43: 10 | BC43: 20 | BD43: 0 | BE43: 0 | BF43: 0 | BG43: 0 | BH43: 20 | BI43: 0 | BJ43: 0 | BL43: 0 | BM43: 0 | BO43: 0 | BP43: 0 | BR43: no
A44: 41 | B44: =Coltura!C42 -> E11 | C44: =Coltura!D42 -> Farro | D44: nd | E44: 2 | F44: 40 | G44: 30 | H44: 50 | I44: 0 | J44: 50 | K44: 40 | L44: 60 | M44: 0 | N44: 60 | O44: 1.5 | P44: 15 | Q44: 20 | R44: 0 | S44: 15 | T44: 15 | U44: 40 | V44: 40 | W44: 0 | X44: 10 | Y44: 0 | Z44: 0 | AA44: 0 | AB44: 0 | AC44: 20 | AD44: 0 | AE44: 0 | AF44: 0 | AG44: 0 | AH44: 2.5 | AI44: 15 | AJ44: 15 | AK44: 0 | AL44: 0 | AM44: 15 | AN44: 30 | AO44: 0 | AP44: 10 | AQ44: 0 | AR44: 0 | AS44: 0 | AT44: 0 | AU44: 30 | AV44: 10 | AW44: 0 | AX44: 0 | AY44: 30 | AZ44: 0 | BA44: 0 | BB44: 40 | BC44: 20 | BD44: 0 | BE44: 0 | BF44: 0 | BG44: 0 | BH44: 20 | BI44: 0 | BJ44: 0 | BL44: 0 | BM44: 0 | BO44: 0 | BP44: 0 | BR44: no
A45: 42 | B45: =Coltura!C43 -> E12 | C45: =Coltura!D43 -> Farro (pianta intera) | D45: nd | E45: 2 | F45: 40 | G45: 30 | H45: 50 | I45: 0 | J45: 50 | K45: 40 | L45: 60 | M45: 0 | N45: 60 | O45: 1.5 | P45: 15 | Q45: 20 | R45: 0 | S45: 15 | T45: 0 | U45: 80 | V45: 40 | W45: 0 | X45: 10 | Y45: 0 | Z45: 0 | AA45: 0 | AB45: 0 | AC45: 20 | AD45: 0 | AE45: 0 | AF45: 0 | AG45: 0 | AH45: 2.5 | AI45: 15 | AJ45: 15 | AK45: 0 | AL45: 0 | AM45: 15 | AN45: 30 | AO45: 0 | AP45: 10 | AQ45: 0 | AR45: 0 | AS45: 0 | AT45: 0 | AU45: 30 | AV45: 10 | AW45: 0 | AX45: 0 | AY45: 30 | AZ45: 0 | BA45: 0 | BB45: 40 | BC45: 20 | BD45: 0 | BE45: 0 | BF45: 0 | BG45: 0 | BH45: 20 | BI45: 0 | BJ45: 0 | BL45: 0 | BM45: 0 | BO45: 0 | BP45: 0 | BR45: no
A46: 43 | B46: =Coltura!C44 -> E13 | C46: =Coltura!D44 -> Favino da granella | D46: nd | E46: 2 | F46: 0 | G46: 70 | H46: 90 | I46: 50 | J46: 90 | K46: 90 | L46: 120 | M46: 40 | N46: 120 | O46: 1.6 | P46: 10 | Q46: 20 | R46: 0 | S46: 15 | T46: 0 | U46: 40 | V46: 15 | W46: 0 | X46: 20 | Y46: 10 | Z46: 0 | AA46: 0 | AB46: 0 | AC46: 20 | AD46: 30 | AE46: 0 | AF46: 0 | AG46: 0 | AH46: 2.4 | AI46: 10 | AJ46: 20 | AK46: 0 | AL46: 0 | AM46: 15 | AN46: 30 | AO46: 0 | AP46: 0 | AQ46: 0 | AR46: 0 | AS46: 0 | AT46: 0 | AU46: 40 | AV46: 20 | AW46: 10 | AX46: 0 | AY46: 0 | AZ46: 0 | BA46: 0 | BB46: 30 | BC46: 20 | BD46: 0 | BE46: 0 | BF46: 0 | BG46: 0 | BH46: 20 | BI46: 0 | BJ46: 0 | BL46: 0 | BM46: 0 | BO46: 0 | BP46: 0 | BR46: no
A47: 44 | B47: =Coltura!C45 -> E14 | C47: =Coltura!D45 -> Girasole (acheni) | D47: nd | E47: 3 | F47: 90 | G47: 40 | H47: 60 | I47: 0 | J47: 60 | K47: 120 | L47: 180 | M47: 0 | N47: 180 | O47: 2.4 | P47: 25 | Q47: 20 | R47: 0 | S47: 15 | T47: 0 | U47: 80 | V47: 40 | W47: 0 | X47: 10 | Y47: 0 | Z47: 0 | AA47: 0 | AB47: 0 | AC47: 20 | AD47: 0 | AE47: 0 | AF47: 0 | AG47: 0 | AH47: 3.6 | AI47: 25 | AJ47: 15 | AK47: 0 | AL47: 0 | AM47: 15 | AN47: 30 | AO47: 0 | AP47: 10 | AQ47: 0 | AR47: 0 | AS47: 0 | AT47: 0 | AU47: 40 | AV47: 10 | AW47: 0 | AX47: 0 | AY47: 0 | AZ47: 0 | BA47: 0 | BB47: 10 | BC47: 20 | BD47: 0 | BE47: 0 | BF47: 0 | BG47: 0 | BH47: 20 | BI47: 0 | BJ47: 0 | BL47: 0 | BM47: 0 | BO47: 0 | BP47: 0 | BR47: no
A48: 45 | B48: =Coltura!C46 -> E15 | C48: =Coltura!D46 -> Girasole (pianta intera) | D48: nd | E48: 3 | F48: 90 | G48: 40 | H48: 60 | I48: 0 | J48: 60 | K48: 120 | L48: 180 | M48: 0 | N48: 180 | O48: 2.4 | P48: 25 | Q48: 20 | R48: 0 | S48: 15 | T48: 0 | U48: 80 | V48: 40 | W48: 0 | X48: 10 | Y48: 0 | Z48: 0 | AA48: 0 | AB48: 0 | AC48: 20 | AD48: 0 | AE48: 0 | AF48: 0 | AG48: 0 | AH48: 3.6 | AI48: 25 | AJ48: 15 | AK48: 0 | AL48: 0 | AM48: 15 | AN48: 30 | AO48: 0 | AP48: 10 | AQ48: 0 | AR48: 0 | AS48: 0 | AT48: 0 | AU48: 40 | AV48: 10 | AW48: 0 | AX48: 0 | AY48: 0 | AZ48: 0 | BA48: 0 | BB48: 10 | BC48: 20 | BD48: 0 | BE48: 0 | BF48: 0 | BG48: 0 | BH48: 20 | BI48: 0 | BJ48: 0 | BL48: 0 | BM48: 0 | BO48: 0 | BP48: 0 | BR48: no
A49: 46 | B49: =Coltura!C47 -> E16 | C49: =Coltura!D47 -> Grano duro (granella) | D49: nd | E49: 6 | F49: 160 | G49: 60 | H49: 80 | I49: 0 | J49: 80 | K49: 120 | L49: 150 | M49: 0 | N49: 150 | O49: 5 | P49: 25 | Q49: 20 | R49: 0 | S49: 15 | T49: 0 | U49: 80 | V49: 40 | W49: 0 | X49: 15 | Y49: 0 | Z49: 0 | AA49: 0 | AB49: 0 | AC49: 10 | AD49: 0 | AE49: 0 | AF49: 0 | AG49: 0 | AH49: 7 | AI49: 25 | AJ49: 15 | AK49: 0 | AL49: 0 | AM49: 15 | AN49: 30 | AO49: 0 | AP49: 10 | AQ49: 0 | AR49: 0 | AS49: 0 | AT49: 0 | AU49: 40 | AV49: 15 | AW49: 0 | AX49: 0 | AY49: 0 | AZ49: 0 | BA49: 0 | BB49: 15 | BC49: 10 | BD49: 0 | BE49: 0 | BF49: 0 | BG49: 0 | BH49: 10 | BI49: 0 | BJ49: 0 | BL49: 0 | BM49: 0 | BO49: 0 | BP49: 0 | BR49: no
A50: 47 | B50: =Coltura!C48 -> E17 | C50: =Coltura!D48 -> Grano duro (pianta intera) | D50: nd | E50: 6 | F50: 160 | G50: 60 | H50: 80 | I50: 0 | J50: 80 | K50: 120 | L50: 150 | M50: 0 | N50: 150 | O50: 5 | P50: 25 | Q50: 20 | R50: 0 | S50: 15 | T50: 0 | U50: 80 | V50: 40 | W50: 0 | X50: 15 | Y50: 0 | Z50: 0 | AA50: 0 | AB50: 0 | AC50: 10 | AD50: 0 | AE50: 0 | AF50: 0 | AG50: 0 | AH50: 7 | AI50: 25 | AJ50: 15 | AK50: 0 | AL50: 0 | AM50: 15 | AN50: 30 | AO50: 0 | AP50: 10 | AQ50: 0 | AR50: 0 | AS50: 0 | AT50: 0 | AU50: 40 | AV50: 15 | AW50: 0 | AX50: 0 | AY50: 0 | AZ50: 0 | BA50: 0 | BB50: 15 | BC50: 10 | BD50: 0 | BE50: 0 | BF50: 0 | BG50: 0 | BH50: 10 | BI50: 0 | BJ50: 0 | BL50: 0 | BM50: 0 | BO50: 0 | BP50: 0 | BR50: no
A51: 48 | B51: =Coltura!C49 -> E18 | C51: =Coltura!D49 -> Grano tenero FP/FPS (granella) | D51: nd | E51: 6 | F51: 155 | G51: 60 | H51: 80 | I51: 0 | J51: 80 | K51: 120 | L51: 150 | M51: 0 | N51: 150 | O51: 5 | P51: 30 | Q51: 20 | R51: 0 | S51: 15 | T51: 0 | U51: 80 | V51: 40 | W51: 0 | X51: 15 | Y51: 0 | Z51: 0 | AA51: 0 | AB51: 0 | AC51: 20 | AD51: 0 | AE51: 0 | AF51: 0 | AG51: 60 | AH51: 7 | AI51: 30 | AJ51: 15 | AK51: 0 | AL51: 0 | AM51: 15 | AN51: 30 | AO51: 0 | AP51: 10 | AQ51: 0 | AR51: 0 | AS51: 0 | AT51: 0 | AU51: 40 | AV51: 15 | AW51: 0 | AX51: 0 | AY51: 30 | AZ51: 0 | BA51: 0 | BB51: 45 | BC51: 20 | BD51: 0 | BE51: 0 | BF51: 0 | BG51: 0 | BH51: 20 | BI51: 0 | BJ51: 0 | BL51: 0 | BM51: 0 | BO51: 0 | BP51: 0 | BR51: no
A52: 49 | B52: =Coltura!C50 -> E19 | C52: =Coltura!D50 -> Grano tenero FP/FPS (pianta intera) | D52: nd | E52: 6 | F52: 155 | G52: 60 | H52: 80 | I52: 0 | J52: 80 | K52: 120 | L52: 150 | M52: 0 | N52: 150 | O52: 5 | P52: 30 | Q52: 20 | R52: 0 | S52: 15 | T52: 0 | U52: 80 | V52: 40 | W52: 0 | X52: 15 | Y52: 0 | Z52: 0 | AA52: 0 | AB52: 0 | AC52: 20 | AD52: 0 | AE52: 0 | AF52: 0 | AG52: 60 | AH52: 7 | AI52: 30 | AJ52: 15 | AK52: 0 | AL52: 0 | AM52: 15 | AN52: 30 | AO52: 0 | AP52: 10 | AQ52: 0 | AR52: 0 | AS52: 0 | AT52: 0 | AU52: 40 | AV52: 15 | AW52: 0 | AX52: 0 | AY52: 30 | AZ52: 0 | BA52: 0 | BB52: 45 | BC52: 20 | BD52: 0 | BE52: 0 | BF52: 0 | BG52: 0 | BH52: 20 | BI52: 0 | BJ52: 0 | BL52: 0 | BM52: 0 | BO52: 0 | BP52: 0 | BR52: no
A53: 50 | B53: =Coltura!C51 -> E20 | C53: =Coltura!D51 -> Grano tenero biscottiero (granella) | D53: nd | E53: 6 | F53: 140 | G53: 60 | H53: 80 | I53: 0 | J53: 80 | K53: 120 | L53: 150 | M53: 0 | N53: 150 | O53: 5 | P53: 30 | Q53: 20 | R53: 0 | S53: 15 | T53: 0 | U53: 80 | V53: 40 | W53: 0 | X53: 15 | Y53: 0 | Z53: 0 | AA53: 0 | AB53: 0 | AC53: 20 | AD53: 0 | AE53: 0 | AF53: 0 | AG53: 60 | AH53: 7 | AI53: 30 | AJ53: 15 | AK53: 0 | AL53: 0 | AM53: 15 | AN53: 30 | AO53: 0 | AP53: 10 | AQ53: 0 | AR53: 0 | AS53: 0 | AT53: 0 | AU53: 40 | AV53: 15 | AW53: 0 | AX53: 0 | AY53: 30 | AZ53: 0 | BA53: 0 | BB53: 45 | BC53: 20 | BD53: 0 | BE53: 0 | BF53: 0 | BG53: 0 | BH53: 20 | BI53: 0 | BJ53: 0 | BL53: 0 | BM53: 0 | BO53: 0 | BP53: 0 | BR53: no
A54: 51 | B54: =Coltura!C52 -> E21 | C54: =Coltura!D52 -> Grano tenero biscottiero pianta intera | D54: nd | E54: 6 | F54: 140 | G54: 60 | H54: 80 | I54: 0 | J54: 80 | K54: 120 | L54: 150 | M54: 0 | N54: 150 | O54: 5 | P54: 30 | Q54: 20 | R54: 0 | S54: 15 | T54: 0 | U54: 80 | V54: 40 | W54: 0 | X54: 15 | Y54: 0 | Z54: 0 | AA54: 0 | AB54: 0 | AC54: 20 | AD54: 0 | AE54: 0 | AF54: 0 | AG54: 60 | AH54: 7 | AI54: 30 | AJ54: 15 | AK54: 0 | AL54: 0 | AM54: 15 | AN54: 30 | AO54: 0 | AP54: 10 | AQ54: 0 | AR54: 0 | AS54: 0 | AT54: 0 | AU54: 40 | AV54: 15 | AW54: 0 | AX54: 0 | AY54: 30 | AZ54: 0 | BA54: 0 | BB54: 45 | BC54: 20 | BD54: 0 | BE54: 0 | BF54: 0 | BG54: 0 | BH54: 20 | BI54: 0 | BJ54: 0 | BL54: 0 | BM54: 0 | BO54: 0 | BP54: 0 | BR54: no
A55: 52 | B55: =Coltura!C53 -> E22 | C55: =Coltura!D53 -> Grano tenero FF (granella) | D55: nd | E55: 6 | F55: 160 | G55: 60 | H55: 80 | I55: 0 | J55: 80 | K55: 120 | L55: 150 | M55: 0 | N55: 150 | O55: 5 | P55: 30 | Q55: 20 | R55: 0 | S55: 15 | T55: 0 | U55: 80 | V55: 40 | W55: 0 | X55: 15 | Y55: 0 | Z55: 0 | AA55: 0 | AB55: 0 | AC55: 20 | AD55: 0 | AE55: 0 | AF55: 0 | AG55: 60 | AH55: 7 | AI55: 30 | AJ55: 15 | AK55: 0 | AL55: 0 | AM55: 15 | AN55: 30 | AO55: 0 | AP55: 10 | AQ55: 0 | AR55: 0 | AS55: 0 | AT55: 0 | AU55: 40 | AV55: 15 | AW55: 0 | AX55: 0 | AY55: 30 | AZ55: 0 | BA55: 0 | BB55: 45 | BC55: 20 | BD55: 0 | BE55: 0 | BF55: 0 | BG55: 0 | BH55: 20 | BI55: 0 | BJ55: 0 | BL55: 0 | BM55: 0 | BO55: 0 | BP55: 0 | BR55: no
A56: 53 | B56: =Coltura!C54 -> E23 | C56: =Coltura!D54 -> Grano tenero FF (pianta intera) | D56: nd | E56: 6 | F56: 160 | G56: 60 | H56: 80 | I56: 0 | J56: 80 | K56: 120 | L56: 150 | M56: 0 | N56: 150 | O56: 5 | P56: 30 | Q56: 20 | R56: 0 | S56: 15 | T56: 0 | U56: 80 | V56: 40 | W56: 0 | X56: 15 | Y56: 0 | Z56: 0 | AA56: 0 | AB56: 0 | AC56: 20 | AD56: 0 | AE56: 0 | AF56: 0 | AG56: 60 | AH56: 7 | AI56: 30 | AJ56: 15 | AK56: 0 | AL56: 0 | AM56: 15 | AN56: 30 | AO56: 0 | AP56: 10 | AQ56: 0 | AR56: 0 | AS56: 0 | AT56: 0 | AU56: 40 | AV56: 15 | AW56: 0 | AX56: 0 | AY56: 30 | AZ56: 0 | BA56: 0 | BB56: 45 | BC56: 20 | BD56: 0 | BE56: 0 | BF56: 0 | BG56: 0 | BH56: 20 | BI56: 0 | BJ56: 0 | BL56: 0 | BM56: 0 | BO56: 0 | BP56: 0 | BR56: no
A57: 54 | B57: =Coltura!C55 -> E24 | C57: =Coltura!D55 -> Lenticchia | D57: nd | E57: nd | F57: nd | AH57: nd | BB57: 0 | BH57: 0 | BI57: 0 | BJ57: 0 | BL57: 0 | BM57: 0 | BO57: 0 | BP57: 0 | BR57: no
A58: 55 | B58: =Coltura!C56 -> E25 | C58: =Coltura!D56 -> Lino fibra | D58: nd | E58: nd | F58: nd | AH58: nd | BB58: 0 | BH58: 0 | BI58: 0 | BJ58: 0 | BL58: 0 | BM58: 0 | BO58: 0 | BP58: 0 | BR58: no
A59: 56 | B59: =Coltura!C57 -> E26 | C59: =Coltura!D57 -> Lino granella | D59: nd | E59: nd | F59: nd | AH59: nd | BB59: 0 | BH59: 0 | BI59: 0 | BJ59: 0 | BL59: 0 | BM59: 0 | BO59: 0 | BP59: 0 | BR59: no
A60: 57 | B60: =Coltura!C58 -> E27 | C60: =Coltura!D58 -> Lupino | D60: nd | E60: nd | F60: nd | AH60: nd | BB60: 0 | BH60: 0 | BI60: 0 | BJ60: 0 | BL60: 0 | BM60: 0 | BO60: 0 | BP60: 0 | BR60: no
A61: 58 | B61: =Coltura!C59 -> E28 | C61: =Coltura!D59 -> Mais da granella 300-400 (granella) | D61: nd | E61: 7 | F61: 150 | G61: 50 | H61: 70 | I61: 0 | J61: 70 | K61: 40 | L61: 80 | M61: 0 | N61: 80 | O61: 5.5 | P61: 30 | Q61: 20 | R61: 0 | S61: 15 | T61: 0 | U61: 80 | V61: 40 | W61: 0 | X61: 15 | Y61: 0 | Z61: 0 | AA61: 0 | AB61: 0 | AC61: 20 | AD61: 0 | AE61: 0 | AF61: 0 | AG61: 0 | AH61: 8.5 | AI61: 30 | AJ61: 15 | AK61: 0 | AL61: 0 | AM61: 15 | AN61: 30 | AO61: 0 | AP61: 10 | AQ61: 0 | AR61: 0 | AS61: 0 | AT61: 0 | AU61: 70 | AV61: 15 | AW61: 0 | AX61: 0 | AY61: 0 | AZ61: 0 | BA61: 0 | BB61: 15 | BC61: 20 | BD61: 0 | BE61: 0 | BF61: 0 | BG61: 0 | BH61: 20 | BI61: 0 | BJ61: 0 | BL61: 0 | BM61: 0 | BO61: 0 | BP61: 0 | BR61: no
A62: 59 | B62: =Coltura!C60 -> E29 | C62: =Coltura!D60 -> Mais da granella 300-400 (pianta intera) | D62: nd | E62: 7 | F62: 150 | G62: 50 | H62: 70 | I62: 0 | J62: 70 | K62: 90 | L62: 130 | M62: 0 | N62: 130 | O62: 5.5 | P62: 30 | Q62: 20 | R62: 0 | S62: 15 | T62: 0 | U62: 80 | V62: 40 | W62: 0 | X62: 15 | Y62: 0 | Z62: 0 | AA62: 0 | AB62: 0 | AC62: 20 | AD62: 0 | AE62: 0 | AF62: 0 | AG62: 0 | AH62: 8.5 | AI62: 30 | AJ62: 15 | AK62: 0 | AL62: 0 | AM62: 15 | AN62: 30 | AO62: 0 | AP62: 10 | AQ62: 0 | AR62: 0 | AS62: 0 | AT62: 0 | AU62: 70 | AV62: 15 | AW62: 0 | AX62: 0 | AY62: 0 | AZ62: 0 | BA62: 0 | BB62: 15 | BC62: 20 | BD62: 0 | BE62: 0 | BF62: 0 | BG62: 0 | BH62: 20 | BI62: 0 | BJ62: 0 | BL62: 0 | BM62: 0 | BO62: 0 | BP62: 0 | BR62: no
A63: 60 | B63: =Coltura!C61 -> E30 | C63: =Coltura!D61 -> Mais da granella 500-700 (granella) | D63: nd | E63: 12 | F63: 240 | G63: 80 | H63: 100 | I63: 0 | J63: 100 | K63: 75 | L63: 150 | M63: 0 | N63: 150 | O63: 10 | P63: 30 | Q63: 20 | R63: 0 | S63: 15 | T63: 0 | U63: 80 | V63: 40 | W63: 0 | X63: 15 | Y63: 0 | Z63: 0 | AA63: 0 | AB63: 0 | AC63: 20 | AD63: 0 | AE63: 0 | AF63: 0 | AG63: 0 | AH63: 14 | AI63: 30 | AJ63: 15 | AK63: 0 | AL63: 0 | AM63: 15 | AN63: 30 | AO63: 0 | AP63: 10 | AQ63: 0 | AR63: 0 | AS63: 0 | AT63: 0 | AU63: 70 | AV63: 15 | AW63: 0 | AX63: 0 | AY63: 0 | AZ63: 0 | BA63: 0 | BB63: 15 | BC63: 20 | BD63: 0 | BE63: 0 | BF63: 0 | BG63: 0 | BH63: 20 | BI63: 0 | BJ63: 0 | BL63: 0 | BM63: 0 | BO63: 0 | BP63: 0 | BR63: no
A64: 61 | B64: =Coltura!C62 -> E31 | C64: =Coltura!D62 -> Mais da granella 500-700 (pianta intera) | D64: nd | E64: 12 | F64: 240 | G64: 80 | H64: 100 | I64: 0 | J64: 100 | K64: 155 | L64: 230 | M64: 80 | N64: 230 | O64: 10 | P64: 30 | Q64: 20 | R64: 0 | S64: 15 | T64: 0 | U64: 80 | V64: 40 | W64: 0 | X64: 15 | Y64: 0 | Z64: 0 | AA64: 0 | AB64: 0 | AC64: 20 | AD64: 0 | AE64: 0 | AF64: 0 | AG64: 0 | AH64: 14 | AI64: 30 | AJ64: 15 | AK64: 0 | AL64: 0 | AM64: 15 | AN64: 30 | AO64: 0 | AP64: 10 | AQ64: 0 | AR64: 0 | AS64: 0 | AT64: 0 | AU64: 70 | AV64: 15 | AW64: 0 | AX64: 0 | AY64: 0 | AZ64: 0 | BA64: 0 | BB64: 15 | BC64: 20 | BD64: 0 | BE64: 0 | BF64: 0 | BG64: 0 | BH64: 20 | BI64: 0 | BJ64: 0 | BL64: 0 | BM64: 0 | BO64: 0 | BP64: 0 | BR64: no
A65: 62 | B65: =Coltura!C63 -> E32 | C65: =Coltura!D63 -> Mais dolce (spighe) | D65: nd | E65: 16 | F65: 170 | G65: 150 | H65: 220 | I65: 50 | J65: 220 | K65: 140 | L65: 210 | M65: 60 | N65: 210 | O65: 13 | P65: 20 | Q65: 20 | R65: 0 | S65: 15 | T65: 0 | U65: 15 | V65: 15 | W65: 0 | X65: 30 | Y65: 10 | Z65: 0 | AA65: 0 | AB65: 0 | AC65: 30 | AD65: 30 | AE65: 0 | AF65: 0 | AG65: 0 | AH65: 19 | AI65: 20 | AJ65: 20 | AK65: 0 | AL65: 0 | AM65: 15 | AN65: 30 | AO65: 20 | AP65: 20 | AQ65: 30 | AR65: 0 | AS65: 0 | AT65: 0 | AU65: 40 | AV65: 30 | AW65: 10 | AX65: 10 | AY65: 0 | AZ65: 0 | BA65: 0 | BB65: 50 | BC65: 30 | BD65: 0 | BE65: 0 | BF65: 0 | BG65: 0 | BH65: 30 | BI65: 0 | BJ65: 0 | BL65: 0 | BM65: 0 | BO65: 0 | BP65: 0 | BR65: no
A66: 63 | B66: =Coltura!C64 -> E33 | C66: =Coltura!D64 -> Mais dolce (pianta intera) | D66: nd | E66: 16 | F66: 170 | G66: 150 | H66: 220 | I66: 50 | J66: 220 | K66: 140 | L66: 210 | M66: 60 | N66: 210 | O66: 13 | P66: 20 | Q66: 20 | R66: 0 | S66: 15 | T66: 0 | U66: 15 | V66: 15 | W66: 0 | X66: 30 | Y66: 10 | Z66: 0 | AA66: 0 | AB66: 0 | AC66: 30 | AD66: 30 | AE66: 0 | AF66: 0 | AG66: 0 | AH66: 19 | AI66: 20 | AJ66: 20 | AK66: 0 | AL66: 0 | AM66: 15 | AN66: 30 | AO66: 20 | AP66: 20 | AQ66: 30 | AR66: 0 | AS66: 0 | AT66: 0 | AU66: 40 | AV66: 30 | AW66: 10 | AX66: 10 | AY66: 0 | AZ66: 0 | BA66: 0 | BB66: 50 | BC66: 30 | BD66: 0 | BE66: 0 | BF66: 0 | BG66: 0 | BH66: 30 | BI66: 0 | BJ66: 0 | BL66: 0 | BM66: 0 | BO66: 0 | BP66: 0 | BR66: no
A67: 64 | B67: =Coltura!C65 -> E34 | C67: =Coltura!D65 -> Mais trinciato classe 500 | D67: nd | E67: 45 | F67: 150 | G67: 50 | H67: 70 | I67: 0 | J67: 70 | K67: 90 | L67: 130 | M67: 50 | N67: 130 | O67: 36 | P67: 30 | Q67: 20 | R67: 0 | S67: 15 | T67: 0 | U67: 80 | V67: 40 | W67: 0 | X67: 15 | Y67: 0 | Z67: 0 | AA67: 0 | AB67: 0 | AC67: 20 | AD67: 0 | AE67: 0 | AF67: 0 | AG67: 0 | AH67: 54 | AI67: 30 | AJ67: 15 | AK67: 0 | AL67: 0 | AM67: 15 | AN67: 30 | AO67: 0 | AP67: 10 | AQ67: 0 | AR67: 0 | AS67: 0 | AT67: 0 | AU67: 50 | AV67: 15 | AW67: 0 | AX67: 0 | AY67: 0 | AZ67: 0 | BA67: 0 | BB67: 15 | BC67: 20 | BD67: 0 | BE67: 0 | BF67: 0 | BG67: 0 | BH67: 20 | BI67: 0 | BJ67: 0 | BL67: 0 | BM67: 0 | BO67: 0 | BP67: 0 | BR67: no
A68: 65 | B68: =Coltura!C66 -> E35 | C68: =Coltura!D66 -> Mais trinciato classe 700 | D68: nd | E68: 65 | F68: 240 | G68: 80 | H68: 100 | I68: 0 | J68: 100 | K68: 155 | L68: 230 | M68: 80 | N68: 230 | O68: 55 | P68: 30 | Q68: 20 | R68: 0 | S68: 15 | T68: 0 | U68: 80 | V68: 40 | W68: 0 | X68: 15 | Y68: 0 | Z68: 0 | AA68: 0 | AB68: 0 | AC68: 20 | AD68: 0 | AE68: 0 | AF68: 0 | AG68: 0 | AH68: 75 | AI68: 30 | AJ68: 15 | AK68: 0 | AL68: 0 | AM68: 15 | AN68: 30 | AO68: 0 | AP68: 10 | AQ68: 0 | AR68: 0 | AS68: 0 | AT68: 0 | AU68: 70 | AV68: 15 | AW68: 0 | AX68: 0 | AY68: 0 | AZ68: 0 | BA68: 0 | BB68: 15 | BC68: 20 | BD68: 0 | BE68: 0 | BF68: 0 | BG68: 0 | BH68: 20 | BI68: 0 | BJ68: 0 | BL68: 0 | BM68: 0 | BO68: 0 | BP68: 0 | BR68: no
A69: 66 | B69: =Coltura!C67 -> E36 | C69: =Coltura!D67 -> Orzo (granella) | D69: nd | E69: 6.5 | F69: 125 | G69: 60 | H69: 90 | I69: 0 | J69: 90 | K69: 120 | L69: 150 | M69: 0 | N69: 150 | O69: 5.2 | P69: 25 | Q69: 20 | R69: 0 | S69: 15 | T69: 0 | U69: 80 | V69: 40 | W69: 0 | X69: 15 | Y69: 0 | Z69: 0 | AA69: 0 | AB69: 0 | AC69: 20 | AD69: 0 | AE69: 0 | AF69: 0 | AG69: 0 | AH69: 7.8 | AI69: 25 | AJ69: 15 | AK69: 0 | AL69: 0 | AM69: 15 | AN69: 30 | AO69: 0 | AP69: 10 | AQ69: 0 | AR69: 0 | AS69: 0 | AT69: 0 | AU69: 40 | AV69: 15 | AW69: 0 | AX69: 0 | AY69: 0 | AZ69: 0 | BA69: 0 | BB69: 15 | BC69: 20 | BD69: 0 | BE69: 0 | BF69: 0 | BG69: 0 | BH69: 20 | BI69: 0 | BJ69: 0 | BL69: 0 | BM69: 0 | BO69: 0 | BP69: 0 | BR69: no
A70: 67 | B70: =Coltura!C68 -> E37 | C70: =Coltura!D68 -> Orzo (pianta intera) | D70: nd | E70: 6.5 | F70: 125 | G70: 60 | H70: 90 | I70: 0 | J70: 90 | K70: 120 | L70: 150 | M70: 0 | N70: 150 | O70: 5.2 | P70: 25 | Q70: 20 | R70: 0 | S70: 15 | T70: 0 | U70: 80 | V70: 40 | W70: 0 | X70: 15 | Y70: 0 | Z70: 0 | AA70: 0 | AB70: 0 | AC70: 20 | AD70: 0 | AE70: 0 | AF70: 0 | AG70: 0 | AH70: 7.8 | AI70: 25 | AJ70: 15 | AK70: 0 | AL70: 0 | AM70: 15 | AN70: 30 | AO70: 0 | AP70: 10 | AQ70: 0 | AR70: 0 | AS70: 0 | AT70: 0 | AU70: 40 | AV70: 15 | AW70: 0 | AX70: 0 | AY70: 0 | AZ70: 0 | BA70: 0 | BB70: 15 | BC70: 20 | BD70: 0 | BE70: 0 | BF70: 0 | BG70: 0 | BH70: 20 | BI70: 0 | BJ70: 0 | BL70: 0 | BM70: 0 | BO70: 0 | BP70: 0 | BR70: no
A71: =(A70+1) -> 68 | B71: =Coltura!C69 -> E38 | C71: =Coltura!D69 -> Panico | D71: nd | E71: nd | F71: nd | AH71: nd | BB71: 0 | BH71: 0 | BI71: 0 | BJ71: 0 | BL71: 0 | BM71: 0 | BO71: 0 | BP71: 0 | BR71: no
A72: 69 | B72: =Coltura!C70 -> E39 | C72: =Coltura!D70 -> Pisello proteico | D72: nd | E72: 5 | F72: 40 | G72: 50 | H72: 100 | I72: 0 | J72: 100 | K72: 50 | L72: 150 | M72: 0 | N72: 150 | O72: 4 | P72: 10 | Q72: 15 | R72: 10 | S72: 15 | T72: 0 | U72: 10 | V72: 10 | W72: 0 | X72: 10 | Y72: 0 | Z72: 0 | AA72: 0 | AB72: 0 | AC72: 20 | AD72: 0 | AE72: 0 | AF72: 0 | AG72: 0 | AH72: 6 | AI72: 10 | AJ72: 10 | AK72: 10 | AL72: 0 | AM72: 15 | AN72: 0 | AO72: 0 | AP72: 0 | AQ72: 0 | AR72: 0 | AS72: 0 | AT72: 0 | AU72: 20 | AV72: 10 | AW72: 10 | AX72: 0 | AY72: 0 | AZ72: 0 | BA72: 0 | BB72: 20 | BC72: 20 | BD72: 0 | BE72: 0 | BF72: 0 | BG72: 0 | BH72: 20 | BI72: 0 | BJ72: 0 | BL72: 0 | BM72: 0 | BO72: 0 | BP72: 0 | BR72: no
A73: 70 | B73: =Coltura!C71 -> E40 | C73: =Coltura!D71 -> Pisello proteico + residui | D73: nd | E73: 5 | F73: 40 | G73: 50 | H73: 100 | I73: 0 | J73: 100 | K73: 50 | L73: 150 | M73: 0 | N73: 150 | O73: 4 | P73: 10 | Q73: 15 | R73: 10 | S73: 15 | T73: 0 | U73: 10 | V73: 10 | W73: 0 | X73: 10 | Y73: 0 | Z73: 0 | AA73: 0 | AB73: 0 | AC73: 20 | AD73: 0 | AE73: 0 | AF73: 0 | AG73: 0 | AH73: 6 | AI73: 10 | AJ73: 10 | AK73: 10 | AL73: 0 | AM73: 15 | AN73: 0 | AO73: 0 | AP73: 0 | AQ73: 0 | AR73: 0 | AS73: 0 | AT73: 0 | AU73: 20 | AV73: 10 | AW73: 10 | AX73: 0 | AY73: 0 | AZ73: 0 | BA73: 0 | BB73: 20 | BC73: 20 | BD73: 0 | BE73: 0 | BF73: 0 | BG73: 0 | BH73: 20 | BI73: 0 | BJ73: 0 | BL73: 0 | BM73: 0 | BO73: 0 | BP73: 0 | BR73: no
A74: 71 | B74: =Coltura!C72 -> E41 | C74: =Coltura!D72 -> Rafano (da sovescio) | D74: nd | E74: nd | F74: nd | AH74: nd | BB74: 0 | BH74: 0 | BI74: 0 | BJ74: 0 | BL74: 0 | BM74: 0 | BO74: 0 | BP74: 0 | BR74: no
A75: 72 | B75: =Coltura!C73 -> E42 | C75: =Coltura!D73 -> Riso (granella) | D75: nd | E75: 7 | F75: 110 | G75: 50 | H75: 100 | I75: 0 | J75: 100 | K75: 60 | L75: 90 | M75: 0 | N75: 90 | O75: 5.6 | P75: 25 | Q75: 20 | R75: 0 | S75: 15 | T75: 15 | U75: 0 | V75: 0 | W75: 0 | X75: 15 | Y75: 0 | Z75: 0 | AA75: 0 | AB75: 0 | AC75: 25 | AD75: 0 | AE75: 0 | AF75: 0 | AG75: 0 | AH75: 8.4 | AI75: 25 | AJ75: 15 | AK75: 0 | AL75: 0 | AM75: 15 | AN75: 0 | AO75: 0 | AP75: 0 | AQ75: 0 | AR75: 0 | AS75: 0 | AT75: 0 | AU75: 40 | AV75: 15 | AW75: 0 | AX75: 0 | AY75: 0 | AZ75: 0 | BA75: 0 | BB75: 15 | BC75: 25 | BD75: 0 | BE75: 0 | BF75: 0 | BG75: 0 | BH75: 25 | BI75: 0 | BJ75: 0 | BL75: 0 | BM75: 0 | BO75: 0 | BP75: 0 | BR75: no
A76: 73 | B76: =Coltura!C74 -> E43 | C76: =Coltura!D74 -> Riso (granella+paglia) | D76: nd | E76: 7 | F76: 110 | G76: 50 | H76: 100 | I76: 0 | J76: 100 | K76: 120 | L76: 180 | M76: 0 | N76: 180 | O76: 5.6 | P76: 25 | Q76: 20 | R76: 0 | S76: 15 | T76: 15 | U76: 0 | V76: 0 | W76: 0 | X76: 15 | Y76: 0 | Z76: 0 | AA76: 0 | AB76: 0 | AC76: 25 | AD76: 0 | AE76: 0 | AF76: 0 | AG76: 0 | AH76: 8.4 | AI76: 25 | AJ76: 15 | AK76: 0 | AL76: 0 | AM76: 15 | AN76: 0 | AO76: 0 | AP76: 0 | AQ76: 0 | AR76: 0 | AS76: 0 | AT76: 0 | AU76: 40 | AV76: 15 | AW76: 0 | AX76: 0 | AY76: 0 | AZ76: 0 | BA76: 0 | BB76: 15 | BC76: 25 | BD76: 0 | BE76: 0 | BF76: 0 | BG76: 0 | BH76: 25 | BI76: 0 | BJ76: 0 | BL76: 0 | BM76: 0 | BO76: 0 | BP76: 0 | BR76: no
A77: 74 | B77: =Coltura!C75 -> E44 | C77: =Coltura!D75 -> Segale (granella) | D77: nd | E77: 4 | F77: 100 | G77: 50 | H77: 100 | I77: 0 | J77: 100 | K77: 50 | L77: 100 | M77: 0 | N77: 100 | O77: 3 | P77: 30 | Q77: 20 | R77: 0 | S77: 15 | T77: 15 | U77: 80 | V77: 40 | W77: 0 | X77: 12 | Y77: 0 | Z77: 0 | AA77: 0 | AB77: 0 | AC77: 30 | AD77: 0 | AE77: 0 | AF77: 0 | AG77: 0 | AH77: 5 | AI77: 30 | AJ77: 15 | AK77: 0 | AL77: 0 | AM77: 15 | AN77: 30 | AO77: 0 | AP77: 10 | AQ77: 0 | AR77: 0 | AS77: 0 | AT77: 0 | AU77: 50 | AV77: 12 | AW77: 0 | AX77: 0 | AY77: 0 | AZ77: 0 | BA77: 0 | BB77: 12 | BC77: 30 | BD77: 0 | BE77: 0 | BF77: 0 | BG77: 0 | BH77: 30 | BI77: 0 | BJ77: 0 | BL77: 0 | BM77: 0 | BO77: 0 | BP77: 0 | BR77: no
A78: 75 | B78: =Coltura!C76 -> E45 | C78: =Coltura!D76 -> Segale pianta intera | D78: nd | E78: 4 | F78: 100 | G78: 50 | H78: 100 | I78: 0 | J78: 100 | K78: 100 | L78: 150 | M78: 0 | N78: 150 | O78: 3 | P78: 30 | Q78: 20 | R78: 0 | S78: 15 | T78: 15 | U78: 80 | V78: 40 | W78: 0 | X78: 12 | Y78: 0 | Z78: 0 | AA78: 0 | AB78: 0 | AC78: 30 | AD78: 0 | AE78: 0 | AF78: 0 | AG78: 0 | AH78: 5 | AI78: 30 | AJ78: 15 | AK78: 0 | AL78: 0 | AM78: 15 | AN78: 30 | AO78: 0 | AP78: 10 | AQ78: 0 | AR78: 0 | AS78: 0 | AT78: 0 | AU78: 50 | AV78: 12 | AW78: 0 | AX78: 0 | AY78: 0 | AZ78: 0 | BA78: 0 | BB78: 12 | BC78: 30 | BD78: 0 | BE78: 0 | BF78: 0 | BG78: 0 | BH78: 30 | BI78: 0 | BJ78: 0 | BL78: 0 | BM78: 0 | BO78: 0 | BP78: 0 | BR78: no
A79: 76 | B79: =Coltura!C77 -> E46 | C79: =Coltura!D77 -> Senape indiana | D79: nd | E79: nd | F79: nd | AH79: nd | BB79: 0 | BH79: 0 | BI79: 0 | BJ79: 0 | BL79: 0 | BM79: 0 | BO79: 0 | BP79: 0 | BR79: no
A80: 77 | B80: =Coltura!C78 -> E47 | C80: =Coltura!D78 -> Soia (granella) | D80: nd | E80: 3.5 | F80: 0 | G80: 50 | H80: 100 | I80: 0 | J80: 100 | K80: 80 | L80: 120 | M80: 0 | N80: 120 | O80: 2.8 | P80: 0 | Q80: 0 | R80: 0 | S80: 0 | T80: 0 | U80: 0 | V80: 0 | W80: 0 | X80: 10 | Y80: 0 | Z80: 0 | AA80: 0 | AB80: 0 | AC80: 20 | AD80: 0 | AE80: 0 | AF80: 0 | AG80: 0 | AH80: 4.2 | AI80: 0 | AJ80: 0 | AK80: 0 | AL80: 0 | AM80: 0 | AN80: 0 | AO80: 120 | AP80: 0 | AQ80: 0 | AR80: 0 | AS80: 0 | AT80: 0 | AU80: 120 | AV80: 10 | AW80: 0 | AX80: 0 | AY80: 0 | AZ80: 0 | BA80: 0 | BB80: 10 | BC80: 20 | BD80: 0 | BE80: 0 | BF80: 0 | BG80: 0 | BH80: 20 | BI80: 0 | BJ80: 0 | BL80: 0 | BM80: 0 | BO80: 0 | BP80: 0 | BR80: no
A81: 78 | B81: =Coltura!C79 -> E48 | C81: =Coltura!D79 -> Soia (pianta intera) | D81: nd | E81: 3.5 | F81: 0 | G81: 50 | H81: 100 | I81: 0 | J81: 100 | K81: 80 | L81: 120 | M81: 0 | N81: 120 | O81: 2.8 | P81: 0 | Q81: 0 | R81: 0 | S81: 0 | T81: 0 | U81: 0 | V81: 0 | W81: 0 | X81: 10 | Y81: 0 | Z81: 0 | AA81: 0 | AB81: 0 | AC81: 20 | AD81: 0 | AE81: 0 | AF81: 0 | AG81: 0 | AH81: 4.2 | AI81: 0 | AJ81: 0 | AK81: 0 | AL81: 0 | AM81: 0 | AN81: 0 | AO81: 120 | AP81: 0 | AQ81: 0 | AR81: 0 | AS81: 0 | AT81: 0 | AU81: 120 | AV81: 10 | AW81: 0 | AX81: 0 | AY81: 0 | AZ81: 0 | BA81: 0 | BB81: 10 | BC81: 20 | BD81: 0 | BE81: 0 | BF81: 0 | BG81: 0 | BH81: 20 | BI81: 0 | BJ81: 0 | BL81: 0 | BM81: 0 | BO81: 0 | BP81: 0 | BR81: no
A82: 79 | B82: =Coltura!C80 -> E49 | C82: =Coltura!D80 -> Sorgo da foraggio | D82: nd | E82: nd | F82: nd | Q82: 20 | AH82: nd | BB82: 0 | BH82: 0 | BI82: 0 | BJ82: 0 | BL82: 0 | BM82: 0 | BO82: 0 | BP82: 0 | BR82: no
A83: 80 | B83: =Coltura!C81 -> E50 | C83: =Coltura!D81 -> Sorgo da granella (solo granella) | D83: nd | E83: 7.5 | F83: 160 | G83: 50 | H83: 80 | I83: 0 | J83: 80 | K83: 50 | L83: 100 | M83: 0 | N83: 100 | O83: 6 | P83: 25 | Q83: 20 | R83: 0 | S83: 15 | T83: 0 | U83: 80 | V83: 40 | W83: 0 | X83: 15 | Y83: 0 | Z83: 0 | AA83: 0 | AB83: 0 | AC83: 10 | AD83: 0 | AE83: 0 | AF83: 0 | AG83: 0 | AH83: 9 | AI83: 25 | AJ83: 15 | AK83: 0 | AL83: 0 | AM83: 15 | AN83: 30 | AO83: 0 | AP83: 10 | AQ83: 0 | AR83: 0 | AS83: 0 | AT83: 0 | AU83: 30 | AV83: 15 | AW83: 0 | AX83: 0 | AY83: 0 | AZ83: 0 | BA83: 0 | BB83: 15 | BC83: 10 | BD83: 0 | BE83: 0 | BF83: 0 | BG83: 0 | BH83: 10 | BI83: 0 | BJ83: 0 | BL83: 0 | BM83: 0 | BO83: 0 | BP83: 0 | BR83: no
A84: 81 | B84: =Coltura!C82 -> E51 | C84: =Coltura!D82 -> Sorgo da granella (pianta intera) | D84: nd | E84: 7.5 | F84: 160 | G84: 50 | H84: 80 | I84: 0 | J84: 80 | K84: 50 | L84: 100 | M84: 0 | N84: 100 | O84: 6 | P84: 25 | Q84: 20 | R84: 0 | S84: 15 | T84: 0 | U84: 80 | V84: 40 | W84: 0 | X84: 15 | Y84: 0 | Z84: 0 | AA84: 0 | AB84: 0 | AC84: 10 | AD84: 0 | AE84: 0 | AF84: 0 | AG84: 0 | AH84: 9 | AI84: 25 | AJ84: 15 | AK84: 0 | AL84: 0 | AM84: 15 | AN84: 30 | AO84: 0 | AP84: 10 | AQ84: 0 | AR84: 0 | AS84: 0 | AT84: 0 | AU84: 30 | AV84: 15 | AW84: 0 | AX84: 0 | AY84: 0 | AZ84: 0 | BA84: 0 | BB84: 15 | BC84: 10 | BD84: 0 | BE84: 0 | BF84: 0 | BG84: 0 | BH84: 10 | BI84: 0 | BJ84: 0 | BL84: 0 | BM84: 0 | BO84: 0 | BP84: 0 | BR84: no
A85: 82 | B85: =Coltura!C83 -> E52 | C85: =Coltura!D83 -> Tabacco Bright | D85: nd | E85: nd | F85: nd | AH85: nd | BB85: 0 | BH85: 0 | BI85: 0 | BJ85: 0 | BL85: 0 | BM85: 0 | BO85: 0 | BP85: 0 | BR85: no
A86: 83 | B86: =Coltura!C84 -> E53 | C86: =Coltura!D84 -> Tabacco Bright pianta intera | D86: nd | E86: nd | F86: nd | AH86: nd | BB86: 0 | BH86: 0 | BI86: 0 | BJ86: 0 | BL86: 0 | BM86: 0 | BO86: 0 | BP86: 0 | BR86: no
A87: 84 | B87: =Coltura!C85 -> E54 | C87: =Coltura!D85 -> Tabacco Burley | D87: nd | E87: nd | F87: nd | AH87: nd | BB87: 0 | BH87: 0 | BI87: 0 | BJ87: 0 | BL87: 0 | BM87: 0 | BO87: 0 | BP87: 0 | BR87: no
A88: 85 | B88: =Coltura!C86 -> E55 | C88: =Coltura!D86 -> Tabacco Burley pianta intera | D88: nd | E88: nd | F88: nd | AH88: nd | BB88: 0 | BH88: 0 | BI88: 0 | BJ88: 0 | BL88: 0 | BM88: 0 | BO88: 0 | BP88: 0 | BR88: no
A89: 86 | B89: =Coltura!C87 -> E56 | C89: =Coltura!D87 -> Triticale | D89: nd | E89: 7.5 | F89: 140 | G89: 50 | H89: 100 | I89: 0 | J89: 100 | K89: 75 | L89: 125 | M89: 0 | N89: 125 | O89: 6.5 | P89: 30 | Q89: 20 | R89: 0 | S89: 15 | T89: 15 | U89: 80 | V89: 40 | W89: 0 | X89: 12 | Y89: 0 | Z89: 0 | AA89: 0 | AB89: 0 | AC89: 30 | AD89: 0 | AE89: 0 | AF89: 0 | AG89: 0 | AH89: 8.5 | AI89: 30 | AJ89: 15 | AK89: 0 | AL89: 0 | AM89: 15 | AN89: 30 | AO89: 0 | AP89: 10 | AQ89: 0 | AR89: 0 | AS89: 0 | AT89: 0 | AU89: 50 | AV89: 12 | AW89: 0 | AX89: 0 | AY89: 0 | AZ89: 0 | BA89: 0 | BB89: 12 | BC89: 30 | BD89: 0 | BE89: 0 | BF89: 0 | BG89: 0 | BH89: 30 | BI89: 0 | BJ89: 0 | BL89: 0 | BM89: 0 | BO89: 0 | BP89: 0 | BR89: no
A90: 87 | B90: =Coltura!C88 -> E57 | C90: =Coltura!D88 -> Triticale pianta intera | D90: nd | E90: 7.5 | F90: 140 | G90: 50 | H90: 100 | I90: 0 | J90: 100 | K90: 125 | L90: 175 | M90: 0 | N90: 175 | O90: 6.5 | P90: 30 | Q90: 20 | R90: 0 | S90: 15 | T90: 15 | U90: 80 | V90: 40 | W90: 0 | X90: 12 | Y90: 0 | Z90: 0 | AA90: 0 | AB90: 0 | AC90: 30 | AD90: 0 | AE90: 0 | AF90: 0 | AG90: 0 | AH90: 8.5 | AI90: 30 | AJ90: 15 | AK90: 0 | AL90: 0 | AM90: 15 | AN90: 30 | AO90: 0 | AP90: 10 | AQ90: 0 | AR90: 0 | AS90: 0 | AT90: 0 | AU90: 50 | AV90: 12 | AW90: 0 | AX90: 0 | AY90: 0 | AZ90: 0 | BA90: 0 | BB90: 12 | BC90: 30 | BD90: 0 | BE90: 0 | BF90: 0 | BG90: 0 | BH90: 30 | BI90: 0 | BJ90: 0 | BL90: 0 | BM90: 0 | BO90: 0 | BP90: 0 | BR90: no
A91: 88 | B91: =Coltura!C89 -> F1 | C91: =Coltura!D89 -> Avena insilata | D91: nd | E91: nd | F91: nd | AH91: nd | BB91: 0 | BH91: 0 | BI91: 0 | BJ91: 0 | BL91: 0 | BM91: 0 | BO91: 0 | BP91: 0 | BR91: no
A92: 89 | B92: =Coltura!C90 -> F2 | C92: =Coltura!D90 -> Colza insilato | D92: nd | E92: nd | F92: nd | AH92: nd | BB92: 0 | BH92: 0 | BI92: 0 | BJ92: 0 | BL92: 0 | BM92: 0 | BO92: 0 | BP92: 0 | BR92: no
A93: 90 | B93: =Coltura!C91 -> F3 | C93: =Coltura!D91 -> Erba mazzolina | D93: nd | E93: 12.5 | F93: 200 | G93: 75 | H93: 100 | I93: 0 | J93: 100 | K93: 150 | L93: 200 | M93: 0 | N93: 200 | O93: 11 | P93: 40 | Q93: 20 | R93: 0 | S93: 15 | T93: 0 | U93: 0 | V93: 0 | W93: 0 | X93: 15 | Y93: 0 | Z93: 0 | AA93: 0 | AB93: 0 | AC93: 50 | AD93: 0 | AE93: 0 | AF93: 0 | AG93: 0 | AH93: 15 | AI93: 40 | AJ93: 15 | AK93: 0 | AL93: 0 | AM93: 20 | AN93: 0 | AO93: 0 | AP93: 10 | AQ93: 0 | AR93: 0 | AS93: 0 | AT93: 0 | AU93: 50 | AV93: 15 | AW93: 0 | AX93: 0 | AY93: 0 | AZ93: 0 | BA93: 0 | BB93: 15 | BC93: 50 | BD93: 0 | BE93: 0 | BF93: 0 | BG93: 0 | BH93: 50 | BI93: 0 | BJ93: 0 | BL93: 0 | BM93: 0 | BO93: 0 | BP93: 0 | BR93: no
A94: 91 | B94: =Coltura!C92 -> F4 | C94: =Coltura!D92 -> Erba medica | D94: nd | E94: 12.5 | F94: 0 | G94: 60 | H94: 100 | I94: 0 | J94: 100 | K94: 150 | L94: 200 | M94: 0 | N94: 200 | O94: 11 | P94: 0 | Q94: 0 | R94: 0 | S94: 0 | T94: 0 | U94: 0 | V94: 0 | W94: 0 | X94: 15 | Y94: 0 | Z94: 0 | AA94: 0 | AB94: 0 | AC94: 50 | AD94: 0 | AE94: 0 | AF94: 0 | AG94: 0 | AH94: 15 | AI94: 0 | AJ94: 0 | AK94: 0 | AL94: 0 | AM94: 0 | AN94: 0 | AO94: 0 | AP94: 0 | AQ94: 0 | AR94: 0 | AS94: 100 | AT94: 0 | AU94: 100 | AV94: 15 | AW94: 0 | AX94: 0 | AY94: 0 | AZ94: 0 | BA94: 0 | BB94: 15 | BC94: 50 | BD94: 0 | BE94: 0 | BF94: 0 | BG94: 0 | BH94: 50 | BI94: 0 | BJ94: 0 | BL94: 0 | BM94: 0 | BO94: 0 | BP94: 0 | BR94: no
A95: 92 | B95: =Coltura!C93 -> F5 | C95: =Coltura!D93 -> Erbai aut prim. Di cer. O cruc. | D95: nd | E95: nd | F95: nd | AH95: nd | BB95: 0 | BH95: 0 | BI95: 0 | BJ95: 0 | BL95: 0 | BM95: 0 | BO95: 0 | BP95: 0 | BR95: no
A96: 93 | B96: =Coltura!C94 -> F6 | C96: =Coltura!D94 -> Erbai aut prim. Di leguminose | D96: nd | E96: nd | F96: nd | AH96: nd | BB96: 0 | BH96: 0 | BI96: 0 | BJ96: 0 | BL96: 0 | BM96: 0 | BO96: 0 | BP96: 0 | BR96: no
A97: 94 | B97: =Coltura!C95 -> F7 | C97: =Coltura!D95 -> Erbai biennali o Prati avv. di Graminacee | D97: nd | E97: nd | F97: nd | AH97: nd | BB97: 0 | BH97: 0 | BI97: 0 | BJ97: 0 | BL97: 0 | BM97: 0 | BO97: 0 | BP97: 0 | BR97: no
A98: 95 | B98: =Coltura!C96 -> F8 | C98: =Coltura!D96 -> Erbai biennali misti o Prati avv. Polifita | D98: nd | E98: nd | F98: nd | AH98: nd | BB98: 0 | BH98: 0 | BI98: 0 | BJ98: 0 | BL98: 0 | BM98: 0 | BO98: 0 | BP98: 0 | BR98: no
A99: 96 | B99: =Coltura!C97 -> F9 | C99: =Coltura!D97 -> Farro insilato | D99: nd | E99: nd | F99: nd | AH99: nd | BB99: 0 | BH99: 0 | BI99: 0 | BJ99: 0 | BL99: 0 | BM99: 0 | BO99: 0 | BP99: 0 | BR99: no
A100: 97 | B100: =Coltura!C98 -> F10 | C100: =Coltura!D98 -> Festuca arundinacea | D100: nd | E100: 12.5 | F100: 200 | G100: 75 | H100: 100 | I100: 0 | J100: 100 | K100: 150 | L100: 200 | M100: 0 | N100: 200 | O100: 11 | P100: 40 | Q100: 20 | R100: 0 | S100: 15 | T100: 0 | U100: 0 | V100: 0 | W100: 0 | X100: 15 | Y100: 0 | Z100: 0 | AA100: 0 | AB100: 0 | AC100: 50 | AD100: 0 | AE100: 0 | AF100: 0 | AG100: 0 | AH100: 15 | AI100: 40 | AJ100: 15 | AK100: 0 | AL100: 0 | AM100: 20 | AN100: 0 | AO100: 0 | AP100: 10 | AQ100: 0 | AR100: 0 | AS100: 0 | AT100: 0 | AU100: 50 | AV100: 15 | AW100: 0 | AX100: 0 | AY100: 0 | AZ100: 0 | BA100: 0 | BB100: 15 | BC100: 50 | BD100: 0 | BE100: 0 | BF100: 0 | BG100: 0 | BH100: 50 | BI100: 0 | BJ100: 0 | BL100: 0 | BM100: 0 | BO100: 0 | BP100: 0 | BR100: no
A101: 98 | B101: =Coltura!C99 -> F11 | C101: =Coltura!D99 -> Fleolo (coda di topo) | D101: nd | E101: nd | F101: nd | AH101: nd | BB101: 0 | BH101: 0 | BI101: 0 | BJ101: 0 | BL101: 0 | BM101: 0 | BO101: 0 | BP101: 0 | BR101: no
A102: 99 | B102: =Coltura!C100 -> F12 | C102: =Coltura!D100 -> Grano duro insilato | D102: nd | E102: nd | F102: nd | AH102: nd | BB102: 0 | BH102: 0 | BI102: 0 | BJ102: 0 | BL102: 0 | BM102: 0 | BO102: 0 | BP102: 0 | BR102: no
A103: 100 | B103: =Coltura!C101 -> F13 | C103: =Coltura!D101 -> Grano tenero insilato | D103: nd | E103: nd | F103: nd | AH103: nd | BB103: 0 | BH103: 0 | BI103: 0 | BJ103: 0 | BL103: 0 | BM103: 0 | BO103: 0 | BP103: 0 | BR103: no
A104: 101 | B104: =Coltura!C102 -> F14 | C104: =Coltura!D102 -> Loglio da insilare | D104: nd | E104: nd | F104: nd | AH104: nd | BB104: 0 | BH104: 0 | BI104: 0 | BJ104: 0 | BL104: 0 | BM104: 0 | BO104: 0 | BP104: 0 | BR104: no
A105: 102 | B105: =Coltura!C103 -> F15 | C105: =Coltura!D103 -> Loiessa | D105: nd | E105: nd | F105: nd | AH105: nd | BB105: 0 | BH105: 0 | BI105: 0 | BJ105: 0 | BL105: 0 | BM105: 0 | BO105: 0 | BP105: 0 | BR105: no
A106: 103 | B106: =Coltura!C104 -> F16 | C106: =Coltura!D104 -> Loietto perenne | D106: nd | E106: nd | F106: nd | AH106: nd | BB106: 0 | BH106: 0 | BI106: 0 | BJ106: 0 | BL106: 0 | BM106: 0 | BO106: 0 | BP106: 0 | BR106: no
A107: 104 | B107: =Coltura!C105 -> F17 | C107: =Coltura!D105 -> Orzo insilato | D107: nd | E107: nd | F107: nd | AH107: nd | BB107: 0 | BH107: 0 | BI107: 0 | BJ107: 0 | BL107: 0 | BM107: 0 | BO107: 0 | BP107: 0 | BR107: no
A108: 105 | B108: =Coltura!C106 -> F18 | C108: =Coltura!D106 -> Prati di graminacee | D108: nd | E108: nd | F108: nd | AH108: nd | BB108: 0 | BH108: 0 | BI108: 0 | BJ108: 0 | BL108: 0 | BM108: 0 | BO108: 0 | BP108: 0 | BR108: no
A109: 106 | B109: =Coltura!C107 -> F19 | C109: =Coltura!D107 -> Prati di trifoglio | D109: nd | E109: nd | F109: nd | AH109: nd | BB109: 0 | BH109: 0 | BI109: 0 | BJ109: 0 | BL109: 0 | BM109: 0 | BO109: 0 | BP109: 0 | BR109: no
A110: 107 | B110: =Coltura!C108 -> F20 | C110: =Coltura!D108 -> Prati pascoli in collina | D110: nd | E110: nd | F110: nd | AH110: nd | BB110: 0 | BH110: 0 | BI110: 0 | BJ110: 0 | BL110: 0 | BM110: 0 | BO110: 0 | BP110: 0 | BR110: no
A111: 108 | B111: =Coltura!C109 -> F21 | C111: =Coltura!D109 -> Prati polifiti >50% leguminose | D111: nd | E111: nd | F111: nd | AH111: nd | BB111: 0 | BH111: 0 | BI111: 0 | BJ111: 0 | BL111: 0 | BM111: 0 | BO111: 0 | BP111: 0 | BR111: no
A112: 109 | B112: =Coltura!C110 -> F22 | C112: =Coltura!D110 -> Prati polifiti | D112: nd | E112: 8.5 | F112: 155 | G112: 50 | H112: 100 | I112: 0 | J112: 100 | K112: 150 | L112: 200 | M112: 0 | N112: 200 | O112: 7 | P112: 30 | Q112: 20 | R112: 0 | S112: 15 | T112: 0 | U112: 0 | V112: 0 | W112: 0 | X112: 15 | Y112: 0 | Z112: 0 | AA112: 0 | AB112: 0 | AC112: 40 | AD112: 0 | AE112: 0 | AF112: 0 | AG112: 0 | AH112: 10 | AI112: 30 | AJ112: 15 | AK112: 0 | AL112: 0 | AM112: 20 | AN112: 0 | AO112: 0 | AP112: 10 | AQ112: 0 | AR112: 0 | AS112: 0 | AT112: 0 | AU112: 45 | AV112: 15 | AW112: 0 | AX112: 0 | AY112: 0 | AZ112: 0 | BA112: 0 | BB112: 15 | BC112: 40 | BD112: 0 | BE112: 0 | BF112: 0 | BG112: 0 | BH112: 40 | BI112: 0 | BJ112: 0 | BL112: 0 | BM112: 0 | BO112: 0 | BP112: 0 | BR112: no
A113: 110 | B113: =Coltura!C111 -> F23 | C113: =Coltura!D111 -> Prati stabili in pianura | D113: nd | E113: 13 | F113: 140 | G113: 80 | H113: 80 | I113: 0 | J113: 0 | K113: 300 | L113: 300 | M113: 0 | N113: 300 | O113: 10.4 | P113: 0 | Q113: 20 | R113: 0 | S113: 0 | T113: 0 | U113: 0 | V113: 0 | W113: 0 | X113: 20 | Y113: 0 | Z113: 0 | AA113: 0 | AB113: 0 | AC113: 50 | AD113: 0 | AE113: 0 | AF113: 0 | AG113: 0 | AH113: 15.6 | AI113: 0 | AJ113: 0 | AK113: 0 | AL113: 0 | AM113: 20 | AN113: 0 | AO113: 0 | AP113: 0 | AQ113: 0 | AR113: 0 | AS113: 0 | AT113: 0 | AU113: 20 | AV113: 20 | AW113: 0 | AX113: 0 | AY113: 0 | AZ113: 0 | BA113: 0 | BB113: 20 | BC113: 50 | BD113: 0 | BE113: 0 | BF113: 0 | BG113: 0 | BH113: 50 | BI113: 0 | BJ113: 0 | BL113: 0 | BM113: 0 | BO113: 0 | BP113: 0 | BR113: no
A114: 111 | B114: =Coltura!C112 -> F24 | C114: =Coltura!D112 -> Prato misto | D114: nd | E114: nd | F114: nd | AH114: nd | BB114: 0 | BH114: 0 | BI114: 0 | BJ114: 0 | BL114: 0 | BM114: 0 | BO114: 0 | BP114: 0 | BR114: no
A115: 112 | B115: =Coltura!C113 -> F25 | C115: =Coltura!D113 -> Segale insilato | D115: nd | E115: nd | F115: nd | AH115: nd | BB115: 0 | BH115: 0 | BI115: 0 | BJ115: 0 | BL115: 0 | BM115: 0 | BO115: 0 | BP115: 0 | BR115: no
A116: 113 | B116: =Coltura!C114 -> F26 | C116: =Coltura!D114 -> Triticale insilato | D116: nd | E116: nd | F116: nd | AH116: nd | BB116: 0 | BH116: 0 | BI116: 0 | BJ116: 0 | BL116: 0 | BM116: 0 | BO116: 0 | BP116: 0 | BR116: no
A117: 114 | B117: =Coltura!C115 -> O1 | C117: =Coltura!D115 -> Aglio | D117: nd | E117: 9 | F117: 110 | G117: 75 | H117: 100 | I117: 50 | J117: 100 | K117: 130 | L117: 180 | M117: 70 | N117: 180 | O117: 7 | P117: 25 | Q117: 20 | R117: 0 | S117: 15 | T117: 0 | U117: 15 | V117: 15 | W117: 0 | X117: 15 | Y117: 0 | Z117: 0 | AA117: 0 | AB117: 0 | AC117: 20 | AD117: 0 | AE117: 0 | AF117: 0 | AG117: 0 | AH117: 11 | AI117: 25 | AJ117: 15 | AK117: 0 | AL117: 0 | AM117: 20 | AN117: 30 | AO117: 0 | AP117: 20 | AQ117: 0 | AR117: 0 | AS117: 0 | AT117: 0 | AU117: 60 | AV117: 15 | AW117: 10 | AX117: 0 | AY117: 0 | AZ117: 0 | BA117: 0 | BB117: 25 | BC117: 20 | BD117: 0 | BE117: 0 | BF117: 0 | BG117: 0 | BH117: 20 | BI117: 0 | BJ117: 0 | BL117: 0 | BM117: 0 | BO117: 0 | BP117: 0 | BR117: no
A118: 115 | B118: =Coltura!C116 -> O2 | C118: =Coltura!D116 -> Asparago verde (pianta intera) | D118: nd | E118: 8 | F118: 160 | G118: 100 | H118: 150 | I118: 50 | J118: 150 | K118: 160 | L118: 240 | M118: 60 | N118: 240 | O118: 5.5 | P118: 20 | Q118: 20 | R118: 0 | S118: 15 | T118: 0 | U118: 0 | V118: 0 | W118: 0 | X118: 20 | Y118: 10 | Z118: 0 | AA118: 0 | AB118: 0 | AC118: 30 | AD118: 30 | AE118: 0 | AF118: 0 | AG118: 0 | AH118: 8.5 | AI118: 20 | AJ118: 20 | AK118: 0 | AL118: 0 | AM118: 15 | AN118: 0 | AO118: 20 | AP118: 0 | AQ118: 0 | AR118: 0 | AS118: 0 | AT118: 0 | AU118: 30 | AV118: 20 | AW118: 10 | AX118: 0 | AY118: 0 | AZ118: 0 | BA118: 0 | BB118: 30 | BC118: 30 | BD118: 0 | BE118: 0 | BF118: 0 | BG118: 0 | BH118: 30 | BI118: 0 | BJ118: 0 | BL118: 0 | BM118: 0 | BO118: 0 | BP118: 0 | BR118: no
A119: 116 | B119: =Coltura!C117 -> O3 | C119: =Coltura!D117 -> Basilico media produzione | D119: nd | E119: 20 | F119: 100 | G119: 70 | H119: 90 | I119: 50 | J119: 90 | K119: 80 | L119: 120 | M119: 40 | N119: 120 | O119: 16 | P119: 30 | Q119: 20 | R119: 0 | S119: 20 | T119: 0 | U119: 20 | V119: 20 | W119: 0 | X119: 15 | Y119: 15 | Z119: 0 | AA119: 0 | AB119: 0 | AC119: 15 | AD119: 30 | AE119: 0 | AF119: 0 | AG119: 0 | AH119: 24 | AI119: 30 | AJ119: 20 | AK119: 0 | AL119: 0 | AM119: 15 | AN119: 30 | AO119: 20 | AP119: 0 | AQ119: 0 | AR119: 0 | AS119: 0 | AT119: 0 | AU119: 40 | AV119: 15 | AW119: 10 | AX119: 0 | AY119: 0 | AZ119: 0 | BA119: 0 | BB119: 25 | BC119: 15 | BD119: 0 | BE119: 0 | BF119: 0 | BG119: 0 | BH119: 15 | BI119: 0 | BJ119: 0 | BL119: 0 | BM119: 0 | BO119: 0 | BP119: 0 | BR119: no
A120: 117 | B120: =Coltura!C118 -> O4 | C120: =Coltura!D118 -> Basilico alta produzione più tagli | D120: nd | E120: 55 | F120: =IF($BR120="sì",(BS120+(BU120*(Codici!$BA$2-1)))) -> 120 | G120: 80 | H120: 100 | I120: 40 | J120: 100 | K120: =IF($BR120="sì",(BW120+(CA120*(Codici!$BA$2-1)))) -> 130 | L120: =IF($BR120="sì",(BX120+(CB120*(Codici!$BA$2-1)))) -> 190 | M120: =IF($BR120="sì",(BY120+(CC120*(Codici!$BA$2-1)))) -> 60 | N120: =IF($BR120="sì",(BZ120+(CD120*(Codici!$BA$2-1)))) -> 190 | O120: 50 | P120: 0 | Q120: 20 | R120: 0 | S120: 20 | T120: 0 | U120: 20 | V120: 20 | W120: 0 | X120: 10 | Y120: 0 | Z120: 0 | AA120: 0 | AB120: 0 | AC120: 0 | AD120: 0 | AE120: 0 | AF120: 0 | AG120: 0 | AH120: 60 | AI120: 0 | AJ120: 20 | AK120: 0 | AL120: 0 | AM120: 15 | AN120: 20 | AO120: 0 | AP120: 0 | AQ120: 0 | AR120: 0 | AS120: 0 | AT120: 0 | AU120: 40 | AV120: 10 | AW120: 0 | AX120: 0 | AY120: 0 | AZ120: 0 | BA120: 0 | BB120: 0 | BC120: 0 | BD120: 0 | BE120: 0 | BF120: 0 | BG120: 0 | BH120: 0 | BI120: 0 | BJ120: 0 | BL120: 0 | BM120: 0 | BO120: 0 | BP120: 0 | BR120: sì | BS120: 90 | BT120: =IF(Codici!BA2>1,"comprensivo di tutti i tagli","") -> comprensivo di tutti i tagli | BU120: 30 | BV120: dose per tagli successivi | BW120: 100 | BX120: 150 | BY120: 50 | BZ120: 150 | CA120: 30 | CB120: 40 | CC120: 10 | CD120: 40
A121: 118 | B121: =Coltura!C119 -> O5 | C121: =Coltura!D119 -> Bietola da costa e da foglia m. fresco media produzione | D121: nd | E121: 25 | F121: 150 | G121: 100 | H121: 120 | I121: 30 | J121: 120 | K121: 130 | L121: 200 | M121: 50 | N121: 200 | O121: 20 | P121: 20 | Q121: 0 | R121: 0 | S121: 20 | T121: 0 | U121: 20 | V121: 20 | W121: 0 | X121: 10 | Y121: 0 | Z121: 0 | AA121: 0 | AB121: 0 | AC121: 25 | AD121: 0 | AE121: 0 | AF121: 0 | AG121: 0 | AH121: 30 | AI121: 20 | AJ121: 20 | AK121: 0 | AL121: 0 | AM121: 15 | AN121: 20 | AO121: 0 | AP121: 0 | AQ121: 0 | AR121: 0 | AS121: 0 | AT121: 0 | AU121: 40 | AV121: 10 | AW121: 20 | AX121: 0 | AY121: 0 | AZ121: 20 | BA121: 0 | BB121: 50 | BC121: 25 | BD121: 0 | BE121: 0 | BF121: 0 | BG121: 0 | BH121: 25 | BI121: 0 | BJ121: 0 | BL121: 0 | BM121: 0 | BO121: 0 | BP121: 0 | BR121: no
A122: 119 | B122: =Coltura!C120 -> O6 | C122: =Coltura!D120 -> Bietola da costa e da foglia m. fresco alta produzione più tagli | D122: nd | E122: 35 | F122: =IF($BR122="sì",(BS122+(BU122*(Codici!$BA$2-1)))) -> 240 | G122: 100 | H122: 120 | I122: 30 | J122: 120 | K122: =IF($BR122="sì",(BW122+(CA122*(Codici!$BA$2-1)))) -> 175 | L122: =IF($BR122="sì",(BX122+(CB122*(Codici!$BA$2-1)))) -> 245 | M122: 50 | N122: =IF($BR122="sì",(BZ122+(CD122*(Codici!$BA$2-1)))) -> 245 | O122: 20 | P122: 0 | Q122: 0 | R122: 0 | S122: 20 | T122: 0 | U122: 20 | V122: 20 | W122: 0 | X122: 10 | Y122: 0 | Z122: 0 | AA122: 0 | AB122: 0 | AC122: 25 | AD122: 0 | AE122: 0 | AF122: 0 | AG122: 0 | AH122: 30 | AI122: 0 | AJ122: 20 | AK122: 0 | AL122: 0 | AM122: 15 | AN122: 20 | AO122: 0 | AP122: 0 | AQ122: 0 | AR122: 0 | AS122: 0 | AT122: 0 | AU122: 40 | AV122: 10 | AW122: 20 | AX122: 0 | AY122: 0 | AZ122: 20 | BA122: 0 | BB122: 50 | BC122: 25 | BD122: 0 | BE122: 0 | BF122: 0 | BG122: 0 | BH122: 25 | BI122: 0 | BJ122: 0 | BL122: 0 | BM122: 0 | BO122: 0 | BP122: 0 | BR122: sì | BS122: 200 | BT122: comprensivo di tutti i tagli | BU122: 40 | BV122: dose per tagli successivi | BW122: 175 | BX122: 245 | BY122: 45 | BZ122: 245 | CA122: 0 | CB122: 0 | CC122: 0 | CD122: 0
A123: 120 | B123: =Coltura!C121 -> O7 | C123: =Coltura!D121 -> Bietola da foglie per l'industria media produzione più tagli | D123: nd | E123: 25 | F123: =IF($BR123="sì",(BS123+(BU123*(Codici!$BA$2-1)))) -> 190 | G123: 100 | H123: 120 | I123: 30 | J123: 120 | K123: =IF($BR123="sì",(BW123+(CA123*(Codici!$BA$2-1)))) -> 130 | L123: =IF($BR123="sì",(BX123+(CB123*(Codici!$BA$2-1)))) -> 200 | M123: =IF($BR123="sì",(BY123+(CC123*(Codici!$BA$2-1)))) -> 50 | N123: =IF($BR123="sì",(BZ123+(CD123*(Codici!$BA$2-1)))) -> 200 | O123: 20 | P123: 0 | Q123: 20 | R123: 0 | S123: 20 | T123: 0 | U123: 20 | V123: 20 | W123: 0 | X123: 10 | Y123: 0 | Z123: 0 | AA123: 0 | AB123: 0 | AC123: 25 | AD123: 0 | AE123: 0 | AF123: 0 | AG123: 0 | AH123: 30 | AI123: 0 | AJ123: 20 | AK123: 0 | AL123: 0 | AM123: 15 | AN123: 20 | AO123: 0 | AP123: 0 | AQ123: 0 | AR123: 0 | AS123: 0 | AT123: 0 | AU123: 40 | AV123: 10 | AW123: 20 | AX123: 0 | AY123: 0 | AZ123: 20 | BA123: 0 | BB123: 50 | BC123: 25 | BD123: 0 | BE123: 0 | BF123: 0 | BG123: 0 | BH123: 25 | BI123: 0 | BJ123: 0 | BL123: 0 | BM123: 0 | BO123: 0 | BP123: 0 | BR123: sì | BS123: 150 | BT123: comprensivo di tutti i tagli | BU123: 40 | BV123: dose per tagli successivi | BW123: 130 | BX123: 200 | BY123: 50 | BZ123: 200 | CA123: 0 | CB123: 0 | CC123: 0 | CD123: 0
A124: 121 | B124: =Coltura!C122 -> O8 | C124: =Coltura!D122 -> Bietola da costa per l'industria alta produzione più tagli | D124: nd | E124: 35 | F124: =IF($BR124="sì",(BS124+(BU124*(Codici!$BA$2-1)))) -> 240 | G124: 100 | H124: 120 | I124: 30 | J124: 120 | K124: =IF($BR124="sì",(BW124+(CA124*(Codici!$BA$2-1)))) -> 200 | L124: =IF($BR124="sì",(BX124+(CB124*(Codici!$BA$2-1)))) -> 270 | M124: =IF($BR124="sì",(BY124+(CC124*(Codici!$BA$2-1)))) -> 70 | N124: =IF($BR124="sì",(BZ124+(CD124*(Codici!$BA$2-1)))) -> 270 | O124: 30 | P124: 0 | Q124: 20 | R124: 0 | S124: 20 | T124: 0 | U124: 20 | V124: 20 | W124: 0 | X124: 10 | Y124: 0 | Z124: 0 | AA124: 0 | AB124: 0 | AC124: 25 | AD124: 0 | AE124: 0 | AF124: 0 | AG124: 0 | AH124: 40 | AI124: 0 | AJ124: 20 | AK124: 0 | AL124: 0 | AM124: 15 | AN124: 20 | AO124: 0 | AP124: 0 | AQ124: 0 | AR124: 0 | AS124: 0 | AT124: 0 | AU124: 40 | AV124: 10 | AW124: 20 | AX124: 0 | AY124: 0 | AZ124: 20 | BA124: 0 | BB124: 50 | BC124: 25 | BD124: 0 | BE124: 0 | BF124: 0 | BG124: 0 | BH124: 25 | BI124: 0 | BJ124: 0 | BL124: 0 | BM124: 0 | BO124: 0 | BP124: 0 | BR124: sì | BS124: 200 | BT124: comprensivo di tutti i tagli | BU124: 40 | BV124: dose per tagli successivi | BW124: 200 | BX124: 270 | BY124: 70 | BZ124: 270 | CA124: 0 | CB124: 0 | CC124: 0 | CD124: 0
A125: 122 | B125: =Coltura!C123 -> O9 | C125: =Coltura!D123 -> Broccoletto - Cime di rapa | D125: nd | E125: nd | F125: nd | AH125: nd | BB125: 0 | BH125: 0 | BI125: 0 | BJ125: 0 | BL125: 0 | BM125: 0 | BO125: 0 | BP125: 0 | BR125: no
A126: 123 | B126: =Coltura!C124 -> O10 | C126: =Coltura!D124 -> Broccolo media produzione | D126: nd | E126: 20 | F126: 130 | G126: 80 | H126: 120 | I126: 30 | J126: 120 | K126: 100 | L126: 120 | M126: 30 | N126: 120 | O126: 16 | P126: 20 | Q126: 20 | R126: 0 | S126: 20 | T126: 0 | U126: 0 | V126: 0 | W126: 0 | X126: 20 | Y126: 10 | Z126: 0 | AA126: 0 | AB126: 0 | AC126: 20 | AD126: 30 | AE126: 0 | AF126: 0 | AG126: 0 | AH126: 24 | AI126: 20 | AJ126: 20 | AK126: 0 | AL126: 0 | AM126: 15 | AN126: 30 | AO126: 20 | AP126: 20 | AQ126: 0 | AR126: 0 | AS126: 0 | AT126: 0 | AU126: 50 | AV126: 20 | AW126: 10 | AX126: 0 | AY126: 0 | AZ126: 0 | BA126: 0 | BB126: 30 | BC126: 20 | BD126: 0 | BE126: 0 | BF126: 0 | BG126: 0 | BH126: 20 | BI126: 0 | BJ126: 0 | BL126: 0 | BM126: 0 | BO126: 0 | BP126: 0 | BR126: no
A127: 124 | B127: =Coltura!C125 -> O11 | C127: =Coltura!D125 -> Broccolo alta produzione | D127: nd | E127: 32.5 | F127: 160 | G127: 80 | H127: 120 | I127: 30 | J127: 120 | K127: 130 | L127: 150 | M127: 30 | N127: 150 | O127: 30 | P127: 20 | Q127: 20 | R127: 0 | S127: 20 | T127: 0 | U127: 0 | V127: 0 | W127: 0 | X127: 20 | Y127: 10 | Z127: 0 | AA127: 0 | AB127: 0 | AC127: 20 | AD127: 30 | AE127: 0 | AF127: 0 | AG127: 0 | AH127: 35 | AI127: 20 | AJ127: 20 | AK127: 0 | AL127: 0 | AM127: 15 | AN127: 30 | AO127: 20 | AP127: 20 | AQ127: 0 | AR127: 0 | AS127: 0 | AT127: 0 | AU127: 50 | AV127: 20 | AW127: 10 | AX127: 0 | AY127: 0 | AZ127: 0 | BA127: 0 | BB127: 30 | BC127: 20 | BD127: 0 | BE127: 0 | BF127: 0 | BG127: 0 | BH127: 20 | BI127: 0 | BJ127: 0 | BL127: 0 | BM127: 0 | BO127: 0 | BP127: 0 | BR127: no
A128: 125 | B128: =Coltura!C126 -> O12 | C128: =Coltura!D126 -> Cappuccio media produzione | D128: nd | E128: 27 | F128: 150 | G128: 80 | H128: 120 | I128: 30 | J128: 120 | K128: 150 | L128: 200 | M128: 30 | N128: 200 | O128: 22 | P128: 25 | Q128: 20 | R128: 0 | S128: 20 | T128: 0 | U128: 0 | V128: 0 | W128: 0 | X128: 15 | Y128: 10 | Z128: 0 | AA128: 0 | AB128: 0 | AC128: 30 | AD128: 30 | AE128: 0 | AF128: 0 | AG128: 0 | AH128: 32 | AI128: 25 | AJ128: 20 | AK128: 0 | AL128: 0 | AM128: 15 | AN128: 30 | AO128: 20 | AP128: 0 | AQ128: 0 | AR128: 0 | AS128: 0 | AT128: 0 | AU128: 40 | AV128: 15 | AW128: 10 | AX128: 0 | AY128: 0 | AZ128: 0 | BA128: 0 | BB128: 25 | BC128: 30 | BD128: 0 | BE128: 0 | BF128: 0 | BG128: 0 | BH128: 30 | BI128: 0 | BJ128: 0 | BL128: 0 | BM128: 0 | BO128: 0 | BP128: 0 | BR128: no
A129: 126 | B129: =Coltura!C127 -> O13 | C129: =Coltura!D127 -> Cappuccio alta produzione | D129: nd | E129: 50 | F129: 180 | G129: 80 | H129: 120 | I129: 30 | J129: 120 | K129: 180 | L129: 230 | M129: 30 | N129: 230 | O129: 45 | P129: 25 | Q129: 20 | R129: 0 | S129: 20 | T129: 0 | U129: 0 | V129: 0 | W129: 0 | X129: 15 | Y129: 10 | Z129: 0 | AA129: 0 | AB129: 0 | AC129: 30 | AD129: 30 | AE129: 0 | AF129: 0 | AG129: 0 | AH129: 55 | AI129: 25 | AJ129: 20 | AK129: 0 | AL129: 0 | AM129: 15 | AN129: 30 | AO129: 20 | AP129: 0 | AQ129: 0 | AR129: 0 | AS129: 0 | AT129: 0 | AU129: 40 | AV129: 15 | AW129: 10 | AX129: 0 | AY129: 0 | AZ129: 0 | BA129: 0 | BB129: 25 | BC129: 30 | BD129: 0 | BE129: 0 | BF129: 0 | BG129: 0 | BH129: 30 | BI129: 0 | BJ129: 0 | BL129: 0 | BM129: 0 | BO129: 0 | BP129: 0 | BR129: no
A130: 127 | B130: =Coltura!C128 -> O14 | C130: =Coltura!D128 -> Carciofo | D130: nd | E130: 15.5 | F130: 180 | G130: 120 | H130: 170 | I130: 70 | J130: 170 | K130: 150 | L130: 200 | M130: 80 | N130: 200 | O130: 12 | P130: 30 | Q130: 20 | R130: 0 | S130: 15 | T130: 0 | U130: 0 | V130: 0 | W130: 0 | X130: 15 | Y130: 0 | Z130: 10 | AA130: 0 | AB130: 0 | AC130: 10 | AD130: 0 | AE130: 30 | AF130: 0 | AG130: 0 | AH130: 19 | AI130: 30 | AJ130: 15 | AK130: 0 | AL130: 0 | AM130: 20 | AN130: 20 | AO130: 0 | AP130: 0 | AQ130: 0 | AR130: 0 | AS130: 0 | AT130: 0 | AU130: 50 | AV130: 15 | AW130: 10 | AX130: 0 | AY130: 0 | AZ130: 0 | BA130: 0 | BB130: 25 | BC130: 10 | BD130: 0 | BE130: 30 | BF130: 0 | BG130: 0 | BH130: 40 | BI130: 0 | BJ130: 0 | BL130: 0 | BM130: 0 | BO130: 0 | BP130: 0 | BR130: no
A131: 128 | B131: =Coltura!C129 -> O15 | C131: =Coltura!D129 -> Cardo media produzione | D131: nd | E131: 25.5 | F131: 120 | G131: 80 | H131: 120 | I131: 50 | J131: 120 | K131: 170 | L131: 260 | M131: 100 | N131: 260 | O131: 24 | P131: 20 | Q131: 20 | R131: 0 | S131: 15 | T131: 0 | U131: 15 | V131: 15 | W131: 0 | X131: 20 | Y131: 10 | Z131: 0 | AA131: 0 | AB131: 0 | AC131: 40 | AD131: 10 | AE131: 0 | AF131: 0 | AG131: 0 | AH131: 27 | AI131: 20 | AJ131: 15 | AK131: 0 | AL131: 0 | AM131: 15 | AN131: 30 | AO131: 20 | AP131: 0 | AQ131: 0 | AR131: 0 | AS131: 0 | AT131: 0 | AU131: 50 | AV131: 20 | AW131: 0 | AX131: 0 | AY131: 0 | AZ131: 0 | BA131: 0 | BB131: 20 | BC131: 40 | BD131: 0 | BE131: 0 | BF131: 0 | BG131: 0 | BH131: 40 | BI131: 0 | BJ131: 0 | BL131: 0 | BM131: 0 | BO131: 0 | BP131: 0 | BR131: no
A132: 129 | B132: =Coltura!C130 -> O16 | C132: =Coltura!D130 -> Cardo alta produzione | D132: nd | E132: 32.5 | F132: 150 | G132: 80 | H132: 120 | I132: 50 | J132: 120 | K132: 180 | L132: 270 | M132: 110 | N132: 270 | O132: 30 | P132: 20 | Q132: 20 | R132: 0 | S132: 15 | T132: 0 | U132: 15 | V132: 15 | W132: 0 | X132: 20 | Y132: 10 | Z132: 0 | AA132: 0 | AB132: 0 | AC132: 40 | AD132: 10 | AE132: 0 | AF132: 0 | AG132: 0 | AH132: 35 | AI132: 20 | AJ132: 15 | AK132: 0 | AL132: 0 | AM132: 15 | AN132: 30 | AO132: 20 | AP132: 0 | AQ132: 0 | AR132: 0 | AS132: 0 | AT132: 0 | AU132: 50 | AV132: 20 | AW132: 0 | AX132: 0 | AY132: 0 | AZ132: 0 | BA132: 0 | BB132: 40 | BC132: 40 | BD132: 0 | BE132: 0 | BF132: 0 | BG132: 0 | BH132: 40 | BI132: 0 | BJ132: 0 | BL132: 0 | BM132: 0 | BO132: 0 | BP132: 0 | BR132: no
A133: 130 | B133: =Coltura!C131 -> O17 | C133: =Coltura!D131 -> Carota | D133: nd | E133: 50 | F133: 120 | G133: 150 | H133: 220 | I133: 80 | J133: 220 | K133: 200 | L133: 300 | M133: 100 | N133: 300 | O133: 40 | P133: 20 | Q133: 20 | R133: 0 | S133: 15 | T133: 0 | U133: 15 | V133: 15 | W133: 0 | X133: 30 | Y133: 10 | Z133: 0 | AA133: 0 | AB133: 0 | AC133: 40 | AD133: 0 | AE133: 0 | AF133: 0 | AG133: 0 | AH133: 60 | AI133: 20 | AJ133: 20 | AK133: 0 | AL133: 0 | AM133: 15 | AN133: 30 | AO133: 20 | AP133: 0 | AQ133: 0 | AR133: 0 | AS133: 0 | AT133: 0 | AU133: 50 | AV133: 30 | AW133: 10 | AX133: 0 | AY133: 0 | AZ133: 0 | BA133: 0 | BB133: 40 | BC133: 40 | BD133: 0 | BE133: 0 | BF133: 0 | BG133: 0 | BH133: 40 | BI133: 0 | BJ133: 0 | BL133: 0 | BM133: 0 | BO133: 0 | BP133: 0 | BR133: no
A134: 131 | B134: =Coltura!C132 -> O18 | C134: =Coltura!D132 -> Cavolfiore media produzione | D134: nd | E134: 35 | F134: 150 | G134: 80 | H134: 100 | I134: 30 | J134: 100 | K134: 150 | L134: 200 | M134: 30 | N134: 200 | O134: 28 | P134: 20 | Q134: 20 | R134: 0 | S134: 20 | T134: 0 | U134: 0 | V134: 0 | W134: 0 | X134: 20 | Y134: 10 | Z134: 0 | AA134: 0 | AB134: 0 | AC134: 30 | AD134: 30 | AE134: 0 | AF134: 0 | AG134: 0 | AH134: 40 | AI134: 20 | AJ134: 20 | AK134: 0 | AL134: 0 | AM134: 15 | AN134: 30 | AO134: 20 | AP134: 0 | AQ134: 0 | AR134: 0 | AS134: 0 | AT134: 0 | AU134: 40 | AV134: 20 | AW134: 10 | AX134: 0 | AY134: 0 | AZ134: 0 | BA134: 0 | BB134: 30 | BC134: 30 | BD134: 0 | BE134: 0 | BF134: 0 | BG134: 0 | BH134: 30 | BI134: 0 | BJ134: 0 | BL134: 0 | BM134: 0 | BO134: 0 | BP134: 0 | BR134: no
A135: =(A134+1) -> 132 | B135: =Coltura!C133 -> O19 | C135: =Coltura!D133 -> Cavolfiore alta produzione | D135: nd | E135: 45 | F135: 180 | G135: 80 | H135: 100 | I135: 30 | J135: 100 | K135: 180 | L135: 230 | M135: 30 | N135: 230 | O135: 40 | P135: 20 | Q135: 20 | R135: 0 | S135: 20 | T135: 0 | U135: 0 | V135: 0 | W135: 0 | X135: 20 | Y135: 10 | Z135: 0 | AA135: 0 | AB135: 0 | AC135: 30 | AD135: 30 | AE135: 0 | AF135: 0 | AG135: 0 | AH135: 50 | AI135: 20 | AJ135: 20 | AK135: 0 | AL135: 0 | AM135: 15 | AN135: 30 | AO135: 20 | AP135: 0 | AQ135: 0 | AR135: 0 | AS135: 0 | AT135: 0 | AU135: 40 | AV135: 20 | AW135: 10 | AX135: 0 | AY135: 0 | AZ135: 0 | BA135: 0 | BB135: 30 | BC135: 30 | BD135: 0 | BE135: 0 | BF135: 0 | BG135: 0 | BH135: 30 | BI135: 0 | BJ135: 0 | BL135: 0 | BM135: 0 | BO135: 0 | BP135: 0 | BR135: no
A136: 133 | B136: =Coltura!C134 -> O20 | C136: =Coltura!D134 -> Cavolo verza mercato media produzione | D136: nd | E136: 24 | F136: 130 | G136: 90 | H136: 120 | I136: 30 | J136: 120 | K136: 150 | L136: 190 | M136: 30 | N136: 190 | O136: 19 | P136: 25 | Q136: 20 | R136: 0 | S136: 20 | T136: 0 | U136: 0 | V136: 15 | W136: 0 | X136: 15 | Y136: 10 | Z136: 0 | AA136: 0 | AB136: 0 | AC136: 30 | AD136: 30 | AE136: 0 | AF136: 0 | AG136: 0 | AH136: 29 | AI136: 25 | AJ136: 20 | AK136: 0 | AL136: 0 | AM136: 15 | AN136: 30 | AO136: 20 | AP136: 0 | AQ136: 0 | AR136: 0 | AS136: 0 | AT136: 0 | AU136: 50 | AV136: 15 | AW136: 10 | AX136: 0 | AY136: 0 | AZ136: 0 | BA136: 0 | BB136: 25 | BC136: 30 | BD136: 0 | BE136: 0 | BF136: 0 | BG136: 0 | BH136: 30 | BI136: 0 | BJ136: 0 | BL136: 0 | BM136: 0 | BO136: 0 | BP136: 0 | BR136: no
A137: 134 | B137: =Coltura!C135 -> O21 | C137: =Coltura!D135 -> Cavolo verza mercato alta produzione | D137: nd | E137: 50 | F137: 160 | G137: 90 | H137: 120 | I137: 30 | J137: 120 | K137: 180 | L137: 220 | M137: 30 | N137: 220 | O137: 40 | P137: 25 | Q137: 20 | R137: 0 | S137: 20 | T137: 0 | U137: 0 | V137: 15 | W137: 0 | X137: 15 | Y137: 10 | Z137: 0 | AA137: 0 | AB137: 0 | AC137: 30 | AD137: 30 | AE137: 0 | AF137: 0 | AG137: 0 | AH137: 60 | AI137: 25 | AJ137: 20 | AK137: 0 | AL137: 0 | AM137: 15 | AN137: 30 | AO137: 20 | AP137: 0 | AQ137: 0 | AR137: 0 | AS137: 0 | AT137: 0 | AU137: 50 | AV137: 15 | AW137: 10 | AX137: 0 | AY137: 0 | AZ137: 0 | BA137: 0 | BB137: 25 | BC137: 30 | BD137: 0 | BE137: 0 | BF137: 0 | BG137: 0 | BH137: 30 | BI137: 0 | BJ137: 0 | BL137: 0 | BM137: 0 | BO137: 0 | BP137: 0 | BR137: no
A138: 135 | B138: =Coltura!C136 -> O22 | C138: =Coltura!D136 -> Cavolo Riccio, Cavolo nero e Cavolo Rapa | D138: nd | E138: 20 | F138: 130 | G138: 80 | H138: 120 | I138: 30 | J138: 120 | K138: 100 | L138: 120 | M138: 30 | N138: 120 | O138: 16 | P138: 20 | Q138: 20 | R138: 0 | S138: 20 | T138: 0 | U138: 0 | V138: 0 | W138: 0 | X138: 20 | Y138: 10 | Z138: 0 | AA138: 0 | AB138: 0 | AC138: 20 | AD138: 30 | AE138: 0 | AF138: 0 | AG138: 0 | AH138: 24 | AI138: 20 | AJ138: 20 | AK138: 0 | AL138: 0 | AM138: 15 | AN138: 30 | AO138: 20 | AP138: 20 | AQ138: 0 | AR138: 0 | AS138: 0 | AT138: 0 | AU138: 50 | AV138: 20 | AW138: 10 | AX138: 0 | AY138: 0 | AZ138: 0 | BA138: 0 | BB138: 30 | BC138: 20 | BD138: 0 | BE138: 0 | BF138: 0 | BG138: 0 | BH138: 20 | BI138: 0 | BJ138: 0 | BL138: 0 | BM138: 0 | BO138: 0 | BP138: 0 | BR138: no
A139: 136 | B139: =Coltura!C137 -> O23 | C139: =Coltura!D137 -> Cetriolo da mensa media produzione | D139: nd | E139: 120 | F139: 175 | G139: 100 | H139: 200 | I139: 50 | J139: 200 | K139: 200 | L139: 300 | M139: 100 | N139: 300 | O139: 95 | P139: 20 | Q139: 20 | R139: 0 | S139: 20 | T139: 0 | U139: 15 | V139: 15 | W139: 0 | X139: 30 | Y139: 10 | Z139: 0 | AA139: 0 | AB139: 0 | AC139: 40 | AD139: 30 | AE139: 0 | AF139: 0 | AG139: 0 | AH139: 145 | AI139: 20 | AJ139: 20 | AK139: 0 | AL139: 0 | AM139: 15 | AN139: 30 | AO139: 15 | AP139: 0 | AQ139: 0 | AR139: 0 | AS139: 0 | AT139: 0 | AU139: 40 | AV139: 30 | AW139: 10 | AX139: 0 | AY139: 0 | AZ139: 0 | BA139: 0 | BB139: 40 | BC139: 40 | BD139: 0 | BE139: 0 | BF139: 0 | BG139: 0 | BH139: 40 | BI139: 0 | BJ139: 0 | BL139: 0 | BM139: 0 | BO139: 0 | BP139: 0 | BR139: no
A140: 137 | B140: =Coltura!C138 -> O24 | C140: =Coltura!D138 -> Cetriolo da mensa alta produzione | D140: nd | E140: 150 | F140: 210 | G140: 100 | H140: 200 | I140: 50 | J140: 200 | K140: 250 | L140: 300 | M140: 150 | N140: 300 | O140: 140 | P140: 20 | Q140: 20 | R140: 0 | S140: 20 | T140: 0 | U140: 15 | V140: 15 | W140: 0 | X140: 30 | Y140: 10 | Z140: 0 | AA140: 0 | AB140: 0 | AC140: 40 | AD140: 30 | AE140: 0 | AF140: 0 | AG140: 0 | AH140: 160 | AI140: 20 | AJ140: 20 | AK140: 0 | AL140: 0 | AM140: 15 | AN140: 30 | AO140: 15 | AP140: 0 | AQ140: 0 | AR140: 0 | AS140: 0 | AT140: 0 | AU140: 40 | AV140: 30 | AW140: 10 | AX140: 0 | AY140: 0 | AZ140: 0 | BA140: 0 | BB140: 40 | BC140: 40 | BD140: 0 | BE140: 0 | BF140: 0 | BG140: 0 | BH140: 40 | BI140: 0 | BJ140: 0 | BL140: 0 | BM140: 0 | BO140: 0 | BP140: 0 | BR140: no
A141: 138 | B141: =Coltura!C139 -> O25 | C141: =Coltura!D139 -> Cicoria da mercato media produzione | D141: nd | E141: 28 | F141: 140 | G141: 140 | H141: 200 | I141: 80 | J141: 200 | K141: 140 | L141: 200 | M141: 70 | N141: 160 | O141: 23 | P141: 20 | Q141: 20 | R141: 0 | S141: 20 | T141: 0 | U141: 15 | V141: 15 | W141: 20 | X141: 30 | Y141: 10 | Z141: 0 | AA141: 20 | AB141: 0 | AC141: 30 | AD141: 30 | AE141: 0 | AF141: 20 | AG141: 0 | AH141: 33 | AI141: 20 | AJ141: 20 | AK141: 0 | AL141: 0 | AM141: 15 | AN141: 30 | AO141: 20 | AP141: 0 | AQ141: 0 | AR141: 0 | AS141: 0 | AT141: 0 | AU141: 40 | AV141: 30 | AW141: 10 | AX141: 20 | AY141: 0 | AZ141: 0 | BA141: 0 | BB141: 60 | BC141: 30 | BD141: 0 | BE141: 0 | BF141: 0 | BG141: 0 | BH141: 30 | BI141: 0 | BJ141: 0 | BL141: 0 | BM141: 0 | BO141: 0 | BP141: 0 | BR141: no
A142: 139 | B142: =Coltura!C140 -> O26 | C142: =Coltura!D140 -> Cicoria da mercato alta produzione | D142: nd | E142: 37.5 | F142: 165 | G142: 140 | H142: 200 | I142: 80 | J142: 200 | K142: 150 | L142: 210 | M142: 80 | N142: 210 | O142: 35 | P142: 20 | Q142: 20 | R142: 0 | S142: 20 | T142: 0 | U142: 15 | V142: 15 | W142: 20 | X142: 30 | Y142: 10 | Z142: 0 | AA142: 20 | AB142: 0 | AC142: 30 | AD142: 30 | AE142: 0 | AF142: 20 | AG142: 0 | AH142: 40 | AI142: 20 | AJ142: 20 | AK142: 0 | AL142: 0 | AM142: 15 | AN142: 30 | AO142: 20 | AP142: 0 | AQ142: 0 | AR142: 0 | AS142: 0 | AT142: 0 | AU142: 40 | AV142: 30 | AW142: 10 | AX142: 20 | AY142: 0 | AZ142: 0 | BA142: 0 | BB142: 60 | BC142: 30 | BD142: 0 | BE142: 0 | BF142: 0 | BG142: 0 | BH142: 30 | BI142: 0 | BJ142: 0 | BL142: 0 | BM142: 0 | BO142: 0 | BP142: 0 | BR142: no
A143: 140 | B143: =Coltura!C141 -> O27 | C143: =Coltura!D141 -> Cicoria da industria alta produzione più tagli | D143: nd | E143: 28 | F143: =IF($BR143="sì",(BS143+(BU143*(Codici!$BA$2-1)))) -> 170 | G143: 140 | H143: 200 | I143: 80 | J143: 200 | K143: =IF($BR143="sì",(BW143+(CA143*(Codici!$BA$2-1)))) -> 140 | L143: =IF($BR143="sì",(BX143+(CB143*(Codici!$BA$2-1)))) -> 200 | M143: =IF($BR143="sì",(BY143+(CC143*(Codici!$BA$2-1)))) -> 70 | N143: =IF($BR143="sì",(BZ143+(CD143*(Codici!$BA$2-1)))) -> 200 | O143: 23 | P143: 0 | Q143: 20 | R143: 0 | S143: 20 | T143: 0 | U143: 15 | V143: 15 | W143: 0 | X143: 30 | Y143: 10 | Z143: 0 | AA143: 20 | AB143: 0 | AC143: 30 | AD143: 30 | AE143: 0 | AF143: 20 | AG143: 0 | AH143: 33 | AI143: 0 | AJ143: 20 | AK143: 0 | AL143: 0 | AM143: 15 | AN143: 30 | AO143: 0 | AP143: 0 | AQ143: 0 | AR143: 0 | AS143: 0 | AT143: 0 | AU143: 40 | AV143: 30 | AW143: 10 | AX143: 0 | AY143: 0 | AZ143: 20 | BA143: 0 | BB143: 40 | BC143: 30 | BD143: 0 | BE143: 0 | BF143: 0 | BG143: 0 | BH143: 30 | BI143: 0 | BJ143: 0 | BL143: 0 | BM143: 0 | BO143: 0 | BP143: 0 | BR143: sì | BS143: 130 | BT143: comprensivo di tutti i tagli | BU143: 40 | BV143: dose per tagli successivi | BW143: 140 | BX143: 200 | BY143: 70 | BZ143: 200 | CA143: 0 | CB143: 0 | CC143: 0 | CD143: 0
A144: 141 | B144: =Coltura!C142 -> O28 | C144: =Coltura!D142 -> Cipolla | D144: nd | E144: 45 | F144: 130 | G144: 85 | H144: 140 | I144: 50 | J144: 140 | K144: 150 | L144: 200 | M144: 70 | N144: 200 | O144: 36 | P144: 30 | Q144: 20 | R144: 0 | S144: 15 | T144: 0 | U144: 15 | V144: 15 | W144: 0 | X144: 15 | Y144: 0 | Z144: 0 | AA144: 0 | AB144: 0 | AC144: 25 | AD144: 0 | AE144: 0 | AF144: 0 | AG144: 0 | AH144: 54 | AI144: 30 | AJ144: 15 | AK144: 0 | AL144: 0 | AM144: 15 | AN144: 30 | AO144: 0 | AP144: 20 | AQ144: 0 | AR144: 0 | AS144: 0 | AT144: 0 | AU144: 50 | AV144: 15 | AW144: 10 | AX144: 15 | AY144: 0 | AZ144: 0 | BA144: 0 | BB144: 40 | BC144: 25 | BD144: 0 | BE144: 0 | BF144: 0 | BG144: 0 | BH144: 25 | BI144: 0 | BJ144: 0 | BL144: 0 | BM144: 0 | BO144: 0 | BP144: 0 | BR144: no
A145: 142 | B145: =Coltura!C143 -> O29 | C145: =Coltura!D143 -> Cocomero | D145: nd | E145: 60 | F145: 100 | G145: 120 | H145: 180 | I145: 60 | J145: 180 | K145: 160 | L145: 240 | M145: 80 | N145: 240 | O145: 48 | P145: 20 | Q145: 20 | R145: 0 | S145: 15 | T145: 0 | U145: 15 | V145: 15 | W145: 0 | X145: 20 | Y145: 0 | Z145: 0 | AA145: 0 | AB145: 0 | AC145: 30 | AD145: 0 | AE145: 0 | AF145: 0 | AG145: 0 | AH145: 72 | AI145: 20 | AJ145: 15 | AK145: 0 | AL145: 0 | AM145: 0 | AN145: 30 | AO145: 0 | AP145: 0 | AQ145: 0 | AR145: 0 | AS145: 0 | AT145: 0 | AU145: 30 | AV145: 20 | AW145: 10 | AX145: 0 | AY145: 0 | AZ145: 0 | BA145: 0 | BB145: 30 | BC145: 30 | BD145: 0 | BE145: 0 | BF145: 0 | BG145: 0 | BH145: 30 | BI145: 0 | BJ145: 0 | BL145: 0 | BM145: 0 | BO145: 0 | BP145: 0 | BR145: no
A146: 143 | B146: =Coltura!C144 -> O30 | C146: =Coltura!D144 -> Endivie (indivie riccia e scarola) media produzione | D146: nd | E146: 34 | F146: 130 | G146: 140 | H146: 200 | I146: 80 | J146: 200 | K146: 140 | L146: 200 | M146: 70 | N146: 200 | O146: 28 | P146: 20 | Q146: 20 | R146: 0 | S146: 20 | T146: 0 | U146: 15 | V146: 15 | W146: 0 | X146: 30 | Y146: 10 | Z146: 0 | AA146: 0 | AB146: 0 | AC146: 30 | AD146: 30 | AE146: 0 | AF146: 0 | AG146: 0 | AH146: 40 | AI146: 20 | AJ146: 20 | AK146: 0 | AL146: 0 | AM146: 15 | AN146: 30 | AO146: 20 | AP146: 0 | AQ146: 0 | AR146: 0 | AS146: 0 | AT146: 0 | AU146: 40 | AV146: 30 | AW146: 10 | AX146: 0 | AY146: 0 | AZ146: 0 | BA146: 0 | BB146: 40 | BC146: 30 | BD146: 0 | BE146: 0 | BF146: 0 | BG146: 0 | BH146: 30 | BI146: 0 | BJ146: 0 | BL146: 0 | BM146: 0 | BO146: 0 | BP146: 0 | BR146: no
A147: 144 | B147: =Coltura!C145 -> O31 | C147: =Coltura!D145 -> Endivie (indivie riccia e scarola) alta produzione | D147: nd | E147: 45 | F147: 160 | G147: 140 | H147: 200 | I147: 80 | J147: 200 | K147: 160 | L147: 220 | M147: 90 | N147: 220 | O147: 40 | P147: 20 | Q147: 20 | R147: 0 | S147: 20 | T147: 0 | U147: 15 | V147: 15 | W147: 20 | X147: 30 | Y147: 10 | Z147: 0 | AA147: 20 | AB147: 0 | AC147: 30 | AD147: 30 | AE147: 0 | AF147: 20 | AG147: 0 | AH147: 50 | AI147: 20 | AJ147: 20 | AK147: 0 | AL147: 0 | AM147: 15 | AN147: 30 | AO147: 20 | AP147: 0 | AQ147: 0 | AR147: 0 | AS147: 0 | AT147: 0 | AU147: 40 | AV147: 30 | AW147: 10 | AX147: 0 | AY147: 0 | AZ147: 0 | BA147: 0 | BB147: 40 | BC147: 30 | BD147: 0 | BE147: 0 | BF147: 0 | BG147: 0 | BH147: 30 | BI147: 0 | BJ147: 0 | BL147: 0 | BM147: 0 | BO147: 0 | BP147: 0 | BR147: no
A148: 145 | B148: =Coltura!C146 -> O32 | C148: =Coltura!D146 -> Fagiolino | D148: nd | E148: 9 | F148: 70 | G148: 70 | H148: 90 | I148: 50 | J148: 90 | K148: 70 | L148: 100 | M148: 40 | N148: 100 | O148: 7 | P148: 20 | Q148: 10 | R148: 10 | S148: 20 | T148: 0 | U148: 15 | V148: 15 | W148: 0 | X148: 10 | Y148: 10 | Z148: 0 | AA148: 0 | AB148: 0 | AC148: 20 | AD148: 10 | AE148: 0 | AF148: 0 | AG148: 0 | AH148: 11 | AI148: 20 | AJ148: 20 | AK148: 10 | AL148: 0 | AM148: 15 | AN148: 30 | AO148: 0 | AP148: 20 | AQ148: 0 | AR148: 0 | AS148: 0 | AT148: 0 | AU148: 25 | AV148: 10 | AW148: 10 | AX148: 20 | AY148: 0 | AZ148: 0 | BA148: 0 | BB148: 40 | BC148: 20 | BD148: 0 | BE148: 0 | BF148: 0 | BG148: 0 | BH148: 20 | BI148: 0 | BJ148: 0 | BL148: 0 | BM148: 0 | BO148: 0 | BP148: 0 | BR148: no
A149: 146 | B149: =Coltura!C147 -> O33 | C149: =Coltura!D147 -> Fagiolo in baccelli da sgranare | D149: nd | E149: 5 | F149: 70 | G149: 70 | H149: 90 | I149: 50 | J149: 90 | K149: 100 | L149: 130 | M149: 70 | N149: 100 | O149: 4 | P149: 10 | Q149: 20 | R149: 0 | S149: 20 | T149: 0 | U149: 15 | V149: 15 | W149: 0 | X149: 10 | Y149: 10 | Z149: 0 | AA149: 0 | AB149: 0 | AC149: 20 | AD149: 30 | AE149: 0 | AF149: 0 | AG149: 0 | AH149: 6 | AI149: 10 | AJ149: 20 | AK149: 0 | AL149: 0 | AM149: 15 | AN149: 30 | AO149: 0 | AP149: 20 | AQ149: 0 | AR149: 0 | AS149: 0 | AT149: 0 | AU149: 25 | AV149: 10 | AW149: 10 | AX149: 10 | AY149: 0 | AZ149: 0 | BA149: 0 | BB149: 30 | BC149: 20 | BD149: 0 | BE149: 0 | BF149: 0 | BG149: 0 | BH149: 20 | BI149: 0 | BJ149: 0 | BL149: 0 | BM149: 0 | BO149: 0 | BP149: 0 | BR149: no
A150: 147 | B150: =Coltura!C148 -> O34 | C150: =Coltura!D148 -> Fagiolo secco | D150: nd | E150: nd | F150: nd | AH150: nd | BB150: 0 | BH150: 0 | BI150: 0 | BJ150: 0 | BL150: 0 | BM150: 0 | BO150: 0 | BP150: 0 | BR150: no
A151: 148 | B151: =Coltura!C149 -> O35 | C151: =Coltura!D149 -> Fava da consumo fresco | D151: nd | E151: nd | F151: nd | AH151: nd | BB151: 0 | BH151: 0 | BI151: 0 | BJ151: 0 | BL151: 0 | BM151: 0 | BO151: 0 | BP151: 0 | BR151: no
A152: 149 | B152: =Coltura!C150 -> O36 | C152: =Coltura!D150 -> Finocchio | D152: nd | E152: 30 | F152: 160 | G152: 80 | H152: 120 | I152: 50 | J152: 120 | K152: 170 | L152: 250 | M152: 100 | N152: 250 | O152: 24 | P152: 20 | Q152: 20 | R152: 0 | S152: 20 | T152: 0 | U152: 15 | V152: 15 | W152: 0 | X152: 20 | Y152: 10 | Z152: 0 | AA152: 0 | AB152: 0 | AC152: 40 | AD152: 10 | AE152: 0 | AF152: 0 | AG152: 0 | AH152: 36 | AI152: 20 | AJ152: 20 | AK152: 0 | AL152: 0 | AM152: 15 | AN152: 30 | AO152: 20 | AP152: 0 | AQ152: 0 | AR152: 0 | AS152: 0 | AT152: 0 | AU152: 50 | AV152: 20 | AW152: 10 | AX152: 0 | AY152: 0 | AZ152: 0 | BA152: 0 | BB152: 30 | BC152: 40 | BD152: 0 | BE152: 0 | BF152: 0 | BG152: 0 | BH152: 40 | BI152: 0 | BJ152: 0 | BL152: 0 | BM152: 0 | BO152: 0 | BP152: 0 | BR152: no
A153: 150 | B153: =Coltura!C151 -> O37 | C153: =Coltura!D151 -> Fragola | D153: nd | E153: 30 | F153: 120 | G153: 80 | H153: 100 | I153: 30 | J153: 100 | K153: 130 | L153: 200 | M153: 50 | N153: 200 | O153: 24 | P153: 20 | Q153: 20 | R153: 0 | S153: 20 | T153: 0 | U153: 60 | V153: 15 | W153: 0 | X153: 20 | Y153: 0 | Z153: 0 | AA153: 0 | AB153: 0 | AC153: 30 | AD153: 0 | AE153: 0 | AF153: 0 | AG153: 0 | AH153: 36 | AI153: 20 | AJ153: 20 | AK153: 0 | AL153: 0 | AM153: 15 | AN153: 20 | AO153: 0 | AP153: 0 | AQ153: 0 | AR153: 0 | AS153: 0 | AT153: 50 | AU153: 40 | AV153: 20 | AW153: 10 | AX153: 0 | AY153: 0 | AZ153: 0 | BA153: 40 | BB153: 70 | BC153: 30 | BD153: 0 | BE153: 0 | BF153: 80 | BG153: 0 | BH153: 110 | BI153: 0 | BJ153: 0 | BL153: 0 | BM153: 0 | BO153: 0 | BP153: 0 | BR153: no
A154: 151 | B154: =Coltura!C152 -> O38 | C154: =Coltura!D152 -> Lattuga | D154: nd | E154: 32 | F154: 110 | G154: 70 | H154: 90 | I154: 50 | J154: 90 | K154: 150 | L154: 220 | M154: 80 | N154: 220 | O154: 26 | P154: 20 | Q154: 20 | R154: 0 | S154: 20 | T154: 0 | U154: 15 | V154: 15 | W154: 20 | X154: 15 | Y154: 10 | Z154: 0 | AA154: 20 | AB154: 0 | AC154: 30 | AD154: 30 | AE154: 0 | AF154: 20 | AG154: 0 | AH154: 38 | AI154: 20 | AJ154: 20 | AK154: 0 | AL154: 0 | AM154: 15 | AN154: 0 | AO154: 20 | AP154: 0 | AQ154: 0 | AR154: 0 | AS154: 0 | AT154: 50 | AU154: 40 | AV154: 15 | AW154: 10 | AX154: 20 | AY154: 0 | AZ154: 0 | BA154: 0 | BB154: 45 | BC154: 30 | BD154: 0 | BE154: 0 | BF154: 0 | BG154: 0 | BH154: 30 | BI154: 0 | BJ154: 0 | BL154: 0 | BM154: 0 | BO154: 0 | BP154: 0 | BR154: no
A155: 152 | B155: =Coltura!C153 -> O39 | C155: =Coltura!D153 -> Lattuga coltura protetta | D155: nd | E155: nd | F155: nd | AH155: nd | BB155: 0 | BH155: 0 | BI155: 0 | BJ155: 0 | BL155: 0 | BM155: 0 | BO155: 0 | BP155: 0 | BR155: no
A156: 153 | B156: =Coltura!C154 -> O40 | C156: =Coltura!D154 -> Melanzana in pieno campo media produzione | D156: nd | E156: 80 | F156: 250 | G156: 150 | H156: 210 | I156: 75 | J156: 210 | K156: 250 | L156: 300 | M156: 120 | N156: 300 | O156: 65 | P156: 45 | Q156: 20 | R156: 0 | S156: 20 | T156: 0 | U156: 0 | V156: 15 | W156: 0 | X156: 30 | Y156: 0 | Z156: 0 | AA156: 0 | AB156: 0 | AC156: 50 | AD156: 0 | AE156: 0 | AF156: 0 | AG156: 0 | AH156: 95 | AI156: 45 | AJ156: 20 | AK156: 0 | AL156: 0 | AM156: 0 | AN156: 0 | AO156: 0 | AP156: 0 | AQ156: 0 | AR156: 0 | AS156: 0 | AT156: 0 | AU156: 50 | AV156: 30 | AW156: 10 | AX156: 0 | AY156: 0 | AZ156: 0 | BA156: 0 | BB156: 40 | BC156: 50 | BD156: 0 | BE156: 0 | BF156: 0 | BG156: 0 | BH156: 50 | BI156: 0 | BJ156: 0 | BL156: 0 | BM156: 0 | BO156: 0 | BP156: 0 | BR156: no
A157: 154 | B157: =Coltura!C155 -> O41 | C157: =Coltura!D155 -> Melanzana coltura protetta alta produzione | D157: nd | E157: 150 | F157: 300 | G157: 200 | H157: 250 | I157: 125 | J157: 250 | K157: 300 | L157: 300 | M157: 120 | N157: 300 | O157: 140 | P157: 45 | Q157: 20 | R157: 0 | S157: 20 | T157: 0 | U157: 0 | V157: 15 | W157: 0 | X157: 30 | Y157: 0 | Z157: 0 | AA157: 0 | AB157: 0 | AC157: 50 | AD157: 0 | AE157: 0 | AF157: 0 | AG157: 0 | AH157: 160 | AI157: 45 | AJ157: 20 | AK157: 0 | AL157: 0 | AM157: 0 | AN157: 0 | AO157: 0 | AP157: 0 | AQ157: 0 | AR157: 0 | AS157: 0 | AT157: 0 | AU157: 50 | AV157: 30 | AW157: 10 | AX157: 0 | AY157: 0 | AZ157: 0 | BA157: 0 | BB157: 40 | BC157: 50 | BD157: 0 | BE157: 0 | BF157: 0 | BG157: 0 | BH157: 50 | BI157: 0 | BJ157: 0 | BL157: 0 | BM157: 0 | BO157: 0 | BP157: 0 | BR157: no
A158: 155 | B158: =Coltura!C156 -> O42 | C158: =Coltura!D156 -> Melone | D158: nd | E158: 40 | F158: 120 | G158: 80 | H158: 140 | I158: 50 | J158: 140 | K158: 250 | L158: 300 | M158: 100 | N158: 300 | O158: 32 | P158: 30 | Q158: 20 | R158: 0 | S158: 15 | T158: 0 | U158: 0 | V158: 15 | W158: 0 | X158: 15 | Y158: 0 | Z158: 0 | AA158: 0 | AB158: 0 | AC158: 40 | AD158: 0 | AE158: 0 | AF158: 0 | AG158: 0 | AH158: 48 | AI158: 30 | AJ158: 0 | AK158: 0 | AL158: 0 | AM158: 0 | AN158: 30 | AO158: 20 | AP158: 0 | AQ158: 0 | AR158: 0 | AS158: 0 | AT158: 0 | AU158: 40 | AV158: 15 | AW158: 15 | AX158: 0 | AY158: 0 | AZ158: 0 | BA158: 0 | BB158: 30 | BC158: 40 | BD158: 0 | BE158: 0 | BF158: 0 | BG158: 0 | BH158: 40 | BI158: 0 | BJ158: 0 | BL158: 0 | BM158: 0 | BO158: 0 | BP158: 0 | BR158: no
A159: 156 | B159: =Coltura!C157 -> O43 | C159: =Coltura!D157 -> Patata | D159: nd | E159: 47.5 | F159: 190 | G159: 110 | H159: 160 | I159: 60 | J159: 160 | K159: 270 | L159: 300 | M159: 170 | N159: 300 | O159: 40 | P159: 30 | Q159: 20 | R159: 0 | S159: 20 | T159: 0 | U159: 80 | V159: 40 | W159: 0 | X159: 20 | Y159: 0 | Z159: 0 | AA159: 0 | AB159: 0 | AC159: 50 | AD159: 30 | AE159: 0 | AF159: 0 | AG159: 0 | AH159: 55 | AI159: 30 | AJ159: 20 | AK159: 0 | AL159: 0 | AM159: 15 | AN159: 30 | AO159: 20 | AP159: 0 | AQ159: 0 | AR159: 0 | AS159: 0 | AT159: 0 | AU159: 40 | AV159: 20 | AW159: 20 | AX159: 0 | AY159: 0 | AZ159: 0 | BA159: 0 | BB159: 40 | BC159: 50 | BD159: 0 | BE159: 0 | BF159: 0 | BG159: 40 | BH159: 50 | BI159: 0 | BJ159: 0 | BL159: 0 | BM159: 0 | BO159: 0 | BP159: 0 | BR159: no
A160: 157 | B160: =Coltura!C158 -> O44 | C160: =Coltura!D158 -> Peperone in serra alta produzione | D160: nd | E160: 70 | F160: 190 | G160: 75 | H160: 150 | I160: 50 | J160: 150 | K160: 275 | L160: 300 | M160: 145 | N160: 300 | O160: 60 | P160: 35 | Q160: 20 | R160: 0 | S160: 20 | T160: 0 | U160: 0 | V160: 0 | W160: 0 | X160: 20 | Y160: 0 | Z160: 0 | AA160: 0 | AB160: 0 | AC160: 50 | AD160: 0 | AE160: 0 | AF160: 0 | AG160: 0 | AH160: 80 | AI160: 35 | AJ160: 20 | AK160: 0 | AL160: 0 | AM160: 0 | AN160: 0 | AO160: 0 | AP160: 0 | AQ160: 0 | AR160: 0 | AS160: 0 | AT160: 0 | AU160: 40 | AV160: 20 | AW160: 10 | AX160: 0 | AY160: 0 | AZ160: 0 | BA160: 0 | BB160: 30 | BC160: 50 | BD160: 0 | BE160: 0 | BF160: 0 | BG160: 0 | BH160: 50 | BI160: 0 | BJ160: 0 | BL160: 0 | BM160: 0 | BO160: 0 | BP160: 0 | BR160: no
A161: 158 | B161: =Coltura!C159 -> O45 | C161: =Coltura!D159 -> Peperone in serra media produzione | D161: nd | E161: 50 | F161: 160 | G161: 75 | H161: 150 | I161: 50 | J161: 150 | K161: 250 | L161: 300 | M161: 120 | N161: 300 | O161: 40 | P161: 35 | Q161: 20 | R161: 0 | S161: 20 | T161: 0 | U161: 0 | V161: 0 | W161: 0 | X161: 20 | Y161: 0 | Z161: 0 | AA161: 0 | AB161: 0 | AC161: 50 | AD161: 0 | AE161: 0 | AF161: 0 | AG161: 0 | AH161: 60 | AI161: 35 | AJ161: 20 | AK161: 0 | AL161: 0 | AM161: 0 | AN161: 0 | AO161: 0 | AP161: 0 | AQ161: 0 | AR161: 0 | AS161: 0 | AT161: 0 | AU161: 40 | AV161: 20 | AW161: 10 | AX161: 0 | AY161: 0 | AZ161: 0 | BA161: 0 | BB161: 30 | BC161: 50 | BD161: 0 | BE161: 0 | BF161: 0 | BG161: 0 | BH161: 50 | BJ161: 0 | BL161: 0 | BM161: 0 | BO161: 0 | BP161: 0 | BR161: no
A162: 159 | B162: =Coltura!C160 -> O46 | C162: =Coltura!D160 -> Piccoli frutti | D162: nd | E162: nd | F162: nd | AH162: nd | BB162: 0 | BH162: 0 | BI162: 0 | BJ162: 0 | BL162: 0 | BM162: 0 | BO162: 0 | BP162: 0 | BR162: no
A163: 160 | B163: =Coltura!C161 -> O47 | C163: =Coltura!D161 -> Pisello da industria (grani) | D163: nd | E163: 6 | F163: 50 | G163: 100 | H163: 130 | I163: 50 | J163: 130 | K163: 70 | L163: 90 | M163: 50 | N163: 90 | O163: 5 | P163: 20 | Q163: 20 | R163: 10 | S163: 15 | T163: 0 | U163: 15 | V163: 15 | W163: 0 | X163: 10 | Y163: 10 | Z163: 0 | AA163: 0 | AB163: 0 | AC163: 15 | AD163: 30 | AE163: 0 | AF163: 0 | AG163: 0 | AH163: 7 | AI163: 20 | AJ163: 20 | AK163: 10 | AL163: 0 | AM163: 15 | AN163: 30 | AO163: 0 | AP163: 20 | AQ163: 0 | AR163: 0 | AS163: 0 | AT163: 0 | AU163: 20 | AV163: 20 | AW163: 10 | AX163: 20 | AY163: 0 | AZ163: 0 | BA163: 0 | BB163: 50 | BC163: 15 | BD163: 0 | BE163: 0 | BF163: 0 | BG163: 0 | BH163: 15 | BI163: 0 | BJ163: 0 | BL163: 0 | BM163: 0 | BO163: 0 | BP163: 0 | BR163: no
A164: 161 | B164: =Coltura!C162 -> O48 | C164: =Coltura!D162 -> Pisello da mercato fresco (baccelli) | D164: nd | E164: 6 | F164: 50 | G164: 100 | H164: 150 | I164: 50 | J164: 150 | K164: 70 | L164: 90 | M164: 50 | N164: 90 | O164: 5 | P164: 20 | Q164: 20 | R164: 10 | S164: 20 | T164: 0 | U164: 15 | V164: 15 | W164: 0 | X164: 10 | Y164: 10 | Z164: 0 | AA164: 0 | AB164: 0 | AC164: 15 | AD164: 30 | AE164: 0 | AF164: 0 | AG164: 0 | AH164: 7 | AI164: 20 | AJ164: 20 | AK164: 10 | AL164: 0 | AM164: 15 | AN164: 30 | AO164: 0 | AP164: 20 | AQ164: 0 | AR164: 0 | AS164: 0 | AT164: 0 | AU164: 20 | AV164: 20 | AW164: 10 | AX164: 20 | AY164: 0 | AZ164: 0 | BA164: 0 | BB164: 50 | BC164: 15 | BD164: 0 | BE164: 0 | BF164: 0 | BG164: 0 | BH164: 15 | BI164: 0 | BJ164: 0 | BL164: 0 | BM164: 0 | BO164: 0 | BP164: 0 | BR164: no
A165: 162 | B165: =Coltura!C163 -> O49 | C165: =Coltura!D163 -> Pomodoro da industria media produzione | D165: nd | E165: 70 | F165: 130 | G165: 130 | H165: 190 | I165: 80 | J165: 190 | K165: 200 | L165: 250 | M165: 120 | N165: 250 | O165: 60 | P165: 20 | Q165: 20 | R165: 20 | S165: 20 | T165: 0 | U165: 60 | V165: 15 | W165: 0 | X165: 20 | Y165: 10 | Z165: 0 | AA165: 0 | AB165: 0 | AC165: 40 | AD165: 30 | AE165: 0 | AF165: 0 | AG165: 0 | AH165: 80 | AI165: 20 | AJ165: 20 | AK165: 20 | AL165: 0 | AM165: 15 | AN165: 30 | AO165: 20 | AP165: 0 | AQ165: 0 | AR165: 0 | AS165: 0 | AT165: 0 | AU165: 40 | AV165: 20 | AW165: 10 | AX165: 0 | AY165: 0 | AZ165: 0 | BA165: 0 | BB165: 30 | BC165: 40 | BD165: 0 | BE165: 0 | BF165: 0 | BG165: 0 | BH165: 40 | BI165: 0 | BJ165: 0 | BL165: 0 | BM165: 0 | BO165: 0 | BP165: 0 | BR165: no
A166: 163 | B166: =Coltura!C164 -> O50 | C166: =Coltura!D164 -> Pomodoro da industria alta produzione | D166: nd | E166: 90 | F166: 150 | G166: 150 | H166: 190 | I166: 100 | J166: 190 | K166: 230 | L166: 280 | M166: 150 | N166: 250 | O166: 80 | P166: 20 | Q166: 20 | R166: 20 | S166: 20 | T166: 0 | U166: 60 | V166: 15 | W166: 0 | X166: 20 | Y166: 10 | Z166: 0 | AA166: 0 | AB166: 0 | AC166: 40 | AD166: 30 | AE166: 0 | AF166: 0 | AG166: 0 | AH166: 100 | AI166: 20 | AJ166: 20 | AK166: 20 | AL166: 0 | AM166: 15 | AN166: 30 | AO166: 20 | AP166: 0 | AQ166: 0 | AR166: 0 | AS166: 0 | AT166: 0 | AU166: 40 | AV166: 20 | AW166: 10 | AX166: 0 | AY166: 0 | AZ166: 0 | BA166: 0 | BB166: 30 | BC166: 40 | BD166: 0 | BE166: 0 | BF166: 0 | BG166: 0 | BH166: 40 | BI166: 0 | BJ166: 0 | BL166: 0 | BM166: 0 | BO166: 0 | BP166: 0 | BR166: no
A167: 164 | B167: =Coltura!C165 -> O51 | C167: =Coltura!D165 -> Pomodoro da mensa a pieno campo | D167: nd | E167: 70 | F167: 130 | G167: 130 | H167: 190 | I167: 80 | J167: 190 | K167: 200 | L167: 250 | M167: 120 | N167: 250 | O167: 60 | P167: 20 | Q167: 20 | R167: 20 | S167: 20 | T167: 0 | U167: 15 | V167: 15 | W167: 0 | X167: 30 | Y167: 10 | Z167: 0 | AA167: 0 | AB167: 0 | AC167: 40 | AD167: 30 | AE167: 0 | AF167: 0 | AG167: 0 | AH167: 80 | AI167: 20 | AJ167: 15 | AK167: 20 | AL167: 0 | AM167: 15 | AN167: 30 | AO167: 20 | AP167: 0 | AQ167: 0 | AR167: 0 | AS167: 0 | AT167: 0 | AU167: 40 | AV167: 30 | AW167: 10 | AX167: 0 | AY167: 0 | AZ167: 0 | BA167: 0 | BB167: 40 | BC167: 50 | BD167: 0 | BE167: 0 | BF167: 0 | BG167: 0 | BH167: 50 | BI167: 0 | BJ167: 0 | BL167: 0 | BM167: 0 | BO167: 0 | BP167: 0 | BR167: no
A168: 165 | B168: =Coltura!C166 -> O52 | C168: =Coltura!D166 -> Pomodoro da mensa in serra | D168: nd | E168: 115 | F168: 230 | G168: 150 | H168: 220 | I168: 80 | J168: 220 | K168: 250 | L168: 300 | M168: 180 | N168: 300 | O168: 90 | P168: 30 | Q168: 20 | R168: 0 | S168: 20 | T168: 0 | U168: 0 | V168: 0 | W168: 0 | X168: 30 | Y168: 10 | Z168: 0 | AA168: 0 | AB168: 0 | AC168: 50 | AD168: 30 | AE168: 0 | AF168: 0 | AG168: 0 | AH168: 140 | AI168: 30 | AJ168: 20 | AK168: 0 | AL168: 0 | AM168: 0 | AN168: 0 | AO168: 0 | AP168: 0 | AQ168: 0 | AR168: 0 | AS168: 0 | AT168: 0 | AU168: 40 | AV168: 30 | AW168: 10 | AX168: 0 | AY168: 0 | AZ168: 0 | BA168: 0 | BB168: 40 | BC168: 50 | BD168: 0 | BE168: 0 | BF168: 0 | BG168: 0 | BH168: 50 | BI168: 0 | BJ168: 0 | BL168: 0 | BM168: 0 | BO168: 0 | BP168: 0 | BR168: no
A169: 166 | B169: =Coltura!C167 -> O53 | C169: =Coltura!D167 -> Porro | D169: nd | E169: 40 | F169: nd | AH169: nd | BB169: 0 | BH169: 0 | BI169: 0 | BJ169: 0 | BL169: 0 | BM169: 0 | BO169: 0 | BP169: 0 | BR169: no
A170: 167 | B170: =Coltura!C168 -> O54 | C170: =Coltura!D168 -> Prezzemolo media produzione | D170: nd | E170: 20 | F170: 80 | G170: 60 | H170: 120 | I170: 40 | J170: 120 | K170: 100 | L170: 150 | M170: 50 | N170: 150 | O170: 16 | P170: 15 | Q170: 20 | R170: 0 | S170: 20 | T170: 0 | U170: 15 | V170: 15 | W170: 0 | X170: 15 | Y170: 10 | Z170: 0 | AA170: 0 | AB170: 0 | AC170: 20 | AD170: 30 | AE170: 0 | AF170: 0 | AG170: 0 | AH170: 24 | AI170: 15 | AJ170: 20 | AK170: 0 | AL170: 0 | AM170: 15 | AN170: 30 | AO170: 20 | AP170: 0 | AQ170: 0 | AR170: 0 | AS170: 0 | AT170: 0 | AU170: 30 | AV170: 15 | AW170: 10 | AX170: 0 | AY170: 0 | AZ170: 0 | BA170: 0 | BB170: 25 | BC170: 20 | BD170: 0 | BE170: 0 | BF170: 0 | BG170: 0 | BH170: 20 | BI170: 0 | BJ170: 0 | BL170: 0 | BM170: 0 | BO170: 0 | BP170: 0 | BR170: no
A171: 168 | B171: =Coltura!C169 -> O55 | C171: =Coltura!D169 -> Prezzemolo alta produzione più tagli | D171: nd | E171: 43.5 | F171: =IF($BR171="sì",(BS171+(BU171*(Codici!$BA$2-1)))) -> 90 | G171: 60 | H171: 120 | I171: 40 | J171: 120 | K171: =IF($BR171="sì",(BW171+(CA171*(Codici!$BA$2-1)))) -> 150 | L171: =IF($BR171="sì",(BX171+(CB171*(Codici!$BA$2-1)))) -> 200 | M171: =IF($BR171="sì",(BY171+(CC171*(Codici!$BA$2-1)))) -> 100 | N171: =IF($BR171="sì",(BZ171+(CD171*(Codici!$BA$2-1)))) -> 200 | O171: 35 | P171: 0 | Q171: 20 | R171: 0 | S171: 20 | T171: 0 | U171: 15 | V171: 15 | W171: 0 | X171: 15 | Y171: 10 | Z171: 0 | AA171: 0 | AB171: 0 | AC171: 20 | AD171: 30 | AE171: 0 | AF171: 0 | AG171: 0 | AH171: 52 | AI171: 0 | AJ171: 20 | AK171: 0 | AL171: 0 | AM171: 15 | AN171: 30 | AO171: 20 | AP171: 0 | AQ171: 0 | AR171: 0 | AS171: 0 | AT171: 0 | AU171: 30 | AV171: 15 | AW171: 10 | AX171: 0 | AY171: 0 | AZ171: 0 | BB171: 25 | BC171: 20 | BD171: 0 | BE171: 0 | BF171: 0 | BG171: 0 | BH171: 20 | BI171: 0 | BJ171: 0 | BL171: 0 | BM171: 0 | BO171: 0 | BP171: 0 | BR171: sì | BS171: 70 | BT171: comprensivo di tutti i tagli | BU171: 20 | BV171: dose per tagli successivi | BW171: 150 | BX171: 200 | BY171: 100 | BZ171: 200 | CA171: 0 | CB171: 0 | CC171: 0 | CD171: 0
A172: 169 | B172: =Coltura!C170 -> O56 | C172: =Coltura!D170 -> Radicchio (cicoria a foglie colorate) media produzione | D172: nd | E172: 20 | F172: 130 | G172: 120 | H172: 160 | I172: 80 | J172: 160 | K172: 140 | L172: 200 | M172: 70 | N172: 200 | O172: 16 | P172: 20 | Q172: 20 | R172: 0 | S172: 20 | T172: 0 | U172: 15 | V172: 15 | W172: 0 | X172: 20 | Y172: 10 | Z172: 0 | AA172: 0 | AB172: 0 | AC172: 30 | AD172: 30 | AE172: 0 | AF172: 0 | AG172: 0 | AH172: 24 | AI172: 20 | AJ172: 20 | AK172: 0 | AL172: 0 | AM172: 15 | AN172: 30 | AO172: 20 | AP172: 0 | AQ172: 0 | AR172: 0 | AS172: 0 | AT172: 0 | AU172: 30 | AV172: 20 | AW172: 10 | AX172: 0 | AY172: 0 | AZ172: 0 | BA172: 0 | BB172: 30 | BC172: 30 | BD172: 0 | BE172: 0 | BF172: 0 | BG172: 0 | BH172: 30 | BI172: 0 | BJ172: 0 | BL172: 0 | BM172: 0 | BO172: 0 | BP172: 0 | BR172: no
A173: 170 | B173: =Coltura!C171 -> O57 | C173: =Coltura!D171 -> Radicchio (cicoria a foglie colorate) alta produzione | D173: nd | E173: 35 | F173: 150 | G173: 120 | H173: 160 | I173: 80 | J173: 160 | K173: 150 | L173: 210 | M173: 90 | N173: 210 | O173: 30 | P173: 20 | Q173: 20 | R173: 0 | S173: 20 | T173: 0 | U173: 15 | V173: 15 | W173: 0 | X173: 20 | Y173: 10 | Z173: 0 | AA173: 0 | AB173: 0 | AC173: 30 | AD173: 30 | AE173: 0 | AF173: 0 | AG173: 0 | AH173: 40 | AI173: 20 | AJ173: 20 | AK173: 0 | AL173: 0 | AM173: 15 | AN173: 30 | AO173: 20 | AP173: 0 | AQ173: 0 | AR173: 0 | AS173: 0 | AT173: 0 | AU173: 30 | AV173: 20 | AW173: 10 | AX173: 0 | AY173: 0 | AZ173: 0 | BA173: 0 | BB173: 30 | BC173: 30 | BD173: 0 | BE173: 0 | BF173: 0 | BG173: 0 | BH173: 30 | BI173: 0 | BJ173: 0 | BL173: 0 | BM173: 0 | BO173: 0 | BP173: 0 | BR173: no
A174: 171 | B174: =Coltura!C172 -> O58 | C174: =Coltura!D172 -> Rapa | D174: nd | E174: 35 | F174: nd | AH174: nd | BB174: 0 | BH174: 0 | BI174: 0 | BJ174: 0 | BL174: 0 | BM174: 0 | BO174: 0 | BP174: 0 | BR174: no
A175: 172 | B175: =Coltura!C173 -> O59 | C175: =Coltura!D173 -> Ravanello | D175: nd | E175: 30 | F175: 80 | G175: 60 | H175: 100 | I175: 40 | J175: 100 | K175: 90 | L175: 120 | M175: 60 | N175: 120 | O175: 25 | P175: 20 | Q175: 20 | R175: 0 | S175: 15 | T175: 0 | U175: 15 | V175: 15 | W175: 0 | X175: 10 | Y175: 10 | Z175: 0 | AA175: 0 | AB175: 0 | AC175: 20 | AD175: 30 | AE175: 0 | AF175: 0 | AG175: 0 | AH175: 35 | AI175: 20 | AJ175: 20 | AK175: 0 | AL175: 0 | AM175: 15 | AN175: 30 | AO175: 20 | AP175: 0 | AQ175: 0 | AR175: 0 | AS175: 0 | AT175: 0 | AU175: 25 | AV175: 10 | AW175: 10 | AX175: 20 | AY175: 0 | AZ175: 0 | BA175: 0 | BB175: 40 | BC175: 20 | BD175: 0 | BE175: 0 | BF175: 0 | BG175: 0 | BH175: 20 | BI175: 0 | BJ175: 0 | BL175: 0 | BM175: 0 | BO175: 0 | BP175: 0 | BR175: no
A176: 173 | B176: =Coltura!C174 -> O60 | C176: =Coltura!D174 -> Rucola media produzione | D176: nd | E176: 18.5 | F176: 110 | G176: 80 | H176: 120 | I176: 50 | J176: 120 | K176: 120 | L176: 160 | M176: 60 | N176: 120 | O176: 15 | P176: 30 | Q176: 20 | R176: 0 | S176: 20 | T176: 0 | U176: 15 | V176: 15 | W176: 0 | X176: 15 | Y176: 10 | Z176: 0 | AA176: 0 | AB176: 0 | AC176: 20 | AD176: 10 | AE176: 0 | AF176: 0 | AG176: 0 | AH176: 22 | AI176: 30 | AJ176: 20 | AK176: 0 | AL176: 0 | AM176: 15 | AN176: 20 | AO176: 0 | AP176: 0 | AQ176: 0 | AR176: 0 | AS176: 0 | AT176: 0 | AU176: 30 | AV176: 15 | AW176: 10 | AX176: 0 | AY176: 0 | AZ176: 0 | BA176: 0 | BB176: 25 | BC176: 20 | BD176: 0 | BE176: 0 | BF176: 0 | BG176: 0 | BH176: 20 | BI176: 0 | BJ176: 0 | BL176: 0 | BM176: 0 | BO176: 0 | BP176: 0 | BR176: no
A177: 174 | B177: =Coltura!C175 -> O61 | C177: =Coltura!D175 -> Rucola alta produzione con più tagli | D177: nd | E177: 37 | F177: =IF($BR177="sì",(BS177+(BU177*(Codici!$BA$2-1)))) -> 120 | G177: 80 | H177: 120 | I177: 50 | J177: 120 | K177: =IF($BR177="sì",(BW177+(CA177*(Codici!$BA$2-1)))) -> 150 | L177: =IF($BR177="sì",(BX177+(CB177*(Codici!$BA$2-1)))) -> 190 | M177: =IF($BR177="sì",(BY177+(CC177*(Codici!$BA$2-1)))) -> 90 | N177: =IF($BR177="sì",(BZ177+(CD177*(Codici!$BA$2-1)))) -> 190 | O177: 30 | P177: 0 | Q177: 20 | R177: 0 | S177: 20 | T177: 0 | U177: 10 | V177: 10 | W177: 0 | X177: 15 | Y177: 10 | Z177: 0 | AA177: 0 | AB177: 0 | AC177: 20 | AD177: 10 | AE177: 0 | AF177: 0 | AG177: 0 | AH177: 44 | AI177: 0 | AJ177: 20 | AK177: 0 | AL177: 0 | AM177: 15 | AN177: 20 | AO177: 0 | AP177: 0 | AQ177: 0 | AR177: 0 | AS177: 0 | AT177: 0 | AU177: 30 | AV177: 15 | AW177: 10 | AX177: 0 | AY177: 0 | AZ177: 0 | BB177: 25 | BC177: 20 | BD177: 0 | BE177: 0 | BF177: 0 | BG177: 0 | BH177: 20 | BI177: 0 | BJ177: 0 | BL177: 0 | BM177: 0 | BO177: 0 | BP177: 0 | BR177: sì | BS177: 100 | BT177: comprensivo di tutti i tagli | BU177: 20 | BV177: dose per tagli successivi | BW177: 150 | BX177: 190 | BY177: 90 | BZ177: 190 | CA177: 0 | CB177: 0 | CC177: 0 | CD177: 0
A178: 175 | B178: =Coltura!C176 -> O62 | C178: =Coltura!D176 -> Scalogno | D178: nd | E178: 8 | F178: 90 | G178: 60 | H178: 90 | I178: 30 | J178: 90 | K178: 60 | L178: 80 | M178: 40 | N178: 80 | O178: 6 | P178: 20 | Q178: 20 | R178: 0 | S178: 15 | T178: 0 | U178: 15 | V178: 15 | W178: 0 | X178: 15 | Y178: 10 | Z178: 0 | AA178: 0 | AB178: 0 | AC178: 10 | AD178: 30 | AE178: 0 | AF178: 0 | AG178: 0 | AH178: 10 | AI178: 20 | AJ178: 15 | AK178: 0 | AL178: 0 | AM178: 15 | AN178: 30 | AO178: 20 | AP178: 20 | AQ178: 0 | AR178: 0 | AS178: 0 | AT178: 0 | AU178: 40 | AV178: 15 | AW178: 10 | AX178: 0 | AY178: 0 | AZ178: 0 | BA178: 0 | BB178: 25 | BC178: 10 | BD178: 0 | BE178: 0 | BF178: 0 | BG178: 0 | BH178: 10 | BI178: 0 | BJ178: 0 | BL178: 0 | BM178: 0 | BO178: 0 | BP178: 0 | BR178: no
A179: 176 | B179: =Coltura!C177 -> O63 | C179: =Coltura!D177 -> Sedano media produzione | D179: nd | E179: 50 | F179: 240 | G179: 120 | H179: 160 | I179: 80 | J179: 160 | K179: 150 | L179: 250 | M179: 100 | N179: 250 | O179: 40 | P179: 35 | Q179: 20 | R179: 0 | S179: 20 | T179: 0 | U179: 15 | V179: 15 | W179: 0 | X179: 35 | Y179: 10 | Z179: 10 | AA179: 0 | AB179: 0 | AC179: 20 | AD179: 10 | AE179: 0 | AF179: 0 | AG179: 0 | AH179: 60 | AI179: 35 | AJ179: 20 | AK179: 0 | AL179: 0 | AM179: 15 | AN179: 30 | AO179: 20 | AP179: 0 | AQ179: 0 | AR179: 0 | AS179: 0 | AT179: 0 | AU179: 50 | AV179: 35 | AW179: 10 | AX179: 0 | AY179: 0 | AZ179: 0 | BA179: 0 | BB179: 45 | BC179: 20 | BD179: 0 | BE179: 0 | BF179: 0 | BG179: 0 | BH179: 20 | BI179: 0 | BJ179: 0 | BL179: 0 | BM179: 0 | BO179: 0 | BP179: 0 | BR179: no
A180: 177 | B180: =Coltura!C178 -> O64 | C180: =Coltura!D178 -> Sedano alta produzione | D180: nd | E180: 80 | F180: 270 | G180: 120 | H180: 160 | I180: 80 | J180: 160 | K180: 200 | L180: 300 | M180: 150 | N180: 300 | O180: 70 | P180: 35 | Q180: 20 | R180: 0 | S180: 20 | T180: 0 | U180: 15 | V180: 15 | W180: 0 | X180: 35 | Y180: 10 | Z180: 10 | AA180: 0 | AB180: 0 | AC180: 20 | AD180: 10 | AE180: 0 | AF180: 0 | AG180: 0 | AH180: 90 | AI180: 35 | AJ180: 20 | AK180: 0 | AL180: 0 | AM180: 15 | AN180: 30 | AO180: 20 | AP180: 0 | AQ180: 0 | AR180: 0 | AS180: 0 | AT180: 0 | AU180: 50 | AV180: 35 | AW180: 10 | AX180: 0 | AY180: 0 | AZ180: 0 | BA180: 0 | BB180: 45 | BC180: 20 | BD180: 0 | BE180: 0 | BF180: 0 | BG180: 0 | BH180: 20 | BI180: 0 | BJ180: 0 | BL180: 0 | BM180: 0 | BO180: 0 | BP180: 0 | BR180: no
A181: 178 | B181: =Coltura!C179 -> O65 | C181: =Coltura!D179 -> Spinacio alta produzione con più tagli | D181: nd | E181: 27.5 | F181: =IF($BR181="sì",(BS181+(BU181*(Codici!$BA$2-1)))) -> 180 | G181: 50 | H181: 70 | I181: 30 | J181: 70 | K181: =IF($BR181="sì",(BW181+(CA181*(Codici!$BA$2-1)))) -> 130 | L181: =IF($BR181="sì",(BX181+(CB181*(Codici!$BA$2-1)))) -> 150 | M181: =IF($BR181="sì",(BY181+(CC181*(Codici!$BA$2-1)))) -> 30 | N181: =IF($BR181="sì",(BZ181+(CD181*(Codici!$BA$2-1)))) -> 150 | O181: 22 | P181: 0 | Q181: 20 | R181: 0 | S181: 20 | T181: 0 | U181: 20 | V181: 20 | W181: 0 | X181: 20 | Y181: 0 | Z181: 0 | AA181: 0 | AB181: 0 | AC181: 20 | AD181: 0 | AE181: 0 | AF181: 0 | AG181: 0 | AH181: 33 | AI181: 0 | AJ181: 20 | AK181: 0 | AL181: 0 | AM181: 15 | AN181: 20 | AO181: 0 | AP181: 0 | AQ181: 0 | AR181: 0 | AS181: 0 | AT181: 0 | AU181: 40 | AV181: 20 | AW181: 10 | AX181: 0 | AY181: 0 | AZ181: 0 | BA181: 0 | BB181: 30 | BC181: 20 | BD181: 0 | BE181: 0 | BF181: 0 | BG181: 0 | BH181: 20 | BI181: 0 | BJ181: 0 | BL181: 0 | BM181: 0 | BO181: 0 | BP181: 0 | BR181: sì | BS181: 140 | BT181: comprensivo di tutti i tagli | BU181: 40 | BV181: dose per tagli successivi | BW181: 130 | BX181: 150 | BY181: 30 | BZ181: 150 | CA181: 0 | CB181: 0 | CC181: 0 | CD181: 0
A182: 179 | B182: =Coltura!C180 -> O66 | C182: =Coltura!D180 -> Spinacio media produzione | D182: nd | E182: 20 | F182: 150 | G182: 50 | H182: 70 | I182: 30 | J182: 70 | K182: 100 | L182: 120 | M182: 30 | N182: 120 | O182: 16 | P182: 20 | Q182: 20 | R182: 0 | S182: 20 | T182: 0 | U182: 20 | V182: 20 | W182: 0 | X182: 20 | Y182: 0 | Z182: 0 | AA182: 0 | AB182: 0 | AC182: 20 | AD182: 0 | AE182: 0 | AF182: 0 | AG182: 0 | AH182: 24 | AI182: 20 | AJ182: 20 | AK182: 0 | AL182: 0 | AM182: 15 | AN182: 20 | AO182: 0 | AP182: 0 | AQ182: 0 | AR182: 0 | AS182: 0 | AT182: 0 | AU182: 40 | AV182: 20 | AW182: 10 | AX182: 0 | AY182: 0 | AZ182: 0 | BA182: 0 | BB182: 30 | BC182: 20 | BD182: 0 | BE182: 0 | BF182: 0 | BG182: 0 | BH182: 20 | BI182: 0 | BJ182: 0 | BL182: 0 | BM182: 0 | BO182: 0 | BP182: 0 | BR182: no
A183: 180 | B183: =Coltura!C181 -> O67 | C183: =Coltura!D181 -> Verza - cavolo da mercato media produzione | D183: nd | E183: 24 | F183: 130 | G183: 90 | H183: 120 | I183: 30 | J183: 120 | K183: 150 | L183: 190 | M183: 30 | N183: 190 | O183: 19 | P183: 25 | Q183: 20 | R183: 0 | S183: 20 | T183: 0 | U183: 0 | V183: 0 | W183: 0 | X183: 15 | Y183: 10 | Z183: 0 | AA183: 0 | AB183: 0 | AC183: 30 | AD183: 30 | AE183: 0 | AF183: 0 | AG183: 0 | AH183: 29 | AI183: 25 | AJ183: 20 | AK183: 0 | AL183: 0 | AM183: 15 | AN183: 30 | AO183: 20 | AP183: 0 | AQ183: 0 | AR183: 0 | AS183: 0 | AT183: 0 | AU183: 50 | AV183: 15 | AW183: 10 | AX183: 0 | AY183: 0 | AZ183: 0 | BA183: 0 | BB183: 25 | BC183: 30 | BD183: 0 | BE183: 0 | BF183: 0 | BG183: 0 | BH183: 30 | BI183: 0 | BJ183: 0 | BL183: 0 | BM183: 0 | BO183: 0 | BP183: 0 | BR183: no
A184: 181 | B184: =Coltura!C182 -> O68 | C184: =Coltura!D182 -> Verza - cavolo da mercato alta produzione | D184: nd | E184: 50 | F184: 160 | G184: 90 | H184: 120 | I184: 30 | J184: 120 | K184: 180 | L184: 220 | M184: 30 | N184: 220 | O184: 40 | P184: 25 | Q184: 20 | R184: 0 | S184: 20 | T184: 0 | U184: 0 | V184: 0 | W184: 0 | X184: 15 | Y184: 10 | Z184: 0 | AA184: 0 | AB184: 0 | AC184: 30 | AD184: 30 | AE184: 0 | AF184: 0 | AG184: 0 | AH184: 60 | AI184: 25 | AJ184: 20 | AK184: 0 | AL184: 0 | AM184: 15 | AN184: 30 | AO184: 20 | AP184: 0 | AQ184: 0 | AR184: 0 | AS184: 0 | AT184: 0 | AU184: 50 | AV184: 15 | AW184: 10 | AX184: 0 | AY184: 0 | AZ184: 0 | BA184: 0 | BB184: 25 | BC184: 30 | BD184: 0 | BE184: 0 | BF184: 0 | BG184: 0 | BH184: 30 | BI184: 0 | BJ184: 0 | BL184: 0 | BM184: 0 | BO184: 0 | BP184: 0 | BR184: no
A185: 182 | B185: =Coltura!C183 -> O69 | C185: =Coltura!D183 -> Verza da industria | D185: nd | E185: 35 | F185: 150 | G185: 100 | H185: 150 | I185: 0 | J185: 150 | K185: 150 | L185: 190 | M185: 0 | N185: 190 | O185: 28 | P185: 30 | Q185: 20 | R185: 0 | S185: 15 | T185: 0 | U185: 0 | V185: 0 | W185: 0 | X185: 20 | Y185: 10 | Z185: 0 | AA185: 0 | AB185: 0 | AC185: 40 | AD185: 30 | AE185: 0 | AF185: 0 | AG185: 0 | AH185: 42 | AI185: 20 | AJ185: 20 | AK185: 0 | AL185: 0 | AM185: 15 | AN185: 30 | AO185: 20 | AP185: 0 | AQ185: 0 | AR185: 0 | AS185: 0 | AT185: 0 | AU185: 40 | AV185: 20 | AW185: 10 | AX185: 0 | AY185: 0 | AZ185: 0 | BA185: 0 | BB185: 30 | BC185: 40 | BD185: 0 | BE185: 0 | BF185: 0 | BG185: 0 | BH185: 40 | BI185: 0 | BJ185: 0 | BL185: 0 | BM185: 0 | BO185: 0 | BP185: 0 | BR185: no
A186: 183 | B186: =Coltura!C184 -> O70 | C186: =Coltura!D184 -> Zucca | D186: nd | E186: 35 | F186: 110 | G186: 70 | H186: 110 | I186: 50 | J186: 110 | K186: 200 | L186: 260 | M186: 100 | N186: 260 | O186: 28 | P186: 30 | Q186: 20 | R186: 0 | S186: 15 | T186: 0 | U186: 15 | V186: 15 | W186: 0 | X186: 20 | Y186: 10 | Z186: 0 | AA186: 0 | AB186: 0 | AC186: 40 | AD186: 30 | AE186: 0 | AF186: 0 | AG186: 0 | AH186: 42 | AI186: 30 | AJ186: 15 | AK186: 0 | AL186: 0 | AM186: 15 | AN186: 30 | AO186: 20 | AP186: 0 | AQ186: 0 | AR186: 0 | AS186: 0 | AT186: 0 | AU186: 30 | AV186: 20 | AW186: 10 | AX186: 0 | AY186: 0 | AZ186: 0 | BA186: 0 | BB186: 30 | BC186: 40 | BD186: 0 | BE186: 0 | BF186: 0 | BG186: 0 | BH186: 40 | BI186: 0 | BJ186: 0 | BL186: 0 | BM186: 0 | BO186: 0 | BP186: 0 | BR186: no
A187: 184 | B187: =Coltura!C185 -> O71 | C187: =Coltura!D185 -> Zucchino da industria media produzione | D187: nd | E187: 50 | F187: 175 | G187: 150 | H187: 190 | I187: 30 | J187: 190 | K187: 150 | L187: 200 | M187: 50 | N187: 300 | O187: 40 | P187: 30 | Q187: 20 | R187: 0 | S187: 20 | T187: 0 | U187: 0 | V187: 0 | W187: 0 | X187: 30 | Y187: 20 | Z187: 0 | AA187: 0 | AB187: 0 | AC187: 40 | AD187: 30 | AE187: 0 | AF187: 0 | AG187: 0 | AH187: 60 | AI187: 30 | AJ187: 20 | AK187: 0 | AL187: 0 | AM187: 15 | AN187: 30 | AO187: 20 | AP187: 0 | AQ187: 0 | AR187: 0 | AS187: 0 | AT187: 0 | AU187: 40 | AV187: 30 | AW187: 10 | AX187: 0 | AY187: 0 | AZ187: 0 | BA187: 0 | BB187: 40 | BC187: 40 | BD187: 0 | BE187: 0 | BF187: 0 | BG187: 0 | BH187: 40 | BI187: 0 | BJ187: 0 | BL187: 0 | BM187: 0 | BO187: 0 | BP187: 0 | BR187: no
A188: 185 | B188: =Coltura!C186 -> O72 | C188: =Coltura!D186 -> Zucchino da industria alta produzione | D188: nd | E188: 65 | F188: 200 | G188: 150 | H188: 190 | I188: 30 | J188: 190 | K188: 210 | L188: 260 | M188: 60 | N188: 260 | O188: 55 | P188: 30 | Q188: 20 | R188: 0 | S188: 20 | T188: 0 | U188: 0 | V188: 0 | W188: 0 | X188: 30 | Y188: 20 | Z188: 0 | AA188: 0 | AB188: 0 | AC188: 40 | AD188: 30 | AE188: 0 | AF188: 0 | AG188: 0 | AH188: 75 | AI188: 30 | AJ188: 20 | AK188: 0 | AL188: 0 | AM188: 15 | AN188: 30 | AO188: 20 | AP188: 0 | AQ188: 0 | AR188: 0 | AS188: 0 | AT188: 0 | AU188: 40 | AV188: 30 | AW188: 10 | AX188: 0 | AY188: 0 | AZ188: 0 | BA188: 0 | BB188: 40 | BC188: 40 | BD188: 0 | BE188: 0 | BF188: 0 | BG188: 0 | BH188: 40 | BI188: 0 | BJ188: 0 | BL188: 0 | BM188: 0 | BO188: 0 | BP188: 0 | BR188: no
A189: 186 | B189: =Coltura!C187 -> O73 | C189: =Coltura!D187 -> Zucchino da mercato fresco media produzione | D189: nd | E189: 40 | F189: 150 | G189: 100 | H189: 150 | I189: 30 | J189: 150 | K189: 150 | L189: 200 | M189: 50 | N189: 300 | O189: 32 | P189: 30 | Q189: 20 | R189: 0 | S189: 20 | T189: 0 | U189: 20 | V189: 20 | W189: 0 | X189: 20 | Y189: 20 | Z189: 0 | AA189: 0 | AB189: 0 | AC189: 40 | AD189: 30 | AE189: 0 | AF189: 0 | AG189: 0 | AH189: 48 | AI189: 30 | AJ189: 20 | AK189: 0 | AL189: 0 | AM189: 15 | AN189: 30 | AO189: 20 | AP189: 0 | AQ189: 0 | AR189: 0 | AS189: 0 | AT189: 0 | AU189: 40 | AV189: 20 | AW189: 10 | AX189: 0 | AY189: 0 | AZ189: 0 | BA189: 0 | BB189: 30 | BC189: 40 | BD189: 0 | BE189: 0 | BF189: 0 | BG189: 0 | BH189: 40 | BI189: 0 | BJ189: 0 | BL189: 0 | BM189: 0 | BO189: 0 | BP189: 0 | BR189: no
A190: 187 | B190: =Coltura!C188 -> O74 | C190: =Coltura!D188 -> Zucchino da mercato fresco alta produzione | D190: nd | E190: 50 | F190: 180 | G190: 100 | H190: 150 | I190: 30 | J190: 150 | K190: 210 | L190: 260 | M190: 60 | N190: 260 | O190: 40 | P190: 30 | Q190: 20 | R190: 0 | S190: 20 | T190: 0 | U190: 20 | V190: 20 | W190: 0 | X190: 20 | Y190: 20 | Z190: 0 | AA190: 0 | AB190: 0 | AC190: 40 | AD190: 30 | AE190: 0 | AF190: 0 | AG190: 0 | AH190: 60 | AI190: 30 | AJ190: 20 | AK190: 0 | AL190: 0 | AM190: 15 | AN190: 30 | AO190: 20 | AP190: 0 | AQ190: 0 | AR190: 0 | AS190: 0 | AT190: 0 | AU190: 40 | AV190: 20 | AW190: 10 | AX190: 0 | AY190: 0 | AZ190: 0 | BA190: 0 | BB190: 30 | BC190: 40 | BD190: 0 | BE190: 0 | BF190: 0 | BG190: 0 | BH190: 40 | BI190: 0 | BJ190: 0 | BL190: 0 | BM190: 0 | BO190: 0 | BP190: 0 | BR190: no
A191: 188 | B191: =Coltura!C189 -> S1 | C191: =Coltura!D189 -> Barbabiertola da seme (fase porta seme) | D191: nd | E191: nd | F191: 140 | G191: 70 | H191: 120 | I191: 50 | J191: 120 | K191: 100 | L191: 150 | M191: 50 | N191: 150 | O191: nd | P191: 0 | Q191: 20 | R191: 0 | S191: 20 | T191: 0 | U191: 40 | V191: 40 | W191: 0 | X191: 0 | Y191: 20 | Z191: 0 | AA191: 0 | AB191: 0 | AC191: 0 | AD191: 20 | AE191: 0 | AF191: 0 | AG191: 0 | AH191: nd | AI191: 0 | AJ191: 20 | AK191: 0 | AL191: 0 | AM191: 15 | AN191: 30 | AO191: 0 | AP191: 0 | AQ191: 0 | AR191: 0 | AS191: 0 | AT191: 0 | AU191: 40 | AV191: 0 | AW191: 20 | AX191: 0 | AY191: 0 | AZ191: 20 | BA191: 0 | BB191: 40 | BC191: 0 | BD191: 0 | BE191: 0 | BF191: 0 | BG191: 0 | BH191: 0 | BI191: 0 | BJ191: 0 | BL191: 0 | BM191: 0 | BO191: 0 | BP191: 0 | BR191: no
A192: 189 | B192: =Coltura!C190 -> S2 | C192: =Coltura!D190 -> Carota da seme (fase portaseme) | D192: nd | E192: nd | F192: 120 | G192: 100 | H192: 150 | I192: 50 | J192: 150 | K192: 150 | L192: 200 | M192: 100 | N192: 200 | O192: nd | P192: 0 | Q192: 20 | R192: 0 | S192: 15 | T192: 0 | U192: 15 | V192: 15 | W192: 0 | X192: 0 | Y192: 10 | Z192: 0 | AA192: 0 | AB192: 0 | AC192: 0 | AD192: 30 | AE192: 0 | AF192: 0 | AG192: 0 | AH192: nd | AI192: 0 | AJ192: 20 | AK192: 0 | AL192: 0 | AM192: 15 | AN192: 30 | AO192: 20 | AP192: 0 | AQ192: 0 | AR192: 0 | AS192: 0 | AT192: 0 | AU192: 30 | AV192: 0 | AW192: 10 | AX192: 20 | AY192: 0 | AZ192: 0 | BA192: 0 | BB192: 30 | BC192: 0 | BD192: 0 | BE192: 0 | BF192: 0 | BG192: 0 | BH192: 0 | BI192: 0 | BJ192: 0 | BL192: 0 | BM192: 0 | BO192: 0 | BP192: 0 | BR192: no
A193: 190 | B193: =Coltura!C191 -> S3 | C193: =Coltura!D191 -> Carota da seme (fase vivaio) | D193: nd | E193: 50 | F193: 120 | G193: 150 | H193: 220 | I193: 80 | J193: 220 | K193: 200 | L193: 300 | M193: 100 | N193: 300 | O193: 40 | P193: 20 | Q193: 20 | R193: 0 | S193: 15 | T193: 0 | U193: 15 | V193: 15 | W193: 0 | X193: 30 | Y193: 10 | Z193: 0 | AA193: 0 | AB193: 0 | AC193: 40 | AD193: 30 | AE193: 0 | AF193: 0 | AG193: 0 | AH193: 60 | AI193: 20 | AJ193: 20 | AK193: 0 | AL193: 0 | AM193: 15 | AN193: 30 | AO193: 20 | AP193: 0 | AQ193: 0 | AR193: 0 | AS193: 0 | AT193: 0 | AU193: 35 | AV193: 30 | AW193: 10 | AX193: 0 | AY193: 0 | AZ193: 0 | BA193: 0 | BB193: 40 | BC193: 40 | BD193: 0 | BE193: 0 | BF193: 0 | BG193: 0 | BH193: 40 | BI193: 0 | BJ193: 0 | BL193: 0 | BM193: 0 | BO193: 0 | BP193: 0 | BR193: no
A194: 191 | B194: =Coltura!C192 -> S4 | C194: =Coltura!D192 -> Cavoli da seme | D194: nd | E194: nd | F194: 160 | G194: 100 | H194: 150 | I194: 0 | J194: 150 | K194: 100 | L194: 150 | M194: 0 | N194: 150 | O194: nd | P194: 0 | Q194: 20 | R194: 0 | S194: 20 | T194: 0 | U194: 0 | V194: 0 | W194: 0 | X194: 0 | Y194: 10 | Z194: 0 | AA194: 0 | AB194: 0 | AC194: 0 | AD194: 30 | AE194: 0 | AF194: 0 | AG194: 0 | AH194: nd | AI194: 0 | AJ194: 20 | AK194: 0 | AL194: 0 | AM194: 15 | AN194: 30 | AO194: 20 | AP194: 0 | AQ194: 0 | AR194: 0 | AS194: 0 | AT194: 0 | AU194: 40 | AV194: 0 | AW194: 10 | AX194: 0 | AY194: 0 | AZ194: 0 | BA194: 0 | BB194: 10 | BC194: 0 | BD194: 0 | BE194: 0 | BF194: 0 | BG194: 0 | BH194: 0 | BI194: 0 | BJ194: 0 | BL194: 0 | BM194: 0 | BO194: 0 | BP194: 0 | BR194: no
A195: 192 | B195: =Coltura!C193 -> S5 | C195: =Coltura!D193 -> Cetriolo da seme | D195: nd | E195: nd | F195: 180 | G195: 150 | H195: 220 | I195: 75 | J195: 220 | K195: 100 | L195: 150 | M195: 50 | N195: 150 | O195: nd | P195: 0 | Q195: 20 | R195: 0 | S195: 15 | T195: 0 | U195: 15 | V195: 15 | W195: 0 | X195: 0 | Y195: 10 | Z195: 0 | AA195: 0 | AB195: 0 | AC195: 0 | AD195: 30 | AE195: 0 | AF195: 0 | AG195: 0 | AH195: nd | AI195: 0 | AJ195: 20 | AK195: 0 | AL195: 0 | AM195: 15 | AN195: 30 | AO195: 20 | AP195: 0 | AQ195: 0 | AR195: 0 | AS195: 0 | AT195: 0 | AU195: 40 | AV195: 0 | AW195: 10 | AX195: 0 | AY195: 0 | AZ195: 0 | BA195: 0 | BB195: 10 | BC195: 0 | BD195: 0 | BE195: 0 | BF195: 0 | BG195: 0 | BH195: 0 | BI195: 0 | BJ195: 0 | BL195: 0 | BM195: 0 | BO195: 0 | BP195: 0 | BR195: no
A196: 193 | B196: =Coltura!C194 -> S6 | C196: =Coltura!D194 -> Cicoria da seme | D196: nd | E196: nd | F196: 140 | G196: 120 | H196: 160 | I196: 60 | J196: 160 | K196: 120 | L196: 180 | M196: 60 | N196: 180 | O196: nd | P196: 0 | Q196: 20 | R196: 0 | S196: 15 | T196: 0 | U196: 15 | V196: 15 | W196: 0 | X196: 0 | Y196: 10 | Z196: 0 | AA196: 0 | AB196: 0 | AC196: 0 | AD196: 30 | AE196: 0 | AF196: 0 | AG196: 0 | AH196: nd | AI196: 0 | AJ196: 20 | AK196: 0 | AL196: 0 | AM196: 15 | AN196: 30 | AO196: 20 | AP196: 0 | AQ196: 0 | AR196: 0 | AS196: 0 | AT196: 0 | AU196: 40 | AV196: 0 | AW196: 10 | AX196: 20 | AY196: 0 | AZ196: 0 | BA196: 0 | BB196: 30 | BC196: 0 | BD196: 0 | BE196: 0 | BF196: 0 | BG196: 0 | BH196: 0 | BI196: 0 | BJ196: 0 | BL196: 0 | BM196: 0 | BO196: 0 | BP196: 0 | BR196: no
A197: 194 | B197: =Coltura!C195 -> S7 | C197: =Coltura!D195 -> Cipolla da seme (fase portaseme) | D197: nd | E197: nd | F197: 130 | G197: 120 | H197: 160 | I197: 80 | J197: 160 | K197: 120 | L197: 160 | M197: 80 | N197: 160 | O197: nd | P197: 0 | Q197: 20 | R197: 0 | S197: 15 | T197: 0 | U197: 15 | V197: 15 | W197: 0 | X197: 0 | Y197: 10 | Z197: 0 | AA197: 0 | AB197: 0 | AC197: 0 | AD197: 30 | AE197: 0 | AF197: 0 | AG197: 0 | AH197: nd | AI197: 0 | AJ197: 20 | AK197: 0 | AL197: 0 | AM197: 15 | AN197: 20 | AO197: 0 | AP197: 20 | AQ197: 0 | AR197: 0 | AS197: 0 | AT197: 0 | AU197: 30 | AV197: 0 | AW197: 10 | AX197: 0 | AY197: 0 | AZ197: 0 | BA197: 0 | BB197: 10 | BC197: 0 | BD197: 0 | BE197: 0 | BF197: 0 | BG197: 0 | BH197: 0 | BI197: 0 | BJ197: 0 | BL197: 0 | BM197: 0 | BO197: 0 | BP197: 0 | BR197: no
A198: 195 | B198: =Coltura!C196 -> S8 | C198: =Coltura!D196 -> Cipolla da seme (fase vivaio) | D198: nd | E198: 45 | F198: 130 | G198: 120 | H198: 160 | I198: 80 | J198: 160 | K198: 120 | L198: 160 | M198: 80 | N198: 160 | O198: 36 | P198: 0 | Q198: 20 | R198: 0 | S198: 15 | T198: 0 | U198: 15 | V198: 15 | W198: 0 | X198: 20 | Y198: 0 | Z198: 0 | AA198: 0 | AB198: 0 | AC198: 25 | AD198: 0 | AE198: 0 | AF198: 0 | AG198: 0 | AH198: 54 | AI198: 20 | AJ198: 20 | AK198: 0 | AL198: 0 | AM198: 15 | AN198: 30 | AO198: 0 | AP198: 20 | AQ198: 0 | AR198: 0 | AS198: 0 | AT198: 0 | AU198: 40 | AV198: 20 | AW198: 10 | AX198: 20 | AY198: 0 | AZ198: 0 | BA198: 0 | BB198: 50 | BC198: 20 | BD198: 0 | BE198: 0 | BF198: 0 | BG198: 0 | BH198: 20 | BI198: 0 | BJ198: 0 | BL198: 0 | BM198: 0 | BO198: 0 | BP198: 0 | BR198: no
A199: =(A198+1) -> 196 | B199: =Coltura!C197 -> S9 | C199: =Coltura!D197 -> Coriandolo da seme | D199: nd | E199: nd | F199: 70 | G199: 70 | H199: 150 | I199: 40 | J199: 150 | K199: 50 | L199: 120 | M199: 0 | N199: 120 | O199: nd | P199: 0 | Q199: 20 | R199: 0 | S199: 15 | T199: 0 | U199: 80 | V199: 15 | W199: 0 | X199: 0 | Y199: 10 | Z199: 0 | AA199: 0 | AB199: 0 | AC199: 0 | AD199: 10 | AE199: 0 | AF199: 0 | AG199: 0 | AH199: nd | AI199: 0 | AJ199: 15 | AK199: 0 | AL199: 0 | AM199: 15 | AN199: 20 | AO199: 20 | AP199: 0 | AQ199: 0 | AR199: 0 | AS199: 0 | AT199: 0 | AU199: 20 | AV199: 0 | AW199: 10 | AX199: 0 | AY199: 0 | AZ199: 0 | BA199: 0 | BB199: 10 | BC199: 0 | BD199: 0 | BE199: 0 | BF199: 0 | BG199: 0 | BH199: 0 | BI199: 0 | BJ199: 0 | BL199: 0 | BM199: 0 | BO199: 0 | BP199: 0 | BR199: no
A200: 197 | B200: =Coltura!C198 -> S10 | C200: =Coltura!D198 -> Erba medica da seme | D200: nd | E200: nd | F200: 0 | G200: 60 | H200: 100 | I200: 30 | J200: 100 | K200: 150 | L200: 200 | M200: 0 | N200: 200 | O200: nd | P200: 0 | Q200: 0 | R200: 0 | S200: 0 | T200: 0 | U200: 0 | V200: 0 | W200: 0 | X200: 0 | Y200: 0 | Z200: 0 | AA200: 0 | AB200: 0 | AC200: 0 | AD200: 0 | AE200: 0 | AF200: 0 | AG200: 0 | AH200: nd | AI200: 0 | AJ200: 0 | AK200: 0 | AL200: 0 | AM200: 0 | AN200: 0 | AO200: 0 | AP200: 0 | AQ200: 0 | AR200: 0 | AS200: 100 | AT200: 0 | AU200: 100 | AV200: 0 | AW200: 0 | AX200: 0 | AY200: 0 | AZ200: 0 | BA200: 0 | BB200: 0 | BC200: 0 | BD200: 0 | BE200: 0 | BF200: 0 | BG200: 0 | BH200: 0 | BI200: 0 | BJ200: 0 | BL200: 0 | BM200: 0 | BO200: 0 | BP200: 0 | BR200: no
... 36 more rows

Sheet MAS (hidden)
C1: CONTROLLO DEL MAS | G1: Da Tab. MAS | N1: Uniformato a DPI
F2: Teorico massimo o con assenza inoculo | G2: MAS | H2: resa | I2: come | J2: prod. | K2: asciutto / irriguo | L2: resa | M2: ss | N2: Resa_Standard | O2: N_Standard | P2: Incremento max | Q2: Dose max
A3: ordinato | B3: progressivo di gruppo | C3: ID_Coltura | D3: fase | E3: Coltura | F3: kg/ha | G3: kg/ha | H3: t | I3: come | J3: prod. | K3: sì/no | L3: t/ha | M3: % | Q3: kg/ha | R3: nota
A4: =Coltura!A2 -> 1 | B4: =Coltura!B2 -> 1 | C4: =Coltura!C2 -> A2 | D4: nd | E4: =Coltura!D2 -> Actinidia polpa verde frutti, legno e foglie | F4: 340 | G4: 150 | H4: 25 | I4: tq | K4: no | L4: =IF(I4="tq",H4,IF(I4="s.s.",(H4/(M4/100)))) -> 25 | N4: =Standard!E4 -> 25 | O4: =Standard!F4 -> 120 | P4: =Standard!AU4 -> 40 | Q4: =(O4+P4) -> 160 | R4: RR n.3 2017
A5: =Coltura!A3 -> 2 | B5: =Coltura!B3 -> 2 | C5: =Coltura!C3 -> Ab2 | D5: nd | E5: =Coltura!D3 -> Actinidia polpa gialla frutti, legno e foglie | F5: 340 | G5: 150 | H5: 25 | I5: tq | K5: no | L5: =IF(I5="tq",H5,IF(I5="s.s.",(H5/(M5/100)))) -> 25 | N5: =Standard!E5 -> 30 | O5: =Standard!F5 -> 150 | P5: =Standard!AU5 -> 40 | Q5: =(O5+P5) -> 190 | R5: RR n.3 2018
A6: =Coltura!A4 -> 3 | B6: =Coltura!B4 -> 3 | C6: =Coltura!C4 -> A4 | D6: nd | E6: =Coltura!D4 -> Albicocco media produzione frutti, legno e foglie | F6: 340 | G6: 135 | H6: 13 | I6: tq | K6: no | L6: =IF(I6="tq",H6,IF(I6="s.s.",(H6/(M6/100)))) -> 13 | N6: =Standard!E6 -> 13 | O6: =Standard!F6 -> 75 | P6: =Standard!AU6 -> 50 | Q6: =(O6+P6) -> 125 | R6: RR n.3 2017
A7: =Coltura!A5 -> 4 | B7: =Coltura!B5 -> 4 | C7: =Coltura!C5 -> A5 | D7: nd | E7: =Coltura!D5 -> Albicocco alta produzione frutti, legno e foglie | F7: 340 | G7: 135 | H7: 13 | I7: tq | K7: no | L7: 13 | N7: =Standard!E7 -> 18 | O7: =Standard!F7 -> 100 | P7: =Standard!AU7 -> 50 | Q7: 150 | R7: RR n.3 2018
A8: =Coltura!A6 -> 5 | B8: =Coltura!B6 -> 5 | C8: =Coltura!C6 -> A6 | D8: nd | E8: =Coltura!D6 -> Altri fruttiferi frutti, legno e foglie | F8: 340 | G8: nd | H8: nd | I8: nd | J8: nd | K8: no | L8: FALSE | N8: =Standard!E8 -> nd | O8: =Standard!F8 -> nd | P8: =Standard!AU8 -> 0
A9: =Coltura!A7 -> 6 | B9: =Coltura!B7 -> 6 | C9: =Coltura!C7 -> A8 | D9: nd | E9: =Coltura!D7 -> Arancio frutti, legno e foglie | F9: 340 | G9: nd | H9: nd | I9: nd | J9: nd | K9: no | L9: FALSE | N9: =Standard!E9 -> 30 | O9: =Standard!F9 -> 120 | P9: =Standard!AU9 -> 50 | Q9: 170 | R9: RR n.3 2017
A10: =Coltura!A8 -> 7 | B10: =Coltura!B8 -> 7 | C10: =Coltura!C8 -> A10 | D10: nd | E10: =Coltura!D8 -> Castagno solo frutti | F10: 340 | G10: nd | H10: nd | I10: nd | J10: nd | K10: no | L10: FALSE | N10: =Standard!E10 -> nd | O10: =Standard!F10 -> nd | P10: =Standard!AU10 -> 0
A11: =Coltura!A9 -> 8 | B11: =Coltura!B9 -> 8 | C11: =Coltura!C9 -> A12 | D11: nd | E11: =Coltura!D9 -> Ciliegio frutti, legno e foglie | F11: 340 | G11: 120 | H11: 9 | I11: tq | K11: no | L11: 9 | N11: =Standard!E11 -> 9 | O11: =Standard!F11 -> 70 | P11: =Standard!AU11 -> 50 | Q11: 120 | R11: RR n.3 2017
A12: =Coltura!A10 -> 9 | B12: =Coltura!B10 -> 9 | C12: =Coltura!C10 -> A14 | D12: nd | E12: =Coltura!D10 -> Clementine frutti, legno e foglie | F12: 340 | G12: nd | H12: nd | I12: nd | J12: nd | K12: no | L12: FALSE | N12: =Standard!E12 -> 25 | O12: =Standard!F12 -> 140 | P12: =Standard!AU12 -> 50 | Q12: 190 | R12: RR n.3 2017
A13: =Coltura!A11 -> 10 | B13: =Coltura!B11 -> 10 | C13: =Coltura!C11 -> A16 | D13: nd | E13: =Coltura!D11 -> Fico frutti, legno e foglie | F13: 340 | G13: nd | H13: nd | I13: nd | J13: nd | K13: no | L13: FALSE | N13: =Standard!E13 -> nd | O13: =Standard!F13 -> nd | P13: =Standard!AU13 -> 0
A14: =Coltura!A12 -> 11 | B14: =Coltura!B12 -> 11 | C14: =Coltura!C12 -> A18 | D14: nd | E14: =Coltura!D12 -> Kaki frutti, legno e foglie | F14: 340 | G14: nd | H14: nd | I14: nd | J14: nd | K14: no | L14: FALSE | N14: =Standard!E14 -> 25 | O14: =Standard!F14 -> 60 | P14: =Standard!AU14 -> 40 | Q14: 100 | R14: RR n.3 2017
A15: =Coltura!A13 -> 12 | B15: =Coltura!B13 -> 12 | C15: =Coltura!C13 -> A20 | D15: nd | E15: =Coltura!D13 -> Limone frutti, legno e foglie | F15: 340 | G15: nd | H15: nd | I15: nd | J15: nd | K15: no | L15: FALSE | N15: =Standard!E15 -> 30 | O15: =Standard!F15 -> 120 | P15: =Standard!AU15 -> 50 | Q15: 170 | R15: RR n.3 2017
A16: =Coltura!A14 -> 13 | B16: =Coltura!B14 -> 13 | C16: =Coltura!C14 -> A22 | D16: nd | E16: =Coltura!D14 -> Mandarino frutti, legno e foglie | F16: 340 | G16: nd | H16: nd | I16: nd | J16: nd | K16: no | L16: FALSE | N16: =Standard!E16 -> 25 | O16: =Standard!F16 -> 140 | P16: =Standard!AU16 -> 50 | Q16: 190 | R16: RR n.3 2017
A17: =Coltura!A15 -> 14 | B17: =Coltura!B15 -> 14 | C17: =Coltura!C15 -> A24 | D17: nd | E17: =Coltura!D15 -> Mandorlo frutti, legno e foglie | F17: 340 | G17: nd | H17: nd | I17: nd | J17: nd | K17: no | L17: FALSE | N17: =Standard!E17 -> nd | O17: =Standard!F17 -> nd | P17: =Standard!AU17 -> 0
A18: =Coltura!A16 -> 15 | B18: =Coltura!B16 -> 15 | C18: =Coltura!C16 -> A26 | D18: nd | E18: =Coltura!D16 -> Melo frutti, legno e foglie | F18: 340 | G18: 120 | H18: 35 | I18: tq | K18: no | L18: 35 | N18: =Standard!E18 -> 40 | O18: =Standard!F18 -> 80 | P18: =Standard!AU18 -> 60 | Q18: 140 | R18: RR n.3 2017
A19: =Coltura!A17 -> 16 | B19: =Coltura!B17 -> 16 | C19: =Coltura!C17 -> A28 | D19: nd | E19: =Coltura!D17 -> Nashi frutti, legno e foglie | F19: 340 | G19: nd | H19: nd | I19: nd | J19: nd | K19: no | L19: FALSE | N19: =Standard!E19 -> nd | O19: =Standard!F19 -> nd | P19: =Standard!AU19 -> 0
A20: =Coltura!A18 -> 17 | B20: =Coltura!B18 -> 17 | C20: =Coltura!C18 -> A30 | D20: nd | E20: =Coltura!D18 -> Nespolo frutti, legno e foglie | F20: 340 | G20: nd | H20: nd | I20: nd | J20: nd | K20: no | L20: FALSE | N20: =Standard!E20 -> nd | O20: =Standard!F20 -> nd | P20: =Standard!AU20 -> 0
A21: =Coltura!A19 -> 18 | B21: =Coltura!B19 -> 18 | C21: =Coltura!C19 -> A32 | D21: nd | E21: =Coltura!D19 -> Nettarine frutti, legno e foglie | F21: 340 | G21: 175 | H21: 25 | I21: tq | K21: no | L21: 25 | N21: =Standard!E21 -> 25 | O21: =Standard!F21 -> 100 | P21: =Standard!AU21 -> 50 | Q21: 150 | R21: RR n.3 2017
A22: =Coltura!A20 -> 19 | B22: =Coltura!B20 -> 19 | C22: =Coltura!C20 -> A34 | D22: nd | E22: =Coltura!D20 -> Nocciolo frutti, legno e foglie | F22: 340 | G22: 100 | H22: 2 | I22: tq | K22: no | L22: 2 | N22: =Standard!E22 -> nd | O22: =Standard!F22 -> nd | P22: =Standard!AU22 -> 0
A23: =Coltura!A21 -> 20 | B23: =Coltura!B21 -> 20 | C23: =Coltura!C21 -> A36 | D23: nd | E23: =Coltura!D21 -> Noce da frutto frutti, legno e foglie | F23: 340 | G23: 120 | H23: 4 | I23: tq | K23: no | L23: 4 | N23: =Standard!E23 -> 4 | O23: =Standard!F23 -> 90 | P23: =Standard!AU23 -> 50 | Q23: 140 | R23: RR n.3 2017
A24: =Coltura!A22 -> 21 | B24: =Coltura!B22 -> 21 | C24: =Coltura!C22 -> A38 | D24: nd | E24: =Coltura!D22 -> Olivo olive, legno e foglie | F24: 340 | G24: nd | H24: nd | I24: nd | J24: nd | K24: no | L24: FALSE | N24: =Standard!E24 -> 4 | O24: =Standard!F24 -> 70 | P24: =Standard!AU24 -> 30 | Q24: 100 | R24: RR n.3 2017
A25: =Coltura!A23 -> 22 | B25: =Coltura!B23 -> 22 | C25: =Coltura!C23 -> A40 | D25: nd | E25: =Coltura!D23 -> Pero media produzione frutti, legno e foglie | F25: 340 | G25: 120 | H25: 30 | I25: tq | K25: no | L25: 30 | N25: =Standard!E25 -> 30 | O25: =Standard!F25 -> 90 | P25: =Standard!AU25 -> 50 | Q25: 140 | R25: RR n.3 2017
A26: =Coltura!A24 -> 23 | B26: =Coltura!B24 -> 23 | C26: =Coltura!C24 -> A41 | D26: nd | E26: =Coltura!D24 -> Pero alta produzione frutti, legno e foglie | F26: 340 | G26: 120 | H26: 30 | I26: tq | K26: no | L26: =IF(I26="tq",H26,IF(I26="s.s.",(H26/(M26/100)))) -> 30 | N26: =Standard!E26 -> 40 | O26: =Standard!F26 -> 120 | P26: =Standard!AU26 -> 50 | Q26: =(O26+P26) -> 170 | R26: RR n.3 2018
A27: =Coltura!A25 -> 24 | B27: =Coltura!B25 -> 24 | C27: =Coltura!C25 -> A42 | D27: nd | E27: =Coltura!D25 -> Pesco frutti, legno e foglie | F27: 340 | G27: 175 | H27: 25 | I27: tq | K27: no | L27: 25 | N27: =Standard!E27 -> 25 | O27: =Standard!F27 -> 100 | P27: =Standard!AU27 -> 50 | Q27: 150 | R27: RR n.3 2017
A28: =Coltura!A26 -> 25 | B28: =Coltura!B26 -> 25 | C28: =Coltura!C26 -> A43 | D28: nd | E28: =Coltura!D26 -> Pioppo | F28: 340 | G28: nd | H28: nd | I28: nd | J28: nd | K28: no | L28: FALSE | N28: =Standard!E28 -> nd | O28: =Standard!F28 -> nd | P28: =Standard!AU28 -> 0
A29: =Coltura!A27 -> 26 | B29: =Coltura!B27 -> 26 | C29: =Coltura!C27 -> A44 | D29: nd | E29: =Coltura!D27 -> Pioppo da energia | F29: 340 | G29: nd | H29: nd | I29: nd | J29: nd | K29: no | L29: FALSE | N29: =Standard!E29 -> nd | O29: =Standard!F29 -> nd | P29: =Standard!AU29 -> 0
A30: =Coltura!A28 -> 27 | B30: =Coltura!B28 -> 27 | C30: =Coltura!C28 -> A46 | D30: nd | E30: =Coltura!D28 -> Susino frutti, legno e foglie | F30: 340 | G30: 120 | H30: 20 | I30: tq | K30: no | L30: 20 | N30: =Standard!E30 -> 25 | O30: =Standard!F30 -> 90 | P30: =Standard!AU30 -> 50 | Q30: 140 | R30: RR n.3 2017
A31: =Coltura!A29 -> 28 | B31: =Coltura!B29 -> 28 | C31: =Coltura!C29 -> A48 | D31: nd | E31: =Coltura!D29 -> Uva da tavola grappoli, tralci e foglie | F31: 340 | G31: 100 | H31: 18 | I31: tq | K31: no | L31: 18 | N31: =Standard!E31 -> 25 | O31: =Standard!F31 -> 90 | P31: =Standard!AU31 -> 50 | Q31: 140 | R31: RR n.3 2017
A32: =Coltura!A30 -> 29 | B32: =Coltura!B30 -> 29 | C32: =Coltura!C30 -> A50 | D32: nd | E32: =Coltura!D30 -> Vite per uva da vino (collina e montagna) grappoli, tralci e foglie | F32: 340 | G32: 70 | H32: 9 | I32: tq | K32: no | L32: 9 | N32: =Standard!E32 -> 10 | O32: =Standard!F32 -> 50 | P32: =Standard!AU32 -> 40 | Q32: 90 | R32: RR n.3 2017
A33: =Coltura!A31 -> 30 | B33: =Coltura!B31 -> 30 | C33: =Coltura!C31 -> A52 | D33: nd | E33: =Coltura!D31 -> Vite per uva da vino (pianura) grappoli, legno e foglie | F33: 340 | G33: 100 | H33: 18 | I33: tq | K33: no | L33: 18 | N33: =Standard!E33 -> 20 | O33: =Standard!F33 -> 80 | P33: =Standard!AU33 -> 30 | Q33: 110 | R33: RR n.3 2017
A34: =Coltura!A32 -> 31 | B34: =Coltura!B32 -> 1 | C34: =Coltura!C32 -> E1 | D34: nd | E34: =Coltura!D32 -> Altri cereali a paglia (pianta intera) | F34: 340 | G34: nd | H34: nd | I34: nd | J34: nd | K34: no | L34: FALSE | N34: =Standard!E34 -> nd | O34: =Standard!F34 -> nd | P34: =Standard!AU34 -> 0
A35: =Coltura!A33 -> 32 | B35: =Coltura!B33 -> 2 | C35: =Coltura!C33 -> E2 | D35: nd | E35: =Coltura!D33 -> Avena | F35: 340 | G35: 110 | H35: 4.5 | I35: tq | J35: gran | K35: no | L35: 4.5 | M35: 87 | N35: =Standard!E35 -> 3.2 | O35: =Standard!F35 -> 60 | P35: =Standard!AU35 -> 40 | Q35: 100 | R35: RR n.3 2017
A36: =Coltura!A34 -> 33 | B36: =Coltura!B34 -> 3 | C36: =Coltura!C34 -> E3 | D36: nd | E36: =Coltura!D34 -> Avena pianta intera | F36: 340 | G36: 110 | H36: 4.5 | I36: tq | J36: gran | K36: no | L36: 4.5 | M36: 87 | N36: =Standard!E36 -> 3.2 | O36: =Standard!F36 -> 60 | P36: =Standard!AU36 -> 40 | Q36: 100 | R36: RR n.3 2017
A37: =Coltura!A35 -> 34 | B37: =Coltura!B35 -> 4 | C37: =Coltura!C35 -> E4 | D37: nd | E37: =Coltura!D35 -> Barbababietola da zucchero (pianta intera) | F37: 340 | G37: 160 | H37: 60 | I37: tq | K37: no | L37: 60 | M37: 23 | N37: =Standard!E37 -> 50 | O37: =Standard!F37 -> 120 | P37: =Standard!AU37 -> 40 | Q37: 160 | R37: RR n.3 2017
A38: =Coltura!A36 -> 35 | B38: =Coltura!B36 -> 5 | C38: =Coltura!C36 -> E5 | D38: nd | E38: =Coltura!D36 -> Barbabietola da zucchero (radici) | F38: 340 | G38: 160 | H38: 60 | I38: tq | K38: no | L38: 60 | M38: 23 | N38: =Standard!E38 -> 50 | O38: =Standard!F38 -> 120 | P38: =Standard!AU38 -> 40 | Q38: 160 | R38: RR n.3 2017
A39: =Coltura!A37 -> 36 | B39: =Coltura!B37 -> 6 | C39: =Coltura!C37 -> E6 | D39: nd | E39: =Coltura!D37 -> Canapa da fibra | F39: 340 | G39: nd | H39: nd | I39: nd | J39: nd | K39: no | L39: FALSE | M39: 30 | N39: =Standard!E39 -> nd | O39: =Standard!F39 -> nd | P39: =Standard!AU39 -> 0
A40: =Coltura!A38 -> 37 | B40: =Coltura!B38 -> 7 | C40: =Coltura!C38 -> E7 | D40: nd | E40: =Coltura!D38 -> Cavolo abissino | F40: 340 | G40: nd | H40: nd | I40: nd | J40: nd | K40: no | L40: FALSE | M40: 90 | N40: =Standard!E40 -> nd | O40: =Standard!F40 -> nd | P40: =Standard!AU40 -> 0
A41: =Coltura!A39 -> 38 | B41: =Coltura!B39 -> 8 | C41: =Coltura!C39 -> E8 | D41: nd | E41: =Coltura!D39 -> Cece | F41: 340 | G41: 80 | H41: 3 | I41: tq | K41: no | L41: 3 | M41: 86 | N41: =Standard!E41 -> 2 | O41: =Standard!F41 -> 40 | P41: =Standard!AU41 -> 30 | Q41: 70 | R41: RR n.3 2017
A42: =Coltura!A40 -> 39 | B42: =Coltura!B40 -> 9 | C42: =Coltura!C40 -> E9 | D42: nd | E42: =Coltura!D40 -> Colza | F42: 340 | G42: 150 | H42: 4 | I42: tq | J42: gran | K42: no | L42: 4 | M42: 90 | N42: =Standard!E42 -> 2.5 | O42: =Standard!F42 -> 135 | P42: =Standard!AU42 -> 40 | Q42: 175 | R42: RR n.3 2017
A43: =Coltura!A41 -> 40 | B43: =Coltura!B41 -> 10 | C43: =Coltura!C41 -> E10 | D43: nd | E43: =Coltura!D41 -> Colza pianta intera | F43: 340 | G43: 150 | H43: 4 | I43: tq | J43: gran | K43: no | L43: 4 | M43: 90 | N43: =Standard!E43 -> 2.5 | O43: =Standard!F43 -> 135 | P43: =Standard!AU43 -> 40 | Q43: 175 | R43: RR n.3 2017
A44: =Coltura!A42 -> 41 | B44: =Coltura!B42 -> 11 | C44: =Coltura!C42 -> E11 | D44: nd | E44: =Coltura!D42 -> Farro | F44: 340 | G44: nd | H44: nd | I44: nd | J44: nd | K44: no | L44: FALSE | M44: 87 | N44: =Standard!E44 -> 2 | O44: =Standard!F44 -> 40 | P44: =Standard!AU44 -> 30 | Q44: 70 | R44: RR n.3 2017
A45: =Coltura!A43 -> 42 | B45: =Coltura!B43 -> 12 | C45: =Coltura!C43 -> E12 | D45: nd | E45: =Coltura!D43 -> Farro (pianta intera) | F45: 340 | G45: nd | H45: nd | I45: nd | J45: nd | K45: no | L45: FALSE | M45: 87 | N45: =Standard!E45 -> 2 | O45: =Standard!F45 -> 40 | P45: =Standard!AU45 -> 30 | Q45: 70 | R45: RR n.3 2017
A46: =Coltura!A44 -> 43 | B46: =Coltura!B44 -> 13 | C46: =Coltura!C44 -> E13 | D46: nd | E46: =Coltura!D44 -> Favino da granella | F46: 340 | G46: nd | H46: nd | I46: nd | J46: nd | K46: no | L46: FALSE | M46: 86 | N46: =Standard!E46 -> 2 | O46: =Standard!F46 -> 0 | P46: =Standard!AU46 -> 40 | Q46: 40 | R46: RR n.3 2017
A47: =Coltura!A45 -> 44 | B47: =Coltura!B45 -> 14 | C47: =Coltura!C45 -> E14 | D47: nd | E47: =Coltura!D45 -> Girasole (acheni) | F47: 340 | G47: 120 | H47: 3.5 | I47: tq | J47: gran | K47: no | L47: 3.5 | M47: 90 | N47: =Standard!E47 -> 3 | O47: =Standard!F47 -> 90 | P47: =Standard!AU47 -> 40 | Q47: 130 | R47: RR n.3 2017
A48: =Coltura!A46 -> 45 | B48: =Coltura!B46 -> 15 | C48: =Coltura!C46 -> E15 | D48: nd | E48: =Coltura!D46 -> Girasole (pianta intera) | F48: 340 | G48: 120 | H48: 3.5 | I48: tq | J48: gran | K48: no | L48: 3.5 | M48: 90 | N48: =Standard!E48 -> 3 | O48: =Standard!F48 -> 90 | P48: =Standard!AU48 -> 40 | Q48: 130 | R48: RR n.3 2017
A49: =Coltura!A47 -> 46 | B49: =Coltura!B47 -> 16 | C49: =Coltura!C47 -> E16 | D49: nd | E49: =Coltura!D47 -> Grano duro (granella) | F49: 340 | G49: 190 | H49: 6 | I49: tq | J49: gran | K49: no | L49: 6 | M49: 87 | N49: =Standard!E49 -> 6 | O49: =Standard!F49 -> 160 | P49: =Standard!AU49 -> 40 | Q49: 200 | R49: RR n.3 2017
A50: =Coltura!A48 -> 47 | B50: =Coltura!B48 -> 17 | C50: =Coltura!C48 -> E17 | D50: nd | E50: =Coltura!D48 -> Grano duro (pianta intera) | F50: 340 | G50: 190 | H50: 6 | I50: tq | J50: gran | K50: no | L50: 6 | M50: 87 | N50: =Standard!E50 -> 6 | O50: =Standard!F50 -> 160 | P50: =Standard!AU50 -> 40 | Q50: 200 | R50: RR n.3 2017
A51: =Coltura!A49 -> 48 | B51: =Coltura!B49 -> 18 | C51: =Coltura!C49 -> E18 | D51: nd | E51: =Coltura!D49 -> Grano tenero FP/FPS (granella) | F51: 340 | G51: 180 | H51: 6.5 | I51: tq | J51: gran | K51: no | L51: 6.5 | M51: 87 | N51: =Standard!E51 -> 6 | O51: =Standard!F51 -> 155 | P51: =Standard!AU51 -> 40 | Q51: 195 | R51: RR n.3 2017
A52: =Coltura!A50 -> 49 | B52: =Coltura!B50 -> 19 | C52: =Coltura!C50 -> E19 | D52: nd | E52: =Coltura!D50 -> Grano tenero FP/FPS (pianta intera) | F52: 340 | G52: 180 | H52: 6.5 | I52: tq | J52: gran | K52: no | L52: 6.5 | M52: 87 | N52: =Standard!E52 -> 6 | O52: =Standard!F52 -> 155 | P52: =Standard!AU52 -> 40 | Q52: 195 | R52: RR n.3 2017
A53: =Coltura!A51 -> 50 | B53: =Coltura!B51 -> 20 | C53: =Coltura!C51 -> E20 | D53: nd | E53: =Coltura!D51 -> Grano tenero biscottiero (granella) | F53: 340 | G53: 180 | H53: 6.5 | I53: tq | J53: gran | K53: no | L53: 6.5 | M53: 87 | N53: =Standard!E53 -> 6 | O53: =Standard!F53 -> 140 | P53: =Standard!AU53 -> 40 | Q53: 180 | R53: RR n.3 2017
A54: =Coltura!A52 -> 51 | B54: =Coltura!B52 -> 21 | C54: =Coltura!C52 -> E21 | D54: nd | E54: =Coltura!D52 -> Grano tenero biscottiero pianta intera | F54: 340 | G54: 180 | H54: 6.5 | I54: tq | J54: gran | K54: no | L54: 6.5 | M54: 87 | N54: =Standard!E54 -> 6 | O54: =Standard!F54 -> 140 | P54: =Standard!AU54 -> 40 | Q54: 180 | R54: RR n.3 2017
A55: =Coltura!A53 -> 52 | B55: =Coltura!B53 -> 22 | C55: =Coltura!C53 -> E22 | D55: nd | E55: =Coltura!D53 -> Grano tenero FF (granella) | F55: 340 | G55: 190 | H55: 6 | I55: tq | J55: gran | K55: no | L55: 6 | M55: 87 | N55: =Standard!E55 -> 6 | O55: =Standard!F55 -> 160 | P55: =Standard!AU55 -> 40 | Q55: 200 | R55: RR n.3 2017
A56: =Coltura!A54 -> 53 | B56: =Coltura!B54 -> 23 | C56: =Coltura!C54 -> E23 | D56: nd | E56: =Coltura!D54 -> Grano tenero FF (pianta intera) | F56: 340 | G56: 190 | H56: 6 | I56: tq | J56: gran | K56: no | L56: 6 | M56: 87 | N56: =Standard!E56 -> 6 | O56: =Standard!F56 -> 160 | P56: =Standard!AU56 -> 40 | Q56: 200 | R56: RR n.3 2017
A57: =Coltura!A55 -> 54 | B57: =Coltura!B55 -> 24 | C57: =Coltura!C55 -> E24 | D57: nd | E57: =Coltura!D55 -> Lenticchia | F57: 340 | G57: nd | H57: nd | I57: nd | J57: nd | K57: no | L57: FALSE | M57: 89 | N57: =Standard!E57 -> nd | O57: =Standard!F57 -> nd | P57: =Standard!AU57 -> 0
A58: =Coltura!A56 -> 55 | B58: =Coltura!B56 -> 25 | C58: =Coltura!C56 -> E25 | D58: nd | E58: =Coltura!D56 -> Lino fibra | F58: 340 | G58: nd | H58: nd | I58: nd | J58: nd | K58: no | L58: FALSE | M58: 90 | N58: =Standard!E58 -> nd | O58: =Standard!F58 -> nd | P58: =Standard!AU58 -> 0
A59: =Coltura!A57 -> 56 | B59: =Coltura!B57 -> 26 | C59: =Coltura!C57 -> E26 | D59: nd | E59: =Coltura!D57 -> Lino granella | F59: 340 | G59: nd | H59: nd | I59: nd | J59: nd | K59: no | L59: FALSE | M59: 90 | N59: =Standard!E59 -> nd | O59: =Standard!F59 -> nd | P59: =Standard!AU59 -> 0
A60: =Coltura!A58 -> 57 | B60: =Coltura!B58 -> 27 | C60: =Coltura!C58 -> E27 | D60: nd | E60: =Coltura!D58 -> Lupino | F60: 340 | G60: nd | H60: nd | I60: nd | J60: nd | K60: no | L60: FALSE | M60: 86 | N60: =Standard!E60 -> nd | O60: =Standard!F60 -> nd | P60: =Standard!AU60 -> 0
A61: =Coltura!A59 -> 58 | B61: =Coltura!B59 -> 28 | C61: =Coltura!C59 -> E28 | D61: nd | E61: =Coltura!D59 -> Mais da granella 300-400 (granella) | F61: 340 | G61: 280 | H61: 13 | I61: tq | J61: gran | K61: no | L61: 13 | M61: 86 | N61: =Standard!E61 -> 7 | O61: =Standard!F61 -> 150 | P61: =Standard!AU61 -> 70 | Q61: 220 | R61: RR n.3 2017
A62: =Coltura!A60 -> 59 | B62: =Coltura!B60 -> 29 | C62: =Coltura!C60 -> E29 | D62: nd | E62: =Coltura!D60 -> Mais da granella 300-400 (pianta intera) | F62: 340 | G62: 280 | H62: 13 | I62: tq | J62: gran | K62: sì | L62: 13 | M62: 86 | N62: =Standard!E62 -> 7 | O62: =Standard!F62 -> 150 | P62: =Standard!AU62 -> 70 | Q62: 220 | R62: RR n.3 2017
A63: =Coltura!A61 -> 60 | B63: =Coltura!B61 -> 30 | C63: =Coltura!C61 -> E30 | D63: nd | E63: =Coltura!D61 -> Mais da granella 500-700 (granella) | F63: 340 | G63: 280 | H63: 13 | I63: tq | J63: gran | K63: sì | L63: 13 | M63: 86 | N63: =Standard!E63 -> 12 | O63: =Standard!F63 -> 240 | P63: =Standard!AU63 -> 70 | Q63: 310 | R63: RR n.3 2017
A64: =Coltura!A62 -> 61 | B64: =Coltura!B62 -> 31 | C64: =Coltura!C62 -> E31 | D64: nd | E64: =Coltura!D62 -> Mais da granella 500-700 (pianta intera) | F64: 340 | G64: 280 | H64: 13 | I64: tq | J64: gran | K64: sì | L64: 13 | M64: 86 | N64: =Standard!E64 -> 12 | O64: =Standard!F64 -> 240 | P64: =Standard!AU64 -> 70 | Q64: 310 | R64: RR n.3 2017
A65: =Coltura!A63 -> 62 | B65: =Coltura!B63 -> 32 | C65: =Coltura!C63 -> E32 | D65: nd | E65: =Coltura!D63 -> Mais dolce (spighe) | F65: 340 | G65: 170 | H65: 16 | I65: tq | J65: spighe | K65: no | L65: 16 | M65: 27.5 | N65: =Standard!E65 -> 16 | O65: =Standard!F65 -> 170 | P65: =Standard!AU65 -> 40 | Q65: 210 | R65: RR n.3 2017
A66: =Coltura!A64 -> 63 | B66: =Coltura!B64 -> 33 | C66: =Coltura!C64 -> E33 | D66: nd | E66: =Coltura!D64 -> Mais dolce (pianta intera) | F66: 340 | G66: 170 | H66: 16 | I66: tq | J66: spighe | K66: no | L66: 16 | M66: 27.5 | N66: =Standard!E66 -> 16 | O66: =Standard!F66 -> 170 | P66: =Standard!AU66 -> 40 | Q66: 210 | R66: RR n.3 2017
A67: =Coltura!A65 -> 64 | B67: =Coltura!B65 -> 34 | C67: =Coltura!C65 -> E34 | D67: nd | E67: =Coltura!D65 -> Mais trinciato classe 500 | F67: 340 | G67: 280 | H67: 23 | I67: s.s. | J67: pianta | K67: sì | L67: 76.66666667 | M67: 30 | N67: 45 | O67: 150 | P67: 50 | Q67: 200 | R67: RR n.3 2017
A68: =Coltura!A66 -> 65 | B68: =Coltura!B66 -> 35 | C68: =Coltura!C66 -> E35 | D68: nd | E68: =Coltura!D66 -> Mais trinciato classe 700 | F68: 340 | G68: 280 | H68: 23 | I68: s.s. | J68: pianta | K68: sì | L68: 76.66666667 | M68: 30 | N68: 65 | O68: 240 | P68: 70 | Q68: 310 | R68: RR n.3 2017
A69: =Coltura!A67 -> 66 | B69: =Coltura!B67 -> 36 | C69: =Coltura!C67 -> E36 | D69: nd | E69: =Coltura!D67 -> Orzo (granella) | F69: 340 | G69: 150 | H69: 6 | I69: tq | J69: gran | K69: no | L69: 6 | M69: 87 | N69: =Standard!E69 -> 6.5 | O69: =Standard!F69 -> 125 | P69: =Standard!AU69 -> 40 | Q69: 165 | R69: RR n.3 2017
A70: =Coltura!A68 -> 67 | B70: =Coltura!B68 -> 37 | C70: =Coltura!C68 -> E37 | D70: nd | E70: =Coltura!D68 -> Orzo (pianta intera) | F70: 340 | G70: 150 | H70: 6 | I70: tq | J70: gran | K70: no | L70: 6 | M70: 87 | N70: =Standard!E70 -> 6.5 | O70: =Standard!F70 -> 125 | P70: =Standard!AU70 -> 40 | Q70: 165 | R70: RR n.3 2017
A71: =Coltura!A69 -> 68 | B71: =Coltura!B69 -> 38 | C71: =Coltura!C69 -> E38 | D71: nd | E71: =Coltura!D69 -> Panico | F71: 340 | G71: nd | H71: nd | I71: nd | J71: nd | K71: no | L71: FALSE | M71: 85 | N71: =Standard!E71 -> nd | O71: =Standard!F71 -> nd | P71: =Standard!AU71 -> 0
A72: =Coltura!A70 -> 69 | B72: =Coltura!B70 -> 39 | C72: =Coltura!C70 -> E39 | D72: nd | E72: =Coltura!D70 -> Pisello proteico | F72: 50 | G72: nd | H72: nd | I72: nd | J72: nd | K72: no | L72: FALSE | M72: 87 | N72: =Standard!E72 -> 5 | O72: =Standard!F72 -> 40 | P72: =Standard!AU72 -> 20 | Q72: 60 | R72: RR n.3 2017
A73: =Coltura!A71 -> 70 | B73: =Coltura!B71 -> 40 | C73: =Coltura!C71 -> E40 | D73: nd | E73: =Coltura!D71 -> Pisello proteico + residui | F73: 50 | G73: nd | H73: nd | I73: nd | J73: nd | K73: no | L73: =IF(I73="tq",H73,IF(I73="s.s.",(H73/(M73/100)))) -> FALSE | M73: 87 | N73: =Standard!E73 -> 5 | O73: =Standard!F73 -> 40 | P73: =Standard!AU73 -> 20 | Q73: =(O73+P73) -> 60 | R73: RR n.3 2017
A74: =Coltura!A72 -> 71 | B74: =Coltura!B72 -> 41 | C74: =Coltura!C72 -> E41 | D74: nd | E74: =Coltura!D72 -> Rafano (da sovescio) | F74: 340 | G74: nd | H74: nd | I74: nd | J74: nd | K74: no | L74: FALSE | M74: 15 | N74: =Standard!E74 -> nd | O74: =Standard!F74 -> nd | P74: =Standard!AU74 -> 0
A75: =Coltura!A73 -> 72 | B75: =Coltura!B73 -> 42 | C75: =Coltura!C73 -> E42 | D75: nd | E75: =Coltura!D73 -> Riso (granella) | F75: 340 | G75: 160 | H75: 7 | I75: tq | J75: gran | K75: no | L75: 7 | M75: 86 | N75: =Standard!E75 -> 7 | O75: =Standard!F75 -> 110 | P75: =Standard!AU75 -> 40 | Q75: 150 | R75: RR n.3 2017
A76: =Coltura!A74 -> 73 | B76: =Coltura!B74 -> 43 | C76: =Coltura!C74 -> E43 | D76: nd | E76: =Coltura!D74 -> Riso (granella+paglia) | F76: 340 | G76: 160 | H76: 7 | I76: tq | J76: gran | K76: no | L76: 7 | M76: 86 | N76: =Standard!E76 -> 7 | O76: =Standard!F76 -> 110 | P76: =Standard!AU76 -> 40 | Q76: 150 | R76: RR n.3 2017
A77: =Coltura!A75 -> 74 | B77: =Coltura!B75 -> 44 | C77: =Coltura!C75 -> E44 | D77: nd | E77: =Coltura!D75 -> Segale (granella) | F77: 340 | G77: 120 | H77: 4.5 | I77: tq | J77: gran | K77: no | L77: 4.5 | M77: 87 | N77: =Standard!E77 -> 4 | O77: =Standard!F77 -> 100 | P77: =Standard!AU77 -> 50 | Q77: 150 | R77: RR n.3 2017
A78: =Coltura!A76 -> 75 | B78: =Coltura!B76 -> 45 | C78: =Coltura!C76 -> E45 | D78: nd | E78: =Coltura!D76 -> Segale pianta intera | F78: 340 | G78: 120 | H78: 4.5 | I78: tq | J78: gran | K78: no | L78: 4.5 | M78: 87 | N78: =Standard!E78 -> 4 | O78: =Standard!F78 -> 100 | P78: =Standard!AU78 -> 50 | Q78: 150 | R78: RR n.3 2017
A79: =Coltura!A77 -> 76 | B79: =Coltura!B77 -> 46 | C79: =Coltura!C77 -> E46 | D79: nd | E79: =Coltura!D77 -> Senape indiana | F79: 340 | G79: nd | H79: nd | I79: nd | J79: nd | K79: no | L79: FALSE | M79: 90 | N79: =Standard!E79 -> nd | O79: =Standard!F79 -> nd | P79: =Standard!AU79 -> 0
A80: =Coltura!A78 -> 77 | B80: =Coltura!B78 -> 47 | C80: =Coltura!C78 -> E47 | D80: nd | E80: =Coltura!D78 -> Soia (granella) | F80: 120 | G80: 30 | H80: 3.5 | I80: tq | J80: gran | K80: no | L80: 3.5 | M80: 86 | N80: =Standard!E80 -> 3.5 | O80: =Standard!F80 -> 0 | P80: =Standard!AU80 -> 120 | Q80: 120 | R80: RR n.3 2017
A81: =Coltura!A79 -> 78 | B81: =Coltura!B79 -> 48 | C81: =Coltura!C79 -> E48 | D81: nd | E81: =Coltura!D79 -> Soia (pianta intera) | F81: 120 | G81: 30 | H81: 3.5 | I81: tq | J81: gran | K81: no | L81: 3.5 | M81: 86 | N81: =Standard!E81 -> 3.5 | O81: =Standard!F81 -> 0 | P81: =Standard!AU81 -> 120 | Q81: 120 | R81: RR n.3 2017
A82: =Coltura!A80 -> 79 | B82: =Coltura!B80 -> 49 | C82: =Coltura!C80 -> E49 | D82: nd | E82: =Coltura!D80 -> Sorgo da foraggio | F82: 340 | G82: nd | H82: nd | I82: nd | J82: nd | K82: no | L82: FALSE | M82: 30 | N82: =Standard!E82 -> nd | O82: =Standard!F82 -> nd | P82: =Standard!AU82 -> 0
A83: =Coltura!A81 -> 80 | B83: =Coltura!B81 -> 50 | C83: =Coltura!C81 -> E50 | D83: nd | E83: =Coltura!D81 -> Sorgo da granella (solo granella) | F83: 340 | G83: 220 | H83: 7.5 | I83: tq | J83: gran | K83: no | L83: 7.5 | M83: 86 | N83: =Standard!E83 -> 7.5 | O83: =Standard!F83 -> 160 | P83: =Standard!AU83 -> 30 | Q83: 190 | R83: RR n.3 2017
A84: =Coltura!A82 -> 81 | B84: =Coltura!B82 -> 51 | C84: =Coltura!C82 -> E51 | D84: nd | E84: =Coltura!D82 -> Sorgo da granella (pianta intera) | F84: 340 | G84: 220 | H84: 7.5 | I84: tq | J84: gran | K84: no | L84: 7.5 | M84: 86 | N84: =Standard!E84 -> 7.5 | O84: =Standard!F84 -> 160 | P84: =Standard!AU84 -> 30 | Q84: 190 | R84: RR n.3 2017
A85: =Coltura!A83 -> 82 | B85: =Coltura!B83 -> 52 | C85: =Coltura!C83 -> E52 | D85: nd | E85: =Coltura!D83 -> Tabacco Bright | F85: 340 | G85: 200 | H85: 4.4 | I85: tq | K85: no | L85: 4.4 | M85: 81 | N85: =Standard!E85 -> nd | O85: =Standard!F85 -> nd | P85: =Standard!AU85 -> 0
A86: =Coltura!A84 -> 83 | B86: =Coltura!B84 -> 53 | C86: =Coltura!C84 -> E53 | D86: nd | E86: =Coltura!D84 -> Tabacco Bright pianta intera | F86: 340 | G86: 200 | H86: 4.4 | I86: tq | K86: no | L86: 4.4 | M86: 81 | N86: =Standard!E86 -> nd | O86: =Standard!F86 -> nd | P86: =Standard!AU86 -> 0
A87: =Coltura!A85 -> 84 | B87: =Coltura!B85 -> 54 | C87: =Coltura!C85 -> E54 | D87: nd | E87: =Coltura!D85 -> Tabacco Burley | F87: 340 | G87: 200 | H87: 4.4 | I87: tq | K87: no | L87: 4.4 | M87: 81 | N87: =Standard!E87 -> nd | O87: =Standard!F87 -> nd | P87: =Standard!AU87 -> 0
A88: =Coltura!A86 -> 85 | B88: =Coltura!B86 -> 55 | C88: =Coltura!C86 -> E55 | D88: nd | E88: =Coltura!D86 -> Tabacco Burley pianta intera | F88: 340 | G88: 200 | H88: 4.4 | I88: tq | K88: no | L88: 4.4 | M88: 81 | N88: =Standard!E88 -> nd | O88: =Standard!F88 -> nd | P88: =Standard!AU88 -> 0
A89: =Coltura!A87 -> 86 | B89: =Coltura!B87 -> 56 | C89: =Coltura!C87 -> E56 | D89: nd | E89: =Coltura!D87 -> Triticale | F89: 340 | G89: 150 | H89: 6 | I89: tq | J89: gran | K89: no | L89: 6 | M89: 87 | N89: =Standard!E89 -> 7.5 | O89: =Standard!F89 -> 140 | P89: =Standard!AU89 -> 50 | Q89: 190 | R89: RR n.3 2017
A90: =Coltura!A88 -> 87 | B90: =Coltura!B88 -> 57 | C90: =Coltura!C88 -> E57 | D90: nd | E90: =Coltura!D88 -> Triticale pianta intera | F90: 340 | G90: 150 | H90: 6 | I90: tq | J90: gran | K90: no | L90: 6 | M90: 87 | N90: =Standard!E90 -> 7.5 | O90: =Standard!F90 -> 140 | P90: =Standard!AU90 -> 50 | Q90: 190 | R90: RR n.3 2017
A91: =Coltura!A89 -> 88 | B91: =Coltura!B89 -> 1 | C91: =Coltura!C89 -> F1 | D91: nd | E91: =Coltura!D89 -> Avena insilata | F91: 340 | G91: nd | H91: nd | I91: nd | J91: nd | K91: no | L91: FALSE | M91: 35 | N91: =Standard!E91 -> nd | O91: =Standard!F91 -> nd | P91: =Standard!AU91 -> 0
A92: =Coltura!A90 -> 89 | B92: =Coltura!B90 -> 2 | C92: =Coltura!C90 -> F2 | D92: nd | E92: =Coltura!D90 -> Colza insilato | F92: 340 | G92: nd | H92: nd | I92: nd | J92: nd | K92: no | L92: FALSE | M92: 35 | N92: =Standard!E92 -> nd | O92: =Standard!F92 -> nd | P92: =Standard!AU92 -> 0
A93: =Coltura!A91 -> 90 | B93: =Coltura!B91 -> 3 | C93: =Coltura!C91 -> F3 | D93: nd | E93: =Coltura!D91 -> Erba mazzolina | F93: 340 | G93: 300 | H93: 13 | I93: s.s. | J93: fieno | K93: no | L93: 15.29411765 | M93: 85 | N93: =Standard!E93 -> 12.5 | O93: =Standard!F93 -> 200 | P93: =Standard!AU93 -> 50 | Q93: 250 | R93: RR n.3 2017
A94: =Coltura!A92 -> 91 | B94: =Coltura!B92 -> 4 | C94: =Coltura!C92 -> F4 | D94: nd | E94: =Coltura!D92 -> Erba medica | F94: 100 | G94: 170 | K94: no | L94: FALSE | M94: 85 | N94: =Standard!E94 -> 12.5 | O94: =Standard!F94 -> 0 | P94: =Standard!AU94 -> 100 | Q94: 100 | R94: RR n.3 2017
A95: =Coltura!A93 -> 92 | B95: =Coltura!B93 -> 5 | C95: =Coltura!C93 -> F5 | D95: nd | E95: =Coltura!D93 -> Erbai aut prim. Di cer. O cruc. | F95: 340 | G95: 120 | H95: 7 | I95: s.s. | J95: fieno | K95: no | L95: 8.235294118 | M95: 85 | N95: =Standard!E95 -> nd | O95: =Standard!F95 -> nd | P95: =Standard!AU95 -> 0
A96: =Coltura!A94 -> 93 | B96: =Coltura!B94 -> 6 | C96: =Coltura!C94 -> F6 | D96: nd | E96: =Coltura!D94 -> Erbai aut prim. Di leguminose | F96: 340 | G96: nd | H96: nd | I96: nd | J96: nd | K96: no | L96: FALSE | M96: 85 | N96: =Standard!E96 -> nd | O96: =Standard!F96 -> nd | P96: =Standard!AU96 -> 0
A97: =Coltura!A95 -> 94 | B97: =Coltura!B95 -> 7 | C97: =Coltura!C95 -> F7 | D97: nd | E97: =Coltura!D95 -> Erbai biennali o Prati avv. di Graminacee | F97: 340 | G97: 300 | H97: 13 | I97: s.s. | J97: fieno | K97: no | L97: 15.29411765 | M97: 85 | N97: =Standard!E97 -> nd | O97: =Standard!F97 -> nd | P97: =Standard!AU97 -> 0
A98: =Coltura!A96 -> 95 | B98: =Coltura!B96 -> 8 | C98: =Coltura!C96 -> F8 | D98: nd | E98: =Coltura!D96 -> Erbai biennali misti o Prati avv. Polifita | F98: 340 | G98: 300 | H98: 13 | I98: s.s. | J98: fieno | K98: no | L98: 15.29411765 | M98: 85 | N98: =Standard!E98 -> nd | O98: =Standard!F98 -> nd | P98: =Standard!AU98 -> 0
A99: =Coltura!A97 -> 96 | B99: =Coltura!B97 -> 9 | C99: =Coltura!C97 -> F9 | D99: nd | E99: =Coltura!D97 -> Farro insilato | F99: 340 | G99: nd | H99: nd | I99: nd | J99: nd | K99: no | L99: FALSE | M99: 35 | N99: =Standard!E99 -> nd | O99: =Standard!F99 -> nd | P99: =Standard!AU99 -> 0
A100: =Coltura!A98 -> 97 | B100: =Coltura!B98 -> 10 | C100: =Coltura!C98 -> F10 | D100: nd | E100: =Coltura!D98 -> Festuca arundinacea | F100: 340 | G100: 300 | H100: 13 | I100: s.s. | J100: fieno | K100: no | L100: 15.29411765 | M100: 85 | N100: =Standard!E100 -> 12.5 | O100: =Standard!F100 -> 200 | P100: =Standard!AU100 -> 50 | Q100: 250 | R100: RR n.3 2017
A101: =Coltura!A99 -> 98 | B101: =Coltura!B99 -> 11 | C101: =Coltura!C99 -> F11 | D101: nd | E101: =Coltura!D99 -> Fleolo (coda di topo) | F101: 340 | G101: nd | H101: nd | I101: nd | J101: nd | K101: no | L101: FALSE | M101: 85 | N101: =Standard!E101 -> nd | O101: =Standard!F101 -> nd | P101: =Standard!AU101 -> 0
A102: =Coltura!A100 -> 99 | B102: =Coltura!B100 -> 12 | C102: =Coltura!C100 -> F12 | D102: nd | E102: =Coltura!D100 -> Grano duro insilato | F102: 340 | G102: nd | H102: nd | I102: nd | J102: nd | K102: no | L102: FALSE | M102: 35 | N102: =Standard!E102 -> nd | O102: =Standard!F102 -> nd | P102: =Standard!AU102 -> 0
A103: =Coltura!A101 -> 100 | B103: =Coltura!B101 -> 13 | C103: =Coltura!C101 -> F13 | D103: nd | E103: =Coltura!D101 -> Grano tenero insilato | F103: 340 | G103: nd | H103: nd | I103: nd | J103: nd | K103: no | L103: FALSE | M103: 35 | N103: =Standard!E103 -> nd | O103: =Standard!F103 -> nd | P103: =Standard!AU103 -> 0
A104: =Coltura!A102 -> 101 | B104: =Coltura!B102 -> 14 | C104: =Coltura!C102 -> F14 | D104: nd | E104: =Coltura!D102 -> Loglio da insilare | F104: 340 | G104: nd | H104: nd | I104: nd | J104: nd | K104: no | L104: FALSE | M104: 35 | N104: =Standard!E104 -> nd | O104: =Standard!F104 -> nd | P104: =Standard!AU104 -> 0
A105: =Coltura!A103 -> 102 | B105: =Coltura!B103 -> 15 | C105: =Coltura!C103 -> F15 | D105: nd | E105: =Coltura!D103 -> Loiessa | F105: 340 | G105: 120 | H105: 7 | I105: s.s. | J105: gran | K105: no | L105: 8.235294118 | M105: 85 | N105: =Standard!E105 -> nd | O105: =Standard!F105 -> nd | P105: =Standard!AU105 -> 0
A106: =Coltura!A104 -> 103 | B106: =Coltura!B104 -> 16 | C106: =Coltura!C104 -> F16 | D106: nd | E106: =Coltura!D104 -> Loietto perenne | F106: 340 | G106: nd | H106: nd | I106: nd | J106: nd | K106: no | L106: FALSE | M106: 85 | N106: =Standard!E106 -> nd | O106: =Standard!F106 -> nd | P106: =Standard!AU106 -> 0
A107: =Coltura!A105 -> 104 | B107: =Coltura!B105 -> 17 | C107: =Coltura!C105 -> F17 | D107: nd | E107: =Coltura!D105 -> Orzo insilato | F107: 340 | G107: nd | H107: nd | I107: nd | J107: nd | K107: no | L107: FALSE | M107: 35 | N107: =Standard!E107 -> nd | O107: =Standard!F107 -> nd | P107: =Standard!AU107 -> 0
A108: =Coltura!A106 -> 105 | B108: =Coltura!B106 -> 18 | C108: =Coltura!C106 -> F18 | D108: nd | E108: =Coltura!D106 -> Prati di graminacee | F108: 340 | G108: 300 | H108: 13 | I108: s.s. | J108: fieno | K108: no | L108: 15.29411765 | M108: 85 | N108: =Standard!E108 -> nd | O108: =Standard!F108 -> nd | P108: =Standard!AU108 -> 0
A109: =Coltura!A107 -> 106 | B109: =Coltura!B107 -> 19 | C109: =Coltura!C107 -> F19 | D109: nd | E109: =Coltura!D107 -> Prati di trifoglio | F109: 340 | G109: 170 | K109: no | L109: FALSE | M109: 85 | N109: =Standard!E109 -> nd | O109: =Standard!F109 -> nd | P109: =Standard!AU109 -> 0
A110: =Coltura!A108 -> 107 | B110: =Coltura!B108 -> 20 | C110: =Coltura!C108 -> F20 | D110: nd | E110: =Coltura!D108 -> Prati pascoli in collina | F110: 340 | G110: 300 | H110: 13 | I110: s.s. | J110: fieno | K110: no | L110: 15.29411765 | M110: 85 | N110: =Standard!E110 -> nd | O110: =Standard!F110 -> nd | P110: =Standard!AU110 -> 0
A111: =Coltura!A109 -> 108 | B111: =Coltura!B109 -> 21 | C111: =Coltura!C109 -> F21 | D111: nd | E111: =Coltura!D109 -> Prati polifiti >50% leguminose | F111: 340 | G111: nd | H111: nd | I111: nd | J111: nd | K111: no | L111: FALSE | M111: 85 | N111: =Standard!E111 -> nd | O111: =Standard!F111 -> nd | P111: =Standard!AU111 -> 0
A112: =Coltura!A110 -> 109 | B112: =Coltura!B110 -> 22 | C112: =Coltura!C110 -> F22 | D112: nd | E112: =Coltura!D110 -> Prati polifiti | F112: 340 | G112: 300 | H112: 13 | I112: s.s. | J112: fieno | K112: no | L112: 15.29411765 | M112: 85 | N112: =Standard!E112 -> 8.5 | O112: =Standard!F112 -> 155 | P112: =Standard!AU112 -> 45 | Q112: 200 | R112: RR n.3 2017
A113: =Coltura!A111 -> 110 | B113: =Coltura!B111 -> 23 | C113: =Coltura!C111 -> F23 | D113: nd | E113: =Coltura!D111 -> Prati stabili in pianura | F113: 340 | G113: 300 | H113: 13 | I113: s.s. | J113: fieno | K113: no | L113: 15.29411765 | M113: 85 | N113: =Standard!E113 -> 13 | O113: =Standard!F113 -> 140 | P113: =Standard!AU113 -> 20 | Q113: 160 | R113: RR n.3 2017
A114: =Coltura!A112 -> 111 | B114: =Coltura!B112 -> 24 | C114: =Coltura!C112 -> F24 | D114: nd | E114: =Coltura!D112 -> Prato misto | F114: 340 | G114: 300 | H114: 13 | I114: s.s. | J114: fieno | K114: no | L114: 15.29411765 | M114: 85 | N114: =Standard!E114 -> nd | O114: =Standard!F114 -> nd | P114: =Standard!AU114 -> 0
A115: =Coltura!A113 -> 112 | B115: =Coltura!B113 -> 25 | C115: =Coltura!C113 -> F25 | D115: nd | E115: =Coltura!D113 -> Segale insilato | F115: 340 | G115: nd | H115: nd | I115: nd | J115: nd | K115: no | L115: FALSE | M115: 35 | N115: =Standard!E115 -> nd | O115: =Standard!F115 -> nd | P115: =Standard!AU115 -> 0
A116: =Coltura!A114 -> 113 | B116: =Coltura!B114 -> 26 | C116: =Coltura!C114 -> F26 | D116: nd | E116: =Coltura!D114 -> Triticale insilato | F116: 340 | G116: nd | H116: nd | I116: nd | J116: nd | K116: no | L116: FALSE | M116: 35 | N116: =Standard!E116 -> nd | O116: =Standard!F116 -> nd | P116: =Standard!AU116 -> 0
A117: =Coltura!A115 -> 114 | B117: =Coltura!B115 -> 1 | C117: =Coltura!C115 -> O1 | D117: nd | E117: =Coltura!D115 -> Aglio | F117: 340 | G117: 170 | H117: 9 | I117: tq | J117: bulbi | K117: no | L117: 9 | M117: 30 | N117: =Standard!E117 -> 9 | O117: =Standard!F117 -> 110 | P117: =Standard!AU117 -> 60 | Q117: 170 | R117: RR n.3 2017
A118: =Coltura!A116 -> 115 | B118: =Coltura!B116 -> 2 | C118: =Coltura!C116 -> O2 | D118: nd | E118: =Coltura!D116 -> Asparago verde (pianta intera) | F118: 340 | G118: 210 | H118: 7 | I118: tq | J118: turrioni | K118: no | L118: 7 | M118: 15 | N118: =Standard!E118 -> 8 | O118: =Standard!F118 -> 160 | P118: =Standard!AU118 -> 30 | Q118: 190 | R118: RR n.3 2017
A119: =Coltura!A117 -> 116 | B119: =Coltura!B117 -> 3 | C119: =Coltura!C117 -> O3 | D119: nd | E119: =Coltura!D117 -> Basilico media produzione | F119: 340 | G119: 110 | H119: 20 | I119: tq | K119: no | L119: 20 | M119: 7.7 | N119: =Standard!E119 -> 20 | O119: =Standard!F119 -> 100 | P119: =Standard!AU119 -> 40 | Q119: 140 | R119: RR n.3 2017
A120: =Coltura!A118 -> 117 | B120: =Coltura!B118 -> 4 | C120: =Coltura!C118 -> O4 | D120: nd | E120: =Coltura!D118 -> Basilico alta produzione più tagli | F120: 340 | G120: =Q120 -> 160 | H120: 55 | I120: tq | K120: no | L120: 55 | N120: =Standard!E120 -> 55 | O120: =Standard!F120 -> 120 | P120: =Standard!AU120 -> 40 | Q120: 160 | R120: Ricalcolato col DPI
A121: =Coltura!A119 -> 118 | B121: =Coltura!B119 -> 5 | C121: =Coltura!C119 -> O5 | D121: nd | E121: =Coltura!D119 -> Bietola da costa e da foglia m. fresco media produzione | F121: 340 | G121: 190 | H121: 35 | I121: tq | K121: no | L121: 35 | M121: 10.7 | N121: =Standard!E121 -> 25 | O121: =Standard!F121 -> 150 | P121: =Standard!AU121 -> 40 | Q121: 190 | R121: RR n.3 2017
A122: =Coltura!A120 -> 119 | B122: =Coltura!B120 -> 6 | C122: =Coltura!C120 -> O6 | D122: nd | E122: =Coltura!D120 -> Bietola da costa e da foglia m. fresco alta produzione più tagli | F122: 340 | G122: 190 | H122: 35 | I122: tq | K122: no | L122: 35 | M122: 10.7 | N122: =Standard!E122 -> 35 | O122: =Standard!F122 -> 240 | P122: =Standard!AU122 -> 40 | Q122: 280 | R122: RR n.3 2017
A123: =Coltura!A121 -> 120 | B123: =Coltura!B121 -> 7 | C123: =Coltura!C121 -> O7 | D123: nd | E123: =Coltura!D121 -> Bietola da foglie per l'industria media produzione più tagli | F123: 340 | G123: 190 | H123: 35 | I123: tq | K123: no | L123: =IF(I123="tq",H123,IF(I123="s.s.",(H123/(M123/100)))) -> 35 | M123: 10.7 | N123: =Standard!E123 -> 25 | O123: =Standard!F123 -> 190 | P123: =Standard!AU123 -> 40 | Q123: =(O123+P123) -> 230 | R123: RR n.3 2018
A124: =Coltura!A122 -> 121 | B124: =Coltura!B122 -> 8 | C124: =Coltura!C122 -> O8 | D124: nd | E124: =Coltura!D122 -> Bietola da costa per l'industria alta produzione più tagli | F124: 340 | G124: 280 | H124: 25 | I124: tq | K124: no | L124: =IF(I124="tq",H124,IF(I124="s.s.",(H124/(M124/100)))) -> 25 | N124: =Standard!E124 -> 35 | O124: =Standard!F124 -> 240 | P124: =Standard!AU124 -> 40 | Q124: =(O124+P124) -> 280 | R124: RR n.3 2017
A125: =Coltura!A123 -> 122 | B125: =Coltura!B123 -> 9 | C125: =Coltura!C123 -> O9 | D125: nd | E125: =Coltura!D123 -> Broccoletto - Cime di rapa | F125: 340 | G125: nd | H125: nd | I125: nd | J125: nd | K125: no | L125: FALSE | M125: 8.6 | N125: =Standard!E125 -> nd | O125: =Standard!F125 -> nd | P125: =Standard!AU125 -> 0
A126: =Coltura!A124 -> 123 | B126: =Coltura!B124 -> 10 | C126: =Coltura!C124 -> O10 | D126: nd | E126: =Coltura!D124 -> Broccolo media produzione | F126: 340 | G126: 180 | H126: 20 | I126: tq | K126: no | L126: 20 | M126: 10 | N126: =Standard!E126 -> 20 | O126: =Standard!F126 -> 130 | P126: =Standard!AU126 -> 50 | Q126: 180 | R126: RR n.3 2017
A127: =Coltura!A125 -> 124 | B127: =Coltura!B125 -> 11 | C127: =Coltura!C125 -> O11 | D127: nd | E127: =Coltura!D125 -> Broccolo alta produzione | F127: 340 | G127: 180 | H127: 20 | I127: tq | K127: no | L127: 20 | M127: 10 | N127: =Standard!E127 -> 32.5 | O127: =Standard!F127 -> 160 | P127: =Standard!AU127 -> 50 | Q127: 210 | R127: RR n.3 2017
A128: =Coltura!A126 -> 125 | B128: =Coltura!B126 -> 12 | C128: =Coltura!C126 -> O12 | D128: nd | E128: =Coltura!D126 -> Cappuccio media produzione | F128: 340 | G128: 250 | H128: 27 | I128: tq | K128: no | L128: 27 | M128: 7.8 | N128: =Standard!E128 -> 27 | O128: =Standard!F128 -> 150 | P128: =Standard!AU128 -> 40 | Q128: 190 | R128: RR n.3 2017
A129: =Coltura!A127 -> 126 | B129: =Coltura!B127 -> 13 | C129: =Coltura!C127 -> O13 | D129: nd | E129: =Coltura!D127 -> Cappuccio alta produzione | F129: 340 | G129: 250 | H129: 27 | I129: tq | K129: no | L129: 27 | M129: 7.8 | N129: 50 | O129: 180 | P129: 40 | Q129: 220 | R129: RR n.3 2017
A130: =Coltura!A128 -> 127 | B130: =Coltura!B128 -> 14 | C130: =Coltura!C128 -> O14 | D130: nd | E130: =Coltura!D128 -> Carciofo | F130: 340 | G130: nd | H130: nd | I130: nd | J130: nd | K130: no | L130: FALSE | M130: 16 | N130: =Standard!E130 -> 15.5 | O130: =Standard!F130 -> 180 | P130: =Standard!AU130 -> 50 | Q130: 230 | R130: RR n.3 2017
A131: =Coltura!A129 -> 128 | B131: =Coltura!B129 -> 15 | C131: =Coltura!C129 -> O15 | D131: nd | E131: =Coltura!D129 -> Cardo media produzione | F131: 340 | G131: nd | H131: nd | I131: nd | J131: nd | K131: no | L131: FALSE | M131: 5.7 | N131: =Standard!E131 -> 25.5 | O131: =Standard!F131 -> 120 | P131: =Standard!AU131 -> 50 | Q131: 170 | R131: calcolato col DPI
A132: =Coltura!A130 -> 129 | B132: =Coltura!B130 -> 16 | C132: =Coltura!C130 -> O16 | D132: nd | E132: =Coltura!D130 -> Cardo alta produzione | F132: 340 | G132: nd | H132: nd | I132: nd | J132: nd | K132: no | L132: =IF(I132="tq",H132,IF(I132="s.s.",(H132/(M132/100)))) -> FALSE | M132: 5.7 | N132: =Standard!E132 -> 32.5 | O132: =Standard!F132 -> 150 | P132: =Standard!AU132 -> 50 | Q132: =(O132+P132) -> 200 | R132: calcolato col DPI
A133: =Coltura!A131 -> 130 | B133: =Coltura!B131 -> 17 | C133: =Coltura!C131 -> O17 | D133: nd | E133: =Coltura!D131 -> Carota | F133: 340 | G133: 195 | H133: 55 | I133: tq | K133: no | L133: 55 | M133: 12 | N133: =Standard!E133 -> 50 | O133: =Standard!F133 -> 120 | P133: =Standard!AU133 -> 50 | Q133: 170 | R133: RR n.3 2017
A134: =Coltura!A132 -> 131 | B134: =Coltura!B132 -> 18 | C134: =Coltura!C132 -> O18 | D134: nd | E134: =Coltura!D132 -> Cavolfiore media produzione | F134: 340 | G134: 225 | H134: 35 | I134: tq | K134: no | L134: 35 | M134: 9.5 | N134: =Standard!E134 -> 35 | O134: =Standard!F134 -> 150 | P134: =Standard!AU134 -> 40 | Q134: 190 | R134: RR n.3 2017
A135: =Coltura!A133 -> 132 | B135: =Coltura!B133 -> 19 | C135: =Coltura!C133 -> O19 | D135: nd | E135: =Coltura!D133 -> Cavolfiore alta produzione | F135: 340 | G135: 225 | H135: 35 | I135: tq | K135: no | L135: 35 | M135: 9.5 | N135: =Standard!E135 -> 45 | O135: =Standard!F135 -> 180 | P135: =Standard!AU135 -> 40 | Q135: 220 | R135: RR n.3 2017
A136: =Coltura!A134 -> 133 | B136: =Coltura!B134 -> 20 | C136: =Coltura!C134 -> O20 | D136: nd | E136: =Coltura!D134 -> Cavolo verza mercato media produzione | F136: 340 | G136: 165 | H136: 30 | I136: tq | K136: no | L136: =IF(I136="tq",H136,IF(I136="s.s.",(H136/(M136/100)))) -> 30 | M136: 9.5 | N136: =Standard!E136 -> 24 | O136: =Standard!F136 -> 130 | P136: =Standard!AU136 -> 50 | Q136: =(O136+P136) -> 180 | R136: RR n.3 2017
A137: =Coltura!A135 -> 134 | B137: =Coltura!B135 -> 21 | C137: =Coltura!C135 -> O21 | D137: nd | E137: =Coltura!D135 -> Cavolo verza mercato alta produzione | F137: 340 | G137: 165 | H137: 30 | I137: tq | K137: no | L137: 30 | M137: 9.5 | N137: =Standard!E137 -> 50 | O137: =Standard!F137 -> 160 | P137: =Standard!AU137 -> 50 | Q137: 210 | R137: RR n.3 2017
A138: =Coltura!A136 -> 135 | B138: =Coltura!B136 -> 22 | C138: =Coltura!C136 -> O22 | D138: nd | E138: =Coltura!D136 -> Cavolo Riccio, Cavolo nero e Cavolo Rapa | F138: 340 | G138: 180 | H138: 20 | I138: tq | J138: nd | K138: no | L138: 20 | M138: 9.5 | N138: =Standard!E138 -> 20 | O138: =Standard!F138 -> 130 | P138: =Standard!AU138 -> 50 | Q138: 180 | R138: calcolato col DPI
A139: =Coltura!A137 -> 136 | B139: =Coltura!B137 -> 23 | C139: =Coltura!C137 -> O23 | D139: nd | E139: =Coltura!D137 -> Cetriolo da mensa media produzione | F139: 340 | G139: 225 | H139: 25 | I139: tq | K139: no | L139: 25 | M139: 5 | N139: =Standard!E139 -> 120 | O139: =Standard!F139 -> 175 | P139: =Standard!AU139 -> 40 | Q139: 215 | R139: RR n.3 2017
A140: =Coltura!A138 -> 137 | B140: =Coltura!B138 -> 24 | C140: =Coltura!C138 -> O24 | D140: nd | E140: =Coltura!D138 -> Cetriolo da mensa alta produzione | F140: 340 | G140: 225 | H140: 25 | I140: tq | K140: no | L140: =IF(I140="tq",H140,IF(I140="s.s.",(H140/(M140/100)))) -> 25 | M140: 5 | N140: =Standard!E140 -> 150 | O140: =Standard!F140 -> 210 | P140: =Standard!AU140 -> 40 | Q140: =(O140+P140) -> 250 | R140: RR n.3 2017
A141: =Coltura!A139 -> 138 | B141: =Coltura!B139 -> 25 | C141: =Coltura!C139 -> O25 | D141: nd | E141: =Coltura!D139 -> Cicoria da mercato media produzione | F141: 340 | G141: 210 | H141: 32 | I141: tq | K141: no | L141: 32 | M141: 6.6 | N141: =Standard!E141 -> 28 | O141: =Standard!F141 -> 140 | P141: =Standard!AU141 -> 40 | Q141: 180 | R141: RR n.3 2017
A142: =Coltura!A140 -> 139 | B142: =Coltura!B140 -> 26 | C142: =Coltura!C140 -> O26 | D142: nd | E142: =Coltura!D140 -> Cicoria da mercato alta produzione | F142: 340 | G142: 210 | H142: 32 | I142: tq | K142: no | L142: =IF(I142="tq",H142,IF(I142="s.s.",(H142/(M142/100)))) -> 32 | M142: 6.6 | N142: =Standard!E142 -> 37.5 | O142: =Standard!F142 -> 165 | P142: =Standard!AU142 -> 40 | Q142: =(O142+P142) -> 205 | R142: RR n.3 2017
A143: =Coltura!A141 -> 140 | B143: =Coltura!B141 -> 27 | C143: =Coltura!C141 -> O27 | D143: nd | E143: =Coltura!D141 -> Cicoria da industria alta produzione più tagli | F143: 340 | G143: 210 | H143: 32 | I143: tq | K143: no | L143: =IF(I143="tq",H143,IF(I143="s.s.",(H143/(M143/100)))) -> 32 | M143: 6.6 | N143: =Standard!E143 -> 28 | O143: =Standard!F143 -> 170 | P143: =Standard!AU143 -> 40 | Q143: =(O143+P143) -> 210 | R143: RR n.3 2017
A144: =Coltura!A142 -> 141 | B144: =Coltura!B142 -> 28 | C144: =Coltura!C142 -> O28 | D144: nd | E144: =Coltura!D142 -> Cipolla | F144: 340 | G144: 160 | H144: 35 | I144: tq | K144: no | L144: 35 | M144: 7.9 | N144: =Standard!E144 -> 45 | O144: =Standard!F144 -> 130 | P144: =Standard!AU144 -> 50 | Q144: 180 | R144: RR n.3 2017
A145: =Coltura!A143 -> 142 | B145: =Coltura!B143 -> 29 | C145: =Coltura!C143 -> O29 | D145: nd | E145: =Coltura!D143 -> Cocomero | F145: 340 | G145: 130 | H145: 60 | I145: tq | K145: no | L145: 60 | M145: 5 | N145: =Standard!E145 -> 60 | O145: =Standard!F145 -> 100 | P145: =Standard!AU145 -> 30 | Q145: 130 | R145: RR n.3 2017
A146: =Coltura!A144 -> 143 | B146: =Coltura!B144 -> 30 | C146: =Coltura!C144 -> O30 | D146: nd | E146: =Coltura!D144 -> Endivie (indivie riccia e scarola) media produzione | F146: 340 | G146: 130 | H146: 35 | I146: tq | K146: no | L146: 35 | N146: =Standard!E146 -> 34 | O146: =Standard!F146 -> 130 | P146: =Standard!AU146 -> 40 | Q146: 170 | R146: RR n.3 2017
A147: =Coltura!A145 -> 144 | B147: =Coltura!B145 -> 31 | C147: =Coltura!C145 -> O31 | D147: nd | E147: =Coltura!D145 -> Endivie (indivie riccia e scarola) alta produzione | F147: 340 | G147: 130 | H147: 35 | I147: tq | K147: no | L147: =IF(I147="tq",H147,IF(I147="s.s.",(H147/(M147/100)))) -> 35 | N147: =Standard!E147 -> 45 | O147: =Standard!F147 -> 160 | P147: =Standard!AU147 -> 40 | Q147: =(O147+P147) -> 200 | R147: RR n.3 2017
A148: =Coltura!A146 -> 145 | B148: =Coltura!B146 -> 32 | C148: =Coltura!C146 -> O32 | D148: nd | E148: =Coltura!D146 -> Fagiolino | F148: 340 | G148: 70 | H148: 9 | I148: tq | K148: no | L148: 9 | N148: =Standard!E148 -> 9 | O148: =Standard!F148 -> 70 | P148: =Standard!AU148 -> 25 | Q148: 95 | R148: RR n.3 2017
A149: =Coltura!A147 -> 146 | B149: =Coltura!B147 -> 33 | C149: =Coltura!C147 -> O33 | D149: nd | E149: =Coltura!D147 -> Fagiolo in baccelli da sgranare | F149: 340 | G149: 70 | H149: 4 | I149: tq | K149: no | L149: =IF(I149="tq",H149,IF(I149="s.s.",(H149/(M149/100)))) -> 4 | M149: 50 | N149: =Standard!E149 -> 5 | O149: =Standard!F149 -> 70 | P149: =Standard!AU149 -> 25 | Q149: =(O149+P149) -> 95 | R149: RR n.3 2017
A150: =Coltura!A148 -> 147 | B150: =Coltura!B148 -> 34 | C150: =Coltura!C148 -> O34 | D150: nd | E150: =Coltura!D148 -> Fagiolo secco | F150: 340 | G150: nd | H150: nd | I150: nd | J150: nd | K150: no | L150: FALSE | M150: 86 | N150: =Standard!E150 -> nd | O150: =Standard!F150 -> nd | P150: =Standard!AU150 -> 0
A151: =Coltura!A149 -> 148 | B151: =Coltura!B149 -> 35 | C151: =Coltura!C149 -> O35 | D151: nd | E151: =Coltura!D149 -> Fava da consumo fresco | F151: 340 | G151: nd | H151: nd | I151: nd | J151: nd | K151: no | L151: FALSE | M151: 16 | N151: =Standard!E151 -> nd | O151: =Standard!F151 -> nd | P151: =Standard!AU151 -> 0
A152: =Coltura!A150 -> 149 | B152: =Coltura!B150 -> 36 | C152: =Coltura!C150 -> O36 | D152: nd | E152: =Coltura!D150 -> Finocchio | F152: 340 | G152: 240 | H152: 38 | I152: tq | K152: no | L152: 38 | M152: 6.8 | N152: =Standard!E152 -> 30 | O152: =Standard!F152 -> 160 | P152: =Standard!AU152 -> 50 | Q152: 210 | R152: RR n.3 2017
A153: =Coltura!A151 -> 150 | B153: =Coltura!B151 -> 37 | C153: =Coltura!C151 -> O37 | D153: nd | E153: =Coltura!D151 -> Fragola | F153: 340 | G153: 160 | H153: 35 | I153: tq | K153: no | L153: 35 | M153: 10 | N153: =Standard!E153 -> 30 | O153: =Standard!F153 -> 120 | P153: =Standard!AU153 -> 40 | Q153: 160 | R153: RR n.3 2017
A154: =Coltura!A152 -> 151 | B154: =Coltura!B152 -> 38 | C154: =Coltura!C152 -> O38 | D154: nd | E154: =Coltura!D152 -> Lattuga | F154: 340 | G154: 130 | H154: 30 | I154: tq | K154: no | L154: 30 | M154: 5.7 | N154: =Standard!E154 -> 32 | O154: =Standard!F154 -> 110 | P154: =Standard!AU154 -> 40 | Q154: 150 | R154: RR n.3 2017
A155: =Coltura!A153 -> 152 | B155: =Coltura!B153 -> 39 | C155: =Coltura!C153 -> O39 | D155: nd | E155: =Coltura!D153 -> Lattuga coltura protetta | F155: 340 | G155: nd | H155: nd | I155: nd | J155: nd | K155: no | L155: FALSE | N155: =Standard!E155 -> nd | O155: =Standard!F155 -> nd | P155: =Standard!AU155 -> 0
A156: =Coltura!A154 -> 153 | B156: =Coltura!B154 -> 40 | C156: =Coltura!C154 -> O40 | D156: nd | E156: =Coltura!D154 -> Melanzana in pieno campo media produzione | F156: 340 | G156: 175 | H156: 70 | I156: tq | K156: no | L156: =IF(I156="tq",H156,IF(I156="s.s.",(H156/(M156/100)))) -> 70 | M156: 7.3 | N156: =Standard!E156 -> 80 | O156: =Standard!F156 -> 250 | P156: =Standard!AU156 -> 50 | Q156: =(O156+P156) -> 300 | R156: RR n.3 2017
A157: =Coltura!A155 -> 154 | B157: =Coltura!B155 -> 41 | C157: =Coltura!C155 -> O41 | D157: nd | E157: =Coltura!D155 -> Melanzana coltura protetta alta produzione | F157: 340 | G157: 175 | H157: 70 | I157: tq | K157: no | L157: 70 | M157: 7.3 | N157: =Standard!E157 -> 150 | O157: =Standard!F157 -> 300 | P157: =Standard!AU157 -> 50 | Q157: 350 | R157: RR n.3 2017
A158: =Coltura!A156 -> 155 | B158: =Coltura!B156 -> 42 | C158: =Coltura!C156 -> O42 | D158: nd | E158: =Coltura!D156 -> Melone | F158: 340 | G158: 140 | H158: 35 | I158: tq | K158: no | L158: 35 | N158: =Standard!E158 -> 40 | O158: =Standard!F158 -> 120 | P158: =Standard!AU158 -> 40 | Q158: 160 | R158: RR n.3 2017
A159: =Coltura!A157 -> 156 | B159: =Coltura!B157 -> 43 | C159: =Coltura!C157 -> O43 | D159: nd | E159: =Coltura!D157 -> Patata | F159: 340 | G159: 190 | H159: 48 | I159: tq | K159: no | L159: 48 | M159: 21.5 | N159: =Standard!E159 -> 47.5 | O159: =Standard!F159 -> 190 | P159: =Standard!AU159 -> 40 | Q159: 230 | R159: RR n.3 2017
A160: =Coltura!A158 -> 157 | B160: =Coltura!B158 -> 44 | C160: =Coltura!C158 -> O44 | D160: nd | E160: =Coltura!D158 -> Peperone in serra alta produzione | F160: 340 | G160: 200 | H160: 50 | I160: tq | K160: no | L160: 50 | M160: 7.7 | N160: =Standard!E160 -> 70 | O160: =Standard!F160 -> 190 | P160: =Standard!AU160 -> 40 | Q160: 230 | R160: RR n.3 2017
A161: =Coltura!A159 -> 158 | B161: =Coltura!B159 -> 45 | C161: =Coltura!C159 -> O45 | D161: nd | E161: =Coltura!D159 -> Peperone in serra media produzione | F161: 340 | G161: 200 | H161: 50 | I161: tq | K161: no | L161: 50 | N161: =Standard!E161 -> 50 | O161: =Standard!F161 -> 160 | P161: =Standard!AU161 -> 40 | Q161: 200
A162: =Coltura!A160 -> 159 | B162: =Coltura!B160 -> 46 | C162: =Coltura!C160 -> O46 | D162: nd | E162: =Coltura!D160 -> Piccoli frutti | F162: 340 | G162: 200 | H162: 50 | I162: tq | K162: no | L162: =IF(I162="tq",H162,IF(I162="s.s.",(H162/(M162/100)))) -> 50 | N162: =Standard!E162 -> nd | O162: =Standard!F162 -> nd | P162: =Standard!AU162 -> 0 | Q162: =(O162+P162) -> 
A163: =Coltura!A161 -> 160 | B163: =Coltura!B161 -> 47 | C163: =Coltura!C161 -> O47 | D163: nd | E163: =Coltura!D161 -> Pisello da industria (grani) | F163: 340 | G163: nd | K163: no | L163: FALSE | N163: =Standard!E163 -> 6 | O163: =Standard!F163 -> 50 | P163: =Standard!AU163 -> 20 | Q163: 70
A164: =Coltura!A162 -> 161 | B164: =Coltura!B162 -> 48 | C164: =Coltura!C162 -> O48 | D164: nd | E164: =Coltura!D162 -> Pisello da mercato fresco (baccelli) | F164: 340 | G164: nd | H164: nd | I164: nd | J164: nd | K164: no | L164: FALSE | M164: 20 | N164: =Standard!E164 -> 6 | O164: =Standard!F164 -> 50 | P164: =Standard!AU164 -> 20 | Q164: 70 | R164: RR n.3 2017
A165: =Coltura!A163 -> 162 | B165: =Coltura!B163 -> 49 | C165: =Coltura!C163 -> O49 | D165: nd | E165: =Coltura!D163 -> Pomodoro da industria media produzione | F165: 340 | G165: 180 | H165: 80 | I165: tq | K165: no | L165: 80 | M165: 8 | N165: =Standard!E165 -> 70 | O165: =Standard!F165 -> 130 | P165: =Standard!AU165 -> 40 | Q165: 170 | R165: RR n.3 2017
A166: =Coltura!A164 -> 163 | B166: =Coltura!B164 -> 50 | C166: =Coltura!C164 -> O50 | D166: nd | E166: =Coltura!D164 -> Pomodoro da industria alta produzione | F166: 340 | G166: 180 | H166: 80 | I166: tq | K166: no | L166: 80 | M166: 8 | N166: =Standard!E166 -> 90 | O166: =Standard!F166 -> 150 | P166: =Standard!AU166 -> 40 | Q166: 190
A167: =Coltura!A165 -> 164 | B167: =Coltura!B165 -> 51 | C167: =Coltura!C165 -> O51 | D167: nd | E167: =Coltura!D165 -> Pomodoro da mensa a pieno campo | F167: 340 | G167: 180 | H167: 80 | I167: tq | K167: no | L167: 80 | M167: 8 | N167: =Standard!E167 -> 70 | O167: =Standard!F167 -> 130 | P167: =Standard!AU167 -> 40 | Q167: 170 | R167: RR n.3 2017
A168: =Coltura!A166 -> 165 | B168: =Coltura!B166 -> 52 | C168: =Coltura!C166 -> O52 | D168: nd | E168: =Coltura!D166 -> Pomodoro da mensa in serra | F168: 340 | G168: 180 | H168: 80 | I168: tq | K168: no | L168: 80 | M168: 8 | N168: =Standard!E168 -> 115 | O168: =Standard!F168 -> 230 | P168: =Standard!AU168 -> 40 | Q168: 270 | R168: RR n.3 2017
A169: =Coltura!A167 -> 166 | B169: =Coltura!B167 -> 53 | C169: =Coltura!C167 -> O53 | D169: nd | E169: =Coltura!D167 -> Porro | F169: 340 | G169: 126 | H169: 35 | I169: tq | K169: no | L169: 35 | N169: =Standard!E169 -> 40 | O169: =Standard!F169 -> nd | P169: =Standard!AU169 -> 0 | R169: RR n.3 2017
A170: =Coltura!A168 -> 167 | B170: =Coltura!B168 -> 54 | C170: =Coltura!C168 -> O54 | D170: nd | E170: =Coltura!D168 -> Prezzemolo media produzione | F170: 340 | G170: 100 | H170: 20 | I170: tq | K170: no | L170: 20 | M170: 12.2 | N170: =Standard!E170 -> 20 | O170: =Standard!F170 -> 80 | P170: =Standard!AU170 -> 30 | Q170: 110 | R170: RR n.3 2018
A171: =Coltura!A169 -> 168 | B171: =Coltura!B169 -> 55 | C171: =Coltura!C169 -> O55 | D171: nd | E171: =Coltura!D169 -> Prezzemolo alta produzione più tagli | F171: 340 | G171: 100 | H171: 20 | I171: tq | K171: no | L171: 20 | M171: 12.2 | N171: =Standard!E171 -> 43.5 | O171: =Standard!F171 -> 90 | P171: =Standard!AU171 -> 30 | Q171: 120 | R171: RR n.3 2017
A172: =Coltura!A170 -> 169 | B172: =Coltura!B170 -> 56 | C172: =Coltura!C170 -> O56 | D172: nd | E172: =Coltura!D170 -> Radicchio (cicoria a foglie colorate) media produzione | F172: 340 | G172: 190 | H172: 20 | I172: tq | K172: no | L172: 20 | M172: 11.9 | N172: =Standard!E172 -> 20 | O172: =Standard!F172 -> 130 | P172: =Standard!AU172 -> 30 | Q172: 160 | R172: RR n.3 2017
A173: =Coltura!A171 -> 170 | B173: =Coltura!B171 -> 57 | C173: =Coltura!C171 -> O57 | D173: nd | E173: =Coltura!D171 -> Radicchio (cicoria a foglie colorate) alta produzione | F173: 340 | G173: 190 | H173: 20 | I173: tq | K173: no | L173: =IF(I173="tq",H173,IF(I173="s.s.",(H173/(M173/100)))) -> 20 | M173: 11.9 | N173: =Standard!E173 -> 35 | O173: =Standard!F173 -> 150 | P173: =Standard!AU173 -> 30 | Q173: =(O173+P173) -> 180 | R173: RR n.3 2018
A174: =Coltura!A172 -> 171 | B174: =Coltura!B172 -> 58 | C174: =Coltura!C172 -> O58 | D174: nd | E174: =Coltura!D172 -> Rapa | F174: 340 | G174: nd | H174: nd | I174: nd | J174: nd | K174: no | L174: FALSE | M174: 6.7 | N174: =Standard!E174 -> 35 | O174: =Standard!F174 -> nd | P174: =Standard!AU174 -> 0
A175: =Coltura!A173 -> 172 | B175: =Coltura!B173 -> 59 | C175: =Coltura!C173 -> O59 | D175: nd | E175: =Coltura!D173 -> Ravanello | F175: 340 | G175: 80 | H175: 30 | I175: tq | K175: no | L175: 30 | M175: 5.4 | N175: =Standard!E175 -> 30 | O175: =Standard!F175 -> 80 | P175: =Standard!AU175 -> 25 | Q175: 105 | R175: RR n.3 2017
A176: =Coltura!A174 -> 173 | B176: =Coltura!B174 -> 60 | C176: =Coltura!C174 -> O60 | D176: nd | E176: =Coltura!D174 -> Rucola media produzione | F176: 340 | G176: 130 | H176: 30 | I176: tq | K176: no | L176: =IF(I176="tq",H176,IF(I176="s.s.",(H176/(M176/100)))) -> 30 | M176: 5.7 | N176: =Standard!E176 -> 18.5 | O176: =Standard!F176 -> 110 | P176: =Standard!AU176 -> 30 | Q176: =(O176+P176) -> 140 | R176: calcolato col DPI
A177: =Coltura!A175 -> 174 | B177: =Coltura!B175 -> 61 | C177: =Coltura!C175 -> O61 | D177: nd | E177: =Coltura!D175 -> Rucola alta produzione con più tagli | F177: 340 | G177: 150 | H177: 30 | I177: tq | K177: no | L177: 30 | M177: 5.7 | N177: =Standard!E177 -> 37 | O177: =Standard!F177 -> 120 | P177: =Standard!AU177 -> 30 | Q177: 150 | R177: calcolato col DPI
A178: =Coltura!A176 -> 175 | B178: =Coltura!B176 -> 62 | C178: =Coltura!C176 -> O62 | D178: nd | E178: =Coltura!D176 -> Scalogno | F178: 340 | G178: 120 | H178: 8 | I178: tq | K178: no | L178: 8 | N178: =Standard!E178 -> 8 | O178: =Standard!F178 -> 90 | P178: =Standard!AU178 -> 40 | Q178: 130 | R178: RR n.3 2017
A179: =Coltura!A177 -> 176 | B179: =Coltura!B177 -> 63 | C179: =Coltura!C177 -> O63 | D179: nd | E179: =Coltura!D177 -> Sedano media produzione | F179: 340 | G179: 250 | H179: 80 | I179: tq | K179: no | L179: =IF(I179="tq",H179,IF(I179="s.s.",(H179/(M179/100)))) -> 80 | M179: 11.7 | N179: =Standard!E179 -> 50 | O179: =Standard!F179 -> 240 | P179: =Standard!AU179 -> 50 | Q179: =(O179+P179) -> 290 | R179: RR n.3 2015
A180: =Coltura!A178 -> 177 | B180: =Coltura!B178 -> 64 | C180: =Coltura!C178 -> O64 | D180: nd | E180: =Coltura!D178 -> Sedano alta produzione | F180: 340 | G180: 250 | H180: 80 | I180: tq | K180: no | L180: 80 | M180: 11.7 | N180: =Standard!E180 -> 80 | O180: =Standard!F180 -> 270 | P180: =Standard!AU180 -> 50 | Q180: 320 | R180: RR n.3 2016
A181: =Coltura!A179 -> 178 | B181: =Coltura!B179 -> 65 | C181: =Coltura!C179 -> O65 | D181: nd | E181: =Coltura!D179 -> Spinacio alta produzione con più tagli | F181: 340 | G181: 190 | H181: 20 | I181: tq | K181: no | L181: 20 | N181: =Standard!E181 -> 27.5 | O181: =Standard!F181 -> 180 | P181: =Standard!AU181 -> 40 | Q181: 220 | R181: RR n.3 2017
A182: =Coltura!A180 -> 179 | B182: =Coltura!B180 -> 66 | C182: =Coltura!C180 -> O66 | D182: nd | E182: =Coltura!D180 -> Spinacio media produzione | F182: 340 | G182: 125 | H182: 13 | I182: tq | K182: no | L182: 13 | M182: 9.9 | N182: =Standard!E182 -> 20 | O182: =Standard!F182 -> 150 | P182: =Standard!AU182 -> 40 | Q182: 190 | R182: RR n.3 2018
A183: =Coltura!A181 -> 180 | B183: =Coltura!B181 -> 67 | C183: =Coltura!C181 -> O67 | D183: nd | E183: =Coltura!D181 -> Verza - cavolo da mercato media produzione | F183: 340 | G183: 150 | H183: 35 | I183: tq | K183: no | L183: 35 | M183: 9.3 | N183: =Standard!E183 -> 24 | O183: =Standard!F183 -> 130 | P183: =Standard!AU183 -> 50 | Q183: 180 | R183: RR n.3 2017
A184: =Coltura!A182 -> 181 | B184: =Coltura!B182 -> 68 | C184: =Coltura!C182 -> O68 | D184: nd | E184: =Coltura!D182 -> Verza - cavolo da mercato alta produzione | F184: 340 | G184: 150 | H184: 35 | I184: tq | K184: no | L184: =IF(I184="tq",H184,IF(I184="s.s.",(H184/(M184/100)))) -> 35 | M184: 9.3 | N184: =Standard!E184 -> 50 | O184: =Standard!F184 -> 160 | P184: =Standard!AU184 -> 50 | Q184: =(O184+P184) -> 210 | R184: RR n.3 2018
A185: =Coltura!A183 -> 182 | B185: =Coltura!B183 -> 69 | C185: =Coltura!C183 -> O69 | D185: nd | E185: =Coltura!D183 -> Verza da industria | F185: 340 | G185: 150 | H185: 35 | I185: tq | K185: no | L185: 35 | M185: 9.3 | N185: =Standard!E185 -> 35 | O185: =Standard!F185 -> 150 | P185: =Standard!AU185 -> 40 | Q185: 190 | R185: RR n.3 2017
A186: =Coltura!A184 -> 183 | B186: =Coltura!B184 -> 70 | C186: =Coltura!C184 -> O70 | D186: nd | E186: =Coltura!D184 -> Zucca | F186: 340 | G186: 210 | H186: 40 | I186: tq | K186: no | L186: 40 | M186: 5.6 | N186: =Standard!E186 -> 35 | O186: =Standard!F186 -> 110 | P186: =Standard!AU186 -> 30 | Q186: 140 | R186: RR n.3 2017
A187: =Coltura!A185 -> 184 | B187: =Coltura!B185 -> 71 | C187: =Coltura!C185 -> O71 | D187: nd | E187: =Coltura!D185 -> Zucchino da industria media produzione | F187: 340 | G187: 190 | H187: 50 | I187: tq | K187: no | L187: 50 | N187: =Standard!E187 -> 50 | O187: =Standard!F187 -> 175 | P187: =Standard!AU187 -> 40 | Q187: 215 | R187: RR n.3 2017
A188: =Coltura!A186 -> 185 | B188: =Coltura!B186 -> 72 | C188: =Coltura!C186 -> O72 | D188: nd | E188: =Coltura!D186 -> Zucchino da industria alta produzione | F188: 340 | G188: 190 | H188: 50 | I188: tq | K188: no | L188: =IF(I188="tq",H188,IF(I188="s.s.",(H188/(M188/100)))) -> 50 | N188: =Standard!E188 -> 65 | O188: =Standard!F188 -> 200 | P188: =Standard!AU188 -> 40 | Q188: =(O188+P188) -> 240 | R188: RR n.3 2018
A189: =Coltura!A187 -> 186 | B189: =Coltura!B187 -> 73 | C189: =Coltura!C187 -> O73 | D189: nd | E189: =Coltura!D187 -> Zucchino da mercato fresco media produzione | F189: 340 | G189: 190 | H189: 50 | I189: tq | K189: no | L189: 50 | M189: 6.4 | N189: =Standard!E189 -> 40 | O189: =Standard!F189 -> 150 | P189: =Standard!AU189 -> 40 | Q189: 190 | R189: RR n.3 2017
A190: =Coltura!A188 -> 187 | B190: =Coltura!B188 -> 74 | C190: =Coltura!C188 -> O74 | D190: nd | E190: =Coltura!D188 -> Zucchino da mercato fresco alta produzione | F190: 340 | G190: 190 | H190: 50 | I190: tq | K190: no | L190: =IF(I190="tq",H190,IF(I190="s.s.",(H190/(M190/100)))) -> 50 | M190: 7.4 | N190: =Standard!E190 -> 50 | O190: =Standard!F190 -> 180 | P190: =Standard!AU190 -> 40 | Q190: =(O190+P190) -> 220 | R190: RR n.3 2018
A191: =Coltura!A189 -> 188 | B191: =Coltura!B189 -> 1 | C191: =Coltura!C189 -> S1 | D191: nd | E191: =Coltura!D189 -> Barbabiertola da seme (fase porta seme) | F191: 340 | G191: nd | H191: nd | J191: seme | K191: no | L191: FALSE | N191: =Standard!E191 -> nd | O191: =Standard!F191 -> 140 | P191: =Standard!AU191 -> 40 | Q191: 180 | R191: RR n.3 2017
A192: =Coltura!A190 -> 189 | B192: =Coltura!B190 -> 2 | C192: =Coltura!C190 -> S2 | D192: nd | E192: =Coltura!D190 -> Carota da seme (fase portaseme) | F192: 340 | G192: nd | H192: nd | J192: seme | K192: no | L192: FALSE | N192: =Standard!E192 -> nd | O192: =Standard!F192 -> 120 | P192: =Standard!AU192 -> 30 | Q192: 150 | R192: RR n.3 2017
A193: =Coltura!A191 -> 190 | B193: =Coltura!B191 -> 3 | C193: =Coltura!C191 -> S3 | D193: nd | E193: =Coltura!D191 -> Carota da seme (fase vivaio) | F193: 340 | G193: nd | H193: nd | J193: tubero | K193: no | L193: FALSE | N193: =Standard!E193 -> 50 | O193: =Standard!F193 -> 120 | P193: =Standard!AU193 -> 35 | Q193: 155 | R193: RR n.3 2017
A194: =Coltura!A192 -> 191 | B194: =Coltura!B192 -> 4 | C194: =Coltura!C192 -> S4 | D194: nd | E194: =Coltura!D192 -> Cavoli da seme | F194: 340 | G194: nd | H194: nd | J194: seme | K194: no | L194: FALSE | N194: =Standard!E194 -> nd | O194: =Standard!F194 -> 160 | P194: =Standard!AU194 -> 40 | Q194: 200 | R194: RR n.3 2017
A195: =Coltura!A193 -> 192 | B195: =Coltura!B193 -> 5 | C195: =Coltura!C193 -> S5 | D195: nd | E195: =Coltura!D193 -> Cetriolo da seme | F195: 340 | G195: nd | H195: nd | J195: seme | K195: no | L195: FALSE | N195: =Standard!E195 -> nd | O195: =Standard!F195 -> 180 | P195: =Standard!AU195 -> 40 | Q195: 220 | R195: RR n.3 2017
A196: =Coltura!A194 -> 193 | B196: =Coltura!B194 -> 6 | C196: =Coltura!C194 -> S6 | D196: nd | E196: =Coltura!D194 -> Cicoria da seme | F196: 340 | G196: nd | H196: nd | J196: seme | K196: no | L196: FALSE | N196: =Standard!E196 -> nd | O196: =Standard!F196 -> 140 | P196: =Standard!AU196 -> 40 | Q196: 180 | R196: RR n.3 2017
A197: =Coltura!A195 -> 194 | B197: =Coltura!B195 -> 7 | C197: =Coltura!C195 -> S7 | D197: nd | E197: =Coltura!D195 -> Cipolla da seme (fase portaseme) | F197: 340 | G197: nd | H197: nd | J197: seme | K197: no | L197: FALSE | N197: =Standard!E197 -> nd | O197: =Standard!F197 -> 130 | P197: =Standard!AU197 -> 30 | Q197: 160 | R197: RR n.3 2017
A198: =Coltura!A196 -> 195 | B198: =Coltura!B196 -> 8 | C198: =Coltura!C196 -> S8 | D198: nd | E198: =Coltura!D196 -> Cipolla da seme (fase vivaio) | F198: 340 | G198: nd | H198: nd | J198: bulbi | K198: no | L198: FALSE | N198: =Standard!E198 -> 45 | O198: =Standard!F198 -> 130 | P198: =Standard!AU198 -> 40 | Q198: 170 | R198: RR n.3 2017
A199: =Coltura!A197 -> 196 | B199: =Coltura!B197 -> 9 | C199: =Coltura!C197 -> S9 | D199: nd | E199: =Coltura!D197 -> Coriandolo da seme | F199: 340 | G199: nd | H199: nd | J199: seme | K199: no | L199: FALSE | N199: =Standard!E199 -> nd | O199: =Standard!F199 -> 70 | P199: =Standard!AU199 -> 20 | Q199: 90 | R199: RR n.3 2017
A200: =Coltura!A198 -> 197 | B200: =Coltura!B198 -> 10 | C200: =Coltura!C198 -> S10 | D200: nd | E200: =Coltura!D198 -> Erba medica da seme | F200: 340 | G200: nd | H200: nd | J200: seme | K200: no | L200: FALSE | N200: =Standard!E200 -> nd | O200: =Standard!F200 -> 0 | P200: =Standard!AU200 -> 100 | Q200: 100 | R200: RR n.3 2017
... 46 more rows

Sheet Valori da riportare (hidden)
B1: Valori da riportare nella scheda BILANCIO
B2: Valori intermedi | E2: =IF(C_tempo!A22=1,0,IF(C_tempo!A22=2,Standard!BI233,IF(C_tempo!A22=3,Standard!BJ237,(Bilancio!$H$31*C_tempo!E22)))) -> 120.03 | F2: =IF(AND(C_tempo!A22=2,Gri_P!A10>2),Standard!BL233,IF(AND(C_tempo!A22=3,Gri_P!A10>2),Standard!BM237,Bilancio!$I$31)) -> -62.684 | G2: =IF(AND(C_tempo!A22=2,Gri_K!H18>2),Standard!BO233,IF(AND(C_tempo!A22=3,Gri_K!H18>2),Standard!BP237,Bilancio!$J$31)) -> -578.394456
B3: Non Negativo | E3: =IF(E2>0,E2,0) -> 120.03 | F3: =IF(F2>0,F2,0) -> 0 | G3: 0
B4: Limite predefinito | E4: =Coltura!H225 -> 340
B5: Limite azoto fissazione carente | E5: =MAS!F231 -> 120
B6: Limite da considerare | E6: =IF(MAS!F232=1,'Valori da riportare'!E5,'Valori da riportare'!E4) -> 340 | F6: 250 | G6: 300
B7: Valore da riportare | E7: =IF(E3<E6,E3,E6) -> 120.03 | F7: =IF(F3<F6,F3,F6) -> 0 | G7: 0

Sheet Bilancio
B1: Piano di fertilizzazione
A2: =Metodo!D3 -> sì | B2: =IF(Metodo!D3="no","Metodo del Bilancio NON PREVISTO per questa coltura","Quantitativi di elementi nutritivi da apportare calcolati col METODO DEL BILANCIO") -> Quantitativi di elementi nutritivi da apportare calcolati col METODO DEL BILANCIO
B4: Azienda | C4: =Inserimento!B5 -> Pinco Pallino | H4: Zona ZVN | J4: Area | K4: =Inserimento!N5 -> A
B6: Appezz. | C6: =Inserimento!Q5 -> 1 | H6: =Codici!AX2 -> TRUE | J6: Anno | K6: =Inserimento!T5 -> 2019
C8: Coltura | D8: =(Coltura!D225) -> Segale da seme (granella) | H8: Resa annua prevista | J8: t/ha | K8: =Codici!M2 -> 4
C9: Fase/ciclo | D9: =C_tempo!B22 -> Autunno-vernina <150 gg | G9: =IF(MAS!S239=TRUE,MAS!N239," ") -> 
B10: Modalità di coltivazione: | G10: =IF(MAS!T240=TRUE,MAS!N240," ") -> 
C11: =Coltura!M22 -> pieno campo | D11: =IF(MAS!F232=1,"Azoto fissazione carente"," ") -> 
I12: kg/ha
H13: N | I13: P2O5 | J13: K2O**
D14: NECESSITA'
C15: A) | D15: Fabbisogno della coltura | H15: =A!D231 -> 111.2 | I15: =A!E231 -> 28 | J15: =A!F231 -> 20
C16: C) | D16: Perdite per lisciviazione | H16: ='C&D'!C22+'C&D'!C24+'C&D'!C32 -> 23.16 | J16: =Gri_K!O21 -> 10
C17: - Ca) | D17: N "pronto" perso nel periodo autunno invernale | H17: ='C&D'!C22 -> 16.3296
C18: - Cb) | D18: N perso all'uscita dall'inverno | H18: =('C&D'!C24+'C&D'!C32) -> 6.8304
C19: D) | D19: Immobilizzazioni e dispersioni (*) | H19: ='C&D'!G23 -> 23.77
C20: B1) | D20: Arricchimernti | I20: =Gri_P!I14 -> 0 | J20: =Gri_K!F29 -> 0
C21: A2) | D21: Anticipazioni anni futuri | I21: =IF(AND(C_tempo!H22="sì",Codici!K2=TRUE),Gri_P!H22,0) -> 0 | J21: =IF(AND(C_tempo!H22="sì",Codici!K2=TRUE),Gri_K!G26,0) -> 0
B22: Totale necessità | H22: =SUM(H15,H16,H19:H21) -> 158.13 | I22: =SUM(I15:I21) -> 28 | J22: =SUM(J15:J21) -> 30
D24: DISPONIBILITA'
C25: B) | D25: Fertilità del suolo | H25: =B!P19 -> 30.6 | I25: =Gri_P!I16 -> 90.684 | J25: =IF(Gri_K!K36="Sì",0,Gri_K!F31) -> 608.394456
C26: E) | D26: Precessione | H26: =E!F28 -> 0
C27: F) | D27: Fertilità organica residua | H27: =F!M14 -> 0
C28: G) | D28: Apporti naturali | H28: =G!D20 -> 7.5
B29: Totale disponibilità | H29: =SUM(H25:H28) -> 38.1 | I29: =SUM(I25:I28) -> 90.684 | J29: =SUM(J25:J28) -> 608.394456
B31: Bisogno calcolato | H31: =(H22-H29) -> 120.03 | I31: =(I22-I29) -> -62.684 | J31: =(J22-J29) -> -578.394456
B33: Apporto ammesso col "Bilancio" | E33: =IF(Standard!BR233="sì",Standard!BT233,"") ->  | H33: ='Valori da riportare'!E7 -> 120.03 | I33: ='Valori da riportare'!F7 -> 0 | J33: ='Valori da riportare'!G7 -> 0
B35: =MAS!N243 -> ATTENZIONE! L'apporto di N non può superare il limite MAS | H35: =MAS!G248 -> 120 | I35: =IF(MAS!S243=TRUE,MAS!R231," ") -> RR n.3 2017
B36: =MAS!N244 ->  | E36: =MAS!S244 -> > di 4,5 t/ha
A37: *) | B37: comprensive di eventuali immobilizzazioni della precessione
A38: **) | B38: =IF(Gri_K!$K$36="sì"," dotazione di K corretta in funzione del rapporto Mg/K e della CSC"," ") -> 

Sheet Scheda_N
B2: Piano di fertilizzazione; metodo: Scheda a dose Standard | L2: anno | M2: =Inserimento!T5 -> 2019
B4: Azienda | C4: =Inserimento!B5 -> Pinco Pallino | F4: Coltura | G4: =(Coltura!D225) -> Segale da seme (granella) | L4: ZVN | M4: =Codici!AX2 -> TRUE
B6: Appezz. | C6: =Inserimento!Q5 -> 1 | F6: Fase | G6: =C_tempo!B22 -> Autunno-vernina <150 gg | L6: Area | M6: =Inserimento!N5 -> A
C8: Decrementi (kg/ha) | G8: AZOTO | K8: Incrementi (kg/ha) | L8: max | M8: =(Standard!AU233+M30) -> 50
C9: fattore | D9: condiz. | G9: =IF(Standard!$BR$233="sì","Dose Standard base kg/ha","") ->  | H9: =IF(Standard!$BR$233="sì",Standard!BS233,"") ->  | K9: fattore | L9: condiz.
C10: =CONCATENATE(Standard!$O$3," ",Standard!$O$233," t/ha") -> Resa bassa inferiore a 3 t/ha | D10: =IF(Standard!O233="nd","nd",IF(Codici!$M$2<Standard!$O$233,TRUE,FALSE)) -> FALSE | E10: =IF(D10=TRUE,Standard!P233,0) -> 0 | G10: =IF(Standard!$BR$233="sì","numero tagli programmati","") ->  | H10: =IF(Standard!$BR$233="sì",Codici!BA2,"") ->  | K10: =CONCATENATE(Standard!$AH$3," ",Standard!$AH$233," t/ha") -> Resa alta superiore a 5 t/ha | L10: =IF(Standard!AH233="nd","nd",IF(Codici!$M$2>Standard!$AH$233,TRUE,FALSE)) -> FALSE | M10: =IF(L10=TRUE,Standard!AI$233,0) -> 0
C12: =IF(Standard!Q233>0,Standard!Q3," ") -> Ammendante nell'anno precedente | D12: FALSE | E12: =IF(D12=TRUE,Standard!Q233,0) -> 0 | G12: =IF(Standard!$BR$233="sì","dose per ogni taglio successivo","") ->  | H12: =IF(Standard!$BR$233="sì",Standard!BU233,"") ->  | K12: =IF(Standard!AJ233>0,Standard!$AJ$3," ") -> Tenore SO nel suolo basso | L12: =IF(OR(B!$E$19="molto bassa",B!$E$19="bassa"),TRUE,FALSE) -> TRUE | M12: =IF(L12=TRUE,Standard!AJ$233,0) -> 15
C14: =IF(Standard!R233>0,Standard!R3," ") ->  | D14: FALSE | E14: =IF(D14=TRUE,Standard!R233,0) -> 0 | G14: =IF(Standard!$BR$233="sì","Dose Standard complessiva kg/ha","Dose Standard base kg/ha") -> Dose Standard base kg/ha | H14: =IF(OR(M39=1,M39=15,M39=16),"Vedi Bilancio",IF(M38=0,0,IF(M38<1,"Vedi dose fase allevamento",IF(Standard!F233="nd","nd",Standard!F233)))) -> 100 | K14: =IF(Standard!AK233>0,Standard!AK3," ") ->  | L14: TRUE | M14: =IF(L14=TRUE,Standard!AK233,0) -> 0
C15: =IF(AND(D14=TRUE,L14=TRUE),"selezione incongruente !", " ") -> 
G16: =IF(AND(L16=TRUE,OR(D22=TRUE,D24=TRUE)),"selezione incongruente!"," ") ->  | K16: =IF(Standard!AN233>0,Standard!AN3," ") -> Ristoppio o interramento paglie | L16: FALSE | M16: =IF(L16=TRUE,Standard!AN233,0) -> 0
C18: =IF(Standard!S233>0,Standard!S3," ") -> Tenore SO nel suolo elevato | D18: =IF(B!E19="elevata",TRUE,FALSE) -> FALSE | E18: =IF(D18=TRUE,Standard!S233,0) -> 0 | K18: =IF(Standard!AM233>0,(Standard!AM3)," ") -> Lisciviazione x surplus pluviometrico | L18: ='C&D'!D35 -> FALSE | M18: =IF(L18=TRUE,Standard!AM233,0) -> 0
C20: =IF(Standard!T233>0,Standard!T3," ") -> Tenore SO nel suolo molto elevato (>4%) | D20: =IF(Codici!Z2>4,TRUE,FALSE) -> FALSE | E20: =IF(D20=TRUE,Standard!T233,0) -> 0 | K20: =IF(Standard!AR233>0,Standard!AR3," ") ->  | L20: FALSE | M20: =IF(L20=TRUE,Standard!AR233,0) -> 0
C22: =IF(Standard!U233>0,Standard!U3," ") -> Dopo medica o prato > 5 anni | D22: FALSE | E22: =IF(D22=TRUE,Standard!U233,0) -> 0 | G22: =IF(AND(D22=TRUE,D24=TRUE),"selezione incongruente!"," ") ->  | K22: =IF(Standard!AP233>0,Standard!AP3," ") ->  | L22: FALSE | M22: =IF(L22=TRUE,Standard!AP233,0) -> 0
C24: =IF(Standard!V233>0,Standard!V3," ") -> Dopo una leguminosa | D24: FALSE | E24: =IF(D24=TRUE,Standard!V233,0) -> 0 | K24: =IF(Standard!AQ233>0,Standard!AQ3," ") ->  | L24: FALSE | M24: =IF(L24=TRUE,Standard!AQ233,0) -> 0
C26: =IF(Standard!W233>0,Standard!W3," ") ->  | D26: FALSE | E26: =IF(D26=TRUE,Standard!AA233,0) -> 0 | K26: =IF(Standard!AS233>0,Standard!AS3," ") ->  | L26: FALSE | M26: =IF(L26=TRUE,Standard!AS233,0) -> 0
K28: =IF(Standard!AO233>0,Standard!AO3," ") ->  | L28: FALSE | M28: =IF(L28=TRUE,Standard!AO233,0) -> 0
K30: =IF(Standard!AT233>0,Standard!AT3," ") ->  | L30: FALSE | M30: =IF(L30=TRUE,Standard!AT233,0) -> 0
C32: totale riduzioni | E32: =SUM(E10:E30) -> 0 | G32: Apporto ricalcolato | H32: =IF(H14="Vedi Bilancio",H39,IF(M38=0,0,IF(M40="sì","nessun ricalcolo ",IF((H14-E32+M32)<0,0,IF(OR((H14-E32+M32)<(H14+M8),(H14-E32+M32)=(H14+M8)),(H14-E32+M32),(H14+M8)))))) -> 115 | K32: totale incrementi | M32: =SUM(M10:M30) -> 15
B35: =MAS!N241 ->  | G35: =MAS!G248 -> 120
B36: =MAS!N242 ->  | E36: =MAS!S242 -> > di 4,5 t/ha
B38: =IF(M40="sì","Concimazione azoto in allevamento:"," ") ->  | G38: Riferimenti al metodo del bilancio | L38: % N = | M38: =C_tempo!E22 -> 1
C39: =IF($M$39=2,"1 anno ",IF(M39=3,"2 anno"," ")) ->  | D39: =IF(M40="no"," ",IF(M39=2,Standard!BI233,Standard!BJ237)) ->  | E39: kg/ha N | G39: ammesso | H39: =Bilancio!H33 -> 120.03 | L39: ID:Cat | M39: =C_tempo!A22 -> 13
G40: calcolato | H40: =Bilancio!H31 -> 120.03 | L40: allev. | M40: =C_tempo!I22 -> no

Sheet Scheda_PK
B1: Piano di fertilizzazione; metodo: Scheda a dose Standard | L1: anno | M1: =Inserimento!T5 -> 2019
B3: Azienda | C3: =Inserimento!B5 -> Pinco Pallino | E3: Coltura | F3: =Coltura!D225 -> Segale da seme (granella) | L3: ZVN | M3: =Codici!AX2 -> TRUE | O3: Allev. | P3: =C_tempo!I22 -> no
B5: Appezz. | C5: =Inserimento!Q5 -> 1 | E5: Fase | F5: =C_tempo!B22 -> Autunno-vernina <150 gg | L5: Area | M5: =Inserimento!N5 -> A | O5: ID_Fa_D | P5: =C_tempo!A22 -> 13
C7: Decrementi (kg/ha) | K7: Incrementi (kg/ha)
C8: fattore | D8: condiz. | K8: fattore | L8: condiz.
C9: =CONCATENATE(Standard!$O$3," ",Standard!$O$233," t/ha") -> Resa bassa inferiore a 3 t/ha | D9: =IF(Standard!O233="nd","nd",IF(Codici!$M$2<Standard!$O$233,TRUE,FALSE)) -> FALSE | E9: =IF(D9=TRUE,Standard!X233,0) -> 0 | G9: FOSFORO | K9: =CONCATENATE(Standard!$AH$3," ",Standard!$AH$233," t/ha") -> Resa alta superiore a 5 t/ha | L9: =IF(Standard!AH233="nd","nd",IF(Codici!$M$2>Standard!$AH$233,TRUE,FALSE)) -> FALSE | M9: =IF(L9=TRUE,Standard!AV$233,0) -> 0 | O9: % P2O5 | P9: =C_tempo!E22 -> 1
G10: =CONCATENATE("con tenore P nel suolo ",Gri_P!G10) -> con tenore P nel suolo molto alto
C11: =IF(Standard!Y233>0,Standard!Y3," ") ->  | D11: FALSE | E11: =IF(D11=TRUE,Standard!Y233,0) -> 0 | G11: Dose standard base kg/ha di P2O5 | H11: =IF(OR(P5=1,P5=15,P5=16),"Vedi Bilancio",IF(P9<1,"Vedi dose allevamento",IF(Standard!F233="nd","nd",IF(Gri_P!G10="normale",Standard!G233,IF(Gri_P!G10="molto alto",Standard!I233,IF(Gri_P!G10="molto scarso",Standard!J233,Standard!H233)))))) -> 0 | K11: =IF(Standard!AY233>0,Standard!AY3," ") ->  | L11: FALSE | M11: =IF(L11=TRUE,Standard!AZ233,0) -> 0
C13: =IF(Standard!AA233>0,Standard!AA3," ") ->  | D13: FALSE | E13: =IF(D13=TRUE,Standard!AA233,0) -> 0 | K13: =IF(Standard!AZ233>0,Standard!AZ3," ") ->  | L13: =IF(Calcare!D26="Molto elevato",TRUE,FALSE) -> TRUE | M13: =IF(L13=TRUE,Standard!AY233,0) -> 0
C15: =IF(Standard!AB233>0,Standard!AB3," ") ->  | D15: FALSE | E15: =IF(D15=TRUE,Standard!AB233,0) -> 0 | K15: =IF(Standard!AX233>0,Standard!AX3," ") ->  | L15: FALSE | M15: =IF(L15=TRUE,Standard!AX233,0) -> 0
K17: =IF(Standard!BA233>0,Standard!BA3," ") ->  | L17: FALSE | M17: =IF(L17=TRUE,Standard!AZ233,0) -> 0
K19: =IF(Standard!AW233>0,Standard!AW3," ") ->  | L19: =IF(OR(B!E19="bassa",B!E19="molto bassa"),TRUE,FALSE) -> TRUE | M19: =IF(L19=TRUE,Standard!AW233,0) -> 0
C21: totale riduzioni | E21: =SUM(E9:E17) -> 0 | K21: totale incrementi | M21: =SUM(M9:M19) -> 0 | O21: Riferimenti al Bilancio
G22: Dose ricalcolata | H22: =IF(H11="Vedi Bilancio",P22,IF(P3="sì"," ",IF((H11+M21-E21)>0,(H11+M21-E21),0))) -> 0 | O22: ammesso | P22: =Bilancio!I33 -> 0
O23: calcolato | P23: =Bilancio!I31 -> -62.684
C24: =IF(P$3="sì","Concimazione in allevamento"," ") ->  | E24: =IF($P$5=2,"1 anno ",IF(P5=3,"2 anno"," ")) ->  | G24: =IF(P3="no"," ",IF(P5=2,Standard!BL233,Standard!BM237)) -> 
C26: =CONCATENATE(Standard!$O$3," ",Standard!$O$233," t/ha") -> Resa bassa inferiore a 3 t/ha | D26: =IF(Standard!O233="nd","nd",IF(Codici!$M$2<Standard!$O$233,TRUE,FALSE)) -> FALSE | E26: =IF(D26=TRUE,Standard!AC233,0) -> 0 | G26: POTASSIO | K26: =CONCATENATE(Standard!$AH$3," ",Standard!$AH$233," t/ha") -> Resa alta superiore a 5 t/ha | L26: =IF(Standard!AH233="nd","nd",IF(Codici!$M$2>Standard!$AH$233,TRUE,FALSE)) -> FALSE | M26: =IF(L26=TRUE,Standard!BC$233,0) -> 0 | O26: % K2O | P26: =C_tempo!G22 -> 1
G27: =CONCATENATE("con dotazione di K nel suolo ",Gri_K!K38) -> con dotazione di K nel suolo elevata
C28: =IF(Standard!AD233>0,Standard!AD3," ") ->  | D28: FALSE | E28: =IF(D28=TRUE,Standard!AD233,0) -> 0 | G28: =IF(Standard!$BR$233="sì","dose standard base kg/ha","") ->  | H28: =IF(Standard!$BR$233="no","",IF(Gri_K!K38="media",Standard!BW233,IF(Gri_K!K38="elevata",Standard!BY233,Standard!BX233))) ->  | K28: =IF(Standard!BD233>0,Standard!BD3," ") ->  | L28: TRUE | M28: =IF(L28=TRUE,Standard!BD233,0) -> 0
C30: =IF(Standard!AG233>0,Standard!AG3," ") -> Si prevede l'interramento della paglia | D30: FALSE | E30: =IF(D30=TRUE,Standard!AG233,0) -> 0 | G30: =IF(Standard!$BR$233="sì","numero tagli programmati","") ->  | H30: =IF(Standard!$BR$233="sì",Codici!BA2,"") ->  | K30: =IF(Standard!BF233>0,Standard!BF3," ") ->  | L30: FALSE | M30: =IF(L30=TRUE,Standard!BF233,0) -> 0
C32: =IF(Standard!AF233>0,Standard!AF3," ") ->  | D32: FALSE | E32: =IF(D32=TRUE,Standard!AE233,0) -> 0 | G32: =IF(Standard!$BR$233="sì","dose per ogni taglio successivo","") ->  | H32: =IF(Standard!$BR$233="no","",IF(Gri_K!K38="media",Standard!CA233,IF(Gri_K!K38="elevata",Standard!CC233,Standard!CB233))) ->  | K32: =IF(Standard!BG233>0,Standard!BG3," ") ->  | L32: TRUE | M32: =IF(L32=TRUE,Standard!BG233,0) -> 0
C34: totale riduzioni | E34: =SUM(E26:E32) -> 0 | G34: =IF(Standard!$BR$233="sì","Dose Standard complessiva kg/ha","Dose Standard kg/ha") -> Dose Standard kg/ha | H34: =IF(OR(P5=1,P5=15,P5=16),"Vedi Bilancio",IF(P26<1,"vedi dose allevamento",IF(Standard!F233="nd","nd",IF(Gri_K!K38="media",Standard!K233,IF(Gri_K!K38="elevata",Standard!M233,IF(Gri_K!K38="molto bassa",Standard!N233,Standard!L233)))))) -> 0 | K34: totale incrementi | M34: =SUM(M26:M32) -> 0 | O34: Riferimenti al Bilancio
O35: ammesso | P35: =Bilancio!J33 -> 0
G36: Dose ricalcolata | H36: =IF(H34="Vedi Bilancio",P35,IF(P26=0.2,Standard!BO233,IF(P26=0.4,Standard!BP233,IF(P26<1," ",IF((H34+M34-E34)>0,(H34+M34-E34),0))))) -> 0 | O36: calcolato | P36: =Bilancio!J31 -> -578.394456
C37: =IF(P$3="sì","Concimazione in allevamento"," ") ->  | D37: =IF($P$5=2,"1 anno ",IF(P5=3,"2 anno"," ")) ->  | G37: =IF(P3="no"," ",IF(P5=2,Standard!BO233,Standard!BP237)) -> 
B38: =IF(Gri_K!K36="Sì","La dotazione di K è stata corretta in relazione al rapporto Mg/K e alla CSC"," ") -> 

Sheet Distribuz
A1: Predisposizione del Piano di distribuzione dei fertilizzanti | Z1: N | AA1: P2O5 | AB1: K2O | AC1: SO
A2: Coltura: | C2: =Coltura!D225 -> Segale da seme (granella) | I2: Fase | J2: =Cicli_Fase!F31 -> Autunno-vernina <150 gg | R2: Metodo selezionato | U2: =Metodo!C8 -> Bilancio | W2: anno | X2: =Inserimento!T5 -> 2019 | Z2: Apporti ammessi
B4: Fertilizz. Organico | H4: titoli kg/t | L4: Quantità | N4: N campo kg | S4: Epoca e modalità di distribuzione | X4: Efficienza | Z4: =IF(Codici!$E$2=1,Bilancio!$H33,IF(AND(Codici!$E$2=2,OR(Cicli_Fase!$F$30=2,Cicli_Fase!$F$30=3)),Scheda_N!D39,Scheda_N!H32)) -> 120.03 | AA4: =IF(Codici!$E$2=1,Bilancio!I33,IF(AND(Codici!$E$2=2,OR(Cicli_Fase!$F$30=2,Cicli_Fase!$F$30=3)),Scheda_PK!$G24,Scheda_PK!$H22)) -> 0 | AB4: =IF(Codici!$E$2=1,Bilancio!J33,IF(AND(Codici!$E$2=2,OR(Cicli_Fase!$F$30=2,Cicli_Fase!$F$30=3)),Scheda_PK!$G37,Scheda_PK!$H36)) -> 0 | AC4: =SO!F9 -> 13
B5: nelle celle color arancio i titoli indicativi | G5: N | H5: P2O5 | I5: K2O | J5: ss % | L5: t/ha | N5: Org. | O5: Zootec. | Q5: Anno | X5: % | Z5: Quantità utili per la coltura
N7: =IF(Fert_org!E27>1,(G7*L7),0) -> 0 | O7: =IF(V8=TRUE,(N7*U8)/100,N7) -> 0 | X7: ='Apporti al terreno'!I3 -> 40 | Z7: ='Apporti al terreno'!M5 -> 0 | AA7: ='Apporti al terreno'!P5 -> 0 | AB7: ='Apporti al terreno'!S5 -> 0 | AC7: ='Apporti al terreno'!U4 -> 0
G8: =Fert_org!K27 -> 5 | H8: =Fert_org!N27 -> 2.4 | I8: =Fert_org!Q27 -> 7 | J8: =Fert_org!H27 -> 25 | R8: =IF(Fert_org!$R27="no","indica la % di N zootec.."," ") ->  | U8: 10 | V8: =IF(Fert_org!$R27="no",TRUE,FALSE) -> FALSE
L10: 20 | N10: =IF(Fert_org!E29>1,(G10*L10),0) -> 0 | O10: =IF(V11=TRUE,(N10*U11)/100,N10) -> 0 | X10: ='Apporti al terreno'!I6 -> 39.1 | Z10: ='Apporti al terreno'!M8 -> 0 | AA10: ='Apporti al terreno'!P8 -> 0 | AB10: ='Apporti al terreno'!S8 -> 0 | AC10: ='Apporti al terreno'!U7 -> 0
G11: =Fert_org!K29 -> 3.85 | H11: =Fert_org!N29 -> 2.85 | I11: =Fert_org!Q29 -> 3.8 | J11: =Fert_org!H29 -> 8.5 | R11: =IF(Fert_org!$R29="no","indica la % di N zootec.."," ") ->  | V11: =IF(Fert_org!$R29="no",TRUE,FALSE) -> FALSE
N13: =IF(Fert_org!E31>1,(G13*L13),0) -> 0 | O13: =IF(V14=TRUE,(N13*U14)/100,N13) -> 0 | X13: ='Apporti al terreno'!I9 -> 0 | Z13: ='Apporti al terreno'!M11 -> 0 | AA13: ='Apporti al terreno'!P11 -> 0 | AB13: ='Apporti al terreno'!S11 -> 0 | AC13: ='Apporti al terreno'!U10 -> 0
G14: =Fert_org!K31 -> 0 | H14: =Fert_org!N31 -> 0 | I14: =Fert_org!Q31 -> 0 | J14: =Fert_org!H31 -> 0 | R14: =IF(Fert_org!$R31="no","indica la % di N zootec.."," ") ->  | V14: =IF(Fert_org!$R31="no",TRUE,FALSE) -> FALSE
B15: Totale degli apporti da matrici organiche | N15: =SUM(N7,N10,N13) -> 0 | O15: =SUM(O7,O10,O13) -> 0 | Z15: =SUM(Z7,Z10,Z13) -> 0 | AA15: =SUM(AA7,AA10,AA13) -> 0 | AB15: =SUM(AB7,AB10,AB13) -> 0 | AC15: =(+AC7+AC10+AC13) -> 0
B17: Concimi minerali e di sintesi | H17: titoli kg/q | L17: q/ha | R17: Epoca e modalità di distribuzione
G19: =Concimi!D153 -> 5 | H19: =Concimi!E153 -> 0 | I19: =Concimi!F153 -> 0 | X19: 100 | Z19: =($L19*($X19/100)*G19) -> 0 | AA19: =($L19*($X19/100)*H19) -> 0 | AB19: 0
